Workbook

Sheet Cover
A1: =MID(CELL( "filename", $A$1 ), SEARCH( "[",CELL( "filename", $A$1 ) ) + 1, SEARCH( "]",CELL( "filename", $A$1 ) ) - SEARCH( "[",CELL( "filename", $A$1 ) ) - 1 ) -> H8_Draft_v2.xlsm
B2: =RIGHT(CELL( "filename", B2 ), LEN(CELL( "filename", B2 ) ) - SEARCH( "]",CELL( "filename", B2 ) ) ) -> Cover
C9: Development of Financial Model
C10: The Civil Aviation Authority (CAA) provides this Price Control Model (PCM). It is prepared in relation to setting price controls over Heathrow Airport for the H8 period. The purposes of the PCM are to: • assess the affordability and financeability of the proposed price controls applied by the CAA; • allow assessment of policy options in respect of incentives; • calculate the maximum allowable yield; and • incorporate high-level cost modelling on a base plus marginal basis. The inputs, calculations and outputs in the PCM are solely for the purposes stated above. There may be discrepancies with other related data sources (e.g. HAL's accounts) due to different assumptions used, different time periods, etc. This model is published alongside the CAA’s final decision (CAPxxx published in xxxx 202x) and the inputs in the model reflects CAA’s assumptions in the final decision. All questions and comments related to the PCM should be directed to the CAA (omo.ugowe@caa.co.uk, hassan. moazzam@caa.co.uk and dan.rock@caa.co.uk).
A27: End of spreadsheet

Sheet Version log
B2: =RIGHT(CELL( "filename", B2 ), LEN(CELL( "filename", B2 ) ) - SEARCH( "]",CELL( "filename", B2 ) ) ) -> Version log
E9: Version number | F9: Date | G9: File name
E10: 1 | F10: =TODAY( ) -> 2026-03-30 | G10: =MID(_xlfn.SINGLE( CELL( "filename", A1 )), FIND( "[",_xlfn.SINGLE( CELL( "filename", A1 ) )) + 1, FIND( "]",_xlfn.SINGLE( CELL( "filename", A1 ) )) - FIND( "[",_xlfn.SINGLE( CELL( "filename", A1 ) )) - 1 ) -> H8_Draft_v2.xlsm
E12: Version number | F12: Date | G12: File name | H12: Change Info | I12: Change suggested by | J12: Type of change | K12: Additional notes | L12: Modeller
E14: 1 | F14: 2025-03-20 | G14: H8_Draft_PCM v1.00.xlsm | H14: First major version. Shared with HAL for purposes of their regulatory business plan preparation | I14: n/a | J14: n/a | K14: n/a | L14: n/a
E15: 2 | F15: 2023-03-31 | G15: H8_Draft_PCM v1.00.xlsm | H15: Named Ranges (Gearing_2027, Gearing_2028, Gearing_2030 & Gearing_2031) was not included in the NAMED RANGES tab | I15: CAA | J15: Minor | L15: CAA
E16: 3 | F16: 2025-05-23 | G16: H8_Draft_PCM v2.00.xlsm | H16: VBA code is not pasting the results from running the flat_profile_charges into the MACRO section in the INPS tab | I16: HAL | J16: Major | L16: CAA
E17: 4 | F17: 2025-05-23 | G17: H8_Draft_PCM v2.00.xlsm | H17: Reversal of the additional WACC uplift for Tax allowance on the return on RAB in C_Revenue tab row 40 | I17: HAL | J17: Major | L17: CAA
E18: 5 | F18: 2025-05-23 | G18: H8_Draft_PCM v2.00.xlsm | H18: Updating PCM user guide & inclusion of a guide map and key | I18: HAL | J18: Major | L18: CAA
E19: 6 | F19: 2025-05-23 | G19: H8_Draft_PCM v2.00.xlsm | H19: Change references from RPI 25 to real 2025 | I19: CAA | J19: Minor | L19: CAA
E20: 7 | F20: 2025-05-23 | G20: H8_Draft_PCM v2.00.xlsm | H20: Update VBA for Gearing Solver to include all H8 inputs in GEARING TARGET A (AF-AI 411) in the InpS tab | I20: CAA | J20: Major | L20: CAA
E21: 8 | F21: 2025-06-10 | G21: H8_Draft_PCM v2.00.xlsm | H21: Move Macro section and H8-H12 Price adjustment factor in InpS to Macro tab | I21: CAA | J21: Minor | L21: CAA
E22: 9 | F22: 2025-06-10 | G22: H8_Draft_PCM v2.00.xlsm | H22: Include Operating Cashflow used for Lookforward calculation into C_Lookforward tab for Pre-interest and PostInterest calculations | I22: HAL | J22: Major | L22: CAA
E23: 10 | F23: 2025-06-10 | G23: H8_Draft_PCM v2.00.xlsm | H23: Change Indexation from RPI to CPI | I23: HAL | J23: Major | L23: CAA
E24: 11 | F24: 2025-06-10 | G24: H8_Draft_PCM v2.00.xlsm | H24: Change O_FinStats to C_FinStats | I24: CAA | J24: Minor | L24: CAA
E25: 12 | F25: 2026-01-31 | G25: H8_Draft_PCM v2.00.xlsm | H25: Change Indexation from CPI to CPIH | I25: HAL | J25: Major | L25: CAA
E26: 13 | F26: 2026-01-31 | G26: H8_Draft_PCM v2.00.xlsm | H26: Move Macro section and H8-H12 Price adjustment factor from Macro tab back to InpS tab | I26: CAA | J26: Minor | L26: CAA
E27: 14 | F27: 2026-01-31 | G27: H8_Draft_PCM v2.00.xlsm | H27: Change InpS tab title to Inputs | I27: CAA | J27: Minor | L27: CAA
A76: End of spreadsheet

Sheet Key
A9: KEY
A12: Standard Input | B12: 14000 | C12: 14000
A13: Percentage Input | B13: 0.2 | C13: 0.2
A14: Currency Input | B14: 14000 | C14: 14000
A15: Date Input | B15: 2010-01-01 | C15: 2010-01-01
A17: Standard Calculation | B17: 0 | C17: 0
A18: Currency Calculation | B18: 0 | C18: 0
A19: Percentage Calculation | B19: 0.2 | C19: 0.2
A20: Date Calculation | B20: 2015-04-01 | C20: 2015-04-01
A22: Standard Result | B22: 0 | C22: 0
A23: Currency Result | B23: 0 | C23: 0
A24: Percentage Result | B24: 0 | C24: 0
A25: Date Result | B25: 2013-06-30 | C25: 2013-06-30
A27: Report SubTotal
A29: Report Total
A32: Report Indent | B32: this is the new format

Sheet Guide
B2: =RIGHT(CELL( "filename", B2 ), LEN(CELL( "filename", B2 ) ) - SEARCH( "]",CELL( "filename", B2 ) ) ) -> Guide
D7: This draft user guide is not a policy statement.
A9: 1: MODEL OVERVIEW
D11: Summary: | H11: This is a Price Control Model with the primary aim of calculating the appropriate pricing per passenger by Heathrow Airport to its customers (the airlines), considering the planned expansion programme associated with the proposed new runway (the “Project”).
H13: The model is also be used to:
H15: · assess the financeability of the pricing controls applied by the CAA;
H16: · allow assessment of policy options in respect of incentives
H17: · calculate the maximum allowable yield,
H19: In accordance with the FAST modelling standard (http://www.fast-standard.org) the model logic flows from left to right in the general form of Inputs > Calculations > Outputs. A listing of the various sheets are enclosed in the Contents & Map tabs.
H21: Map
D23: 1.1 Sheet Overview:
H25: Guidance & Control Sheets | J25: Guidance sheets provide qualitative information about the model and assist users in their understanding and navigation. Control sheets include a summary of model integrity checks and a list of macros, including descriptions of their purposes. These sheets are shaded purple. Following standard model convention, they appear first (from left to right) with the exception of the model integrity checks which is the last tab just before the PowerBI table.
H28: InpS Sheet | J28: InpS sheet is where users are required to enter information which is then used to drive the rest of the model with the exclusion of the MACRO section (rows 601-611)and REPROFILING section rows 435-444. The MACRO section is derived from C_Revenue tab rows 205 which deals with the results of the macro calculations used to profile the nominal airport charges while Rows 435-444 deals with the price control adjustment factor which are calculated by the macros . This sheet is shaded yellow. Following standard model convention, they appear after model guidance and control sheets and before calculations.
H31: Calculation Sheets | J31: Calculations are done within the Calculation Sheets. Users are not expected to update these sheets as calculations will update automatically when inputs are changed in the Input Sheets. These sheets are shaded white. Following standard model convention, they appear after the input sheets but before outputs.
H34: Output Sheets | J34: Output sheets store key financial information which is expected to be of most interest to users, such as financial statements. Users are not expected to update these sheets. These sheets are shaded blue. Following standard convention, they are on the right most sheets of the model.
D37: 1.2 Units overview:
H38: Column G of each sheet specifies the relevant units.
H39: All monetary inputs are either in nominal prices or [price index]-real prices.
H40: £'m refers to monetary inputs in nominal prices, which are monetary amounts expressed in the current year prices base.
H41: £'m [price index]-real refers to monetary inputs in real prices, which are monetary amounts expressed in terms of (1) the price base year and (2) the price index used to convert to nominal prices.
H42: Where real figures are used they are later converted to nominal via calculations later in the model, as described in Section 7. INDEXATION below.
D44: 1.3 Data sources for inputs:
H45: Each input requires a corresponding data source to be entered in column I.
D47: 1.4 Confidentiality status:
H48: Each input requires a corresponding confidentiality status to be selected in column K. "Already published" refers to information which is available in the public domain. "Must not be published" refers to sensitive confidential information. "Being published with this model" refers to information which is not confidential but is not public.
D50: 1.5 Guidance notes:
H51: Guidance notes are included in column H to assist users' understanding and support the correct entry of inputs
D53: 1.6 Recurring terminology:
H54: The model includes the following recurring terminology:
H55: BEG | I55: - | J55: Refers to an opening balance
H56: POS | I56: - | J56: Refers to a positive number where its negative is included elsewhere in the model. The purpose is to simplify SUM formulae and to be more clear and transparent for users.
H57: NEG | I57: - | J57: Refers to a negative number where its positive is included elsewhere in the model
D59: 1.7 Navigation shortcuts:
H60: Navigation through the model is supported by the following keyboard shortcuts which are best used in conjunction:
H61: F5 + Enter | J61: Returns to previous location
A65: 2: MODEL TIMEFRAME
D67: Summary: | H67: The model is based on and calculated on an annual timeline. It works on the calendar year, that is, from 1 January to 31 December. Calendar years 2017 and 2018 are kept in the model for any inputs required for 'Actuals' period. The model is forecasting from year 2019 till 2050 (i.e. from 1st January 2019 till 31st December 2050)
H69: Timeline assumptions are present under the below mentioned heading:
H72: Time
A74: 3: NAMED RANGES
D76: Summary: | H76: The principal uses of named ranges are for the operation of the macros in the model however not all the named ranges are used for the macros. The NAMED RANGES tab lists all the named ranges in this model.
H77: Below is an exhaustive list of named ranges used in the macros alongside a description of their purpose:
H78: h8_period_x_factor | K78: The calculated value of X to achieve zero difference between NPV's of profiled and unprofiled revenues in associated period
H79: Revenue___H8_period_price_profiling_NPV_check | K79: Difference between NPVs of profiled and unprofiled revenues in the associated period
H80: h9_period_x_factor | K80: The calculated value of X to achieve zero difference between NPV's of profiled and unprofiled revenues in associated period
H81: Revenue___H9_period_price_profiling_NPV_check | K81: Difference between NPVs of profiled and unprofiled revenues in the associated period
H82: h10_period_x_factor | K82: The calculated value of X to achieve zero difference between NPV's of profiled and unprofiled revenues in associated period
H83: Revenue___H10_period_price_profiling_NPV_check | K83: Difference between NPVs of profiled and unprofiled revenues in the associated period
H84: h11_period_x_factor | K84: The calculated value of X to achieve zero difference between NPV's of profiled and unprofiled revenues in associated period
H85: Revenue___H11_period_price_profiling_NPV_check | K85: Difference between NPVs of profiled and unprofiled revenues in the associated period
H86: h12_period_x_factor | K86: The calculated value of X to achieve zero difference between NPV's of profiled and unprofiled revenues in associated period
H87: Revenue___H12_period_price_profiling_NPV_check | K87: Difference between NPVs of profiled and unprofiled revenues in the associated period
H88: FinStats - delta | K88: Tab containing the difference between FinStats and FinStats-values
H89: FinStats | K89: Tab containing the financial statements of the notional company
H90: FinStats-values | K90: Tab containing the hard-coded values of the financial statements of the notional company
H91: _2027_gearing_adjustment | K91: The adjustment needed in 2027 such that the dividends paid and share capital additons net out to zero
H92: _2028_gearing_adjustment | K92: The adjustment needed in 2028 such that the dividends paid and share capital additons net out to zero
H93: _2029_gearing_adjustment | K93: The adjustment needed in 2029 such that the dividends paid and share capital additons net out to zero
H94: _2030_gearing_adjustment | K94: The adjustment needed in 2030 such that the dividends paid and share capital additons net out to zero
H95: _2031_gearing_adjustment | K95: The adjustment needed in 2031 such that the dividends paid and share capital additons net out to zero
H96: Gearing_2027 | K96: The gearing needed in 2027 such that the dividends paid and share capital additions net out to zero
H97: Gearing_2028 | K97: The gearing needed in 2028 such that the dividends paid and share capital additions net out to zero
H98: Gearing_2029 | K98: The gearing needed in 2029 such that the dividends paid and share capital additions net out to zero
H99: Gearing_2030 | K99: The gearing needed in 2030 such that the dividends paid and share capital additions net out to zero
H100: Gearing_2031 | K100: The gearing needed in 2031 such that the dividends paid and share capital additions net out to zero
A102: 4: MACROS
D104: Summary: | H104: The model makes use of a limited number of macros. All macros are included within the following sheet, along with a description of its purpose and a button for triggering its function. No hidden or automated calculation macros are included within the model.
H105: Macros
H107: The following macros are included within the model:
H108: Profile _FlatCharges
H109: Gearing_Solver
H110: Copy_Report_Output
A112: 5: CHECKS, WARNINGS AND ALERTS
D114: Summary: | H114: The model includes various checks throughout which highlight alerts, warnings and errors to users. Summary outputs relating to these are included at the top of each sheet in consistent cell locations to aid usability and flag potential issues to users efficiently. Checks, warnings and alerts apply only to the live scenario.
D115: 6.1 Cell F3:
H116: Model integrity checks: | J116: Model integrity checks test whether the model calculations are functioning correctly. This includes items such as confirming that the Balance Sheet balances. If an error has occurred within the model column F of the Checks sheet will flag the word 'ERROR' (conditionally formatted with red text). If these checks are satisfied they will be marked with the word 'ok'. As these checks test the logical integrity of the model they should all be in 'ok' status at all times. Any exceptions to this should be investigated. A summary of all integrity checks is included in cell F3 of each sheet. Note cell F3 includes 3 possible outcomes: 'Ok' and 'ALERT'. An explanation of the 'ALERT' status is provided below.
H117: Price profiling checks: | J117: These checks confirm whether the Net Present Value of the profiled aero revenues is equal to the Net Present Value of the unprofiled aero revenues for each price control period. An 'ALERT' result here provides an alert to users that allowed aero revenues have not been re-profiled since inputs have been updated. An 'ALERT' in this instance does not reflect an error in model integrity as users may wish to run stress tests where the realised scenario differs from the assumptions used when setting the price control. In order to update revenue profiling once inputs have been changed, and return 'ok' results for all periods, users should run the revenue profiling macro by clicking the "Profile_Flat_Charges" button stored within the Macros sheet.
J118: Therefore an 'Ok' result in cell F3 of each sheet reflects that all model integrity checks are satisfied and the Revenue Profiling macro has been re-run since inputs where last updated.
H120: Ratio alerts: | J120: C_Ratios calculates the live financial ratios for each period based on user inputs and tests these against specified thresholds which are intended to reflect AAA, BBB+ and BBB credit ratings. Users can select the appropriate credit rating to test here:
J122: Cell F3 of each sheet provides a high-level summary of the results of ratio testing across all relevant periods for all ratios. If an 'ALERT' is triggered, users can manually examine the C_Ratios sheets to see which ratios thresholds are being breached in which periods. Note that an 'ALERT' in this cell provides commercial information, it does not indicate an integrity error within the model.
A124: 6. INDEXATION
D126: Summary: | H126: The inputs to the PCM are either in nominal prices and [price index]-real prices. The PCM then converts inputs to nominal before conducting calculations, and deflate the calculation results by a suitable inflation index.
H128: For any price monetary input series, two elements will need to be specified: (1) the price base year and (2) the price index used for uplifting to nominal prices. Some examples:
H129: Price series | I129: Price base year | J129: Price index used for uplifting to nominal prices
H130: CPIH-real 2024 prices | I130: 2024 | J130: CPIH
H131: CPI-real 2024 prices | I131: 2024 | J131: CPI
H132: Nominal prices | I132: The current year | J132: Not applicable
H137: Where appropriate, column H of the Input sheets contains guidance notes to instruct users whether data should be entered in [price index]-real or nominal terms. Where data is entered in [price index]-real terms users should ensure that (1) inputs in [price index]-real terms are consistent with the specified price base year of the PCM and (2) the the price index used to inflate inputs to nominal prices is clearly stated in Column H and recorded in a separate workbook "Indexation for PCM".
H139: The majority of forecasts inputs are entered in [price index]-real terms with indexation being applied separately, unless otherwise specified.
A141: 7: FINANCING
D143: Summary: | H143: The model calculates total drawdowns of capital based on liquidity look-forward requirements (see InpS). Capital drawdowns are a combination of debt and shareholder equity as described below.
D145: 7.1 Liquidity look-forward requirement:
H146: The model ensures that there is sufficient capital available to cover debt service payments, capital expenditures and minimum dividend requirements for up to 3 years.
H148: The look-forward calculation for interest payments on new debt drawn during the forecast period has been simplified to a multiple of current year interest, rather than future years. This is to avoid introducing circularities within the model logic.
H149: A percentage of the liquidity requirement is assumed to be available from stand-by facilities and capital arranged in advance but not yet drawn (see InpS). The remainder is the cash requirement.
D152: 7.2 Debt: | G152: Debt drawdowns are calculated to achieve a target gearing ratio (calculated as Net Debt / RAB)
G153: The user is able to select between different target levels of gearing under the following headings:
G157: Target Net Debt = (RAB x Target Gearing Ratio %)
G159: Target Gross Debt is therefore calculated as follows:
G161: Target Gross Debt = (RAB Balance x Target Gearing Ratio %) + Cash Balance. Where the model targets a Cash Balance = Minimum Cash Required (Look Forward)
G163: Profiled series inputs are available for opening and closing balances, interest and repayments related to debt drawn prior to the forecast period. This encapsulates and summarises all existing debt types. Inputs relating to pre-existing debt are in EMBEDDED DEBT section in the InpS tab rows 320-328
G165: Target debt drawdowns can be found in C_L the following tab: | M165: C_LookForward
G166: Target debt drawdowns are calculated as follows:
G167: Debt Drawdowns Required = Target Gross Debt - Opening Debt (including accretions) + Repayments
G169: The model includes 2 categories of debt: fixed interest and index-linked.
G170: Calculations for each category of debt are included in the below mentioned sheets.
H172: Fixed Interest Debt calculations | M172: C_Fin_Fixed
H173: Index-Linked Debt calculations | M173: C_Fin_Ind
G175: Debt is repaid in bullet instalments at the end of a predefined term.
G177: Interest on Fixed Debt is assumed to be fixed to the prevailing rate in the period in which the debt is drawn.
G178: Interest on Index-linked Debt is assumed to be floating, so references the prevailing interest rate in each year.
G180: Profiled inputs for the cost of debt are provided under InpS
D184: 7.3. Dividends and new equity capital drawn:
G185: Cashflows to shareholders are calculated as the greater of a minimum yield on either the opening share capital balance or the RAB equity wedge and the cashflow available to shareholders after debt service payments. In the event that cashflow available to shareholders is lower than the minimum yield value, additional equity drawdowns are triggered.
G186: Dividends and share capital issuance inputs and calculations are provided under InpS & C_FinSumm tabs respectively
G188: Minimum Dividend = Minimum Dividend Yield % multiplied by either the Equity Wedge (Average RAB Balance x (1 - Target Gearing %)) or the opening share capital balance
G189: Dividends are assumed to be paid as declared and are calculated as follows:
G190: Dividends declared and paid = Higher of Minimum Dividend and Cash available to shareholders before equity drawings and minimum dividend restricted by retained earnings
G191: Cash available to shareholders before equity drawings and minimum dividend = Opening Cash + Cashflow available to shareholders - Minimum Cash Requirement (Look Forward)
G192: Equity drawdowns = MAX(Minimum Dividend - Cashflow available to shareholders before equity drawings and minimum dividend, 0) + additional equity required to achieve target gearing
G193: Dividends are restricted by Retained Earnings. In the event that dividends are capped to a degree that does not satisfy the minimum yield, share repurchases are triggered. In the event that all share capital has been repurchased any shortfall in cash distributions will be accrued as trapped cash
G194: In periods where both share repurchases and equity drawings are triggered, they are netted off to produce a net share capital additions/(repurchases)
A197: 8: OPERATING COSTS
C199: Summary: | G199: The model has only one line for operating expenditure which is split between its base and marginal components. The Input is in real terms with indexation calculated separately, as described in Section 6 above.
G200: Operating cost assumptions and calculations are included in InpS & C_Opex
D203: 8.1 Base Operating Costs:
G204: Base costs are the costs expected when realised passenger numbers are equal to allowed passenger numbers assumed when setting the price control. This is further divided into two components: underlying base costs before expansion, and additional base costs arising when passenger capacity steps-up (due to expansion).
G205: High, medium and low scenarios for base costs before expansion are entered as real inputs within InpS
D207: 8.2 Marginal Operating Costs:
G208: Marginal operating costs are the additional costs that arise due to realised passenger numbers differing from the allowed passenger numbers that were expected when setting the price control.
G209: High, medium and low scenarios for marginal costs are entered as real inputs within InpS
A212: 9: NON AERO REVENUE
D214: Summary: | G214: Non aero revenues are included within the model under the following 3 categories: Commercial, Cargo and ORCs. The model calculates non aero revenues using the same logic applied to operating costs.
G215: Non aero revenue assumptions and calculations are included in InpS, C_CargoRev & C_NonAeroRev
A218: 10: CAPITAL EXPENDITURE AND ACCOUNTING DEPRECIATION
D220: Summary: | G220: The model caters for capital expenditures. For modelling purposes, capex categories are defined by their associated accounting depreciation policies and capital allowance allocations rather than their functional purpose or use. Indexation is allocated separately as described in Section 6.
G221: The inputs and calculations can be found in InpS & C_Capex/C_AccDepr respectively
D225: 10.1 Cashflows:
G226: Cashflows are entered in un-indexed terms, with indexation applied separately. 'Allowed capex' refers to the allowed capital expenditures which are expected when setting the price control. This is included in the RAB when setting the maximum yield and value of X. 'Outturn capex' is a forecasts of the actual capital expenditures incurred. Therefore for the purposes of cashflows and accounting information the outturn capital expenditure figures are used. The difference between the two is handled via a risk sharing mechanism described in a separate dedicated section below. There are three scenarios available for capex outturns in the InpS.
D228: 10.2 Conversion to Assets in Use:
G229: The model acknowledges that there will be construction periods and therefore allows for a timing difference between cashflows and the date from which assets become ready and available for use (i.e. depreciation starts). Initially capital expenditures are recognised as Assets Under Construction (AUC). The following calculation is used to determine the amount which is then transferred to Assets in Use (AIU) in each period:
G230: Amount transferred = (Opening AUC + Capital Expenditures in period) x Percentage
G232: The user is able to select between two approaches of determining the relevant percentage under each scenario here.
G233: The 'Capacity step-ups' option is driven by the airport expansion and links to the timing of additional passenger capacity becoming available within other access of the model (e.g. opex).
D236: 10.3 Accounting Depreciation:
G237: Users are able to select between straight line and reducing balance approaches, both of which are calculated in the model.
G238: Depreciation commences once assets are transferred from Assets Under Construction to Assets In Use.
G239: Users should specify an assumption for the timing of conversion to AIU within the year here. For example an entry of 75% indicates that conversion occurs at the start of the 2nd quarter (i.e. 75% of a full year's depreciation for the transferred amount is included in total depreciation).
A242: 11: REGULATORY ASSET BASE ("RAB") AND REGULATORY DEPRECIATION ALLOWANCE
D244: Summary: | G244: The model includes 3 categories of RAB. Each category is capable of having a unique regulatory depreciation policy and approach to performance sharing mechanisms. The timing of RAB additions are cashflow based and do not consider when assets become available for use. Within each price control period RAB additions are in line with "allowed capex". At the change of price control period an adjustment to the RAB may take place to account for differences between allowed capex and outturn capex cashflows. This is managed through a Performance Sharing Mechanism, described in further detail in a dedicated section below.
G245: The RAB input and calculations are in InpS, C_RAB & C_RABDepr respectively
D248: 11.1 RAB balance:
H249: The closing RAB balance is calculated as follows:
I250: Opening balance pre indexation adjustment, RAB1 | N250: £'m Real
H251: add: | I251: Allowed RAB 1 additions (real) | N251: £'m Real
H252: add: | I252: RAB 1 capex over/under spend adjustment | N252: £'m Real
H253: add: | I253: Total non-capex related adjustments to RAB 1 | N253: £'m Real
H254: add: | I254: Live RAB 1 depreciation (real) | N254: £'m Real
I255: Closing balance pre indexation adjustment, RAB1 | N255: £'m Real | Q255: sum of above = A
I257: RAB indexation factor | N257: RPI indexation factor
I258: RAB1 indexation adjustment | N258: £'m | Q258: B = A x (RAB indexation factor - 1)
I260: Closing balance pre indexation adjustment, RAB1 | N260: £'m Real | Q260: A
I261: RAB1 indexation adjustment | N261: £'m | Q261: B
I262: Closing balance, RAB1 post inflation adjustment | N262: £'m | Q262: = A + B
D264: 11.2 Regulatory depreciation
H265: For each category of RAB users are able to select between the following 3 available approaches to regulatory depreciation:
I266: Straight line
I267: Reducing balance
I268: Profiled input
A271: 12: PERFORMANCE MECHANISMS
D273: Summary: | G273: The model includes various performance mechanisms. Some of the mechanisms relate to RAB adjustments, while others are direct adjustments to allowed revenue. The inputs & calculations are in InpS & C_Performance
D276: 12.1 Non capex RAB adjustments:
H278: The model also includes two categories of catch-all non capex related RAB adjustments, available for each category of RAB.
H279: For the first category adjustments accumulate during the price control period and only come into effect when a new price control period begins.
H280: The second category caters for potential ex ante adjustments which impact the RAB within the price control period.
D282: 12.2 Revenue incentives not impacting the RAB:
H283: The model also includes 2 incentives which do not adjust the RAB but rather impact the calculation of allowed aero revenues directly, namely an opex bonus/penalty and non aero revenue bonus/penalty. The inputs & calculations are included in the InpS & C_Revenue tabs respectively
A286: 13: WEIGHTED AVERAGE COST OF CAPITAL ("WACC")
D288: Summary: | G288: A notional WACC is calculated within the model, with the ability to select between a vanilla and pre-tax WACC. Inputs and calculations relating to the Notional WACC are included in InpS & C_WACC respectively
D290: 13.1 Notional Cost of Debt:
I291: Notional allowed cost of debt pre-tax | M291: A
I292: Corporation tax rate | M292: B
I293: Notional post tax cost of debt | M293: X = A x (1 - B)
D295: 13.2 Notional Cost of Equity:
I297: Selected gearing scenario (%) | M297: C
I298: Asset (un-levered) Beta | M298: D
I299: Debt Beta | M299: E
I300: Equity (levered) Beta | M300: F = (D - C x E) / (1 - C)
I302: Risk free rate | M302: G
I303: Market risk premium | M303: H
I304: Equity (levered) Beta | M304: F
I305: Cost of Equity - post tax | M305: Y = G + F x H
I307: Cost of Equity - pre tax | M307: J = Y / (1 - B)
D309: 13.3 Notional Vanilla WACC: | I309: WACC calculated using pre-tax cost of debt and post-tax cost of equity
I311: Notional Vanilla WACC | M311: = (A x C) + (Y x [1 - C])
D313: 13.3 Notional Pre-Tax WACC: | I313: WACC calculated using pre-tax cost of debt and pre-tax cost of equity
I315: Notional pre-tax WACC | M315: = (A x C) + (J x [1 - C])
I317: If the pre-tax WACC is selected a separate allowance for tax is not included within the building block calculations for allowed aero revenues. Rather the allowance for tax is incorporated into the allowed return on the RAB through the higher cost of capital charge.
A319: 14: TAXATION
D321: Summary: | G321: The model includes two separate calculations for tax: 1. The forecast tax expense and tax paid that appears on the financial statements 2. A tax allowance included as part of the building blocks for calculating the allowed aeronautical revenue
... 108 more rows

Sheet Sign off
B2: =RIGHT(CELL( "filename", B2 ), LEN(CELL( "filename", B2 ) ) - SEARCH( "]",CELL( "filename", B2 ) ) ) -> Sign off
B7: Sign off Points
H9: Signed off by | I9: Date
C10: 1 | D10: A message or an alert showing the presence of any data that 'must not be published' (Col K in input sheets)
C11: =C10 + 1 -> 2 | D11: Has the description on the 'Intro' worksheet been reviewed and updated?
C12: 3 | D12: Self review of the model by [name] and sign off [date]
C13: 4 | D13: Peer review of the model by [name] and sign off [date]
C14: 5 | D14: External review of the model by [consultant] and sign off [date]
C15: 6 | D15: Authorised publication by [name] on [date]
A17: End of spreadsheet

Sheet Map
A1: =MID(CELL("filename",$A$1),SEARCH("[",CELL("filename",$A$1))+1,SEARCH("]",CELL("filename",$A$1))-SEARCH("[",CELL("filename",$A$1))-1) -> H8_Draft_v2.xlsm
B2: =RIGHT(CELL("filename", B2), LEN(CELL("filename", B2)) - SEARCH("]", CELL("filename", B2))) -> Map
B5: Hyperlinked Model Map
B6: Click individual shapes to navigate to each worksheet.
A51: End of spreadsheet

Sheet Macros controls
B2: =RIGHT(CELL( "filename", B2 ), LEN(CELL( "filename", B2 ) ) - SEARCH( "]",CELL( "filename", B2 ) ) ) -> Macros controls
B7: Macros
F10: Description: copies the values from 'FinStats' and pastes them as values in 'FinStats - values'
F18: Description: uses goal seek to set the gearing to the level that achieves a net zero cash flow to (or from) shareholders.
F25: Description: sets the profiled charges to have a flat profile (in real terms) such that the net present value of profiled charges is equal to the net present value of unprofiled charges.
A38: End of spreadsheet

Sheet Contents
A1: =RIGHT(CELL("filename", A1), LEN(CELL("filename", A1)) - SEARCH("]", CELL("filename", A1))) -> Contents
A5: REPORTS
A7: =HYPERLINK("#TOCrepobxFinStats_Year","1.FinStats") -> 1.FinStats
A10: Sheet | B10: Section | C10: Sub-section
A13: =HYPERLINK("#TOCobxInputs", "1.Inputs") -> 1.Inputs
B14: =HYPERLINK("#TOCobxInputs.Time", "1.1.Time") -> 1.1.Time
C15: =HYPERLINK("#TOCobxInputs.Time.Key_years", "1.1.1.Key years") -> 1.1.1.Key years
C16: =HYPERLINK("#TOCobxInputs.Time.Years_by_array", "1.1.2.Years by array") -> 1.1.2.Years by array
B17: =HYPERLINK("#TOCobxInputs.Input_set_choices", "1.2.Input set choices") -> 1.2.Input set choices
C18: =HYPERLINK("#TOCobxInputs.Input_set_choices.Input_Set_Choices", "1.2.1.Input Set Choices") -> 1.2.1.Input Set Choices
C19: =HYPERLINK("#TOCobxInputs.Input_set_choices.Input_Set_Choices.Financing", "1.2.1.1.Financing") -> 1.2.1.1.Financing
C21: =HYPERLINK("#TOCobxInputs.Input_set_choices.Input_Set_Choices.I_InputSets", "1.2.1.2.I_InputSets") -> 1.2.1.2.I_InputSets
C22: =HYPERLINK("#TOCobxInputs.Input_set_choices.Input_Set_Choices.I_InputSets.Passenger_numbers_scenarios", "1.2.1.2.1.Passenger numbers scenarios") -> 1.2.1.2.1.Passenger numbers scenarios
C24: =HYPERLINK("#TOCobxInputs.Input_set_choices.Input_Set_Choices.I_InputSets.Cost_scenarios", "1.2.1.2.2.Cost scenarios") -> 1.2.1.2.2.Cost scenarios
C26: =HYPERLINK("#TOCobxInputs.Input_set_choices.Input_Set_Choices.I_InputSets.Non_aero_revenue_scenarios", "1.2.1.2.3.Non aero revenue scenarios") -> 1.2.1.2.3.Non aero revenue scenarios
B29: =HYPERLINK("#TOCobxInputs.Non_Aero_revenue", "1.3.Non Aero revenue") -> 1.3.Non Aero revenue
B30: =HYPERLINK("#TOCobxInputs.Expansion_timing", "1.4.Expansion timing") -> 1.4.Expansion timing
B31: =HYPERLINK("#TOCobxInputs.I_Series", "1.5.I_Series") -> 1.5.I_Series
C32: =HYPERLINK("#TOCobxInputs.I_Series.RAB", "1.5.1.RAB") -> 1.5.1.RAB
C33: =HYPERLINK("#TOCobxInputs.I_Series.TRS_adjustment_factor", "1.5.2.TRS adjustment factor") -> 1.5.2.TRS adjustment factor
C34: =HYPERLINK("#TOCobxInputs.I_Series.Input_metric_factor__Only_used_", "1.5.3.Input metric factor (Only used ") -> 1.5.3.Input metric factor (Only used
C35: =HYPERLINK("#TOCobxInputs.I_Series.Taxation", "1.5.4.Taxation") -> 1.5.4.Taxation
C36: =HYPERLINK("#TOCobxInputs.I_Series.Taxation.Capital_Allowances", "1.5.4.1.Capital Allowances") -> 1.5.4.1.Capital Allowances
C38: =HYPERLINK("#TOCobxInputs.I_Series.Taxation.Corporation_tax", "1.5.4.2.Corporation tax") -> 1.5.4.2.Corporation tax
C40: =HYPERLINK("#TOCobxInputs.I_Series.Financing", "1.5.5.Financing") -> 1.5.5.Financing
C41: =HYPERLINK("#TOCobxInputs.I_Series.Financing.Cost_of_Capital", "1.5.5.1.Cost of Capital") -> 1.5.5.1.Cost of Capital
C42: =HYPERLINK("#TOCobxInputs.I_Series.Financing.Cost_of_Capital.Cost_of_Debt", "1.5.5.1.1.Cost of Debt") -> 1.5.5.1.1.Cost of Debt
C44: =HYPERLINK("#TOCobxInputs.I_Series.Financing.Cost_of_Capital.Cost_of_Equity", "1.5.5.1.2.Cost of Equity") -> 1.5.5.1.2.Cost of Equity
C47: =HYPERLINK("#TOCobxInputs.I_Series.Financing.Liquidity_Lookforward", "1.5.5.2.Liquidity Lookforward") -> 1.5.5.2.Liquidity Lookforward
C49: =HYPERLINK("#TOCobxInputs.I_Series.Financing.New_debt_drawdown_proportions", "1.5.5.3.New debt drawdown proportions") -> 1.5.5.3.New debt drawdown proportions
C51: =HYPERLINK("#TOCobxInputs.I_Series.Financing.Embedded_Debt", "1.5.5.4.Embedded Debt") -> 1.5.5.4.Embedded Debt
C53: =HYPERLINK("#TOCobxInputs.I_Series.Financing.Gearing_scenario_Net_Debt_RAB_", "1.5.5.5.Gearing scenario(Net Debt/RAB)") -> 1.5.5.5.Gearing scenario(Net Debt/RAB)
C55: =HYPERLINK("#TOCobxInputs.I_Series._Non_Aero___cargo_revenues", "1.5.6. Non-Aero & cargo revenues") -> 1.5.6. Non-Aero & cargo revenues
C56: =HYPERLINK("#TOCobxInputs.I_Series.Operating_Expenditure", "1.5.7.Operating Expenditure") -> 1.5.7.Operating Expenditure
C57: =HYPERLINK("#TOCobxInputs.I_Series.Capital_Expenditure", "1.5.8.Capital Expenditure") -> 1.5.8.Capital Expenditure
C58: =HYPERLINK("#TOCobxInputs.I_Series.Capital_Expenditure.AUC", "1.5.8.1.AUC") -> 1.5.8.1.AUC
C60: =HYPERLINK("#TOCobxInputs.I_Series.Indexation", "1.5.9.Indexation") -> 1.5.9.Indexation
C61: =HYPERLINK("#TOCobxInputs.I_Series.Passenger_numbers", "1.5.10.Passenger numbers") -> 1.5.10.Passenger numbers
C62: =HYPERLINK("#TOCobxInputs.I_Series.Adjustment_to_WACC", "1.5.11.Adjustment to WACC") -> 1.5.11.Adjustment to WACC
C63: =HYPERLINK("#TOCobxInputs.I_Series.Notional_WACC_Profiled_input", "1.5.12.Notional WACC Profiled input") -> 1.5.12.Notional WACC Profiled input
C64: =HYPERLINK("#TOCobxInputs.I_Series.Pricing", "1.5.13.Pricing") -> 1.5.13.Pricing
C65: =HYPERLINK("#TOCobxInputs.I_Series.Asymmetric_risk_allowance", "1.5.14.Asymmetric risk allowance") -> 1.5.14.Asymmetric risk allowance
C66: =HYPERLINK("#TOCobxInputs.I_Series.Reprofiling", "1.5.15.Reprofiling") -> 1.5.15.Reprofiling
B67: =HYPERLINK("#TOCobxInputs.I_Ratios", "1.6.I_Ratios") -> 1.6.I_Ratios
C68: =HYPERLINK("#TOCobxInputs.I_Ratios.Off_Model_Inputs", "1.6.1.Off Model Inputs") -> 1.6.1.Off Model Inputs
C69: =HYPERLINK("#TOCobxInputs.I_Ratios.Financial_Ratios_Thresholds", "1.6.2.Financial Ratios Thresholds") -> 1.6.2.Financial Ratios Thresholds
C70: =HYPERLINK("#TOCobxInputs.I_Ratios.Financial_Ratios_Thresholds.S_P", "1.6.2.1.S&P") -> 1.6.2.1.S&P
C71: =HYPERLINK("#TOCobxInputs.I_Ratios.Financial_Ratios_Thresholds.S_P.FFO_to_Net_Debt", "1.6.2.1.1.FFO to Net Debt") -> 1.6.2.1.1.FFO to Net Debt
C72: =HYPERLINK("#TOCobxInputs.I_Ratios.Financial_Ratios_Thresholds.S_P.FFO_to_Net_Debt.Regulatory_Asset_Ratio", "1.6.2.1.1.1.Regulatory Asset Ratio") -> 1.6.2.1.1.1.Regulatory Asset Ratio
C76: =HYPERLINK("#TOCobxInputs.I_Ratios.Moodys", "1.6.3.Moodys") -> 1.6.3.Moodys
C77: =HYPERLINK("#TOCobxInputs.I_Ratios.Fitch", "1.6.4.Fitch") -> 1.6.4.Fitch
B78: =HYPERLINK("#TOCobxInputs.Actuals", "1.7.Actuals") -> 1.7.Actuals
C79: =HYPERLINK("#TOCobxInputs.Actuals.Depreciation_actual", "1.7.1.Depreciation actual") -> 1.7.1.Depreciation actual
C80: =HYPERLINK("#TOCobxInputs.Actuals.Operating_costs_actual", "1.7.2.Operating costs actual") -> 1.7.2.Operating costs actual
C81: =HYPERLINK("#TOCobxInputs.Actuals.Cashflows_Actual", "1.7.3.Cashflows-Actual") -> 1.7.3.Cashflows-Actual
C82: =HYPERLINK("#TOCobxInputs.Actuals.Tax_Actual", "1.7.4.Tax Actual") -> 1.7.4.Tax Actual
C83: =HYPERLINK("#TOCobxInputs.Actuals.Balance_Sheet_Actuals", "1.7.5.Balance Sheet Actuals") -> 1.7.5.Balance Sheet Actuals
C84: =HYPERLINK("#TOCobxInputs.Actuals.Revenue_Actuals", "1.7.6.Revenue-Actuals") -> 1.7.6.Revenue-Actuals
C85: =HYPERLINK("#TOCobxInputs.Actuals.Capital_Allowances_Actual", "1.7.7.Capital Allowances Actual") -> 1.7.7.Capital Allowances Actual
B86: =HYPERLINK("#TOCobxInputs.Model_Constants", "1.8.Model Constants") -> 1.8.Model Constants
B87: =HYPERLINK("#TOCobxInputs.Revenue_incentives", "1.9.Revenue incentives") -> 1.9.Revenue incentives
B88: =HYPERLINK("#TOCobxInputs.Macros", "1.10.Macros") -> 1.10.Macros
A90: =HYPERLINK("#TOCobxC_Time", "2.C_Time") -> 2.C_Time
B91: =HYPERLINK("#TOCobxC_Time.Headers", "2.1.Headers") -> 2.1.Headers
B92: =HYPERLINK("#TOCobxC_Time.Actuals_period_flag_1", "2.2.Actuals period flag_1") -> 2.2.Actuals period flag_1
B93: =HYPERLINK("#TOCobxC_Time.Look_forwrd_flag", "2.3.Look-forwrd flag") -> 2.3.Look-forwrd flag
B94: =HYPERLINK("#TOCobxC_Time.H7_flag", "2.4.H7 flag") -> 2.4.H7 flag
B95: =HYPERLINK("#TOCobxC_Time.H8_flag_1", "2.5.H8 flag_1") -> 2.5.H8 flag_1
B96: =HYPERLINK("#TOCobxC_Time.H9_flag_1", "2.6.H9 flag_1") -> 2.6.H9 flag_1
C97: =HYPERLINK("#TOCobxC_Time.H9_flag_1.Forecast_period_flag_1", "2.6.1.Forecast period flag_1") -> 2.6.1.Forecast period flag_1
B98: =HYPERLINK("#TOCobxC_Time.H10_flag_1", "2.7.H10 flag_1") -> 2.7.H10 flag_1
B99: =HYPERLINK("#TOCobxC_Time.H11_flag_1", "2.8.H11 flag_1") -> 2.8.H11 flag_1
B100: =HYPERLINK("#TOCobxC_Time.H12_flag_1", "2.9.H12 flag_1") -> 2.9.H12 flag_1
B101: =HYPERLINK("#TOCobxC_Time.H13_flag_1", "2.10.H13 flag_1") -> 2.10.H13 flag_1
B102: =HYPERLINK("#TOCobxC_Time.Known_Yield_Per_Passenger__flag_1", "2.11.Known Yield Per Passenger flag_1") -> 2.11.Known Yield Per Passenger flag_1
B103: =HYPERLINK("#TOCobxC_Time.Opening_balances_flag_1", "2.12.Opening balances flag_1") -> 2.12.Opening balances flag_1
B104: =HYPERLINK("#TOCobxC_Time.Q6_flag_1", "2.13.Q6 flag_1") -> 2.13.Q6 flag_1
B105: =HYPERLINK("#TOCobxC_Time.Q6_1_flag_1", "2.14.Q6+1 flag_1") -> 2.14.Q6+1 flag_1
B106: =HYPERLINK("#TOCobxC_Time.iH7_flag_1", "2.15.iH7 flag_1") -> 2.15.iH7 flag_1
B107: =HYPERLINK("#TOCobxC_Time.H7_flag_1", "2.16.H7 flag_1") -> 2.16.H7 flag_1
B108: =HYPERLINK("#TOCobxC_Time.H8_Period_Start_flag_1", "2.17.H8 Period Start flag_1") -> 2.17.H8 Period Start flag_1
B109: =HYPERLINK("#TOCobxC_Time.H8_Period_End_flag_1", "2.18.H8 Period End flag_1") -> 2.18.H8 Period End flag_1
B110: =HYPERLINK("#TOCobxC_Time.Expansion_phase", "2.19.Expansion phase") -> 2.19.Expansion phase
A112: =HYPERLINK("#TOCobxC_Index", "3.C_Index") -> 3.C_Index
A114: =HYPERLINK("#TOCobxC_RAB", "4.C_RAB") -> 4.C_RAB
B115: =HYPERLINK("#TOCobxC_RAB.Existing_RAB", "4.1.Existing RAB") -> 4.1.Existing RAB
C116: =HYPERLINK("#TOCobxC_RAB.Existing_RAB.RAB1", "4.1.1.RAB1") -> 4.1.1.RAB1
C117: =HYPERLINK("#TOCobxC_RAB.Existing_RAB.RAB1.Basic_RAB_Total", "4.1.1.1.Basic RAB Total") -> 4.1.1.1.Basic RAB Total
B119: =HYPERLINK("#TOCobxC_RAB.Reported_RAB_Total", "4.2.Reported RAB Total") -> 4.2.Reported RAB Total
A121: =HYPERLINK("#TOCobxMacros", "5.Macros") -> 5.Macros
B122: =HYPERLINK("#TOCobxMacros.H8_Profiling", "5.1.H8 Profiling") -> 5.1.H8 Profiling
B123: =HYPERLINK("#TOCobxMacros.H9_Profiling", "5.2.H9 Profiling") -> 5.2.H9 Profiling
B124: =HYPERLINK("#TOCobxMacros.H10_Profiling", "5.3.H10 Profiling") -> 5.3.H10 Profiling
B125: =HYPERLINK("#TOCobxMacros.H11_Profiling", "5.4.H11 Profiling") -> 5.4.H11 Profiling
B126: =HYPERLINK("#TOCobxMacros.H12_Profiling", "5.5.H12 Profiling") -> 5.5.H12 Profiling
B127: =HYPERLINK("#TOCobxMacros.Gearing_solver", "5.6.Gearing solver") -> 5.6.Gearing solver
A129: =HYPERLINK("#TOCobxC_Fin_Summ", "6.C_Fin_Summ") -> 6.C_Fin_Summ
B130: =HYPERLINK("#TOCobxC_Fin_Summ.Summary_of_Total_New_Debt", "6.1.Summary of Total New Debt") -> 6.1.Summary of Total New Debt
C131: =HYPERLINK("#TOCobxC_Fin_Summ.Summary_of_Total_New_Debt.Summary_of_Total_Interest_on_Ne", "6.1.1.Summary of Total Interest on Ne") -> 6.1.1.Summary of Total Interest on Ne
B132: =HYPERLINK("#TOCobxC_Fin_Summ.Dividends_and_Equity_Drawdowns", "6.2.Dividends and Equity Drawdowns") -> 6.2.Dividends and Equity Drawdowns
B133: =HYPERLINK("#TOCobxC_Fin_Summ.Equity_Returns", "6.3.Equity Returns") -> 6.3.Equity Returns
A135: =HYPERLINK("#TOCobxC_LookForward", "7.C_LookForward") -> 7.C_LookForward
B136: =HYPERLINK("#TOCobxC_LookForward.Look_Forward", "7.1.Look Forward") -> 7.1.Look Forward
B137: =HYPERLINK("#TOCobxC_LookForward.Target_debt_before_interest", "7.2.Target debt before interest") -> 7.2.Target debt before interest
B138: =HYPERLINK("#TOCobxC_LookForward.Interest", "7.3.Interest") -> 7.3.Interest
B139: =HYPERLINK("#TOCobxC_LookForward.Target_debt_including_interest", "7.4.Target debt including interest") -> 7.4.Target debt including interest
A141: =HYPERLINK("#TOCobxC_Tax", "8.C_Tax") -> 8.C_Tax
B142: =HYPERLINK("#TOCobxC_Tax.Tax_Reconciliation", "8.1.Tax Reconciliation") -> 8.1.Tax Reconciliation
C143: =HYPERLINK("#TOCobxC_Tax.Tax_Reconciliation.Recon_from_Profit_Before_Tax", "8.1.1.Recon from Profit Before Tax") -> 8.1.1.Recon from Profit Before Tax
C144: =HYPERLINK("#TOCobxC_Tax.Tax_Reconciliation.Recurring_disallowable_expendit", "8.1.2.Recurring disallowable expendit") -> 8.1.2.Recurring disallowable expendit
B145: =HYPERLINK("#TOCobxC_Tax.Regulatory_tax_allowance", "8.2.Regulatory tax allowance") -> 8.2.Regulatory tax allowance
C146: =HYPERLINK("#TOCobxC_Tax.Regulatory_tax_allowance.Calculation_Approach_1___Detail", "8.2.1.Calculation Approach 1 - Detail") -> 8.2.1.Calculation Approach 1 - Detail
C147: =HYPERLINK("#TOCobxC_Tax.Regulatory_tax_allowance.Calculation_Approach_1___Detail.Calculation_Approach_2___WACC_u", "8.2.1.1.Calculation Approach 2 - WACC u") -> 8.2.1.1.Calculation Approach 2 - WACC u
A150: =HYPERLINK("#TOCobxC_TRS", "9.C_TRS") -> 9.C_TRS
B151: =HYPERLINK("#TOCobxC_TRS.2027", "9.1.2027") -> 9.1.2027
B152: =HYPERLINK("#TOCobxC_TRS.2028", "9.2.2028") -> 9.2.2028
B153: =HYPERLINK("#TOCobxC_TRS.2029", "9.3.2029") -> 9.3.2029
A155: =HYPERLINK("#TOCobxC_WACC", "10.C_WACC") -> 10.C_WACC
B156: =HYPERLINK("#TOCobxC_WACC.Applicable_tax_rate", "10.1.Applicable tax rate") -> 10.1.Applicable tax rate
B157: =HYPERLINK("#TOCobxC_WACC.Cost_of_Equity", "10.2.Cost of Equity") -> 10.2.Cost of Equity
B158: =HYPERLINK("#TOCobxC_WACC.Cost_of_Debt", "10.3.Cost of Debt") -> 10.3.Cost of Debt
B159: =HYPERLINK("#TOCobxC_WACC.Notional_WACC__real_", "10.4.Notional WACC (real)") -> 10.4.Notional WACC (real)
C160: =HYPERLINK("#TOCobxC_WACC.Notional_WACC__real_.Nominal_WACC__nominal_", "10.4.1.Nominal WACC (nominal)") -> 10.4.1.Nominal WACC (nominal)
A162: =HYPERLINK("#TOCobxC_Ratios", "11.C_Ratios") -> 11.C_Ratios
B163: =HYPERLINK("#TOCobxC_Ratios.S_P", "11.1.S&P") -> 11.1.S&P
B164: =HYPERLINK("#TOCobxC_Ratios.Moodys", "11.2.Moodys") -> 11.2.Moodys
B165: =HYPERLINK("#TOCobxC_Ratios.Fitch", "11.3.Fitch") -> 11.3.Fitch
B166: =HYPERLINK("#TOCobxC_Ratios.Return_on_regulatory_equity", "11.4.Return on regulatory equity") -> 11.4.Return on regulatory equity
B167: =HYPERLINK("#TOCobxC_Ratios.Running_yield", "11.5.Running yield") -> 11.5.Running yield
B168: =HYPERLINK("#TOCobxC_Ratios.ICR_covenant_lockup", "11.6.ICR covenant lockup") -> 11.6.ICR covenant lockup
A170: =HYPERLINK("#TOCobxC_ASRisk", "12.C_ASRisk") -> 12.C_ASRisk
A172: =HYPERLINK("#TOCobxC_Performance", "13.C_Performance") -> 13.C_Performance
A174: =HYPERLINK("#TOCobxC_Fin_Fixed", "14.C_Fin_Fixed") -> 14.C_Fin_Fixed
A176: =HYPERLINK("#TOCobxC_Fin_Ind", "15.C_Fin_Ind") -> 15.C_Fin_Ind
A178: =HYPERLINK("#TOCobxC_AccDepr", "16.C_AccDepr") -> 16.C_AccDepr
B179: =HYPERLINK("#TOCobxC_AccDepr.Straight_line_accounting_deprec", "16.1.Straight line accounting deprec") -> 16.1.Straight line accounting deprec
B180: =HYPERLINK("#TOCobxC_AccDepr.Reducing_balance_accounting_dep", "16.2.Reducing balance accounting dep") -> 16.2.Reducing balance accounting dep
A182: =HYPERLINK("#TOCobxC_RABDep", "17.C_RABDep") -> 17.C_RABDep
B183: =HYPERLINK("#TOCobxC_RABDep.Existing_RAB", "17.1.Existing RAB") -> 17.1.Existing RAB
C184: =HYPERLINK("#TOCobxC_RABDep.Existing_RAB.Straight_Line_RAB_Depreciation", "17.1.1.Straight Line RAB Depreciation") -> 17.1.1.Straight Line RAB Depreciation
C185: =HYPERLINK("#TOCobxC_RABDep.Existing_RAB.Reducing_balance_RAB_depreciati", "17.1.2.Reducing balance RAB depreciati") -> 17.1.2.Reducing balance RAB depreciati
B186: =HYPERLINK("#TOCobxC_RABDep.RAB_1", "17.2.RAB 1") -> 17.2.RAB 1
C187: =HYPERLINK("#TOCobxC_RABDep.RAB_1.Reducing_balance_RAB_depreciati", "17.2.1.Reducing balance RAB depreciati") -> 17.2.1.Reducing balance RAB depreciati
C188: =HYPERLINK("#TOCobxC_RABDep.RAB_1.Selected_RAB_depreciation_metho", "17.2.2.Selected RAB depreciation metho") -> 17.2.2.Selected RAB depreciation metho
A190: =HYPERLINK("#TOCobxC_Opex", "18.C_Opex") -> 18.C_Opex
B191: =HYPERLINK("#TOCobxC_Opex.Operating_costs", "18.1.Operating costs") -> 18.1.Operating costs
A193: =HYPERLINK("#TOCobxC_Revenue", "19.C_Revenue") -> 19.C_Revenue
B194: =HYPERLINK("#TOCobxC_Revenue.commercial_revenue", "19.1.commercial revenue") -> 19.1.commercial revenue
B195: =HYPERLINK("#TOCobxC_Revenue.ORC_revenue", "19.2.ORC revenue") -> 19.2.ORC revenue
B196: =HYPERLINK("#TOCobxC_Revenue.H7_Profiling", "19.3.H7 Profiling") -> 19.3.H7 Profiling
B197: =HYPERLINK("#TOCobxC_Revenue.H8_Profiling", "19.4.H8 Profiling") -> 19.4.H8 Profiling
B198: =HYPERLINK("#TOCobxC_Revenue.H9_Profiling", "19.5.H9 Profiling") -> 19.5.H9 Profiling
B199: =HYPERLINK("#TOCobxC_Revenue.H10_Profiling", "19.6.H10 Profiling") -> 19.6.H10 Profiling
B200: =HYPERLINK("#TOCobxC_Revenue.H11_Profiling", "19.7.H11 Profiling") -> 19.7.H11 Profiling
B201: =HYPERLINK("#TOCobxC_Revenue.H12_Profiling", "19.8.H12 Profiling") -> 19.8.H12 Profiling
A203: =HYPERLINK("#TOCobxC_CargoRev", "20.C_CargoRev") -> 20.C_CargoRev
A205: =HYPERLINK("#TOCobxC_Capex", "21.C_Capex") -> 21.C_Capex
A207: =HYPERLINK("#TOCobxC_NonAeroRev", "22.C_NonAeroRev") -> 22.C_NonAeroRev
B208: =HYPERLINK("#TOCobxC_NonAeroRev.Total_ORC_s_revenue", "22.1.Total ORC's revenue") -> 22.1.Total ORC's revenue
B209: =HYPERLINK("#TOCobxC_NonAeroRev.Total_commercial_revenue", "22.2.Total commercial revenue") -> 22.2.Total commercial revenue
A211: =HYPERLINK("#TOCobxO_FinStats", "23.O_FinStats") -> 23.O_FinStats
A213: =HYPERLINK("#TOCobxModel_Checks_and_Alerts", "24.Model Checks and Alerts") -> 24.Model Checks and Alerts
B214: =HYPERLINK("#TOCobxModel_Checks_and_Alerts.Model_Checks", "24.1.Model Checks") -> 24.1.Model Checks
B215: =HYPERLINK("#TOCobxModel_Checks_and_Alerts.Model_Alerts", "24.2.Model Alerts") -> 24.2.Model Alerts

Sheet InpS
A1: =RIGHT(CELL("filename", A1), LEN(CELL("filename", A1)) - SEARCH("]", CELL("filename", A1))) -> InpS | F1: =HYPERLINK("#Contents!A1","Go to contents") -> Go to contents
E2: Model period end | F2: ='Model Checks and Alerts'!F26 -> 0 | G2: Error chks | AA2: =C_Time!AA$21 -> 2022-12-31 | AB2: =C_Time!AB$21 -> 2023-12-31 | AC2: =C_Time!AC$21 -> 2024-12-31 | AD2: =C_Time!AD$21 -> 2025-12-31 | AE2: =C_Time!AE$21 -> 2026-12-31 | AF2: =C_Time!AF$21 -> 2027-12-31 | AG2: =C_Time!AG$21 -> 2028-12-31 | AH2: =C_Time!AH$21 -> 2029-12-31 | AI2: =C_Time!AI$21 -> 2030-12-31 | AJ2: =C_Time!AJ$21 -> 2031-12-31 | AK2: =C_Time!AK$21 -> 2032-12-31 | AL2: =C_Time!AL$21 -> 2033-12-31 | AM2: =C_Time!AM$21 -> 2034-12-31 | AN2: =C_Time!AN$21 -> 2035-12-31 | AO2: =C_Time!AO$21 -> 2036-12-31 | AP2: =C_Time!AP$21 -> 2037-12-31 | AQ2: =C_Time!AQ$21 -> 2038-12-31 | AR2: =C_Time!AR$21 -> 2039-12-31 | AS2: =C_Time!AS$21 -> 2040-12-31 | AT2: =C_Time!AT$21 -> 2041-12-31 | AU2: =C_Time!AU$21 -> 2042-12-31 | AV2: =C_Time!AV$21 -> 2043-12-31 | AW2: =C_Time!AW$21 -> 2044-12-31 | AX2: =C_Time!AX$21 -> 2045-12-31 | AY2: =C_Time!AY$21 -> 2046-12-31 | AZ2: =C_Time!AZ$21 -> 2047-12-31 | BA2: =C_Time!BA$21 -> 2048-12-31 | BB2: =C_Time!BB$21 -> 2049-12-31 | BC2: =C_Time!BC$21 -> 2050-12-31 | BD2: =C_Time!BD$21 -> 2051-12-31 | BE2: =C_Time!BE$21 -> 2052-12-31 | BF2: =C_Time!BF$21 -> 2053-12-31 | BG2: =C_Time!BG$21 -> 2054-12-31 | BH2: =C_Time!BH$21 -> 2055-12-31 | BI2: =C_Time!BI$21 -> 2056-12-31 | BJ2: =C_Time!BJ$21 -> 2057-12-31
E3: Timeline label | F3: ='Model Checks and Alerts'!F168 -> 9 | G3: Alerts | AA3: =C_Time!AA$26 -> H7 | AB3: =C_Time!AB$26 -> H7 | AC3: =C_Time!AC$26 -> H7 | AD3: =C_Time!AD$26 -> H7 | AE3: =C_Time!AE$26 -> H7 | AF3: =C_Time!AF$26 -> H8 | AG3: =C_Time!AG$26 -> H8 | AH3: =C_Time!AH$26 -> H8 | AI3: =C_Time!AI$26 -> H8 | AJ3: =C_Time!AJ$26 -> H8 | AK3: =C_Time!AK$26 -> H9 | AL3: =C_Time!AL$26 -> H9 | AM3: =C_Time!AM$26 -> H9 | AN3: =C_Time!AN$26 -> H9 | AO3: =C_Time!AO$26 -> H9 | AP3: =C_Time!AP$26 -> H10 | AQ3: =C_Time!AQ$26 -> H10 | AR3: =C_Time!AR$26 -> H10 | AS3: =C_Time!AS$26 -> H10 | AT3: =C_Time!AT$26 -> H10 | AU3: =C_Time!AU$26 -> H11 | AV3: =C_Time!AV$26 -> H11 | AW3: =C_Time!AW$26 -> H11 | AX3: =C_Time!AX$26 -> H11 | AY3: =C_Time!AY$26 -> H11 | AZ3: =C_Time!AZ$26 -> H12 | BA3: =C_Time!BA$26 -> H12 | BB3: =C_Time!BB$26 -> H12 | BC3: =C_Time!BC$26 -> H12 | BD3: =C_Time!BD$26 -> H12 | BE3: =C_Time!BE$26 -> H12 | BF3: =C_Time!BF$26 -> H12 | BG3: =C_Time!BG$26 -> H12 | BH3: =C_Time!BH$26 -> H12 | BI3: =C_Time!BI$26 -> H12 | BJ3: =C_Time!BJ$26 -> H12
E4: Financial year ending | AA4: =C_Time!AA$30 -> 1 | AB4: =C_Time!AB$30 -> 2 | AC4: =C_Time!AC$30 -> 3 | AD4: =C_Time!AD$30 -> 4 | AE4: =C_Time!AE$30 -> 5 | AF4: =C_Time!AF$30 -> 6 | AG4: =C_Time!AG$30 -> 7 | AH4: =C_Time!AH$30 -> 8 | AI4: =C_Time!AI$30 -> 9 | AJ4: =C_Time!AJ$30 -> 10 | AK4: =C_Time!AK$30 -> 11 | AL4: =C_Time!AL$30 -> 12 | AM4: =C_Time!AM$30 -> 13 | AN4: =C_Time!AN$30 -> 14 | AO4: =C_Time!AO$30 -> 15 | AP4: =C_Time!AP$30 -> 16 | AQ4: =C_Time!AQ$30 -> 17 | AR4: =C_Time!AR$30 -> 18 | AS4: =C_Time!AS$30 -> 19 | AT4: =C_Time!AT$30 -> 20 | AU4: =C_Time!AU$30 -> 21 | AV4: =C_Time!AV$30 -> 22 | AW4: =C_Time!AW$30 -> 23 | AX4: =C_Time!AX$30 -> 24 | AY4: =C_Time!AY$30 -> 25 | AZ4: =C_Time!AZ$30 -> 26 | BA4: =C_Time!BA$30 -> 27 | BB4: =C_Time!BB$30 -> 28 | BC4: =C_Time!BC$30 -> 29 | BD4: =C_Time!BD$30 -> 30 | BE4: =C_Time!BE$30 -> 31 | BF4: =C_Time!BF$30 -> 32 | BG4: =C_Time!BG$30 -> 33 | BH4: =C_Time!BH$30 -> 34 | BI4: =C_Time!BI$30 -> 35 | BJ4: =C_Time!BJ$30 -> 36
E5: Period number | F5: Constant | G5: Unit | H5: Notes | I5: Data Source | K5: Confidential Status | M5: Total
A8: Inputs
A11: Time
E13: Last actuals date | F13: 2026-12-31T13:22:50 | G13: Date
E14: Financial year end month | F14: 12
E15: Start date | F15: 2022-01-01 | G15: date
E16: Months per period (Primary) | F16: 12 | G16: Months
B18: Key years
E20: Flag 2024 period date | F20: 2024-01-01 | G20: date
E21: Year 2022 | F21: 2022 | G21: year
E22: Year 2023 | F22: 2023 | G22: year
E23: Year 2024 | F23: 2024 | G23: year
E24: Year 2027 | F24: 2027 | G24: year
E25: Year 2028 | F25: 2028 | G25: year
E26: Year 2029 | F26: 2029 | G26: year
E27: Year 2030 | F27: 2030 | G27: year
E28: Year 2031 | F28: 2031 | G28: year
B30: Years by array
E32: Years (1) | F32: 1 | G32: Years
E33: Years (2) | F33: 2 | G33: Years
E34: Years (3) | F34: 3 | G34: Years
E35: Years (4) | F35: 4 | G35: Years
E36: Years (5) | F36: 5 | G36: Years
E37: Years (6) | F37: 6 | G37: Years
E38: Years (7) | F38: 7 | G38: Years
E39: Years (8) | F39: 8 | G39: Years
E40: Years (9) | F40: 9 | G40: Years
E41: Years (10) | F41: 10 | G41: Years
E42: Years (11) | F42: 11 | G42: Years
E43: Years (12) | F43: 12 | G43: Years
E44: Years (13) | F44: 13 | G44: Years
E45: Years (14) | F45: 14 | G45: Years
E46: Years (15) | F46: 15 | G46: Years
E47: Years (16) | F47: 16 | G47: Years
E48: Years (17) | F48: 17 | G48: Years
E49: Years (18) | F49: 18 | G49: Years
E50: Years (19) | F50: 19 | G50: Years
E51: Years (20) | F51: 20 | G51: Years
E52: Years (21) | F52: 21 | G52: Years
E53: Years (22) | F53: 22 | G53: Years
E54: Years (23) | F54: 23 | G54: Years
E55: Years (24) | F55: 24 | G55: Years
E56: Years (25) | F56: 25 | G56: Years
E57: Years (26) | F57: 26 | G57: Years
E58: Years (27) | F58: 27 | G58: Years
E59: Years (28) | F59: 28 | G59: Years
E60: Years (29) | F60: 29 | G60: Years
E61: Years (30) | F61: 30 | G61: Years
E62: Years (31) | F62: 31 | G62: Years
E63: Years (32) | F63: 32 | G63: Years
E64: Years (33) | F64: 33 | G64: Years
E65: Years (34) | F65: 34 | G65: Years
E66: Years (35) | F66: 35 | G66: Years
E67: Years (36) | F67: 36 | G67: Years
E69: Maximum lookforward period | F69: 3 | G69: Years
E70: iH7 date | G70: date
E71: Q6 date | G71: date
E72: Q6+1 date | G72: date
E73: H8 Period Start flag date | F73: 2027-01-01 | G73: date
E74: H8 Period End date | F74: 2031-12-31 | G74: date
E75: H9 beginning date | G75: date
E76: H9 end date | G76: date
E77: H10 beginning date | G77: date
E78: H10 end date | G78: date
E79: H11 beginning date | G79: date
E80: H11 end date | G80: date
E81: H12 beginning date | G81: date
E82: H12 end date | G82: date
E83: H13 beginning date | G83: date
E84: H13 end date | G84: date
E85: Opening balances flag date | F85: 2026-12-31 | G85: date
E86: Forecast Period number | M86: =SUM( AA86:BJ86 ) -> 249 | AA86: 4 | AB86: 4 | AC86: 4 | AD86: 4 | AE86: 4 | AF86: 5 | AG86: 5 | AH86: 5 | AI86: 5 | AJ86: 5 | AK86: 6 | AL86: 6 | AM86: 6 | AN86: 6 | AO86: 6 | AP86: 7 | AQ86: 7 | AR86: 7 | AS86: 7 | AT86: 7 | AU86: 8 | AV86: 8 | AW86: 8 | AX86: 8 | AY86: 8 | AZ86: 9 | BA86: 9 | BB86: 9 | BC86: 9 | BD86: 9 | BE86: 9 | BF86: 9 | BG86: 9 | BH86: 9 | BI86: 9 | BJ86: 9
E87: Timeline period labels | M87: =SUM( AA87:BJ87 ) -> 0 | AA87: H7 | AB87: H7 | AC87: H7 | AD87: H7 | AE87: H7 | AF87: H8 | AG87: H8 | AH87: H8 | AI87: H8 | AJ87: H8 | AK87: H9 | AL87: H9 | AM87: H9 | AN87: H9 | AO87: H9 | AP87: H10 | AQ87: H10 | AR87: H10 | AS87: H10 | AT87: H10 | AU87: H11 | AV87: H11 | AW87: H11 | AX87: H11 | AY87: H11 | AZ87: H12 | BA87: H12 | BB87: H12 | BC87: H12 | BD87: H12 | BE87: H12 | BF87: H12 | BG87: H12 | BH87: H12 | BI87: H12 | BJ87: H12
E88: Known Yield Per Passenger end date | G88: date
A90: Input set choices
B93: Input Set Choices
E95: Existing RAB depreciation method | F95: 3 | G95: 1=Straight line, 2=reducing balance, 3=profiled input
E96: Minimum equity yield calculated as percentage chosen | F96: 2 | G96: 1=Equity wedge,2=Opening share capital balance
C98: Financing
E100: Equity RAB exit multiple | F100: 0.4 | G100: %
E101: Equity RAB entry multiple | F101: 0.4 | G101: %
E102: Market to assest ratio for IRR | F102: 1.3
C104: I_InputSets
E106: Revenue adjustments year lag | F106: 2 | G106: Years
E107: Within lower central band recovery % | F107: 0.5 | G107: % | I107: Allowance for asymmetric risk_H8_IPs_PCM.xlsx | K107: Being published with this model
E108: Beyond lower central band recovery % | F108: 1.05 | G108: % | I108: Allowance for asymmetric risk_H8_IPs_PCM.xlsx | K108: Being published with this model
E109: Within upper central band recovery % | F109: 0.5 | G109: % | I109: Allowance for asymmetric risk_H8_IPs_PCM.xlsx | K109: Being published with this model
E110: Beyond upper central band recovery % | F110: 1.05 | G110: % | I110: Allowance for asymmetric risk_H8_IPs_PCM.xlsx | K110: Being published with this model
D112: Passenger numbers scenarios
E114: stress test passenger demand scenario chosen | F114: middle | G114: scenario
E115: stress Cargo revenues scenario chosen | F115: middle | G115: scenario
D117: Cost scenarios
E119: operating costs indexation type | F119: CPIH
E120: Marginal operating costs scenario | F120: middle
E121: Base operating costs scenario | F121: middle
D123: Non aero revenue scenarios
E125: Base Cargo revenues scenario chosen | F125: middle
E126: Airport Charges Revenue Indexation type | F126: CPIH
E127: Capex indexation type | F127: CPIH
E128: Cargo revenue indexation type | F128: CPIH
E129: Index-linked Indexation type | F129: CPIH
E130: RAB Indexation type | F130: CPIH
E131: Capex and Depreciation (in year) indexation for RAB type | F131: CPI Dec/CPI average
E132: Existing RAB indexation type | F132: CPIH Dec
E133: Indexation for calculating the discount factor | F133: CPIH
E134: WACC calculation method selection | F134: Profiled input
E135: accounting depreciation method chosen | F135: Reducing Balance
E136: Profile scenario selection | F136: Scenario1
E137: Asymmetric risk allowance scenario chosen | F137: mid
E138: capex scenario chosen | F138: medium
E139: Applicable RAR scenario chosen | F139: BBB+ Debt to Regulatory Asset Ratio threshold
E140: Tax Rate For WACC chosen | F140: Corporation tax
E141: Cost of Equity- post tax by scenario selection | F141: medium
E142: Notional allowed cost of debt pre-tax scenario chosen | F142: medium
E143: Vanilla or pre-tax WACC selection | F143: pre-tax
A145: Non Aero revenue
E147: additional commercial revenue (Phase1) | G147: £'m CPIH-real 2024 | M147: =SUM( AA147:BJ147 ) -> 0
E148: additional commercial revenue (Phase2) | G148: £'m CPIH-real 2024 | M148: =SUM( AA148:BJ148 ) -> 0
E149: additional commercial revenue (Phase3) | G149: £'m CPIH-real 2024 | M149: =SUM( AA149:BJ149 ) -> 0
E150: additional commercial revenue (Phase4) | G150: £'m CPIH-real 2024 | M150: =SUM( AA150:BJ150 ) -> 0
E151: additional commercial revenue (Phase5) | G151: £'m CPIH-real 2024 | M151: =SUM( AA151:BJ151 ) -> 0
E153: Base commercial revenue by scenario (High) | G153: £'m CPIH-real 2024 | I153: practice run opex and revenue scenarios.xlsx | K153: Must Not Be Published | M153: =SUM( AA153:BJ153 ) -> 8795.1 | AC153: 1085.1 | AD153: 1086.8 | AE153: 1078 | AF153: 1075.2 | AG153: 1087.4 | AH153: 1099.9 | AI153: 1134.8 | AJ153: 1147.9
E154: Base commercial revenue by scenario (Middle) | G154: £'m CPIH-real 2024 | I154: practice run opex and revenue scenarios.xlsx | K154: Must Not Be Published | M154: =SUM( AA154:BJ154 ) -> 8740.9 | AC154: 1085.1 | AD154: 1086.8 | AE154: 1076.5 | AF154: 1071.9 | AG154: 1080.3 | AH154: 1089.7 | AI154: 1121.2 | AJ154: 1129.4
E155: Base commercial revenue by scenario (Low) | G155: £'m CPIH-real 2024 | I155: practice run opex and revenue scenarios.xlsx | K155: Must Not Be Published | M155: =SUM( AA155:BJ155 ) -> 8628.2 | AC155: 1085.1 | AD155: 1086.8 | AE155: 1070.1 | AF155: 1059.4 | AG155: 1063.7 | AH155: 1068.2 | AI155: 1095 | AJ155: 1099.9
E157: base commercial revenue scenario | F157: middle
E158: commercial revenue indexation type | F158: CPIH
E159: additional ORC revenue (Phase1) | G159: £'m CPIH-real 2024 | M159: =SUM( AA159:BJ159 ) -> 0
E160: additional ORC revenue (Phase2) | G160: £'m CPIH-real 2024 | M160: =SUM( AA160:BJ160 ) -> 0
E161: additional ORC revenue (Phase3) | G161: £'m CPIH-real 2024 | M161: =SUM( AA161:BJ161 ) -> 0
E162: additional ORC revenue (Phase4) | G162: £'m CPIH-real 2024 | M162: =SUM( AA162:BJ162 ) -> 0
E163: additional ORC revenue (Phase5) | G163: £'m CPIH-real 2024 | M163: =SUM( AA163:BJ163 ) -> 0
E165: Base ORC revenue by scenario (High) | G165: £'m CPIH-real 2024 | I165: practice run opex and revenue scenarios.xlsx | K165: Must Not Be Published | M165: =SUM( AA165:BJ165 ) -> 2371.6 | AC165: 284.9 | AD165: 250.5 | AE165: 249.5 | AF165: 262.1 | AG165: 261.3 | AH165: 259.9 | AI165: 258.1 | AJ165: 256.7 | AK165: 11.1 | AL165: 11.1 | AM165: 11.1 | AN165: 11.1 | AO165: 11.1 | AP165: 11.1 | AQ165: 11.1 | AR165: 11.1 | AS165: 11.1 | AT165: 11.1 | AU165: 11.1 | AV165: 11.1 | AW165: 11.1 | AX165: 11.1 | AY165: 11.1 | AZ165: 11.1 | BA165: 11.1 | BB165: 11.1 | BC165: 11.1 | BD165: 11.1 | BE165: 11.1 | BF165: 11.1 | BG165: 11.1 | BH165: 11.1 | BI165: 11.1 | BJ165: 11.1
E166: Base ORC revenue by scenario (Middle) | G166: £'m CPIH-real 2024 | I166: practice run opex and revenue scenarios.xlsx | K166: Must Not Be Published | M166: =SUM( AA166:BJ166 ) -> 2368.6 | AC166: 284.9 | AD166: 250.5 | AE166: 249.4 | AF166: 261.9 | AG166: 260.9 | AH166: 259.3 | AI166: 257.4 | AJ166: 255.7 | AK166: 11.1 | AL166: 11.1 | AM166: 11.1 | AN166: 11.1 | AO166: 11.1 | AP166: 11.1 | AQ166: 11.1 | AR166: 11.1 | AS166: 11.1 | AT166: 11.1 | AU166: 11.1 | AV166: 11.1 | AW166: 11.1 | AX166: 11.1 | AY166: 11.1 | AZ166: 11.1 | BA166: 11.1 | BB166: 11.1 | BC166: 11.1 | BD166: 11.1 | BE166: 11.1 | BF166: 11.1 | BG166: 11.1 | BH166: 11.1 | BI166: 11.1 | BJ166: 11.1
E167: Base ORC revenue by scenario (Low) | G167: £'m CPIH-real 2024 | I167: practice run opex and revenue scenarios.xlsx | K167: Must Not Be Published | M167: =SUM( AA167:BJ167 ) -> 2362.3 | AC167: 284.9 | AD167: 250.5 | AE167: 249.1 | AF167: 261.2 | AG167: 259.9 | AH167: 258.1 | AI167: 255.9 | AJ167: 254.1 | AK167: 11.1 | AL167: 11.1 | AM167: 11.1 | AN167: 11.1 | AO167: 11.1 | AP167: 11.1 | AQ167: 11.1 | AR167: 11.1 | AS167: 11.1 | AT167: 11.1 | AU167: 11.1 | AV167: 11.1 | AW167: 11.1 | AX167: 11.1 | AY167: 11.1 | AZ167: 11.1 | BA167: 11.1 | BB167: 11.1 | BC167: 11.1 | BD167: 11.1 | BE167: 11.1 | BF167: 11.1 | BG167: 11.1 | BH167: 11.1 | BI167: 11.1 | BJ167: 11.1
E169: base ORC revenue scenario | F169: middle
E170: ORC revenue indexation type | F170: CPIH
E171: Marginal ORC's revenue scenario | F171: middle
E172: Marginal ORC's revenue by scenario (High) | G172: £'m CPIH-real 2024 | M172: =SUM( AA172:BJ172 ) -> 0
E173: Marginal ORC's revenue by scenario (Middle) | G173: £'m CPIH-real 2024 | M173: =SUM( AA173:BJ173 ) -> 0
E174: Marginal ORC's revenue by scenario (Low) | G174: £'m CPIH-real 2024 | M174: =SUM( AA174:BJ174 ) -> 0
E176: Marginal commercial revenue scenario | F176: middle
E177: Marginal commercial revenue by scenario (High) | G177: £'m CPIH-real 2024 | M177: =SUM( AA177:BJ177 ) -> 0
E178: Marginal commercial revenue by scenario (Middle) | G178: £'m CPIH-real 2024 | M178: =SUM( AA178:BJ178 ) -> 0
E179: Marginal commercial revenue by scenario (Low) | G179: £'m CPIH-real 2024 | M179: =SUM( AA179:BJ179 ) -> 0
A182: Expansion timing
E184: additional capacity-expansion | F184: 0 | G184: million pax
E185: Expansion phase operation date (Phase1)
E186: Expansion phase operation date (Phase2)
E187: Expansion phase operation date (Phase3)
E188: Expansion phase operation date (Phase4)
E189: Expansion phase operation date (Phase5)
A192: I_Series
B195: RAB
E197: Existing RAB depreciation years (straight line) | F197: 5 | G197: Years
E198: category 1 description acc depreciation years (straight line) | F198: 15 | G198: Years | I198: 0.992404906
E199: proportion of assets in use additions in first year depreciation | F199: 0.5 | G199: %
E200: category 1 description Acc depreciation (reducing balance) | F200: 0.05 | G200: %
E201: RAB 1 depreciation rate (reducing balance) | F201: 0.05 | G201: %
E202: RAB 1 depreciation years (straight line) | F202: 30 | G202: Years
E203: Existing RAB depreciation rate (reducing balance) | F203: 0.1 | G203: %
E204: Proportion of RAB additions in first year depreciation | F204: 0.5 | G204: %
E205: Existing RAB BEG | F205: 21637 | G205: £'m CPIH-real Dec 2026
E206: % of overspend allocated to RAB 1 for overspend range (1) | G206: %
E207: % of overspend allocated to RAB 1 for overspend range (2) | G207: %
E208: % of overspend allocated to RAB 1 for overspend range (3) | G208: %
E209: % of overspend allocated to RAB 1 for overspend range (4) | G209: %
E210: % of overspend allocated to RAB 1 for overspend range (5) | G210: %
E212: % of underspend allocated to RAB 1 for underspend range (1) | G212: %
E213: % of underspend allocated to RAB 1 for underspend range (2) | G213: %
E214: % of underspend allocated to RAB 1 for underspend range (3) | G214: %
E215: % of underspend allocated to RAB 1 for underspend range (4) | G215: %
E216: % of underspend allocated to RAB 1 for underspend range (5) | G216: %
E218: RAB 1 non capex RAB adjustments effected at start of price control period | G218: £'m CPIH-real 2024 | M218: =SUM( AA218:BJ218 ) -> 0
E219: RAB 1 In-period non capex RAB adjustments | G219: £'m CPIH-real 2024 | M219: =SUM( AA219:BJ219 ) -> 0
E220: Existing RAB In-period non capex RAB adjustments | G220: £'m CPIH-real 2024 | M220: =SUM( AA220:BJ220 ) -> 0 | AG220: 0 | AH220: 0 | AI220: 0 | AJ220: 0 | AK220: 0 | AL220: 0
B222: TRS adjustment factor
E224: Upper band 1 surplus | F224: 0.1 | G224: % | I224: Allowance for asymmetric risk_H8_IPs_PCM.xlsx | K224: Being published with this model
E225: Lower band 1 shortfall | F225: 0.1 | G225: % | I225: Allowance for asymmetric risk_H8_IPs_PCM.xlsx | K225: Being published with this model
E226: Adjustment factor | M226: =SUM( AA226:BJ226 ) -> 0
B228: Input metric factor (Only used
E230: Metric factor | G230: factor | AA230: 1.01 | AB230: 1.02 | AC230: 1.03 | AD230: 1.04 | AE230: 1.05 | AF230: 1.06 | AG230: 1.07 | AH230: 1.08 | AI230: 1.09 | AJ230: 1.1 | AK230: 1.11 | AL230: 1.12 | AM230: 1.13 | AN230: 1.14 | AO230: 1.15 | AP230: 1.16 | AQ230: 1.17 | AR230: 1.18 | AS230: 1.19 | AT230: 1.2 | AU230: 1.21 | AV230: 1.22 | AW230: 1.23 | AX230: 1.24 | AY230: 1.25 | AZ230: 1.26 | BA230: 1.27 | BB230: 1.28 | BC230: 1.29 | BD230: 1.3 | BE230: 1.31 | BF230: 1.32 | BG230: 1.33 | BH230: 1.34 | BI230: 1.35 | BJ230: 1.36
B232: Taxation
E234: Opening Tax loss roll forward | F234: 0 | G234: £'m nominal
C236: Capital Allowances
E238: Category 1 description % in main pool | F238: 0.18 | G238: %
E239: Category 1 description % in special pool | F239: 0.21 | G239: %
E240: Category 1 description % in Structures & Building pool | F240: 0.4 | G240: %
E241: Main pool capital WDA rate | G241: % | AA241: 0.18 | AB241: 0.18 | AC241: 0.18 | AD241: 0.18 | AE241: 0.18 | AF241: 0.18 | AG241: 0.18 | AH241: 0.18 | AI241: 0.18 | AJ241: 0.18 | AK241: 0.18 | AL241: 0.18 | AM241: 0.18 | AN241: 0.18 | AO241: 0.18 | AP241: 0.18 | AQ241: 0.18 | AR241: 0.18 | AS241: 0.18 | AT241: 0.18 | AU241: 0.18 | AV241: 0.18 | AW241: 0.18 | AX241: 0.18 | AY241: 0.18 | AZ241: 0.18 | BA241: 0.18 | BB241: 0.18 | BC241: 0.18 | BD241: 0.18 | BE241: 0.18 | BF241: 0.18 | BG241: 0.18 | BH241: 0.18 | BI241: 0.18 | BJ241: 0.18
E242: Special pool WDA rate | G242: % | AA242: 0.06 | AB242: 0.06 | AC242: 0.06 | AD242: 0.06 | AE242: 0.06 | AF242: 0.06 | AG242: 0.06 | AH242: 0.06 | AI242: 0.06 | AJ242: 0.06 | AK242: 0.06 | AL242: 0.06 | AM242: 0.06 | AN242: 0.06 | AO242: 0.06 | AP242: 0.06 | AQ242: 0.06 | AR242: 0.06 | AS242: 0.06 | AT242: 0.06 | AU242: 0.06 | AV242: 0.06 | AW242: 0.06 | AX242: 0.06 | AY242: 0.06 | AZ242: 0.06 | BA242: 0.06 | BB242: 0.06 | BC242: 0.06 | BD242: 0.06 | BE242: 0.06 | BF242: 0.06 | BG242: 0.06 | BH242: 0.06 | BI242: 0.06 | BJ242: 0.06
E243: Structures & buildings WDA rate | G243: % | AA243: 0.03 | AB243: 0.03 | AC243: 0.03 | AD243: 0.03 | AE243: 0.03 | AF243: 0.03 | AG243: 0.03 | AH243: 0.03 | AI243: 0.03 | AJ243: 0.03 | AK243: 0.03 | AL243: 0.03 | AM243: 0.03 | AN243: 0.03 | AO243: 0.03 | AP243: 0.03 | AQ243: 0.03 | AR243: 0.03 | AS243: 0.03 | AT243: 0.03 | AU243: 0.03 | AV243: 0.03 | AW243: 0.03 | AX243: 0.03 | AY243: 0.03 | AZ243: 0.03 | BA243: 0.03 | BB243: 0.03 | BC243: 0.03 | BD243: 0.03 | BE243: 0.03 | BF243: 0.03 | BG243: 0.03 | BH243: 0.03 | BI243: 0.03 | BJ243: 0.03
C245: Corporation tax
E247: Other tax deductions with supporting evidence (in addition to capital allowances) | G247: £'m nominal | M247: =SUM( AA247:BJ247 ) -> 0 | AA247: 0 | AB247: 0 | AC247: 0 | AD247: 0 | AE247: 0 | AF247: 0 | AG247: 0 | AH247: 0 | AI247: 0 | AJ247: 0 | AK247: 0 | AL247: 0 | AM247: 0 | AN247: 0 | AO247: 0 | AP247: 0 | AQ247: 0 | AR247: 0 | AS247: 0 | AT247: 0 | AU247: 0 | AV247: 0 | AW247: 0 | AX247: 0 | AY247: 0 | AZ247: 0 | BA247: 0 | BB247: 0 | BC247: 0 | BD247: 0 | BE247: 0 | BF247: 0 | BG247: 0 | BH247: 0 | BI247: 0 | BJ247: 0
E248: approach to taxation allowance | F248: WACC uplift
E249: Tax approach 1 | F249: Profiled input
E250: Tax approach 2 | F250: Compounded tax rate
E251: Tax approach 3 | F251: WACC Uplift
... 274 more rows

Sheet InpT (hidden)
A1: =RIGHT(CELL("filename", A1), LEN(CELL("filename", A1)) - SEARCH("]", CELL("filename", A1))) -> InpT | F1: =HYPERLINK("#Contents!A1","Go to contents") -> Go to contents
E2: Model period end | F2: ='Model Checks and Alerts'!F26 -> 0 | G2: Error chks
E3: Timeline label | F3: ='Model Checks and Alerts'!F168 -> 9 | G3: Alerts
E4: Financial year ending
E5: Period number | G5: Unit | H5: Notes | I5: Data Source | K5: Confidential Status

Sheet C_Time
A1: =RIGHT(CELL("filename", A1), LEN(CELL("filename", A1)) - SEARCH("]", CELL("filename", A1))) -> C_Time | F1: =HYPERLINK("#Contents!A1","Go to contents") -> Go to contents
E2: Model period end | F2: ='Model Checks and Alerts'!F26 -> 0 | G2: Error chks | AA2: =AA$21 -> 2022-12-31 | AB2: 2023-12-31 | AC2: 2024-12-31 | AD2: 2025-12-31 | AE2: 2026-12-31 | AF2: 2027-12-31 | AG2: 2028-12-31 | AH2: 2029-12-31 | AI2: 2030-12-31 | AJ2: 2031-12-31 | AK2: 2032-12-31 | AL2: 2033-12-31 | AM2: 2034-12-31 | AN2: 2035-12-31 | AO2: 2036-12-31 | AP2: 2037-12-31 | AQ2: 2038-12-31 | AR2: 2039-12-31 | AS2: 2040-12-31 | AT2: 2041-12-31 | AU2: 2042-12-31 | AV2: 2043-12-31 | AW2: 2044-12-31 | AX2: 2045-12-31 | AY2: 2046-12-31 | AZ2: 2047-12-31 | BA2: 2048-12-31 | BB2: 2049-12-31 | BC2: 2050-12-31 | BD2: 2051-12-31 | BE2: 2052-12-31 | BF2: 2053-12-31 | BG2: 2054-12-31 | BH2: 2055-12-31 | BI2: 2056-12-31 | BJ2: 2057-12-31
E3: Timeline label | F3: ='Model Checks and Alerts'!F168 -> 9 | G3: Alerts | AA3: =AA$26 -> H7 | AB3: H7 | AC3: H7 | AD3: H7 | AE3: H7 | AF3: H8 | AG3: H8 | AH3: H8 | AI3: H8 | AJ3: H8 | AK3: H9 | AL3: H9 | AM3: H9 | AN3: H9 | AO3: H9 | AP3: H10 | AQ3: H10 | AR3: H10 | AS3: H10 | AT3: H10 | AU3: H11 | AV3: H11 | AW3: H11 | AX3: H11 | AY3: H11 | AZ3: H12 | BA3: H12 | BB3: H12 | BC3: H12 | BD3: H12 | BE3: H12 | BF3: H12 | BG3: H12 | BH3: H12 | BI3: H12 | BJ3: H12
E4: Financial year ending | AA4: =AA$30 -> 1 | AB4: 2 | AC4: 3 | AD4: 4 | AE4: 5 | AF4: 6 | AG4: 7 | AH4: 8 | AI4: 9 | AJ4: 10 | AK4: 11 | AL4: 12 | AM4: 13 | AN4: 14 | AO4: 15 | AP4: 16 | AQ4: 17 | AR4: 18 | AS4: 19 | AT4: 20 | AU4: 21 | AV4: 22 | AW4: 23 | AX4: 24 | AY4: 25 | AZ4: 26 | BA4: 27 | BB4: 28 | BC4: 29 | BD4: 30 | BE4: 31 | BF4: 32 | BG4: 33 | BH4: 34 | BI4: 35 | BJ4: 36
E5: Period number | F5: Constant | G5: Unit | H5: Notes | I5: Data Source | K5: Confidential Status | M5: Total
B8: Model period start
E9: =InpS!E$15 -> Start date | F9: =InpS!F$15 -> 2022-01-01 | G9: =InpS!G$15 -> date
E10: =InpS!E$16 -> Months per period (Primary) | F10: =InpS!F$16 -> 12 | G10: =InpS!G$16 -> Months
E11: =E$30 -> Period number | F11: 0 | G11: Counter | H11: 0 | I11: 0 | J11: 0 | K11: 0 | L11: 0 | M11: 0 | N11: 0 | O11: 0 | P11: 0 | Q11: 0 | R11: 0 | S11: 0 | T11: 0 | U11: 0 | V11: 0 | W11: 0 | X11: 0 | Y11: 0 | Z11: 0 | AA11: 1 | AB11: 2 | AC11: 3 | AD11: 4 | AE11: 5 | AF11: 6 | AG11: 7 | AH11: 8 | AI11: 9 | AJ11: 10 | AK11: 11 | AL11: 12 | AM11: 13 | AN11: 14 | AO11: 15 | AP11: 16 | AQ11: 17 | AR11: 18 | AS11: 19 | AT11: 20 | AU11: 21 | AV11: 22 | AW11: 23 | AX11: 24 | AY11: 25 | AZ11: 26 | BA11: 27 | BB11: 28 | BC11: 29 | BD11: 30 | BE11: 31 | BF11: 32 | BG11: 33 | BH11: 34 | BI11: 35 | BJ11: 36
E12: Model period start | G12: date | AA12: =IF( AA11 = 1, $F9, EDATE( Z12, $F10 ) ) -> 2022-01-01 | AB12: 2023-01-01 | AC12: 2024-01-01 | AD12: 2025-01-01 | AE12: 2026-01-01 | AF12: 2027-01-01 | AG12: 2028-01-01 | AH12: 2029-01-01 | AI12: 2030-01-01 | AJ12: 2031-01-01 | AK12: 2032-01-01 | AL12: 2033-01-01 | AM12: 2034-01-01 | AN12: 2035-01-01 | AO12: 2036-01-01 | AP12: 2037-01-01 | AQ12: 2038-01-01 | AR12: 2039-01-01 | AS12: 2040-01-01 | AT12: 2041-01-01 | AU12: 2042-01-01 | AV12: 2043-01-01 | AW12: 2044-01-01 | AX12: 2045-01-01 | AY12: 2046-01-01 | AZ12: 2047-01-01 | BA12: 2048-01-01 | BB12: 2049-01-01 | BC12: 2050-01-01 | BD12: 2051-01-01 | BE12: 2052-01-01 | BF12: 2053-01-01 | BG12: 2054-01-01 | BH12: 2055-01-01 | BI12: 2056-01-01 | BJ12: 2057-01-01
A16: Headers
B18: Model period end
E19: =InpS!E$16 -> Months per period (Primary) | F19: =InpS!F$16 -> 12 | G19: =InpS!G$16 -> Months
E20: =E$12 -> Model period start | F20: 00:00:00 | G20: date | H20: 00:00:00 | I20: 00:00:00 | J20: 00:00:00 | K20: 00:00:00 | L20: 00:00:00 | M20: 00:00:00 | N20: 00:00:00 | O20: 00:00:00 | P20: 00:00:00 | Q20: 00:00:00 | R20: 00:00:00 | S20: 00:00:00 | T20: 00:00:00 | U20: 00:00:00 | V20: 00:00:00 | W20: 00:00:00 | X20: 00:00:00 | Y20: 00:00:00 | Z20: 00:00:00 | AA20: 2022-01-01 | AB20: 2023-01-01 | AC20: 2024-01-01 | AD20: 2025-01-01 | AE20: 2026-01-01 | AF20: 2027-01-01 | AG20: 2028-01-01 | AH20: 2029-01-01 | AI20: 2030-01-01 | AJ20: 2031-01-01 | AK20: 2032-01-01 | AL20: 2033-01-01 | AM20: 2034-01-01 | AN20: 2035-01-01 | AO20: 2036-01-01 | AP20: 2037-01-01 | AQ20: 2038-01-01 | AR20: 2039-01-01 | AS20: 2040-01-01 | AT20: 2041-01-01 | AU20: 2042-01-01 | AV20: 2043-01-01 | AW20: 2044-01-01 | AX20: 2045-01-01 | AY20: 2046-01-01 | AZ20: 2047-01-01 | BA20: 2048-01-01 | BB20: 2049-01-01 | BC20: 2050-01-01 | BD20: 2051-01-01 | BE20: 2052-01-01 | BF20: 2053-01-01 | BG20: 2054-01-01 | BH20: 2055-01-01 | BI20: 2056-01-01 | BJ20: 2057-01-01
E21: Model period end | G21: date | AA21: =EDATE( AA20, $F19 ) - 1 -> 2022-12-31 | AB21: 2023-12-31 | AC21: 2024-12-31 | AD21: 2025-12-31 | AE21: 2026-12-31 | AF21: 2027-12-31 | AG21: 2028-12-31 | AH21: 2029-12-31 | AI21: 2030-12-31 | AJ21: 2031-12-31 | AK21: 2032-12-31 | AL21: 2033-12-31 | AM21: 2034-12-31 | AN21: 2035-12-31 | AO21: 2036-12-31 | AP21: 2037-12-31 | AQ21: 2038-12-31 | AR21: 2039-12-31 | AS21: 2040-12-31 | AT21: 2041-12-31 | AU21: 2042-12-31 | AV21: 2043-12-31 | AW21: 2044-12-31 | AX21: 2045-12-31 | AY21: 2046-12-31 | AZ21: 2047-12-31 | BA21: 2048-12-31 | BB21: 2049-12-31 | BC21: 2050-12-31 | BD21: 2051-12-31 | BE21: 2052-12-31 | BF21: 2053-12-31 | BG21: 2054-12-31 | BH21: 2055-12-31 | BI21: 2056-12-31 | BJ21: 2057-12-31
B24: Timeline label
E25: =InpS!E$87 -> Timeline period labels | F25: =InpS!F$87 -> 0 | G25: =InpS!G$87 -> 0 | H25: =InpS!H$87 -> 0 | I25: =InpS!I$87 -> 0 | J25: =InpS!J$87 -> 0 | K25: =InpS!K$87 -> 0 | L25: =InpS!L$87 -> 0 | M25: =InpS!M$87 -> 0 | N25: =InpS!N$87 -> 0 | O25: =InpS!O$87 -> 0 | P25: =InpS!P$87 -> 0 | Q25: =InpS!Q$87 -> 0 | R25: =InpS!R$87 -> 0 | S25: =InpS!S$87 -> 0 | T25: =InpS!T$87 -> 0 | U25: =InpS!U$87 -> 0 | V25: =InpS!V$87 -> 0 | W25: =InpS!W$87 -> 0 | X25: =InpS!X$87 -> 0 | Y25: =InpS!Y$87 -> 0 | Z25: =InpS!Z$87 -> 0 | AA25: =InpS!AA$87 -> H7 | AB25: =InpS!AB$87 -> H7 | AC25: =InpS!AC$87 -> H7 | AD25: =InpS!AD$87 -> H7 | AE25: =InpS!AE$87 -> H7 | AF25: =InpS!AF$87 -> H8 | AG25: =InpS!AG$87 -> H8 | AH25: =InpS!AH$87 -> H8 | AI25: =InpS!AI$87 -> H8 | AJ25: =InpS!AJ$87 -> H8 | AK25: =InpS!AK$87 -> H9 | AL25: =InpS!AL$87 -> H9 | AM25: =InpS!AM$87 -> H9 | AN25: =InpS!AN$87 -> H9 | AO25: =InpS!AO$87 -> H9 | AP25: =InpS!AP$87 -> H10 | AQ25: =InpS!AQ$87 -> H10 | AR25: =InpS!AR$87 -> H10 | AS25: =InpS!AS$87 -> H10 | AT25: =InpS!AT$87 -> H10 | AU25: =InpS!AU$87 -> H11 | AV25: =InpS!AV$87 -> H11 | AW25: =InpS!AW$87 -> H11 | AX25: =InpS!AX$87 -> H11 | AY25: =InpS!AY$87 -> H11 | AZ25: =InpS!AZ$87 -> H12 | BA25: =InpS!BA$87 -> H12 | BB25: =InpS!BB$87 -> H12 | BC25: =InpS!BC$87 -> H12 | BD25: =InpS!BD$87 -> H12 | BE25: =InpS!BE$87 -> H12 | BF25: =InpS!BF$87 -> H12 | BG25: =InpS!BG$87 -> H12 | BH25: =InpS!BH$87 -> H12 | BI25: =InpS!BI$87 -> H12 | BJ25: =InpS!BJ$87 -> H12
E26: Timeline label | M26: =SUM( AA26:BJ26 ) -> 0 | AA26: =AA25 -> H7 | AB26: H7 | AC26: H7 | AD26: H7 | AE26: H7 | AF26: H8 | AG26: H8 | AH26: H8 | AI26: H8 | AJ26: H8 | AK26: H9 | AL26: H9 | AM26: H9 | AN26: H9 | AO26: H9 | AP26: H10 | AQ26: H10 | AR26: H10 | AS26: H10 | AT26: H10 | AU26: H11 | AV26: H11 | AW26: H11 | AX26: H11 | AY26: H11 | AZ26: H12 | BA26: H12 | BB26: H12 | BC26: H12 | BD26: H12 | BE26: H12 | BF26: H12 | BG26: H12 | BH26: H12 | BI26: H12 | BJ26: H12
B29: Period number
E30: Period number | G30: Counter | AA30: =Z30 + 1 -> 1 | AB30: 2 | AC30: 3 | AD30: 4 | AE30: 5 | AF30: 6 | AG30: 7 | AH30: 8 | AI30: 9 | AJ30: 10 | AK30: 11 | AL30: 12 | AM30: 13 | AN30: 14 | AO30: 15 | AP30: 16 | AQ30: 17 | AR30: 18 | AS30: 19 | AT30: 20 | AU30: 21 | AV30: 22 | AW30: 23 | AX30: 24 | AY30: 25 | AZ30: 26 | BA30: 27 | BB30: 28 | BC30: 29 | BD30: 30 | BE30: 31 | BF30: 32 | BG30: 33 | BH30: 34 | BI30: 35 | BJ30: 36
A34: Actuals period flag_1
B36: 2022-24 Flag
E37: =E$12 -> Model period start | F37: 00:00:00 | G37: date | H37: 00:00:00 | I37: 00:00:00 | J37: 00:00:00 | K37: 00:00:00 | L37: 00:00:00 | M37: 00:00:00 | N37: 00:00:00 | O37: 00:00:00 | P37: 00:00:00 | Q37: 00:00:00 | R37: 00:00:00 | S37: 00:00:00 | T37: 00:00:00 | U37: 00:00:00 | V37: 00:00:00 | W37: 00:00:00 | X37: 00:00:00 | Y37: 00:00:00 | Z37: 00:00:00 | AA37: 2022-01-01 | AB37: 2023-01-01 | AC37: 2024-01-01 | AD37: 2025-01-01 | AE37: 2026-01-01 | AF37: 2027-01-01 | AG37: 2028-01-01 | AH37: 2029-01-01 | AI37: 2030-01-01 | AJ37: 2031-01-01 | AK37: 2032-01-01 | AL37: 2033-01-01 | AM37: 2034-01-01 | AN37: 2035-01-01 | AO37: 2036-01-01 | AP37: 2037-01-01 | AQ37: 2038-01-01 | AR37: 2039-01-01 | AS37: 2040-01-01 | AT37: 2041-01-01 | AU37: 2042-01-01 | AV37: 2043-01-01 | AW37: 2044-01-01 | AX37: 2045-01-01 | AY37: 2046-01-01 | AZ37: 2047-01-01 | BA37: 2048-01-01 | BB37: 2049-01-01 | BC37: 2050-01-01 | BD37: 2051-01-01 | BE37: 2052-01-01 | BF37: 2053-01-01 | BG37: 2054-01-01 | BH37: 2055-01-01 | BI37: 2056-01-01 | BJ37: 2057-01-01
E38: 2022-24 Flag | M38: =SUM( AA38:BJ38 ) -> 2 | AA38: =IF( AND( YEAR( AA37 ) >= 2022, YEAR( AA37 ) < 2024 ), 1, 0 ) -> 1 | AB38: 1 | AC38: 0 | AD38: 0 | AE38: 0 | AF38: 0 | AG38: 0 | AH38: 0 | AI38: 0 | AJ38: 0 | AK38: 0 | AL38: 0 | AM38: 0 | AN38: 0 | AO38: 0 | AP38: 0 | AQ38: 0 | AR38: 0 | AS38: 0 | AT38: 0 | AU38: 0 | AV38: 0 | AW38: 0 | AX38: 0 | AY38: 0 | AZ38: 0 | BA38: 0 | BB38: 0 | BC38: 0 | BD38: 0 | BE38: 0 | BF38: 0 | BG38: 0 | BH38: 0 | BI38: 0 | BJ38: 0
B41: Actuals period flag
E42: =InpS!E$13 -> Last actuals date | F42: =InpS!F$13 -> 2026-12-31T13:22:50 | G42: =InpS!G$13 -> Date
E43: =E$12 -> Model period start | F43: 00:00:00 | G43: date | H43: 00:00:00 | I43: 00:00:00 | J43: 00:00:00 | K43: 00:00:00 | L43: 00:00:00 | M43: 00:00:00 | N43: 00:00:00 | O43: 00:00:00 | P43: 00:00:00 | Q43: 00:00:00 | R43: 00:00:00 | S43: 00:00:00 | T43: 00:00:00 | U43: 00:00:00 | V43: 00:00:00 | W43: 00:00:00 | X43: 00:00:00 | Y43: 00:00:00 | Z43: 00:00:00 | AA43: 2022-01-01 | AB43: 2023-01-01 | AC43: 2024-01-01 | AD43: 2025-01-01 | AE43: 2026-01-01 | AF43: 2027-01-01 | AG43: 2028-01-01 | AH43: 2029-01-01 | AI43: 2030-01-01 | AJ43: 2031-01-01 | AK43: 2032-01-01 | AL43: 2033-01-01 | AM43: 2034-01-01 | AN43: 2035-01-01 | AO43: 2036-01-01 | AP43: 2037-01-01 | AQ43: 2038-01-01 | AR43: 2039-01-01 | AS43: 2040-01-01 | AT43: 2041-01-01 | AU43: 2042-01-01 | AV43: 2043-01-01 | AW43: 2044-01-01 | AX43: 2045-01-01 | AY43: 2046-01-01 | AZ43: 2047-01-01 | BA43: 2048-01-01 | BB43: 2049-01-01 | BC43: 2050-01-01 | BD43: 2051-01-01 | BE43: 2052-01-01 | BF43: 2053-01-01 | BG43: 2054-01-01 | BH43: 2055-01-01 | BI43: 2056-01-01 | BJ43: 2057-01-01
E44: Actuals period flag | G44: flag | M44: =SUM( AA44:BJ44 ) -> 5 | AA44: =IF( AA43 >= $F42, 0, 1 ) -> 1 | AB44: 1 | AC44: 1 | AD44: 1 | AE44: 1 | AF44: 0 | AG44: 0 | AH44: 0 | AI44: 0 | AJ44: 0 | AK44: 0 | AL44: 0 | AM44: 0 | AN44: 0 | AO44: 0 | AP44: 0 | AQ44: 0 | AR44: 0 | AS44: 0 | AT44: 0 | AU44: 0 | AV44: 0 | AW44: 0 | AX44: 0 | AY44: 0 | AZ44: 0 | BA44: 0 | BB44: 0 | BC44: 0 | BD44: 0 | BE44: 0 | BF44: 0 | BG44: 0 | BH44: 0 | BI44: 0 | BJ44: 0
B47: 2027 flag
E48: =InpS!E$24 -> Year 2027 | F48: =InpS!F$24 -> 2027 | G48: =InpS!G$24 -> year
E49: =E$12 -> Model period start | F49: 00:00:00 | G49: date | H49: 00:00:00 | I49: 00:00:00 | J49: 00:00:00 | K49: 00:00:00 | L49: 00:00:00 | M49: 00:00:00 | N49: 00:00:00 | O49: 00:00:00 | P49: 00:00:00 | Q49: 00:00:00 | R49: 00:00:00 | S49: 00:00:00 | T49: 00:00:00 | U49: 00:00:00 | V49: 00:00:00 | W49: 00:00:00 | X49: 00:00:00 | Y49: 00:00:00 | Z49: 00:00:00 | AA49: 2022-01-01 | AB49: 2023-01-01 | AC49: 2024-01-01 | AD49: 2025-01-01 | AE49: 2026-01-01 | AF49: 2027-01-01 | AG49: 2028-01-01 | AH49: 2029-01-01 | AI49: 2030-01-01 | AJ49: 2031-01-01 | AK49: 2032-01-01 | AL49: 2033-01-01 | AM49: 2034-01-01 | AN49: 2035-01-01 | AO49: 2036-01-01 | AP49: 2037-01-01 | AQ49: 2038-01-01 | AR49: 2039-01-01 | AS49: 2040-01-01 | AT49: 2041-01-01 | AU49: 2042-01-01 | AV49: 2043-01-01 | AW49: 2044-01-01 | AX49: 2045-01-01 | AY49: 2046-01-01 | AZ49: 2047-01-01 | BA49: 2048-01-01 | BB49: 2049-01-01 | BC49: 2050-01-01 | BD49: 2051-01-01 | BE49: 2052-01-01 | BF49: 2053-01-01 | BG49: 2054-01-01 | BH49: 2055-01-01 | BI49: 2056-01-01 | BJ49: 2057-01-01
E50: 2027 flag | G50: flag | M50: =SUM( AA50:BJ50 ) -> 1 | AA50: =IF( YEAR( AA49 ) = $F48, 1, 0 ) -> 0 | AB50: 0 | AC50: 0 | AD50: 0 | AE50: 0 | AF50: 1 | AG50: 0 | AH50: 0 | AI50: 0 | AJ50: 0 | AK50: 0 | AL50: 0 | AM50: 0 | AN50: 0 | AO50: 0 | AP50: 0 | AQ50: 0 | AR50: 0 | AS50: 0 | AT50: 0 | AU50: 0 | AV50: 0 | AW50: 0 | AX50: 0 | AY50: 0 | AZ50: 0 | BA50: 0 | BB50: 0 | BC50: 0 | BD50: 0 | BE50: 0 | BF50: 0 | BG50: 0 | BH50: 0 | BI50: 0 | BJ50: 0
B53: 2028 flag
E54: =InpS!E$25 -> Year 2028 | F54: =InpS!F$25 -> 2028 | G54: =InpS!G$25 -> year
E55: =E$12 -> Model period start | F55: 00:00:00 | G55: date | H55: 00:00:00 | I55: 00:00:00 | J55: 00:00:00 | K55: 00:00:00 | L55: 00:00:00 | M55: 00:00:00 | N55: 00:00:00 | O55: 00:00:00 | P55: 00:00:00 | Q55: 00:00:00 | R55: 00:00:00 | S55: 00:00:00 | T55: 00:00:00 | U55: 00:00:00 | V55: 00:00:00 | W55: 00:00:00 | X55: 00:00:00 | Y55: 00:00:00 | Z55: 00:00:00 | AA55: 2022-01-01 | AB55: 2023-01-01 | AC55: 2024-01-01 | AD55: 2025-01-01 | AE55: 2026-01-01 | AF55: 2027-01-01 | AG55: 2028-01-01 | AH55: 2029-01-01 | AI55: 2030-01-01 | AJ55: 2031-01-01 | AK55: 2032-01-01 | AL55: 2033-01-01 | AM55: 2034-01-01 | AN55: 2035-01-01 | AO55: 2036-01-01 | AP55: 2037-01-01 | AQ55: 2038-01-01 | AR55: 2039-01-01 | AS55: 2040-01-01 | AT55: 2041-01-01 | AU55: 2042-01-01 | AV55: 2043-01-01 | AW55: 2044-01-01 | AX55: 2045-01-01 | AY55: 2046-01-01 | AZ55: 2047-01-01 | BA55: 2048-01-01 | BB55: 2049-01-01 | BC55: 2050-01-01 | BD55: 2051-01-01 | BE55: 2052-01-01 | BF55: 2053-01-01 | BG55: 2054-01-01 | BH55: 2055-01-01 | BI55: 2056-01-01 | BJ55: 2057-01-01
E56: 2028 flag | G56: flag | M56: =SUM( AA56:BJ56 ) -> 1 | AA56: =IF( YEAR( AA55 ) = $F54, 1, 0 ) -> 0 | AB56: 0 | AC56: 0 | AD56: 0 | AE56: 0 | AF56: 0 | AG56: 1 | AH56: 0 | AI56: 0 | AJ56: 0 | AK56: 0 | AL56: 0 | AM56: 0 | AN56: 0 | AO56: 0 | AP56: 0 | AQ56: 0 | AR56: 0 | AS56: 0 | AT56: 0 | AU56: 0 | AV56: 0 | AW56: 0 | AX56: 0 | AY56: 0 | AZ56: 0 | BA56: 0 | BB56: 0 | BC56: 0 | BD56: 0 | BE56: 0 | BF56: 0 | BG56: 0 | BH56: 0 | BI56: 0 | BJ56: 0
B59: 2029 flag
E60: =InpS!E$26 -> Year 2029 | F60: =InpS!F$26 -> 2029 | G60: =InpS!G$26 -> year
E61: =E$12 -> Model period start | F61: 00:00:00 | G61: date | H61: 00:00:00 | I61: 00:00:00 | J61: 00:00:00 | K61: 00:00:00 | L61: 00:00:00 | M61: 00:00:00 | N61: 00:00:00 | O61: 00:00:00 | P61: 00:00:00 | Q61: 00:00:00 | R61: 00:00:00 | S61: 00:00:00 | T61: 00:00:00 | U61: 00:00:00 | V61: 00:00:00 | W61: 00:00:00 | X61: 00:00:00 | Y61: 00:00:00 | Z61: 00:00:00 | AA61: 2022-01-01 | AB61: 2023-01-01 | AC61: 2024-01-01 | AD61: 2025-01-01 | AE61: 2026-01-01 | AF61: 2027-01-01 | AG61: 2028-01-01 | AH61: 2029-01-01 | AI61: 2030-01-01 | AJ61: 2031-01-01 | AK61: 2032-01-01 | AL61: 2033-01-01 | AM61: 2034-01-01 | AN61: 2035-01-01 | AO61: 2036-01-01 | AP61: 2037-01-01 | AQ61: 2038-01-01 | AR61: 2039-01-01 | AS61: 2040-01-01 | AT61: 2041-01-01 | AU61: 2042-01-01 | AV61: 2043-01-01 | AW61: 2044-01-01 | AX61: 2045-01-01 | AY61: 2046-01-01 | AZ61: 2047-01-01 | BA61: 2048-01-01 | BB61: 2049-01-01 | BC61: 2050-01-01 | BD61: 2051-01-01 | BE61: 2052-01-01 | BF61: 2053-01-01 | BG61: 2054-01-01 | BH61: 2055-01-01 | BI61: 2056-01-01 | BJ61: 2057-01-01
E62: 2029 flag | G62: flag | M62: =SUM( AA62:BJ62 ) -> 1 | AA62: =IF( YEAR( AA61 ) = $F60, 1, 0 ) -> 0 | AB62: 0 | AC62: 0 | AD62: 0 | AE62: 0 | AF62: 0 | AG62: 0 | AH62: 1 | AI62: 0 | AJ62: 0 | AK62: 0 | AL62: 0 | AM62: 0 | AN62: 0 | AO62: 0 | AP62: 0 | AQ62: 0 | AR62: 0 | AS62: 0 | AT62: 0 | AU62: 0 | AV62: 0 | AW62: 0 | AX62: 0 | AY62: 0 | AZ62: 0 | BA62: 0 | BB62: 0 | BC62: 0 | BD62: 0 | BE62: 0 | BF62: 0 | BG62: 0 | BH62: 0 | BI62: 0 | BJ62: 0
B65: 2030 flag
E66: =InpS!E$27 -> Year 2030 | F66: =InpS!F$27 -> 2030 | G66: =InpS!G$27 -> year
E67: =E$12 -> Model period start | F67: 00:00:00 | G67: date | H67: 00:00:00 | I67: 00:00:00 | J67: 00:00:00 | K67: 00:00:00 | L67: 00:00:00 | M67: 00:00:00 | N67: 00:00:00 | O67: 00:00:00 | P67: 00:00:00 | Q67: 00:00:00 | R67: 00:00:00 | S67: 00:00:00 | T67: 00:00:00 | U67: 00:00:00 | V67: 00:00:00 | W67: 00:00:00 | X67: 00:00:00 | Y67: 00:00:00 | Z67: 00:00:00 | AA67: 2022-01-01 | AB67: 2023-01-01 | AC67: 2024-01-01 | AD67: 2025-01-01 | AE67: 2026-01-01 | AF67: 2027-01-01 | AG67: 2028-01-01 | AH67: 2029-01-01 | AI67: 2030-01-01 | AJ67: 2031-01-01 | AK67: 2032-01-01 | AL67: 2033-01-01 | AM67: 2034-01-01 | AN67: 2035-01-01 | AO67: 2036-01-01 | AP67: 2037-01-01 | AQ67: 2038-01-01 | AR67: 2039-01-01 | AS67: 2040-01-01 | AT67: 2041-01-01 | AU67: 2042-01-01 | AV67: 2043-01-01 | AW67: 2044-01-01 | AX67: 2045-01-01 | AY67: 2046-01-01 | AZ67: 2047-01-01 | BA67: 2048-01-01 | BB67: 2049-01-01 | BC67: 2050-01-01 | BD67: 2051-01-01 | BE67: 2052-01-01 | BF67: 2053-01-01 | BG67: 2054-01-01 | BH67: 2055-01-01 | BI67: 2056-01-01 | BJ67: 2057-01-01
E68: 2030 flag | G68: flag | M68: =SUM( AA68:BJ68 ) -> 1 | AA68: =IF( YEAR( AA67 ) = $F66, 1, 0 ) -> 0 | AB68: 0 | AC68: 0 | AD68: 0 | AE68: 0 | AF68: 0 | AG68: 0 | AH68: 0 | AI68: 1 | AJ68: 0 | AK68: 0 | AL68: 0 | AM68: 0 | AN68: 0 | AO68: 0 | AP68: 0 | AQ68: 0 | AR68: 0 | AS68: 0 | AT68: 0 | AU68: 0 | AV68: 0 | AW68: 0 | AX68: 0 | AY68: 0 | AZ68: 0 | BA68: 0 | BB68: 0 | BC68: 0 | BD68: 0 | BE68: 0 | BF68: 0 | BG68: 0 | BH68: 0 | BI68: 0 | BJ68: 0
B71: 2031 flag
E72: =InpS!E$28 -> Year 2031 | F72: =InpS!F$28 -> 2031 | G72: =InpS!G$28 -> year
E73: =E$12 -> Model period start | F73: 00:00:00 | G73: date | H73: 00:00:00 | I73: 00:00:00 | J73: 00:00:00 | K73: 00:00:00 | L73: 00:00:00 | M73: 00:00:00 | N73: 00:00:00 | O73: 00:00:00 | P73: 00:00:00 | Q73: 00:00:00 | R73: 00:00:00 | S73: 00:00:00 | T73: 00:00:00 | U73: 00:00:00 | V73: 00:00:00 | W73: 00:00:00 | X73: 00:00:00 | Y73: 00:00:00 | Z73: 00:00:00 | AA73: 2022-01-01 | AB73: 2023-01-01 | AC73: 2024-01-01 | AD73: 2025-01-01 | AE73: 2026-01-01 | AF73: 2027-01-01 | AG73: 2028-01-01 | AH73: 2029-01-01 | AI73: 2030-01-01 | AJ73: 2031-01-01 | AK73: 2032-01-01 | AL73: 2033-01-01 | AM73: 2034-01-01 | AN73: 2035-01-01 | AO73: 2036-01-01 | AP73: 2037-01-01 | AQ73: 2038-01-01 | AR73: 2039-01-01 | AS73: 2040-01-01 | AT73: 2041-01-01 | AU73: 2042-01-01 | AV73: 2043-01-01 | AW73: 2044-01-01 | AX73: 2045-01-01 | AY73: 2046-01-01 | AZ73: 2047-01-01 | BA73: 2048-01-01 | BB73: 2049-01-01 | BC73: 2050-01-01 | BD73: 2051-01-01 | BE73: 2052-01-01 | BF73: 2053-01-01 | BG73: 2054-01-01 | BH73: 2055-01-01 | BI73: 2056-01-01 | BJ73: 2057-01-01
E74: 2031 flag | G74: flag | M74: =SUM( AA74:BJ74 ) -> 1 | AA74: =IF( YEAR( AA73 ) = $F72, 1, 0 ) -> 0 | AB74: 0 | AC74: 0 | AD74: 0 | AE74: 0 | AF74: 0 | AG74: 0 | AH74: 0 | AI74: 0 | AJ74: 1 | AK74: 0 | AL74: 0 | AM74: 0 | AN74: 0 | AO74: 0 | AP74: 0 | AQ74: 0 | AR74: 0 | AS74: 0 | AT74: 0 | AU74: 0 | AV74: 0 | AW74: 0 | AX74: 0 | AY74: 0 | AZ74: 0 | BA74: 0 | BB74: 0 | BC74: 0 | BD74: 0 | BE74: 0 | BF74: 0 | BG74: 0 | BH74: 0 | BI74: 0 | BJ74: 0
B77: New pricing period flag
E78: =InpS!E$86 -> Forecast Period number | F78: =InpS!F$86 -> 0 | G78: =InpS!G$86 -> 0 | H78: =InpS!H$86 -> 0 | I78: =InpS!I$86 -> 0 | J78: =InpS!J$86 -> 0 | K78: =InpS!K$86 -> 0 | L78: =InpS!L$86 -> 0 | M78: =InpS!M$86 -> 249 | N78: =InpS!N$86 -> 0 | O78: =InpS!O$86 -> 0 | P78: =InpS!P$86 -> 0 | Q78: =InpS!Q$86 -> 0 | R78: =InpS!R$86 -> 0 | S78: =InpS!S$86 -> 0 | T78: =InpS!T$86 -> 0 | U78: =InpS!U$86 -> 0 | V78: =InpS!V$86 -> 0 | W78: =InpS!W$86 -> 0 | X78: =InpS!X$86 -> 0 | Y78: =InpS!Y$86 -> 0 | Z78: =InpS!Z$86 -> 0 | AA78: =InpS!AA$86 -> 4 | AB78: =InpS!AB$86 -> 4 | AC78: =InpS!AC$86 -> 4 | AD78: =InpS!AD$86 -> 4 | AE78: =InpS!AE$86 -> 4 | AF78: =InpS!AF$86 -> 5 | AG78: =InpS!AG$86 -> 5 | AH78: =InpS!AH$86 -> 5 | AI78: =InpS!AI$86 -> 5 | AJ78: =InpS!AJ$86 -> 5 | AK78: =InpS!AK$86 -> 6 | AL78: =InpS!AL$86 -> 6 | AM78: =InpS!AM$86 -> 6 | AN78: =InpS!AN$86 -> 6 | AO78: =InpS!AO$86 -> 6 | AP78: =InpS!AP$86 -> 7 | AQ78: =InpS!AQ$86 -> 7 | AR78: =InpS!AR$86 -> 7 | AS78: =InpS!AS$86 -> 7 | AT78: =InpS!AT$86 -> 7 | AU78: =InpS!AU$86 -> 8 | AV78: =InpS!AV$86 -> 8 | AW78: =InpS!AW$86 -> 8 | AX78: =InpS!AX$86 -> 8 | AY78: =InpS!AY$86 -> 8 | AZ78: =InpS!AZ$86 -> 9 | BA78: =InpS!BA$86 -> 9 | BB78: =InpS!BB$86 -> 9 | BC78: =InpS!BC$86 -> 9 | BD78: =InpS!BD$86 -> 9 | BE78: =InpS!BE$86 -> 9 | BF78: =InpS!BF$86 -> 9 | BG78: =InpS!BG$86 -> 9 | BH78: =InpS!BH$86 -> 9 | BI78: =InpS!BI$86 -> 9 | BJ78: =InpS!BJ$86 -> 9
E79: New pricing period flag | G79: flag | M79: =SUM( AA79:BJ79 ) -> 6 | AA79: =IF( AA78 <> Z78, 1, 0 ) -> 1 | AB79: 0 | AC79: 0 | AD79: 0 | AE79: 0 | AF79: 1 | AG79: 0 | AH79: 0 | AI79: 0 | AJ79: 0 | AK79: 1 | AL79: 0 | AM79: 0 | AN79: 0 | AO79: 0 | AP79: 1 | AQ79: 0 | AR79: 0 | AS79: 0 | AT79: 0 | AU79: 1 | AV79: 0 | AW79: 0 | AX79: 0 | AY79: 0 | AZ79: 1 | BA79: 0 | BB79: 0 | BC79: 0 | BD79: 0 | BE79: 0 | BF79: 0 | BG79: 0 | BH79: 0 | BI79: 0 | BJ79: 0
A83: Look-forwrd flag
B85: Lookforward periods
E86: =InpS!E$69 -> Maximum lookforward period | F86: =InpS!F$69 -> 3 | G86: =InpS!G$69 -> Years
E87: =E$30 -> Period number | F87: 0 | G87: Counter | H87: 0 | I87: 0 | J87: 0 | K87: 0 | L87: 0 | M87: 0 | N87: 0 | O87: 0 | P87: 0 | Q87: 0 | R87: 0 | S87: 0 | T87: 0 | U87: 0 | V87: 0 | W87: 0 | X87: 0 | Y87: 0 | Z87: 0 | AA87: 1 | AB87: 2 | AC87: 3 | AD87: 4 | AE87: 5 | AF87: 6 | AG87: 7 | AH87: 8 | AI87: 9 | AJ87: 10 | AK87: 11 | AL87: 12 | AM87: 13 | AN87: 14 | AO87: 15 | AP87: 16 | AQ87: 17 | AR87: 18 | AS87: 19 | AT87: 20 | AU87: 21 | AV87: 22 | AW87: 23 | AX87: 24 | AY87: 25 | AZ87: 26 | BA87: 27 | BB87: 28 | BC87: 29 | BD87: 30 | BE87: 31 | BF87: 32 | BG87: 33 | BH87: 34 | BI87: 35 | BJ87: 36
E88: Lookforward periods | F88: =( MAX( $AA87:$BJ87 ) - $F86 ) -> 33
B91: Within Look-forward Flag
E92: =E$88 -> Lookforward periods | F92: 33 | G92: 0
E93: =E$30 -> Period number | F93: 0 | G93: Counter | H93: 0 | I93: 0 | J93: 0 | K93: 0 | L93: 0 | M93: 0 | N93: 0 | O93: 0 | P93: 0 | Q93: 0 | R93: 0 | S93: 0 | T93: 0 | U93: 0 | V93: 0 | W93: 0 | X93: 0 | Y93: 0 | Z93: 0 | AA93: 1 | AB93: 2 | AC93: 3 | AD93: 4 | AE93: 5 | AF93: 6 | AG93: 7 | AH93: 8 | AI93: 9 | AJ93: 10 | AK93: 11 | AL93: 12 | AM93: 13 | AN93: 14 | AO93: 15 | AP93: 16 | AQ93: 17 | AR93: 18 | AS93: 19 | AT93: 20 | AU93: 21 | AV93: 22 | AW93: 23 | AX93: 24 | AY93: 25 | AZ93: 26 | BA93: 27 | BB93: 28 | BC93: 29 | BD93: 30 | BE93: 31 | BF93: 32 | BG93: 33 | BH93: 34 | BI93: 35 | BJ93: 36
E94: Within Look-forward Flag | M94: =SUM( AA94:BJ94 ) -> 33 | AA94: =IF( AA93 > $F92, 0, 1 ) -> 1 | AB94: 1 | AC94: 1 | AD94: 1 | AE94: 1 | AF94: 1 | AG94: 1 | AH94: 1 | AI94: 1 | AJ94: 1 | AK94: 1 | AL94: 1 | AM94: 1 | AN94: 1 | AO94: 1 | AP94: 1 | AQ94: 1 | AR94: 1 | AS94: 1 | AT94: 1 | AU94: 1 | AV94: 1 | AW94: 1 | AX94: 1 | AY94: 1 | AZ94: 1 | BA94: 1 | BB94: 1 | BC94: 1 | BD94: 1 | BE94: 1 | BF94: 1 | BG94: 1 | BH94: 0 | BI94: 0 | BJ94: 0
B97: Maximum lookforward period check
E98: =InpS!E$69 -> Maximum lookforward period | F98: =InpS!F$69 -> 3 | G98: =InpS!G$69 -> Years
E99: =C_LookForward!E$13 -> Capex in 1 years time | F99: =C_LookForward!F$13 -> 0 | G99: =C_LookForward!G$13 -> £'m nominal | H99: =C_LookForward!H$13 -> 0 | I99: =C_LookForward!I$13 -> 0 | J99: =C_LookForward!J$13 -> 0 | K99: =C_LookForward!K$13 -> 0 | L99: =C_LookForward!L$13 -> 0 | M99: =C_LookForward!M$13 -> 59352.81938 | N99: =C_LookForward!N$13 -> 0 | O99: =C_LookForward!O$13 -> 0 | P99: =C_LookForward!P$13 -> 0 | Q99: =C_LookForward!Q$13 -> 0 | R99: =C_LookForward!R$13 -> 0 | S99: =C_LookForward!S$13 -> 0 | T99: =C_LookForward!T$13 -> 0 | U99: =C_LookForward!U$13 -> 0 | V99: =C_LookForward!V$13 -> 0 | W99: =C_LookForward!W$13 -> 0 | X99: =C_LookForward!X$13 -> 0 | Y99: =C_LookForward!Y$13 -> 0 | Z99: =C_LookForward!Z$13 -> 0 | AA99: =C_LookForward!AA$13 -> 0 | AB99: =C_LookForward!AB$13 -> 0 | AC99: =C_LookForward!AC$13 -> 0 | AD99: =C_LookForward!AD$13 -> 0 | AE99: =C_LookForward!AE$13 -> 1424.63 | AF99: =C_LookForward!AF$13 -> 1446.33 | AG99: =C_LookForward!AG$13 -> 1515.06 | AH99: =C_LookForward!AH$13 -> 1150.72 | AI99: =C_LookForward!AI$13 -> 1062 | AJ99: =C_LookForward!AJ$13 -> 1602.069556 | AK99: =C_LookForward!AK$13 -> 1832.590724 | AL99: =C_LookForward!AL$13 -> 2428.576389 | AM99: =C_LookForward!AM$13 -> 2620.713165 | AN99: =C_LookForward!AN$13 -> 2573.327452 | AO99: =C_LookForward!AO$13 -> 2983.330555 | AP99: =C_LookForward!AP$13 -> 2859.152155 | AQ99: =C_LookForward!AQ$13 -> 2605.314855 | AR99: =C_LookForward!AR$13 -> 1874.023172 | AS99: =C_LookForward!AS$13 -> 1649.700587 | AT99: =C_LookForward!AT$13 -> 1769.195489 | AU99: =C_LookForward!AU$13 -> 1994.361109 | AV99: =C_LookForward!AV$13 -> 2106.308896 | AW99: =C_LookForward!AW$13 -> 2359.859074 | AX99: =C_LookForward!AX$13 -> 2468.489842 | AY99: =C_LookForward!AY$13 -> 2005.316688 | AZ99: =C_LookForward!AZ$13 -> 1541.142604 | BA99: =C_LookForward!BA$13 -> 1343.401316 | BB99: =C_LookForward!BB$13 -> 1370.269342 | BC99: =C_LookForward!BC$13 -> 1397.674729 | BD99: =C_LookForward!BD$13 -> 1802.321444 | BE99: =C_LookForward!BE$13 -> 1838.367873 | BF99: =C_LookForward!BF$13 -> 1875.135231 | BG99: =C_LookForward!BG$13 -> 1912.637935 | BH99: =C_LookForward!BH$13 -> 1950.890694 | BI99: =C_LookForward!BI$13 -> 1989.908508 | BJ99: =C_LookForward!BJ$13 -> 0
E100: =C_LookForward!E$18 -> Capex in 2 years time | F100: =C_LookForward!F$18 -> 0 | G100: =C_LookForward!G$18 -> £'m nominal | H100: =C_LookForward!H$18 -> 0 | I100: =C_LookForward!I$18 -> 0 | J100: =C_LookForward!J$18 -> 0 | K100: =C_LookForward!K$18 -> 0 | L100: =C_LookForward!L$18 -> 0 | M100: =C_LookForward!M$18 -> 59352.81938 | N100: =C_LookForward!N$18 -> 0 | O100: =C_LookForward!O$18 -> 0 | P100: =C_LookForward!P$18 -> 0 | Q100: =C_LookForward!Q$18 -> 0 | R100: =C_LookForward!R$18 -> 0 | S100: =C_LookForward!S$18 -> 0 | T100: =C_LookForward!T$18 -> 0 | U100: =C_LookForward!U$18 -> 0 | V100: =C_LookForward!V$18 -> 0 | W100: =C_LookForward!W$18 -> 0 | X100: =C_LookForward!X$18 -> 0 | Y100: =C_LookForward!Y$18 -> 0 | Z100: =C_LookForward!Z$18 -> 0 | AA100: =C_LookForward!AA$18 -> 0 | AB100: =C_LookForward!AB$18 -> 0 | AC100: =C_LookForward!AC$18 -> 0 | AD100: =C_LookForward!AD$18 -> 1424.63 | AE100: =C_LookForward!AE$18 -> 1446.33 | AF100: =C_LookForward!AF$18 -> 1515.06 | AG100: =C_LookForward!AG$18 -> 1150.72 | AH100: =C_LookForward!AH$18 -> 1062 | AI100: =C_LookForward!AI$18 -> 1602.069556 | AJ100: =C_LookForward!AJ$18 -> 1832.590724 | AK100: =C_LookForward!AK$18 -> 2428.576389 | AL100: =C_LookForward!AL$18 -> 2620.713165 | AM100: =C_LookForward!AM$18 -> 2573.327452 | AN100: =C_LookForward!AN$18 -> 2983.330555 | AO100: =C_LookForward!AO$18 -> 2859.152155 | AP100: =C_LookForward!AP$18 -> 2605.314855 | AQ100: =C_LookForward!AQ$18 -> 1874.023172 | AR100: =C_LookForward!AR$18 -> 1649.700587 | AS100: =C_LookForward!AS$18 -> 1769.195489 | AT100: =C_LookForward!AT$18 -> 1994.361109 | AU100: =C_LookForward!AU$18 -> 2106.308896 | AV100: =C_LookForward!AV$18 -> 2359.859074 | AW100: =C_LookForward!AW$18 -> 2468.489842 | AX100: =C_LookForward!AX$18 -> 2005.316688 | AY100: =C_LookForward!AY$18 -> 1541.142604 | AZ100: =C_LookForward!AZ$18 -> 1343.401316 | BA100: =C_LookForward!BA$18 -> 1370.269342 | BB100: =C_LookForward!BB$18 -> 1397.674729 | BC100: =C_LookForward!BC$18 -> 1802.321444 | BD100: =C_LookForward!BD$18 -> 1838.367873 | BE100: =C_LookForward!BE$18 -> 1875.135231 | BF100: =C_LookForward!BF$18 -> 1912.637935 | BG100: =C_LookForward!BG$18 -> 1950.890694 | BH100: =C_LookForward!BH$18 -> 1989.908508 | BI100: =C_LookForward!BI$18 -> 0 | BJ100: =C_LookForward!BJ$18 -> 0
E101: =C_LookForward!E$23 -> Capex in 3 years time | F101: =C_LookForward!F$23 -> 0 | G101: =C_LookForward!G$23 -> £'m nominal | H101: =C_LookForward!H$23 -> 0 | I101: =C_LookForward!I$23 -> 0 | J101: =C_LookForward!J$23 -> 0 | K101: =C_LookForward!K$23 -> 0 | L101: =C_LookForward!L$23 -> 0 | M101: =C_LookForward!M$23 -> 59352.81938 | N101: =C_LookForward!N$23 -> 0 | O101: =C_LookForward!O$23 -> 0 | P101: =C_LookForward!P$23 -> 0 | Q101: =C_LookForward!Q$23 -> 0 | R101: =C_LookForward!R$23 -> 0 | S101: =C_LookForward!S$23 -> 0 | T101: =C_LookForward!T$23 -> 0 | U101: =C_LookForward!U$23 -> 0 | V101: =C_LookForward!V$23 -> 0 | W101: =C_LookForward!W$23 -> 0 | X101: =C_LookForward!X$23 -> 0 | Y101: =C_LookForward!Y$23 -> 0 | Z101: =C_LookForward!Z$23 -> 0 | AA101: =C_LookForward!AA$23 -> 0 | AB101: =C_LookForward!AB$23 -> 0 | AC101: =C_LookForward!AC$23 -> 1424.63 | AD101: =C_LookForward!AD$23 -> 1446.33 | AE101: =C_LookForward!AE$23 -> 1515.06 | AF101: =C_LookForward!AF$23 -> 1150.72 | AG101: =C_LookForward!AG$23 -> 1062 | AH101: =C_LookForward!AH$23 -> 1602.069556 | AI101: =C_LookForward!AI$23 -> 1832.590724 | AJ101: =C_LookForward!AJ$23 -> 2428.576389 | AK101: =C_LookForward!AK$23 -> 2620.713165 | AL101: =C_LookForward!AL$23 -> 2573.327452 | AM101: =C_LookForward!AM$23 -> 2983.330555 | AN101: =C_LookForward!AN$23 -> 2859.152155 | AO101: =C_LookForward!AO$23 -> 2605.314855 | AP101: =C_LookForward!AP$23 -> 1874.023172 | AQ101: =C_LookForward!AQ$23 -> 1649.700587 | AR101: =C_LookForward!AR$23 -> 1769.195489 | AS101: =C_LookForward!AS$23 -> 1994.361109 | AT101: =C_LookForward!AT$23 -> 2106.308896 | AU101: =C_LookForward!AU$23 -> 2359.859074 | AV101: =C_LookForward!AV$23 -> 2468.489842 | AW101: =C_LookForward!AW$23 -> 2005.316688 | AX101: =C_LookForward!AX$23 -> 1541.142604 | AY101: =C_LookForward!AY$23 -> 1343.401316 | AZ101: =C_LookForward!AZ$23 -> 1370.269342 | BA101: =C_LookForward!BA$23 -> 1397.674729 | BB101: =C_LookForward!BB$23 -> 1802.321444 | BC101: =C_LookForward!BC$23 -> 1838.367873 | BD101: =C_LookForward!BD$23 -> 1875.135231 | BE101: =C_LookForward!BE$23 -> 1912.637935 | BF101: =C_LookForward!BF$23 -> 1950.890694 | BG101: =C_LookForward!BG$23 -> 1989.908508 | BH101: =C_LookForward!BH$23 -> 0 | BI101: =C_LookForward!BI$23 -> 0 | BJ101: =C_LookForward!BJ$23 -> 0
E102: Maximum lookforward period check | G102: Check | M102: =SUM( AA102:BJ102 ) -> 0 | AA102: =IF( COUNT( AA99, AA100, AA101 ) = $F98, 0, 1 ) -> 0 | AB102: 0 | AC102: 0 | AD102: 0 | AE102: 0 | AF102: 0 | AG102: 0 | AH102: 0 | AI102: 0 | AJ102: 0 | AK102: 0 | AL102: 0 | AM102: 0 | AN102: 0 | AO102: 0 | AP102: 0 | AQ102: 0 | AR102: 0 | AS102: 0 | AT102: 0 | AU102: 0 | AV102: 0 | AW102: 0 | AX102: 0 | AY102: 0 | AZ102: 0 | BA102: 0 | BB102: 0 | BC102: 0 | BD102: 0 | BE102: 0 | BF102: 0 | BG102: 0 | BH102: 0 | BI102: 0 | BJ102: 0
A106: H7 flag
B108: H7 flag_1
E109: =InpS!E$73 -> H8 Period Start flag date | F109: =InpS!F$73 -> 2027-01-01 | G109: =InpS!G$73 -> date
E110: =E$12 -> Model period start | F110: 00:00:00 | G110: date | H110: 00:00:00 | I110: 00:00:00 | J110: 00:00:00 | K110: 00:00:00 | L110: 00:00:00 | M110: 00:00:00 | N110: 00:00:00 | O110: 00:00:00 | P110: 00:00:00 | Q110: 00:00:00 | R110: 00:00:00 | S110: 00:00:00 | T110: 00:00:00 | U110: 00:00:00 | V110: 00:00:00 | W110: 00:00:00 | X110: 00:00:00 | Y110: 00:00:00 | Z110: 00:00:00 | AA110: 2022-01-01 | AB110: 2023-01-01 | AC110: 2024-01-01 | AD110: 2025-01-01 | AE110: 2026-01-01 | AF110: 2027-01-01 | AG110: 2028-01-01 | AH110: 2029-01-01 | AI110: 2030-01-01 | AJ110: 2031-01-01 | AK110: 2032-01-01 | AL110: 2033-01-01 | AM110: 2034-01-01 | AN110: 2035-01-01 | AO110: 2036-01-01 | AP110: 2037-01-01 | AQ110: 2038-01-01 | AR110: 2039-01-01 | AS110: 2040-01-01 | AT110: 2041-01-01 | AU110: 2042-01-01 | AV110: 2043-01-01 | AW110: 2044-01-01 | AX110: 2045-01-01 | AY110: 2046-01-01 | AZ110: 2047-01-01 | BA110: 2048-01-01 | BB110: 2049-01-01 | BC110: 2050-01-01 | BD110: 2051-01-01 | BE110: 2052-01-01 | BF110: 2053-01-01 | BG110: 2054-01-01 | BH110: 2055-01-01 | BI110: 2056-01-01 | BJ110: 2057-01-01
E111: H7 flag_1 | G111: flag | M111: =SUM( AA111:BJ111 ) -> 6 | AA111: =IF( AA110 <= $F109, 1, 0 ) -> 1 | AB111: 1 | AC111: 1 | AD111: 1 | AE111: 1 | AF111: 1 | AG111: 0 | AH111: 0 | AI111: 0 | AJ111: 0 | AK111: 0 | AL111: 0 | AM111: 0 | AN111: 0 | AO111: 0 | AP111: 0 | AQ111: 0 | AR111: 0 | AS111: 0 | AT111: 0 | AU111: 0 | AV111: 0 | AW111: 0 | AX111: 0 | AY111: 0 | AZ111: 0 | BA111: 0 | BB111: 0 | BC111: 0 | BD111: 0 | BE111: 0 | BF111: 0 | BG111: 0 | BH111: 0 | BI111: 0 | BJ111: 0
A115: H8 flag_1
B117: H8 flag
E118: =InpS!E$73 -> H8 Period Start flag date | F118: =InpS!F$73 -> 2027-01-01 | G118: =InpS!G$73 -> date
E119: =InpS!E$74 -> H8 Period End date | F119: =InpS!F$74 -> 2031-12-31 | G119: =InpS!G$74 -> date
E120: =E$21 -> Model period end | F120: 00:00:00 | G120: date | H120: 00:00:00 | I120: 00:00:00 | J120: 00:00:00 | K120: 00:00:00 | L120: 00:00:00 | M120: 00:00:00 | N120: 00:00:00 | O120: 00:00:00 | P120: 00:00:00 | Q120: 00:00:00 | R120: 00:00:00 | S120: 00:00:00 | T120: 00:00:00 | U120: 00:00:00 | V120: 00:00:00 | W120: 00:00:00 | X120: 00:00:00 | Y120: 00:00:00 | Z120: 00:00:00 | AA120: 2022-12-31 | AB120: 2023-12-31 | AC120: 2024-12-31 | AD120: 2025-12-31 | AE120: 2026-12-31 | AF120: 2027-12-31 | AG120: 2028-12-31 | AH120: 2029-12-31 | AI120: 2030-12-31 | AJ120: 2031-12-31 | AK120: 2032-12-31 | AL120: 2033-12-31 | AM120: 2034-12-31 | AN120: 2035-12-31 | AO120: 2036-12-31 | AP120: 2037-12-31 | AQ120: 2038-12-31 | AR120: 2039-12-31 | AS120: 2040-12-31 | AT120: 2041-12-31 | AU120: 2042-12-31 | AV120: 2043-12-31 | AW120: 2044-12-31 | AX120: 2045-12-31 | AY120: 2046-12-31 | AZ120: 2047-12-31 | BA120: 2048-12-31 | BB120: 2049-12-31 | BC120: 2050-12-31 | BD120: 2051-12-31 | BE120: 2052-12-31 | BF120: 2053-12-31 | BG120: 2054-12-31 | BH120: 2055-12-31 | BI120: 2056-12-31 | BJ120: 2057-12-31
E121: =E$12 -> Model period start | F121: 00:00:00 | G121: date | H121: 00:00:00 | I121: 00:00:00 | J121: 00:00:00 | K121: 00:00:00 | L121: 00:00:00 | M121: 00:00:00 | N121: 00:00:00 | O121: 00:00:00 | P121: 00:00:00 | Q121: 00:00:00 | R121: 00:00:00 | S121: 00:00:00 | T121: 00:00:00 | U121: 00:00:00 | V121: 00:00:00 | W121: 00:00:00 | X121: 00:00:00 | Y121: 00:00:00 | Z121: 00:00:00 | AA121: 2022-01-01 | AB121: 2023-01-01 | AC121: 2024-01-01 | AD121: 2025-01-01 | AE121: 2026-01-01 | AF121: 2027-01-01 | AG121: 2028-01-01 | AH121: 2029-01-01 | AI121: 2030-01-01 | AJ121: 2031-01-01 | AK121: 2032-01-01 | AL121: 2033-01-01 | AM121: 2034-01-01 | AN121: 2035-01-01 | AO121: 2036-01-01 | AP121: 2037-01-01 | AQ121: 2038-01-01 | AR121: 2039-01-01 | AS121: 2040-01-01 | AT121: 2041-01-01 | AU121: 2042-01-01 | AV121: 2043-01-01 | AW121: 2044-01-01 | AX121: 2045-01-01 | AY121: 2046-01-01 | AZ121: 2047-01-01 | BA121: 2048-01-01 | BB121: 2049-01-01 | BC121: 2050-01-01 | BD121: 2051-01-01 | BE121: 2052-01-01 | BF121: 2053-01-01 | BG121: 2054-01-01 | BH121: 2055-01-01 | BI121: 2056-01-01 | BJ121: 2057-01-01
E122: H8 flag | G122: flag | M122: =SUM( AA122:BJ122 ) -> 5 | AA122: =IF( AND( AA120 >= $F118, AA121 <= $F119 ), 1, 0 ) -> 0 | AB122: 0 | AC122: 0 | AD122: 0 | AE122: 0 | AF122: 1 | AG122: 1 | AH122: 1 | AI122: 1 | AJ122: 1 | AK122: 0 | AL122: 0 | AM122: 0 | AN122: 0 | AO122: 0 | AP122: 0 | AQ122: 0 | AR122: 0 | AS122: 0 | AT122: 0 | AU122: 0 | AV122: 0 | AW122: 0 | AX122: 0 | AY122: 0 | AZ122: 0 | BA122: 0 | BB122: 0 | BC122: 0 | BD122: 0 | BE122: 0 | BF122: 0 | BG122: 0 | BH122: 0 | BI122: 0 | BJ122: 0
A126: H9 flag_1
A129: Forecast period flag_1
B131: First forecast date
E132: =InpS!E$13 -> Last actuals date | F132: =InpS!F$13 -> 2026-12-31T13:22:50 | G132: =InpS!G$13 -> Date
E133: First forecast date | F133: =$F132 + 1 -> 2027-01-01T13:22:50 | G133: Date
B136: Forecast period flag
E137: =E$133 -> First forecast date | F137: 2027-01-01T13:22:50 | G137: Date
E138: =E$21 -> Model period end | F138: 00:00:00 | G138: date | H138: 00:00:00 | I138: 00:00:00 | J138: 00:00:00 | K138: 00:00:00 | L138: 00:00:00 | M138: 00:00:00 | N138: 00:00:00 | O138: 00:00:00 | P138: 00:00:00 | Q138: 00:00:00 | R138: 00:00:00 | S138: 00:00:00 | T138: 00:00:00 | U138: 00:00:00 | V138: 00:00:00 | W138: 00:00:00 | X138: 00:00:00 | Y138: 00:00:00 | Z138: 00:00:00 | AA138: 2022-12-31 | AB138: 2023-12-31 | AC138: 2024-12-31 | AD138: 2025-12-31 | AE138: 2026-12-31 | AF138: 2027-12-31 | AG138: 2028-12-31 | AH138: 2029-12-31 | AI138: 2030-12-31 | AJ138: 2031-12-31 | AK138: 2032-12-31 | AL138: 2033-12-31 | AM138: 2034-12-31 | AN138: 2035-12-31 | AO138: 2036-12-31 | AP138: 2037-12-31 | AQ138: 2038-12-31 | AR138: 2039-12-31 | AS138: 2040-12-31 | AT138: 2041-12-31 | AU138: 2042-12-31 | AV138: 2043-12-31 | AW138: 2044-12-31 | AX138: 2045-12-31 | AY138: 2046-12-31 | AZ138: 2047-12-31 | BA138: 2048-12-31 | BB138: 2049-12-31 | BC138: 2050-12-31 | BD138: 2051-12-31 | BE138: 2052-12-31 | BF138: 2053-12-31 | BG138: 2054-12-31 | BH138: 2055-12-31 | BI138: 2056-12-31 | BJ138: 2057-12-31
E139: Forecast period flag | G139: flag | M139: =SUM( AA139:BJ139 ) -> 31 | AA139: =IF( AA138 > $F137, 1, 0 ) -> 0 | AB139: 0 | AC139: 0 | AD139: 0 | AE139: 0 | AF139: 1 | AG139: 1 | AH139: 1 | AI139: 1 | AJ139: 1 | AK139: 1 | AL139: 1 | AM139: 1 | AN139: 1 | AO139: 1 | AP139: 1 | AQ139: 1 | AR139: 1 | AS139: 1 | AT139: 1 | AU139: 1 | AV139: 1 | AW139: 1 | AX139: 1 | AY139: 1 | AZ139: 1 | BA139: 1 | BB139: 1 | BC139: 1 | BD139: 1 | BE139: 1 | BF139: 1 | BG139: 1 | BH139: 1 | BI139: 1 | BJ139: 1
B142: H9 flag
E143: =InpS!E$75 -> H9 beginning date | F143: =InpS!F$75 -> 00:00:00 | G143: =InpS!G$75 -> date
E144: =InpS!E$76 -> H9 end date | F144: =InpS!F$76 -> 00:00:00 | G144: =InpS!G$76 -> date
E145: =E$21 -> Model period end | F145: 00:00:00 | G145: date | H145: 00:00:00 | I145: 00:00:00 | J145: 00:00:00 | K145: 00:00:00 | L145: 00:00:00 | M145: 00:00:00 | N145: 00:00:00 | O145: 00:00:00 | P145: 00:00:00 | Q145: 00:00:00 | R145: 00:00:00 | S145: 00:00:00 | T145: 00:00:00 | U145: 00:00:00 | V145: 00:00:00 | W145: 00:00:00 | X145: 00:00:00 | Y145: 00:00:00 | Z145: 00:00:00 | AA145: 2022-12-31 | AB145: 2023-12-31 | AC145: 2024-12-31 | AD145: 2025-12-31 | AE145: 2026-12-31 | AF145: 2027-12-31 | AG145: 2028-12-31 | AH145: 2029-12-31 | AI145: 2030-12-31 | AJ145: 2031-12-31 | AK145: 2032-12-31 | AL145: 2033-12-31 | AM145: 2034-12-31 | AN145: 2035-12-31 | AO145: 2036-12-31 | AP145: 2037-12-31 | AQ145: 2038-12-31 | AR145: 2039-12-31 | AS145: 2040-12-31 | AT145: 2041-12-31 | AU145: 2042-12-31 | AV145: 2043-12-31 | AW145: 2044-12-31 | AX145: 2045-12-31 | AY145: 2046-12-31 | AZ145: 2047-12-31 | BA145: 2048-12-31 | BB145: 2049-12-31 | BC145: 2050-12-31 | BD145: 2051-12-31 | BE145: 2052-12-31 | BF145: 2053-12-31 | BG145: 2054-12-31 | BH145: 2055-12-31 | BI145: 2056-12-31 | BJ145: 2057-12-31
E146: =E$12 -> Model period start | F146: 00:00:00 | G146: date | H146: 00:00:00 | I146: 00:00:00 | J146: 00:00:00 | K146: 00:00:00 | L146: 00:00:00 | M146: 00:00:00 | N146: 00:00:00 | O146: 00:00:00 | P146: 00:00:00 | Q146: 00:00:00 | R146: 00:00:00 | S146: 00:00:00 | T146: 00:00:00 | U146: 00:00:00 | V146: 00:00:00 | W146: 00:00:00 | X146: 00:00:00 | Y146: 00:00:00 | Z146: 00:00:00 | AA146: 2022-01-01 | AB146: 2023-01-01 | AC146: 2024-01-01 | AD146: 2025-01-01 | AE146: 2026-01-01 | AF146: 2027-01-01 | AG146: 2028-01-01 | AH146: 2029-01-01 | AI146: 2030-01-01 | AJ146: 2031-01-01 | AK146: 2032-01-01 | AL146: 2033-01-01 | AM146: 2034-01-01 | AN146: 2035-01-01 | AO146: 2036-01-01 | AP146: 2037-01-01 | AQ146: 2038-01-01 | AR146: 2039-01-01 | AS146: 2040-01-01 | AT146: 2041-01-01 | AU146: 2042-01-01 | AV146: 2043-01-01 | AW146: 2044-01-01 | AX146: 2045-01-01 | AY146: 2046-01-01 | AZ146: 2047-01-01 | BA146: 2048-01-01 | BB146: 2049-01-01 | BC146: 2050-01-01 | BD146: 2051-01-01 | BE146: 2052-01-01 | BF146: 2053-01-01 | BG146: 2054-01-01 | BH146: 2055-01-01 | BI146: 2056-01-01 | BJ146: 2057-01-01
E147: H9 flag | G147: flag | M147: =SUM( AA147:BJ147 ) -> 0 | AA147: =IF( AND( AA145 >= $F143, AA146 <= $F144 ), 1, 0 ) -> 0 | AB147: 0 | AC147: 0 | AD147: 0 | AE147: 0 | AF147: 0 | AG147: 0 | AH147: 0 | AI147: 0 | AJ147: 0 | AK147: 0 | AL147: 0 | AM147: 0 | AN147: 0 | AO147: 0 | AP147: 0 | AQ147: 0 | AR147: 0 | AS147: 0 | AT147: 0 | AU147: 0 | AV147: 0 | AW147: 0 | AX147: 0 | AY147: 0 | AZ147: 0 | BA147: 0 | BB147: 0 | BC147: 0 | BD147: 0 | BE147: 0 | BF147: 0 | BG147: 0 | BH147: 0 | BI147: 0 | BJ147: 0
A151: H10 flag_1
B153: H10 flag
E154: =InpS!E$77 -> H10 beginning date | F154: =InpS!F$77 -> 00:00:00 | G154: =InpS!G$77 -> date
E155: =InpS!E$78 -> H10 end date | F155: =InpS!F$78 -> 00:00:00 | G155: =InpS!G$78 -> date
E156: =E$21 -> Model period end | F156: 00:00:00 | G156: date | H156: 00:00:00 | I156: 00:00:00 | J156: 00:00:00 | K156: 00:00:00 | L156: 00:00:00 | M156: 00:00:00 | N156: 00:00:00 | O156: 00:00:00 | P156: 00:00:00 | Q156: 00:00:00 | R156: 00:00:00 | S156: 00:00:00 | T156: 00:00:00 | U156: 00:00:00 | V156: 00:00:00 | W156: 00:00:00 | X156: 00:00:00 | Y156: 00:00:00 | Z156: 00:00:00 | AA156: 2022-12-31 | AB156: 2023-12-31 | AC156: 2024-12-31 | AD156: 2025-12-31 | AE156: 2026-12-31 | AF156: 2027-12-31 | AG156: 2028-12-31 | AH156: 2029-12-31 | AI156: 2030-12-31 | AJ156: 2031-12-31 | AK156: 2032-12-31 | AL156: 2033-12-31 | AM156: 2034-12-31 | AN156: 2035-12-31 | AO156: 2036-12-31 | AP156: 2037-12-31 | AQ156: 2038-12-31 | AR156: 2039-12-31 | AS156: 2040-12-31 | AT156: 2041-12-31 | AU156: 2042-12-31 | AV156: 2043-12-31 | AW156: 2044-12-31 | AX156: 2045-12-31 | AY156: 2046-12-31 | AZ156: 2047-12-31 | BA156: 2048-12-31 | BB156: 2049-12-31 | BC156: 2050-12-31 | BD156: 2051-12-31 | BE156: 2052-12-31 | BF156: 2053-12-31 | BG156: 2054-12-31 | BH156: 2055-12-31 | BI156: 2056-12-31 | BJ156: 2057-12-31
E157: =E$12 -> Model period start | F157: 00:00:00 | G157: date | H157: 00:00:00 | I157: 00:00:00 | J157: 00:00:00 | K157: 00:00:00 | L157: 00:00:00 | M157: 00:00:00 | N157: 00:00:00 | O157: 00:00:00 | P157: 00:00:00 | Q157: 00:00:00 | R157: 00:00:00 | S157: 00:00:00 | T157: 00:00:00 | U157: 00:00:00 | V157: 00:00:00 | W157: 00:00:00 | X157: 00:00:00 | Y157: 00:00:00 | Z157: 00:00:00 | AA157: 2022-01-01 | AB157: 2023-01-01 | AC157: 2024-01-01 | AD157: 2025-01-01 | AE157: 2026-01-01 | AF157: 2027-01-01 | AG157: 2028-01-01 | AH157: 2029-01-01 | AI157: 2030-01-01 | AJ157: 2031-01-01 | AK157: 2032-01-01 | AL157: 2033-01-01 | AM157: 2034-01-01 | AN157: 2035-01-01 | AO157: 2036-01-01 | AP157: 2037-01-01 | AQ157: 2038-01-01 | AR157: 2039-01-01 | AS157: 2040-01-01 | AT157: 2041-01-01 | AU157: 2042-01-01 | AV157: 2043-01-01 | AW157: 2044-01-01 | AX157: 2045-01-01 | AY157: 2046-01-01 | AZ157: 2047-01-01 | BA157: 2048-01-01 | BB157: 2049-01-01 | BC157: 2050-01-01 | BD157: 2051-01-01 | BE157: 2052-01-01 | BF157: 2053-01-01 | BG157: 2054-01-01 | BH157: 2055-01-01 | BI157: 2056-01-01 | BJ157: 2057-01-01
E158: H10 flag | G158: flag | M158: =SUM( AA158:BJ158 ) -> 0 | AA158: =IF( AND( AA156 >= $F154, AA157 <= $F155 ), 1, 0 ) -> 0 | AB158: 0 | AC158: 0 | AD158: 0 | AE158: 0 | AF158: 0 | AG158: 0 | AH158: 0 | AI158: 0 | AJ158: 0 | AK158: 0 | AL158: 0 | AM158: 0 | AN158: 0 | AO158: 0 | AP158: 0 | AQ158: 0 | AR158: 0 | AS158: 0 | AT158: 0 | AU158: 0 | AV158: 0 | AW158: 0 | AX158: 0 | AY158: 0 | AZ158: 0 | BA158: 0 | BB158: 0 | BC158: 0 | BD158: 0 | BE158: 0 | BF158: 0 | BG158: 0 | BH158: 0 | BI158: 0 | BJ158: 0
A162: H11 flag_1
B164: H11 flag
E165: =InpS!E$79 -> H11 beginning date | F165: =InpS!F$79 -> 00:00:00 | G165: =InpS!G$79 -> date
E166: =InpS!E$80 -> H11 end date | F166: =InpS!F$80 -> 00:00:00 | G166: =InpS!G$80 -> date
E167: =E$21 -> Model period end | F167: 00:00:00 | G167: date | H167: 00:00:00 | I167: 00:00:00 | J167: 00:00:00 | K167: 00:00:00 | L167: 00:00:00 | M167: 00:00:00 | N167: 00:00:00 | O167: 00:00:00 | P167: 00:00:00 | Q167: 00:00:00 | R167: 00:00:00 | S167: 00:00:00 | T167: 00:00:00 | U167: 00:00:00 | V167: 00:00:00 | W167: 00:00:00 | X167: 00:00:00 | Y167: 00:00:00 | Z167: 00:00:00 | AA167: 2022-12-31 | AB167: 2023-12-31 | AC167: 2024-12-31 | AD167: 2025-12-31 | AE167: 2026-12-31 | AF167: 2027-12-31 | AG167: 2028-12-31 | AH167: 2029-12-31 | AI167: 2030-12-31 | AJ167: 2031-12-31 | AK167: 2032-12-31 | AL167: 2033-12-31 | AM167: 2034-12-31 | AN167: 2035-12-31 | AO167: 2036-12-31 | AP167: 2037-12-31 | AQ167: 2038-12-31 | AR167: 2039-12-31 | AS167: 2040-12-31 | AT167: 2041-12-31 | AU167: 2042-12-31 | AV167: 2043-12-31 | AW167: 2044-12-31 | AX167: 2045-12-31 | AY167: 2046-12-31 | AZ167: 2047-12-31 | BA167: 2048-12-31 | BB167: 2049-12-31 | BC167: 2050-12-31 | BD167: 2051-12-31 | BE167: 2052-12-31 | BF167: 2053-12-31 | BG167: 2054-12-31 | BH167: 2055-12-31 | BI167: 2056-12-31 | BJ167: 2057-12-31
E168: =E$12 -> Model period start | F168: 00:00:00 | G168: date | H168: 00:00:00 | I168: 00:00:00 | J168: 00:00:00 | K168: 00:00:00 | L168: 00:00:00 | M168: 00:00:00 | N168: 00:00:00 | O168: 00:00:00 | P168: 00:00:00 | Q168: 00:00:00 | R168: 00:00:00 | S168: 00:00:00 | T168: 00:00:00 | U168: 00:00:00 | V168: 00:00:00 | W168: 00:00:00 | X168: 00:00:00 | Y168: 00:00:00 | Z168: 00:00:00 | AA168: 2022-01-01 | AB168: 2023-01-01 | AC168: 2024-01-01 | AD168: 2025-01-01 | AE168: 2026-01-01 | AF168: 2027-01-01 | AG168: 2028-01-01 | AH168: 2029-01-01 | AI168: 2030-01-01 | AJ168: 2031-01-01 | AK168: 2032-01-01 | AL168: 2033-01-01 | AM168: 2034-01-01 | AN168: 2035-01-01 | AO168: 2036-01-01 | AP168: 2037-01-01 | AQ168: 2038-01-01 | AR168: 2039-01-01 | AS168: 2040-01-01 | AT168: 2041-01-01 | AU168: 2042-01-01 | AV168: 2043-01-01 | AW168: 2044-01-01 | AX168: 2045-01-01 | AY168: 2046-01-01 | AZ168: 2047-01-01 | BA168: 2048-01-01 | BB168: 2049-01-01 | BC168: 2050-01-01 | BD168: 2051-01-01 | BE168: 2052-01-01 | BF168: 2053-01-01 | BG168: 2054-01-01 | BH168: 2055-01-01 | BI168: 2056-01-01 | BJ168: 2057-01-01
E169: H11 flag | G169: flag | M169: =SUM( AA169:BJ169 ) -> 0 | AA169: =IF( AND( AA167 >= $F165, AA168 <= $F166 ), 1, 0 ) -> 0 | AB169: 0 | AC169: 0 | AD169: 0 | AE169: 0 | AF169: 0 | AG169: 0 | AH169: 0 | AI169: 0 | AJ169: 0 | AK169: 0 | AL169: 0 | AM169: 0 | AN169: 0 | AO169: 0 | AP169: 0 | AQ169: 0 | AR169: 0 | AS169: 0 | AT169: 0 | AU169: 0 | AV169: 0 | AW169: 0 | AX169: 0 | AY169: 0 | AZ169: 0 | BA169: 0 | BB169: 0 | BC169: 0 | BD169: 0 | BE169: 0 | BF169: 0 | BG169: 0 | BH169: 0 | BI169: 0 | BJ169: 0
A173: H12 flag_1
B175: H12 flag
E176: =InpS!E$81 -> H12 beginning date | F176: =InpS!F$81 -> 00:00:00 | G176: =InpS!G$81 -> date
E177: =InpS!E$82 -> H12 end date | F177: =InpS!F$82 -> 00:00:00 | G177: =InpS!G$82 -> date
E178: =E$21 -> Model period end | F178: 00:00:00 | G178: date | H178: 00:00:00 | I178: 00:00:00 | J178: 00:00:00 | K178: 00:00:00 | L178: 00:00:00 | M178: 00:00:00 | N178: 00:00:00 | O178: 00:00:00 | P178: 00:00:00 | Q178: 00:00:00 | R178: 00:00:00 | S178: 00:00:00 | T178: 00:00:00 | U178: 00:00:00 | V178: 00:00:00 | W178: 00:00:00 | X178: 00:00:00 | Y178: 00:00:00 | Z178: 00:00:00 | AA178: 2022-12-31 | AB178: 2023-12-31 | AC178: 2024-12-31 | AD178: 2025-12-31 | AE178: 2026-12-31 | AF178: 2027-12-31 | AG178: 2028-12-31 | AH178: 2029-12-31 | AI178: 2030-12-31 | AJ178: 2031-12-31 | AK178: 2032-12-31 | AL178: 2033-12-31 | AM178: 2034-12-31 | AN178: 2035-12-31 | AO178: 2036-12-31 | AP178: 2037-12-31 | AQ178: 2038-12-31 | AR178: 2039-12-31 | AS178: 2040-12-31 | AT178: 2041-12-31 | AU178: 2042-12-31 | AV178: 2043-12-31 | AW178: 2044-12-31 | AX178: 2045-12-31 | AY178: 2046-12-31 | AZ178: 2047-12-31 | BA178: 2048-12-31 | BB178: 2049-12-31 | BC178: 2050-12-31 | BD178: 2051-12-31 | BE178: 2052-12-31 | BF178: 2053-12-31 | BG178: 2054-12-31 | BH178: 2055-12-31 | BI178: 2056-12-31 | BJ178: 2057-12-31
E179: =E$12 -> Model period start | F179: 00:00:00 | G179: date | H179: 00:00:00 | I179: 00:00:00 | J179: 00:00:00 | K179: 00:00:00 | L179: 00:00:00 | M179: 00:00:00 | N179: 00:00:00 | O179: 00:00:00 | P179: 00:00:00 | Q179: 00:00:00 | R179: 00:00:00 | S179: 00:00:00 | T179: 00:00:00 | U179: 00:00:00 | V179: 00:00:00 | W179: 00:00:00 | X179: 00:00:00 | Y179: 00:00:00 | Z179: 00:00:00 | AA179: 2022-01-01 | AB179: 2023-01-01 | AC179: 2024-01-01 | AD179: 2025-01-01 | AE179: 2026-01-01 | AF179: 2027-01-01 | AG179: 2028-01-01 | AH179: 2029-01-01 | AI179: 2030-01-01 | AJ179: 2031-01-01 | AK179: 2032-01-01 | AL179: 2033-01-01 | AM179: 2034-01-01 | AN179: 2035-01-01 | AO179: 2036-01-01 | AP179: 2037-01-01 | AQ179: 2038-01-01 | AR179: 2039-01-01 | AS179: 2040-01-01 | AT179: 2041-01-01 | AU179: 2042-01-01 | AV179: 2043-01-01 | AW179: 2044-01-01 | AX179: 2045-01-01 | AY179: 2046-01-01 | AZ179: 2047-01-01 | BA179: 2048-01-01 | BB179: 2049-01-01 | BC179: 2050-01-01 | BD179: 2051-01-01 | BE179: 2052-01-01 | BF179: 2053-01-01 | BG179: 2054-01-01 | BH179: 2055-01-01 | BI179: 2056-01-01 | BJ179: 2057-01-01
E180: H12 flag | G180: flag | M180: =SUM( AA180:BJ180 ) -> 0 | AA180: =IF( AND( AA178 >= $F176, AA179 <= $F177 ), 1, 0 ) -> 0 | AB180: 0 | AC180: 0 | AD180: 0 | AE180: 0 | AF180: 0 | AG180: 0 | AH180: 0 | AI180: 0 | AJ180: 0 | AK180: 0 | AL180: 0 | AM180: 0 | AN180: 0 | AO180: 0 | AP180: 0 | AQ180: 0 | AR180: 0 | AS180: 0 | AT180: 0 | AU180: 0 | AV180: 0 | AW180: 0 | AX180: 0 | AY180: 0 | AZ180: 0 | BA180: 0 | BB180: 0 | BC180: 0 | BD180: 0 | BE180: 0 | BF180: 0 | BG180: 0 | BH180: 0 | BI180: 0 | BJ180: 0
A184: H13 flag_1
B186: H13 flag
E187: =InpS!E$83 -> H13 beginning date | F187: =InpS!F$83 -> 00:00:00 | G187: =InpS!G$83 -> date
E188: =InpS!E$84 -> H13 end date | F188: =InpS!F$84 -> 00:00:00 | G188: =InpS!G$84 -> date
E189: =E$21 -> Model period end | F189: 00:00:00 | G189: date | H189: 00:00:00 | I189: 00:00:00 | J189: 00:00:00 | K189: 00:00:00 | L189: 00:00:00 | M189: 00:00:00 | N189: 00:00:00 | O189: 00:00:00 | P189: 00:00:00 | Q189: 00:00:00 | R189: 00:00:00 | S189: 00:00:00 | T189: 00:00:00 | U189: 00:00:00 | V189: 00:00:00 | W189: 00:00:00 | X189: 00:00:00 | Y189: 00:00:00 | Z189: 00:00:00 | AA189: 2022-12-31 | AB189: 2023-12-31 | AC189: 2024-12-31 | AD189: 2025-12-31 | AE189: 2026-12-31 | AF189: 2027-12-31 | AG189: 2028-12-31 | AH189: 2029-12-31 | AI189: 2030-12-31 | AJ189: 2031-12-31 | AK189: 2032-12-31 | AL189: 2033-12-31 | AM189: 2034-12-31 | AN189: 2035-12-31 | AO189: 2036-12-31 | AP189: 2037-12-31 | AQ189: 2038-12-31 | AR189: 2039-12-31 | AS189: 2040-12-31 | AT189: 2041-12-31 | AU189: 2042-12-31 | AV189: 2043-12-31 | AW189: 2044-12-31 | AX189: 2045-12-31 | AY189: 2046-12-31 | AZ189: 2047-12-31 | BA189: 2048-12-31 | BB189: 2049-12-31 | BC189: 2050-12-31 | BD189: 2051-12-31 | BE189: 2052-12-31 | BF189: 2053-12-31 | BG189: 2054-12-31 | BH189: 2055-12-31 | BI189: 2056-12-31 | BJ189: 2057-12-31
E190: =E$12 -> Model period start | F190: 00:00:00 | G190: date | H190: 00:00:00 | I190: 00:00:00 | J190: 00:00:00 | K190: 00:00:00 | L190: 00:00:00 | M190: 00:00:00 | N190: 00:00:00 | O190: 00:00:00 | P190: 00:00:00 | Q190: 00:00:00 | R190: 00:00:00 | S190: 00:00:00 | T190: 00:00:00 | U190: 00:00:00 | V190: 00:00:00 | W190: 00:00:00 | X190: 00:00:00 | Y190: 00:00:00 | Z190: 00:00:00 | AA190: 2022-01-01 | AB190: 2023-01-01 | AC190: 2024-01-01 | AD190: 2025-01-01 | AE190: 2026-01-01 | AF190: 2027-01-01 | AG190: 2028-01-01 | AH190: 2029-01-01 | AI190: 2030-01-01 | AJ190: 2031-01-01 | AK190: 2032-01-01 | AL190: 2033-01-01 | AM190: 2034-01-01 | AN190: 2035-01-01 | AO190: 2036-01-01 | AP190: 2037-01-01 | AQ190: 2038-01-01 | AR190: 2039-01-01 | AS190: 2040-01-01 | AT190: 2041-01-01 | AU190: 2042-01-01 | AV190: 2043-01-01 | AW190: 2044-01-01 | AX190: 2045-01-01 | AY190: 2046-01-01 | AZ190: 2047-01-01 | BA190: 2048-01-01 | BB190: 2049-01-01 | BC190: 2050-01-01 | BD190: 2051-01-01 | BE190: 2052-01-01 | BF190: 2053-01-01 | BG190: 2054-01-01 | BH190: 2055-01-01 | BI190: 2056-01-01 | BJ190: 2057-01-01
E191: H13 flag | G191: flag | M191: =SUM( AA191:BJ191 ) -> 0 | AA191: =IF( AND( AA189 >= $F187, AA190 <= $F188 ), 1, 0 ) -> 0 | AB191: 0 | AC191: 0 | AD191: 0 | AE191: 0 | AF191: 0 | AG191: 0 | AH191: 0 | AI191: 0 | AJ191: 0 | AK191: 0 | AL191: 0 | AM191: 0 | AN191: 0 | AO191: 0 | AP191: 0 | AQ191: 0 | AR191: 0 | AS191: 0 | AT191: 0 | AU191: 0 | AV191: 0 | AW191: 0 | AX191: 0 | AY191: 0 | AZ191: 0 | BA191: 0 | BB191: 0 | BC191: 0 | BD191: 0 | BE191: 0 | BF191: 0 | BG191: 0 | BH191: 0 | BI191: 0 | BJ191: 0
A195: Known Yield Per Passenger flag_1
B197: Known Yield Per Passenger flag
E198: =InpS!E$88 -> Known Yield Per Passenger end date | F198: =InpS!F$88 -> 00:00:00 | G198: =InpS!G$88 -> date
E199: =E$12 -> Model period start | F199: 00:00:00 | G199: date | H199: 00:00:00 | I199: 00:00:00 | J199: 00:00:00 | K199: 00:00:00 | L199: 00:00:00 | M199: 00:00:00 | N199: 00:00:00 | O199: 00:00:00 | P199: 00:00:00 | Q199: 00:00:00 | R199: 00:00:00 | S199: 00:00:00 | T199: 00:00:00 | U199: 00:00:00 | V199: 00:00:00 | W199: 00:00:00 | X199: 00:00:00 | Y199: 00:00:00 | Z199: 00:00:00 | AA199: 2022-01-01 | AB199: 2023-01-01 | AC199: 2024-01-01 | AD199: 2025-01-01 | AE199: 2026-01-01 | AF199: 2027-01-01 | AG199: 2028-01-01 | AH199: 2029-01-01 | AI199: 2030-01-01 | AJ199: 2031-01-01 | AK199: 2032-01-01 | AL199: 2033-01-01 | AM199: 2034-01-01 | AN199: 2035-01-01 | AO199: 2036-01-01 | AP199: 2037-01-01 | AQ199: 2038-01-01 | AR199: 2039-01-01 | AS199: 2040-01-01 | AT199: 2041-01-01 | AU199: 2042-01-01 | AV199: 2043-01-01 | AW199: 2044-01-01 | AX199: 2045-01-01 | AY199: 2046-01-01 | AZ199: 2047-01-01 | BA199: 2048-01-01 | BB199: 2049-01-01 | BC199: 2050-01-01 | BD199: 2051-01-01 | BE199: 2052-01-01 | BF199: 2053-01-01 | BG199: 2054-01-01 | BH199: 2055-01-01 | BI199: 2056-01-01 | BJ199: 2057-01-01
E200: Known Yield Per Passenger flag | G200: flag | M200: =SUM( AA200:BJ200 ) -> 0 | AA200: =IF( AA199 >= $F198, 0, 1 ) -> 0 | AB200: 0 | AC200: 0 | AD200: 0 | AE200: 0 | AF200: 0 | AG200: 0 | AH200: 0 | AI200: 0 | AJ200: 0 | AK200: 0 | AL200: 0 | AM200: 0 | AN200: 0 | AO200: 0 | AP200: 0 | AQ200: 0 | AR200: 0 | AS200: 0 | AT200: 0 | AU200: 0 | AV200: 0 | AW200: 0 | AX200: 0 | AY200: 0 | AZ200: 0 | BA200: 0 | BB200: 0 | BC200: 0 | BD200: 0 | BE200: 0 | BF200: 0 | BG200: 0 | BH200: 0 | BI200: 0 | BJ200: 0
A204: Opening balances flag_1
B206: Opening balances flag
E207: =InpS!E$85 -> Opening balances flag date | F207: =InpS!F$85 -> 2026-12-31 | G207: =InpS!G$85 -> date
E208: =E$12 -> Model period start | F208: 00:00:00 | G208: date | H208: 00:00:00 | I208: 00:00:00 | J208: 00:00:00 | K208: 00:00:00 | L208: 00:00:00 | M208: 00:00:00 | N208: 00:00:00 | O208: 00:00:00 | P208: 00:00:00 | Q208: 00:00:00 | R208: 00:00:00 | S208: 00:00:00 | T208: 00:00:00 | U208: 00:00:00 | V208: 00:00:00 | W208: 00:00:00 | X208: 00:00:00 | Y208: 00:00:00 | Z208: 00:00:00 | AA208: 2022-01-01 | AB208: 2023-01-01 | AC208: 2024-01-01 | AD208: 2025-01-01 | AE208: 2026-01-01 | AF208: 2027-01-01 | AG208: 2028-01-01 | AH208: 2029-01-01 | AI208: 2030-01-01 | AJ208: 2031-01-01 | AK208: 2032-01-01 | AL208: 2033-01-01 | AM208: 2034-01-01 | AN208: 2035-01-01 | AO208: 2036-01-01 | AP208: 2037-01-01 | AQ208: 2038-01-01 | AR208: 2039-01-01 | AS208: 2040-01-01 | AT208: 2041-01-01 | AU208: 2042-01-01 | AV208: 2043-01-01 | AW208: 2044-01-01 | AX208: 2045-01-01 | AY208: 2046-01-01 | AZ208: 2047-01-01 | BA208: 2048-01-01 | BB208: 2049-01-01 | BC208: 2050-01-01 | BD208: 2051-01-01 | BE208: 2052-01-01 | BF208: 2053-01-01 | BG208: 2054-01-01 | BH208: 2055-01-01 | BI208: 2056-01-01 | BJ208: 2057-01-01
E209: =E$21 -> Model period end | F209: 00:00:00 | G209: date | H209: 00:00:00 | I209: 00:00:00 | J209: 00:00:00 | K209: 00:00:00 | L209: 00:00:00 | M209: 00:00:00 | N209: 00:00:00 | O209: 00:00:00 | P209: 00:00:00 | Q209: 00:00:00 | R209: 00:00:00 | S209: 00:00:00 | T209: 00:00:00 | U209: 00:00:00 | V209: 00:00:00 | W209: 00:00:00 | X209: 00:00:00 | Y209: 00:00:00 | Z209: 00:00:00 | AA209: 2022-12-31 | AB209: 2023-12-31 | AC209: 2024-12-31 | AD209: 2025-12-31 | AE209: 2026-12-31 | AF209: 2027-12-31 | AG209: 2028-12-31 | AH209: 2029-12-31 | AI209: 2030-12-31 | AJ209: 2031-12-31 | AK209: 2032-12-31 | AL209: 2033-12-31 | AM209: 2034-12-31 | AN209: 2035-12-31 | AO209: 2036-12-31 | AP209: 2037-12-31 | AQ209: 2038-12-31 | AR209: 2039-12-31 | AS209: 2040-12-31 | AT209: 2041-12-31 | AU209: 2042-12-31 | AV209: 2043-12-31 | AW209: 2044-12-31 | AX209: 2045-12-31 | AY209: 2046-12-31 | AZ209: 2047-12-31 | BA209: 2048-12-31 | BB209: 2049-12-31 | BC209: 2050-12-31 | BD209: 2051-12-31 | BE209: 2052-12-31 | BF209: 2053-12-31 | BG209: 2054-12-31 | BH209: 2055-12-31 | BI209: 2056-12-31 | BJ209: 2057-12-31
E210: Opening balances flag | G210: flag | M210: =SUM( AA210:BJ210 ) -> 1 | AA210: =IF( AND( AA208 <= $F207, AA209 >= $F207 ), 1, 0 ) -> 0 | AB210: 0 | AC210: 0 | AD210: 0 | AE210: 1 | AF210: 0 | AG210: 0 | AH210: 0 | AI210: 0 | AJ210: 0 | AK210: 0 | AL210: 0 | AM210: 0 | AN210: 0 | AO210: 0 | AP210: 0 | AQ210: 0 | AR210: 0 | AS210: 0 | AT210: 0 | AU210: 0 | AV210: 0 | AW210: 0 | AX210: 0 | AY210: 0 | AZ210: 0 | BA210: 0 | BB210: 0 | BC210: 0 | BD210: 0 | BE210: 0 | BF210: 0 | BG210: 0 | BH210: 0 | BI210: 0 | BJ210: 0
A214: Q6 flag_1
B216: Q6 flag
E217: =InpS!E$71 -> Q6 date | F217: =InpS!F$71 -> 00:00:00 | G217: =InpS!G$71 -> date
E218: =E$12 -> Model period start | F218: 00:00:00 | G218: date | H218: 00:00:00 | I218: 00:00:00 | J218: 00:00:00 | K218: 00:00:00 | L218: 00:00:00 | M218: 00:00:00 | N218: 00:00:00 | O218: 00:00:00 | P218: 00:00:00 | Q218: 00:00:00 | R218: 00:00:00 | S218: 00:00:00 | T218: 00:00:00 | U218: 00:00:00 | V218: 00:00:00 | W218: 00:00:00 | X218: 00:00:00 | Y218: 00:00:00 | Z218: 00:00:00 | AA218: 2022-01-01 | AB218: 2023-01-01 | AC218: 2024-01-01 | AD218: 2025-01-01 | AE218: 2026-01-01 | AF218: 2027-01-01 | AG218: 2028-01-01 | AH218: 2029-01-01 | AI218: 2030-01-01 | AJ218: 2031-01-01 | AK218: 2032-01-01 | AL218: 2033-01-01 | AM218: 2034-01-01 | AN218: 2035-01-01 | AO218: 2036-01-01 | AP218: 2037-01-01 | AQ218: 2038-01-01 | AR218: 2039-01-01 | AS218: 2040-01-01 | AT218: 2041-01-01 | AU218: 2042-01-01 | AV218: 2043-01-01 | AW218: 2044-01-01 | AX218: 2045-01-01 | AY218: 2046-01-01 | AZ218: 2047-01-01 | BA218: 2048-01-01 | BB218: 2049-01-01 | BC218: 2050-01-01 | BD218: 2051-01-01 | BE218: 2052-01-01 | BF218: 2053-01-01 | BG218: 2054-01-01 | BH218: 2055-01-01 | BI218: 2056-01-01 | BJ218: 2057-01-01
E219: =E$21 -> Model period end | F219: 00:00:00 | G219: date | H219: 00:00:00 | I219: 00:00:00 | J219: 00:00:00 | K219: 00:00:00 | L219: 00:00:00 | M219: 00:00:00 | N219: 00:00:00 | O219: 00:00:00 | P219: 00:00:00 | Q219: 00:00:00 | R219: 00:00:00 | S219: 00:00:00 | T219: 00:00:00 | U219: 00:00:00 | V219: 00:00:00 | W219: 00:00:00 | X219: 00:00:00 | Y219: 00:00:00 | Z219: 00:00:00 | AA219: 2022-12-31 | AB219: 2023-12-31 | AC219: 2024-12-31 | AD219: 2025-12-31 | AE219: 2026-12-31 | AF219: 2027-12-31 | AG219: 2028-12-31 | AH219: 2029-12-31 | AI219: 2030-12-31 | AJ219: 2031-12-31 | AK219: 2032-12-31 | AL219: 2033-12-31 | AM219: 2034-12-31 | AN219: 2035-12-31 | AO219: 2036-12-31 | AP219: 2037-12-31 | AQ219: 2038-12-31 | AR219: 2039-12-31 | AS219: 2040-12-31 | AT219: 2041-12-31 | AU219: 2042-12-31 | AV219: 2043-12-31 | AW219: 2044-12-31 | AX219: 2045-12-31 | AY219: 2046-12-31 | AZ219: 2047-12-31 | BA219: 2048-12-31 | BB219: 2049-12-31 | BC219: 2050-12-31 | BD219: 2051-12-31 | BE219: 2052-12-31 | BF219: 2053-12-31 | BG219: 2054-12-31 | BH219: 2055-12-31 | BI219: 2056-12-31 | BJ219: 2057-12-31
E220: Q6 flag | G220: flag | M220: =SUM( AA220:BJ220 ) -> 0 | AA220: =IF( AND( AA218 <= $F217, AA219 >= $F217 ), 1, 0 ) -> 0 | AB220: 0 | AC220: 0 | AD220: 0 | AE220: 0 | AF220: 0 | AG220: 0 | AH220: 0 | AI220: 0 | AJ220: 0 | AK220: 0 | AL220: 0 | AM220: 0 | AN220: 0 | AO220: 0 | AP220: 0 | AQ220: 0 | AR220: 0 | AS220: 0 | AT220: 0 | AU220: 0 | AV220: 0 | AW220: 0 | AX220: 0 | AY220: 0 | AZ220: 0 | BA220: 0 | BB220: 0 | BC220: 0 | BD220: 0 | BE220: 0 | BF220: 0 | BG220: 0 | BH220: 0 | BI220: 0 | BJ220: 0
A224: Q6+1 flag_1
B226: Q6+1 flag
E227: =InpS!E$72 -> Q6+1 date | F227: =InpS!F$72 -> 00:00:00 | G227: =InpS!G$72 -> date
E228: =E$12 -> Model period start | F228: 00:00:00 | G228: date | H228: 00:00:00 | I228: 00:00:00 | J228: 00:00:00 | K228: 00:00:00 | L228: 00:00:00 | M228: 00:00:00 | N228: 00:00:00 | O228: 00:00:00 | P228: 00:00:00 | Q228: 00:00:00 | R228: 00:00:00 | S228: 00:00:00 | T228: 00:00:00 | U228: 00:00:00 | V228: 00:00:00 | W228: 00:00:00 | X228: 00:00:00 | Y228: 00:00:00 | Z228: 00:00:00 | AA228: 2022-01-01 | AB228: 2023-01-01 | AC228: 2024-01-01 | AD228: 2025-01-01 | AE228: 2026-01-01 | AF228: 2027-01-01 | AG228: 2028-01-01 | AH228: 2029-01-01 | AI228: 2030-01-01 | AJ228: 2031-01-01 | AK228: 2032-01-01 | AL228: 2033-01-01 | AM228: 2034-01-01 | AN228: 2035-01-01 | AO228: 2036-01-01 | AP228: 2037-01-01 | AQ228: 2038-01-01 | AR228: 2039-01-01 | AS228: 2040-01-01 | AT228: 2041-01-01 | AU228: 2042-01-01 | AV228: 2043-01-01 | AW228: 2044-01-01 | AX228: 2045-01-01 | AY228: 2046-01-01 | AZ228: 2047-01-01 | BA228: 2048-01-01 | BB228: 2049-01-01 | BC228: 2050-01-01 | BD228: 2051-01-01 | BE228: 2052-01-01 | BF228: 2053-01-01 | BG228: 2054-01-01 | BH228: 2055-01-01 | BI228: 2056-01-01 | BJ228: 2057-01-01
E229: =E$21 -> Model period end | F229: 00:00:00 | G229: date | H229: 00:00:00 | I229: 00:00:00 | J229: 00:00:00 | K229: 00:00:00 | L229: 00:00:00 | M229: 00:00:00 | N229: 00:00:00 | O229: 00:00:00 | P229: 00:00:00 | Q229: 00:00:00 | R229: 00:00:00 | S229: 00:00:00 | T229: 00:00:00 | U229: 00:00:00 | V229: 00:00:00 | W229: 00:00:00 | X229: 00:00:00 | Y229: 00:00:00 | Z229: 00:00:00 | AA229: 2022-12-31 | AB229: 2023-12-31 | AC229: 2024-12-31 | AD229: 2025-12-31 | AE229: 2026-12-31 | AF229: 2027-12-31 | AG229: 2028-12-31 | AH229: 2029-12-31 | AI229: 2030-12-31 | AJ229: 2031-12-31 | AK229: 2032-12-31 | AL229: 2033-12-31 | AM229: 2034-12-31 | AN229: 2035-12-31 | AO229: 2036-12-31 | AP229: 2037-12-31 | AQ229: 2038-12-31 | AR229: 2039-12-31 | AS229: 2040-12-31 | AT229: 2041-12-31 | AU229: 2042-12-31 | AV229: 2043-12-31 | AW229: 2044-12-31 | AX229: 2045-12-31 | AY229: 2046-12-31 | AZ229: 2047-12-31 | BA229: 2048-12-31 | BB229: 2049-12-31 | BC229: 2050-12-31 | BD229: 2051-12-31 | BE229: 2052-12-31 | BF229: 2053-12-31 | BG229: 2054-12-31 | BH229: 2055-12-31 | BI229: 2056-12-31 | BJ229: 2057-12-31
E230: Q6+1 flag | G230: flag | M230: =SUM( AA230:BJ230 ) -> 0 | AA230: =IF( AND( AA228 <= $F227, AA229 >= $F227 ), 1, 0 ) -> 0 | AB230: 0 | AC230: 0 | AD230: 0 | AE230: 0 | AF230: 0 | AG230: 0 | AH230: 0 | AI230: 0 | AJ230: 0 | AK230: 0 | AL230: 0 | AM230: 0 | AN230: 0 | AO230: 0 | AP230: 0 | AQ230: 0 | AR230: 0 | AS230: 0 | AT230: 0 | AU230: 0 | AV230: 0 | AW230: 0 | AX230: 0 | AY230: 0 | AZ230: 0 | BA230: 0 | BB230: 0 | BC230: 0 | BD230: 0 | BE230: 0 | BF230: 0 | BG230: 0 | BH230: 0 | BI230: 0 | BJ230: 0
A234: iH7 flag_1
B236: iH7 flag
E237: =InpS!E$70 -> iH7 date | F237: =InpS!F$70 -> 00:00:00 | G237: =InpS!G$70 -> date
E238: =E$12 -> Model period start | F238: 00:00:00 | G238: date | H238: 00:00:00 | I238: 00:00:00 | J238: 00:00:00 | K238: 00:00:00 | L238: 00:00:00 | M238: 00:00:00 | N238: 00:00:00 | O238: 00:00:00 | P238: 00:00:00 | Q238: 00:00:00 | R238: 00:00:00 | S238: 00:00:00 | T238: 00:00:00 | U238: 00:00:00 | V238: 00:00:00 | W238: 00:00:00 | X238: 00:00:00 | Y238: 00:00:00 | Z238: 00:00:00 | AA238: 2022-01-01 | AB238: 2023-01-01 | AC238: 2024-01-01 | AD238: 2025-01-01 | AE238: 2026-01-01 | AF238: 2027-01-01 | AG238: 2028-01-01 | AH238: 2029-01-01 | AI238: 2030-01-01 | AJ238: 2031-01-01 | AK238: 2032-01-01 | AL238: 2033-01-01 | AM238: 2034-01-01 | AN238: 2035-01-01 | AO238: 2036-01-01 | AP238: 2037-01-01 | AQ238: 2038-01-01 | AR238: 2039-01-01 | AS238: 2040-01-01 | AT238: 2041-01-01 | AU238: 2042-01-01 | AV238: 2043-01-01 | AW238: 2044-01-01 | AX238: 2045-01-01 | AY238: 2046-01-01 | AZ238: 2047-01-01 | BA238: 2048-01-01 | BB238: 2049-01-01 | BC238: 2050-01-01 | BD238: 2051-01-01 | BE238: 2052-01-01 | BF238: 2053-01-01 | BG238: 2054-01-01 | BH238: 2055-01-01 | BI238: 2056-01-01 | BJ238: 2057-01-01
E239: =E$21 -> Model period end | F239: 00:00:00 | G239: date | H239: 00:00:00 | I239: 00:00:00 | J239: 00:00:00 | K239: 00:00:00 | L239: 00:00:00 | M239: 00:00:00 | N239: 00:00:00 | O239: 00:00:00 | P239: 00:00:00 | Q239: 00:00:00 | R239: 00:00:00 | S239: 00:00:00 | T239: 00:00:00 | U239: 00:00:00 | V239: 00:00:00 | W239: 00:00:00 | X239: 00:00:00 | Y239: 00:00:00 | Z239: 00:00:00 | AA239: 2022-12-31 | AB239: 2023-12-31 | AC239: 2024-12-31 | AD239: 2025-12-31 | AE239: 2026-12-31 | AF239: 2027-12-31 | AG239: 2028-12-31 | AH239: 2029-12-31 | AI239: 2030-12-31 | AJ239: 2031-12-31 | AK239: 2032-12-31 | AL239: 2033-12-31 | AM239: 2034-12-31 | AN239: 2035-12-31 | AO239: 2036-12-31 | AP239: 2037-12-31 | AQ239: 2038-12-31 | AR239: 2039-12-31 | AS239: 2040-12-31 | AT239: 2041-12-31 | AU239: 2042-12-31 | AV239: 2043-12-31 | AW239: 2044-12-31 | AX239: 2045-12-31 | AY239: 2046-12-31 | AZ239: 2047-12-31 | BA239: 2048-12-31 | BB239: 2049-12-31 | BC239: 2050-12-31 | BD239: 2051-12-31 | BE239: 2052-12-31 | BF239: 2053-12-31 | BG239: 2054-12-31 | BH239: 2055-12-31 | BI239: 2056-12-31 | BJ239: 2057-12-31
E240: iH7 flag | G240: flag | M240: =SUM( AA240:BJ240 ) -> 0 | AA240: =IF( AND( AA238 <= $F237, AA239 >= $F237 ), 1, 0 ) -> 0 | AB240: 0 | AC240: 0 | AD240: 0 | AE240: 0 | AF240: 0 | AG240: 0 | AH240: 0 | AI240: 0 | AJ240: 0 | AK240: 0 | AL240: 0 | AM240: 0 | AN240: 0 | AO240: 0 | AP240: 0 | AQ240: 0 | AR240: 0 | AS240: 0 | AT240: 0 | AU240: 0 | AV240: 0 | AW240: 0 | AX240: 0 | AY240: 0 | AZ240: 0 | BA240: 0 | BB240: 0 | BC240: 0 | BD240: 0 | BE240: 0 | BF240: 0 | BG240: 0 | BH240: 0 | BI240: 0 | BJ240: 0
A244: H7 flag_1
B246: H7 flag
E247: =InpS!E$73 -> H8 Period Start flag date | F247: =InpS!F$73 -> 2027-01-01 | G247: =InpS!G$73 -> date
E248: =E$12 -> Model period start | F248: 00:00:00 | G248: date | H248: 00:00:00 | I248: 00:00:00 | J248: 00:00:00 | K248: 00:00:00 | L248: 00:00:00 | M248: 00:00:00 | N248: 00:00:00 | O248: 00:00:00 | P248: 00:00:00 | Q248: 00:00:00 | R248: 00:00:00 | S248: 00:00:00 | T248: 00:00:00 | U248: 00:00:00 | V248: 00:00:00 | W248: 00:00:00 | X248: 00:00:00 | Y248: 00:00:00 | Z248: 00:00:00 | AA248: 2022-01-01 | AB248: 2023-01-01 | AC248: 2024-01-01 | AD248: 2025-01-01 | AE248: 2026-01-01 | AF248: 2027-01-01 | AG248: 2028-01-01 | AH248: 2029-01-01 | AI248: 2030-01-01 | AJ248: 2031-01-01 | AK248: 2032-01-01 | AL248: 2033-01-01 | AM248: 2034-01-01 | AN248: 2035-01-01 | AO248: 2036-01-01 | AP248: 2037-01-01 | AQ248: 2038-01-01 | AR248: 2039-01-01 | AS248: 2040-01-01 | AT248: 2041-01-01 | AU248: 2042-01-01 | AV248: 2043-01-01 | AW248: 2044-01-01 | AX248: 2045-01-01 | AY248: 2046-01-01 | AZ248: 2047-01-01 | BA248: 2048-01-01 | BB248: 2049-01-01 | BC248: 2050-01-01 | BD248: 2051-01-01 | BE248: 2052-01-01 | BF248: 2053-01-01 | BG248: 2054-01-01 | BH248: 2055-01-01 | BI248: 2056-01-01 | BJ248: 2057-01-01
E249: H7 flag | G249: flag | M249: =SUM( AA249:BJ249 ) -> 5 | AA249: =IF( AA248 < $F247, 1, 0 ) -> 1 | AB249: 1 | AC249: 1 | AD249: 1 | AE249: 1 | AF249: 0 | AG249: 0 | AH249: 0 | AI249: 0 | AJ249: 0 | AK249: 0 | AL249: 0 | AM249: 0 | AN249: 0 | AO249: 0 | AP249: 0 | AQ249: 0 | AR249: 0 | AS249: 0 | AT249: 0 | AU249: 0 | AV249: 0 | AW249: 0 | AX249: 0 | AY249: 0 | AZ249: 0 | BA249: 0 | BB249: 0 | BC249: 0 | BD249: 0 | BE249: 0 | BF249: 0 | BG249: 0 | BH249: 0 | BI249: 0 | BJ249: 0
A253: H8 Period Start flag_1
B255: H8 Period Start flag
E256: =InpS!E$73 -> H8 Period Start flag date | F256: =InpS!F$73 -> 2027-01-01 | G256: =InpS!G$73 -> date
E257: =E$12 -> Model period start | F257: 00:00:00 | G257: date | H257: 00:00:00 | I257: 00:00:00 | J257: 00:00:00 | K257: 00:00:00 | L257: 00:00:00 | M257: 00:00:00 | N257: 00:00:00 | O257: 00:00:00 | P257: 00:00:00 | Q257: 00:00:00 | R257: 00:00:00 | S257: 00:00:00 | T257: 00:00:00 | U257: 00:00:00 | V257: 00:00:00 | W257: 00:00:00 | X257: 00:00:00 | Y257: 00:00:00 | Z257: 00:00:00 | AA257: 2022-01-01 | AB257: 2023-01-01 | AC257: 2024-01-01 | AD257: 2025-01-01 | AE257: 2026-01-01 | AF257: 2027-01-01 | AG257: 2028-01-01 | AH257: 2029-01-01 | AI257: 2030-01-01 | AJ257: 2031-01-01 | AK257: 2032-01-01 | AL257: 2033-01-01 | AM257: 2034-01-01 | AN257: 2035-01-01 | AO257: 2036-01-01 | AP257: 2037-01-01 | AQ257: 2038-01-01 | AR257: 2039-01-01 | AS257: 2040-01-01 | AT257: 2041-01-01 | AU257: 2042-01-01 | AV257: 2043-01-01 | AW257: 2044-01-01 | AX257: 2045-01-01 | AY257: 2046-01-01 | AZ257: 2047-01-01 | BA257: 2048-01-01 | BB257: 2049-01-01 | BC257: 2050-01-01 | BD257: 2051-01-01 | BE257: 2052-01-01 | BF257: 2053-01-01 | BG257: 2054-01-01 | BH257: 2055-01-01 | BI257: 2056-01-01 | BJ257: 2057-01-01
E258: =E$21 -> Model period end | F258: 00:00:00 | G258: date | H258: 00:00:00 | I258: 00:00:00 | J258: 00:00:00 | K258: 00:00:00 | L258: 00:00:00 | M258: 00:00:00 | N258: 00:00:00 | O258: 00:00:00 | P258: 00:00:00 | Q258: 00:00:00 | R258: 00:00:00 | S258: 00:00:00 | T258: 00:00:00 | U258: 00:00:00 | V258: 00:00:00 | W258: 00:00:00 | X258: 00:00:00 | Y258: 00:00:00 | Z258: 00:00:00 | AA258: 2022-12-31 | AB258: 2023-12-31 | AC258: 2024-12-31 | AD258: 2025-12-31 | AE258: 2026-12-31 | AF258: 2027-12-31 | AG258: 2028-12-31 | AH258: 2029-12-31 | AI258: 2030-12-31 | AJ258: 2031-12-31 | AK258: 2032-12-31 | AL258: 2033-12-31 | AM258: 2034-12-31 | AN258: 2035-12-31 | AO258: 2036-12-31 | AP258: 2037-12-31 | AQ258: 2038-12-31 | AR258: 2039-12-31 | AS258: 2040-12-31 | AT258: 2041-12-31 | AU258: 2042-12-31 | AV258: 2043-12-31 | AW258: 2044-12-31 | AX258: 2045-12-31 | AY258: 2046-12-31 | AZ258: 2047-12-31 | BA258: 2048-12-31 | BB258: 2049-12-31 | BC258: 2050-12-31 | BD258: 2051-12-31 | BE258: 2052-12-31 | BF258: 2053-12-31 | BG258: 2054-12-31 | BH258: 2055-12-31 | BI258: 2056-12-31 | BJ258: 2057-12-31
E259: H8 Period Start flag | G259: flag | M259: =SUM( AA259:BJ259 ) -> 1 | AA259: =IF( AND( AA257 <= $F256, AA258 >= $F256 ), 1, 0 ) -> 0 | AB259: 0 | AC259: 0 | AD259: 0 | AE259: 0 | AF259: 1 | AG259: 0 | AH259: 0 | AI259: 0 | AJ259: 0 | AK259: 0 | AL259: 0 | AM259: 0 | AN259: 0 | AO259: 0 | AP259: 0 | AQ259: 0 | AR259: 0 | AS259: 0 | AT259: 0 | AU259: 0 | AV259: 0 | AW259: 0 | AX259: 0 | AY259: 0 | AZ259: 0 | BA259: 0 | BB259: 0 | BC259: 0 | BD259: 0 | BE259: 0 | BF259: 0 | BG259: 0 | BH259: 0 | BI259: 0 | BJ259: 0
A263: H8 Period End flag_1
B265: H8 Period End flag
E266: =InpS!E$74 -> H8 Period End date | F266: =InpS!F$74 -> 2031-12-31 | G266: =InpS!G$74 -> date
E267: =E$12 -> Model period start | F267: 00:00:00 | G267: date | H267: 00:00:00 | I267: 00:00:00 | J267: 00:00:00 | K267: 00:00:00 | L267: 00:00:00 | M267: 00:00:00 | N267: 00:00:00 | O267: 00:00:00 | P267: 00:00:00 | Q267: 00:00:00 | R267: 00:00:00 | S267: 00:00:00 | T267: 00:00:00 | U267: 00:00:00 | V267: 00:00:00 | W267: 00:00:00 | X267: 00:00:00 | Y267: 00:00:00 | Z267: 00:00:00 | AA267: 2022-01-01 | AB267: 2023-01-01 | AC267: 2024-01-01 | AD267: 2025-01-01 | AE267: 2026-01-01 | AF267: 2027-01-01 | AG267: 2028-01-01 | AH267: 2029-01-01 | AI267: 2030-01-01 | AJ267: 2031-01-01 | AK267: 2032-01-01 | AL267: 2033-01-01 | AM267: 2034-01-01 | AN267: 2035-01-01 | AO267: 2036-01-01 | AP267: 2037-01-01 | AQ267: 2038-01-01 | AR267: 2039-01-01 | AS267: 2040-01-01 | AT267: 2041-01-01 | AU267: 2042-01-01 | AV267: 2043-01-01 | AW267: 2044-01-01 | AX267: 2045-01-01 | AY267: 2046-01-01 | AZ267: 2047-01-01 | BA267: 2048-01-01 | BB267: 2049-01-01 | BC267: 2050-01-01 | BD267: 2051-01-01 | BE267: 2052-01-01 | BF267: 2053-01-01 | BG267: 2054-01-01 | BH267: 2055-01-01 | BI267: 2056-01-01 | BJ267: 2057-01-01
E268: =E$21 -> Model period end | F268: 00:00:00 | G268: date | H268: 00:00:00 | I268: 00:00:00 | J268: 00:00:00 | K268: 00:00:00 | L268: 00:00:00 | M268: 00:00:00 | N268: 00:00:00 | O268: 00:00:00 | P268: 00:00:00 | Q268: 00:00:00 | R268: 00:00:00 | S268: 00:00:00 | T268: 00:00:00 | U268: 00:00:00 | V268: 00:00:00 | W268: 00:00:00 | X268: 00:00:00 | Y268: 00:00:00 | Z268: 00:00:00 | AA268: 2022-12-31 | AB268: 2023-12-31 | AC268: 2024-12-31 | AD268: 2025-12-31 | AE268: 2026-12-31 | AF268: 2027-12-31 | AG268: 2028-12-31 | AH268: 2029-12-31 | AI268: 2030-12-31 | AJ268: 2031-12-31 | AK268: 2032-12-31 | AL268: 2033-12-31 | AM268: 2034-12-31 | AN268: 2035-12-31 | AO268: 2036-12-31 | AP268: 2037-12-31 | AQ268: 2038-12-31 | AR268: 2039-12-31 | AS268: 2040-12-31 | AT268: 2041-12-31 | AU268: 2042-12-31 | AV268: 2043-12-31 | AW268: 2044-12-31 | AX268: 2045-12-31 | AY268: 2046-12-31 | AZ268: 2047-12-31 | BA268: 2048-12-31 | BB268: 2049-12-31 | BC268: 2050-12-31 | BD268: 2051-12-31 | BE268: 2052-12-31 | BF268: 2053-12-31 | BG268: 2054-12-31 | BH268: 2055-12-31 | BI268: 2056-12-31 | BJ268: 2057-12-31
E269: H8 Period End flag | G269: flag | M269: =SUM( AA269:BJ269 ) -> 1 | AA269: =IF( AND( AA267 <= $F266, AA268 >= $F266 ), 1, 0 ) -> 0 | AB269: 0 | AC269: 0 | AD269: 0 | AE269: 0 | AF269: 0 | AG269: 0 | AH269: 0 | AI269: 0 | AJ269: 1 | AK269: 0 | AL269: 0 | AM269: 0 | AN269: 0 | AO269: 0 | AP269: 0 | AQ269: 0 | AR269: 0 | AS269: 0 | AT269: 0 | AU269: 0 | AV269: 0 | AW269: 0 | AX269: 0 | AY269: 0 | AZ269: 0 | BA269: 0 | BB269: 0 | BC269: 0 | BD269: 0 | BE269: 0 | BF269: 0 | BG269: 0 | BH269: 0 | BI269: 0 | BJ269: 0
A273: Expansion phase
B275: Expansion weighting
E276: =InpS!E$185 -> Expansion phase operation date (Phase1) | F276: =InpS!F$185 -> 0 | G276: =InpS!G$185 -> 0
E277: =InpS!E$186 -> Expansion phase operation date (Phase2) | F277: =InpS!F$186 -> 0 | G277: =InpS!G$186 -> 0
E278: =InpS!E$187 -> Expansion phase operation date (Phase3) | F278: =InpS!F$187 -> 0 | G278: =InpS!G$187 -> 0
E279: =InpS!E$188 -> Expansion phase operation date (Phase4) | F279: =InpS!F$188 -> 0 | G279: =InpS!G$188 -> 0
E280: =InpS!E$189 -> Expansion phase operation date (Phase5) | F280: =InpS!F$189 -> 0 | G280: =InpS!G$189 -> 0
E281: =E$21 -> Model period end | F281: 00:00:00 | G281: date | H281: 00:00:00 | I281: 00:00:00 | J281: 00:00:00 | K281: 00:00:00 | L281: 00:00:00 | M281: 00:00:00 | N281: 00:00:00 | O281: 00:00:00 | P281: 00:00:00 | Q281: 00:00:00 | R281: 00:00:00 | S281: 00:00:00 | T281: 00:00:00 | U281: 00:00:00 | V281: 00:00:00 | W281: 00:00:00 | X281: 00:00:00 | Y281: 00:00:00 | Z281: 00:00:00 | AA281: 2022-12-31 | AB281: 2023-12-31 | AC281: 2024-12-31 | AD281: 2025-12-31 | AE281: 2026-12-31 | AF281: 2027-12-31 | AG281: 2028-12-31 | AH281: 2029-12-31 | AI281: 2030-12-31 | AJ281: 2031-12-31 | AK281: 2032-12-31 | AL281: 2033-12-31 | AM281: 2034-12-31 | AN281: 2035-12-31 | AO281: 2036-12-31 | AP281: 2037-12-31 | AQ281: 2038-12-31 | AR281: 2039-12-31 | AS281: 2040-12-31 | AT281: 2041-12-31 | AU281: 2042-12-31 | AV281: 2043-12-31 | AW281: 2044-12-31 | AX281: 2045-12-31 | AY281: 2046-12-31 | AZ281: 2047-12-31 | BA281: 2048-12-31 | BB281: 2049-12-31 | BC281: 2050-12-31 | BD281: 2051-12-31 | BE281: 2052-12-31 | BF281: 2053-12-31 | BG281: 2054-12-31 | BH281: 2055-12-31 | BI281: 2056-12-31 | BJ281: 2057-12-31
E282: =E$12 -> Model period start | F282: 00:00:00 | G282: date | H282: 00:00:00 | I282: 00:00:00 | J282: 00:00:00 | K282: 00:00:00 | L282: 00:00:00 | M282: 00:00:00 | N282: 00:00:00 | O282: 00:00:00 | P282: 00:00:00 | Q282: 00:00:00 | R282: 00:00:00 | S282: 00:00:00 | T282: 00:00:00 | U282: 00:00:00 | V282: 00:00:00 | W282: 00:00:00 | X282: 00:00:00 | Y282: 00:00:00 | Z282: 00:00:00 | AA282: 2022-01-01 | AB282: 2023-01-01 | AC282: 2024-01-01 | AD282: 2025-01-01 | AE282: 2026-01-01 | AF282: 2027-01-01 | AG282: 2028-01-01 | AH282: 2029-01-01 | AI282: 2030-01-01 | AJ282: 2031-01-01 | AK282: 2032-01-01 | AL282: 2033-01-01 | AM282: 2034-01-01 | AN282: 2035-01-01 | AO282: 2036-01-01 | AP282: 2037-01-01 | AQ282: 2038-01-01 | AR282: 2039-01-01 | AS282: 2040-01-01 | AT282: 2041-01-01 | AU282: 2042-01-01 | AV282: 2043-01-01 | AW282: 2044-01-01 | AX282: 2045-01-01 | AY282: 2046-01-01 | AZ282: 2047-01-01 | BA282: 2048-01-01 | BB282: 2049-01-01 | BC282: 2050-01-01 | BD282: 2051-01-01 | BE282: 2052-01-01 | BF282: 2053-01-01 | BG282: 2054-01-01 | BH282: 2055-01-01 | BI282: 2056-01-01 | BJ282: 2057-01-01
E283: Expansion weighting (Phase1) | G283: % | AA283: =MAX( 0, AA$281 - MAX( AA$282, $F276 ) ) / ( AA$281 - AA$282 ) -> 1 | AB283: 1 | AC283: 1 | AD283: 1 | AE283: 1 | AF283: 1 | AG283: 1 | AH283: 1 | AI283: 1 | AJ283: 1 | AK283: 1 | AL283: 1 | AM283: 1 | AN283: 1 | AO283: 1 | AP283: 1 | AQ283: 1 | AR283: 1 | AS283: 1 | AT283: 1 | AU283: 1 | AV283: 1 | AW283: 1 | AX283: 1 | AY283: 1 | AZ283: 1 | BA283: 1 | BB283: 1 | BC283: 1 | BD283: 1 | BE283: 1 | BF283: 1 | BG283: 1 | BH283: 1 | BI283: 1 | BJ283: 1
E284: Expansion weighting (Phase2) | G284: % | AA284: 1 | AB284: 1 | AC284: 1 | AD284: 1 | AE284: 1 | AF284: 1 | AG284: 1 | AH284: 1 | AI284: 1 | AJ284: 1 | AK284: 1 | AL284: 1 | AM284: 1 | AN284: 1 | AO284: 1 | AP284: 1 | AQ284: 1 | AR284: 1 | AS284: 1 | AT284: 1 | AU284: 1 | AV284: 1 | AW284: 1 | AX284: 1 | AY284: 1 | AZ284: 1 | BA284: 1 | BB284: 1 | BC284: 1 | BD284: 1 | BE284: 1 | BF284: 1 | BG284: 1 | BH284: 1 | BI284: 1 | BJ284: 1
E285: Expansion weighting (Phase3) | G285: % | AA285: 1 | AB285: 1 | AC285: 1 | AD285: 1 | AE285: 1 | AF285: 1 | AG285: 1 | AH285: 1 | AI285: 1 | AJ285: 1 | AK285: 1 | AL285: 1 | AM285: 1 | AN285: 1 | AO285: 1 | AP285: 1 | AQ285: 1 | AR285: 1 | AS285: 1 | AT285: 1 | AU285: 1 | AV285: 1 | AW285: 1 | AX285: 1 | AY285: 1 | AZ285: 1 | BA285: 1 | BB285: 1 | BC285: 1 | BD285: 1 | BE285: 1 | BF285: 1 | BG285: 1 | BH285: 1 | BI285: 1 | BJ285: 1
E286: Expansion weighting (Phase4) | G286: % | AA286: 1 | AB286: 1 | AC286: 1 | AD286: 1 | AE286: 1 | AF286: 1 | AG286: 1 | AH286: 1 | AI286: 1 | AJ286: 1 | AK286: 1 | AL286: 1 | AM286: 1 | AN286: 1 | AO286: 1 | AP286: 1 | AQ286: 1 | AR286: 1 | AS286: 1 | AT286: 1 | AU286: 1 | AV286: 1 | AW286: 1 | AX286: 1 | AY286: 1 | AZ286: 1 | BA286: 1 | BB286: 1 | BC286: 1 | BD286: 1 | BE286: 1 | BF286: 1 | BG286: 1 | BH286: 1 | BI286: 1 | BJ286: 1
E287: Expansion weighting (Phase5) | G287: % | AA287: 1 | AB287: 1 | AC287: 1 | AD287: 1 | AE287: 1 | AF287: 1 | AG287: 1 | AH287: 1 | AI287: 1 | AJ287: 1 | AK287: 1 | AL287: 1 | AM287: 1 | AN287: 1 | AO287: 1 | AP287: 1 | AQ287: 1 | AR287: 1 | AS287: 1 | AT287: 1 | AU287: 1 | AV287: 1 | AW287: 1 | AX287: 1 | AY287: 1 | AZ287: 1 | BA287: 1 | BB287: 1 | BC287: 1 | BD287: 1 | BE287: 1 | BF287: 1 | BG287: 1 | BH287: 1 | BI287: 1 | BJ287: 1
A291: END

Sheet Unallocated (hidden)
A1: =RIGHT(CELL("filename", A1), LEN(CELL("filename", A1)) - SEARCH("]", CELL("filename", A1))) -> Unallocated | F1: =HYPERLINK("#Contents!A1","Go to contents") -> Go to contents
E2: Model period end | F2: ='Model Checks and Alerts'!F26 -> 0 | G2: Error chks | AA2: =C_Time!AA$21 -> 2022-12-31 | AB2: =C_Time!AB$21 -> 2023-12-31 | AC2: =C_Time!AC$21 -> 2024-12-31 | AD2: =C_Time!AD$21 -> 2025-12-31 | AE2: =C_Time!AE$21 -> 2026-12-31 | AF2: =C_Time!AF$21 -> 2027-12-31 | AG2: =C_Time!AG$21 -> 2028-12-31 | AH2: =C_Time!AH$21 -> 2029-12-31 | AI2: =C_Time!AI$21 -> 2030-12-31 | AJ2: =C_Time!AJ$21 -> 2031-12-31 | AK2: =C_Time!AK$21 -> 2032-12-31 | AL2: =C_Time!AL$21 -> 2033-12-31 | AM2: =C_Time!AM$21 -> 2034-12-31 | AN2: =C_Time!AN$21 -> 2035-12-31 | AO2: =C_Time!AO$21 -> 2036-12-31 | AP2: =C_Time!AP$21 -> 2037-12-31 | AQ2: =C_Time!AQ$21 -> 2038-12-31 | AR2: =C_Time!AR$21 -> 2039-12-31 | AS2: =C_Time!AS$21 -> 2040-12-31 | AT2: =C_Time!AT$21 -> 2041-12-31 | AU2: =C_Time!AU$21 -> 2042-12-31 | AV2: =C_Time!AV$21 -> 2043-12-31 | AW2: =C_Time!AW$21 -> 2044-12-31 | AX2: =C_Time!AX$21 -> 2045-12-31 | AY2: =C_Time!AY$21 -> 2046-12-31 | AZ2: =C_Time!AZ$21 -> 2047-12-31 | BA2: =C_Time!BA$21 -> 2048-12-31 | BB2: =C_Time!BB$21 -> 2049-12-31 | BC2: =C_Time!BC$21 -> 2050-12-31 | BD2: =C_Time!BD$21 -> 2051-12-31 | BE2: =C_Time!BE$21 -> 2052-12-31 | BF2: =C_Time!BF$21 -> 2053-12-31 | BG2: =C_Time!BG$21 -> 2054-12-31 | BH2: =C_Time!BH$21 -> 2055-12-31 | BI2: =C_Time!BI$21 -> 2056-12-31 | BJ2: =C_Time!BJ$21 -> 2057-12-31
E3: Timeline label | F3: ='Model Checks and Alerts'!F168 -> 9 | G3: Alerts | AA3: =C_Time!AA$26 -> H7 | AB3: =C_Time!AB$26 -> H7 | AC3: =C_Time!AC$26 -> H7 | AD3: =C_Time!AD$26 -> H7 | AE3: =C_Time!AE$26 -> H7 | AF3: =C_Time!AF$26 -> H8 | AG3: =C_Time!AG$26 -> H8 | AH3: =C_Time!AH$26 -> H8 | AI3: =C_Time!AI$26 -> H8 | AJ3: =C_Time!AJ$26 -> H8 | AK3: =C_Time!AK$26 -> H9 | AL3: =C_Time!AL$26 -> H9 | AM3: =C_Time!AM$26 -> H9 | AN3: =C_Time!AN$26 -> H9 | AO3: =C_Time!AO$26 -> H9 | AP3: =C_Time!AP$26 -> H10 | AQ3: =C_Time!AQ$26 -> H10 | AR3: =C_Time!AR$26 -> H10 | AS3: =C_Time!AS$26 -> H10 | AT3: =C_Time!AT$26 -> H10 | AU3: =C_Time!AU$26 -> H11 | AV3: =C_Time!AV$26 -> H11 | AW3: =C_Time!AW$26 -> H11 | AX3: =C_Time!AX$26 -> H11 | AY3: =C_Time!AY$26 -> H11 | AZ3: =C_Time!AZ$26 -> H12 | BA3: =C_Time!BA$26 -> H12 | BB3: =C_Time!BB$26 -> H12 | BC3: =C_Time!BC$26 -> H12 | BD3: =C_Time!BD$26 -> H12 | BE3: =C_Time!BE$26 -> H12 | BF3: =C_Time!BF$26 -> H12 | BG3: =C_Time!BG$26 -> H12 | BH3: =C_Time!BH$26 -> H12 | BI3: =C_Time!BI$26 -> H12 | BJ3: =C_Time!BJ$26 -> H12
E4: Financial year ending | AA4: =C_Time!AA$30 -> 1 | AB4: =C_Time!AB$30 -> 2 | AC4: =C_Time!AC$30 -> 3 | AD4: =C_Time!AD$30 -> 4 | AE4: =C_Time!AE$30 -> 5 | AF4: =C_Time!AF$30 -> 6 | AG4: =C_Time!AG$30 -> 7 | AH4: =C_Time!AH$30 -> 8 | AI4: =C_Time!AI$30 -> 9 | AJ4: =C_Time!AJ$30 -> 10 | AK4: =C_Time!AK$30 -> 11 | AL4: =C_Time!AL$30 -> 12 | AM4: =C_Time!AM$30 -> 13 | AN4: =C_Time!AN$30 -> 14 | AO4: =C_Time!AO$30 -> 15 | AP4: =C_Time!AP$30 -> 16 | AQ4: =C_Time!AQ$30 -> 17 | AR4: =C_Time!AR$30 -> 18 | AS4: =C_Time!AS$30 -> 19 | AT4: =C_Time!AT$30 -> 20 | AU4: =C_Time!AU$30 -> 21 | AV4: =C_Time!AV$30 -> 22 | AW4: =C_Time!AW$30 -> 23 | AX4: =C_Time!AX$30 -> 24 | AY4: =C_Time!AY$30 -> 25 | AZ4: =C_Time!AZ$30 -> 26 | BA4: =C_Time!BA$30 -> 27 | BB4: =C_Time!BB$30 -> 28 | BC4: =C_Time!BC$30 -> 29 | BD4: =C_Time!BD$30 -> 30 | BE4: =C_Time!BE$30 -> 31 | BF4: =C_Time!BF$30 -> 32 | BG4: =C_Time!BG$30 -> 33 | BH4: =C_Time!BH$30 -> 34 | BI4: =C_Time!BI$30 -> 35 | BJ4: =C_Time!BJ$30 -> 36
E5: Period number | F5: Constant | G5: Unit | H5: Notes | I5: Data Source | K5: Confidential Status | M5: Total
A9: END

Sheet C_Index
A1: =RIGHT(CELL("filename", A1), LEN(CELL("filename", A1)) - SEARCH("]", CELL("filename", A1))) -> C_Index | F1: =HYPERLINK("#Contents!A1","Go to contents") -> Go to contents
E2: Model period end | F2: ='Model Checks and Alerts'!F26 -> 0 | G2: Error chks | AA2: =C_Time!AA$21 -> 2022-12-31 | AB2: =C_Time!AB$21 -> 2023-12-31 | AC2: =C_Time!AC$21 -> 2024-12-31 | AD2: =C_Time!AD$21 -> 2025-12-31 | AE2: =C_Time!AE$21 -> 2026-12-31 | AF2: =C_Time!AF$21 -> 2027-12-31 | AG2: =C_Time!AG$21 -> 2028-12-31 | AH2: =C_Time!AH$21 -> 2029-12-31 | AI2: =C_Time!AI$21 -> 2030-12-31 | AJ2: =C_Time!AJ$21 -> 2031-12-31 | AK2: =C_Time!AK$21 -> 2032-12-31 | AL2: =C_Time!AL$21 -> 2033-12-31 | AM2: =C_Time!AM$21 -> 2034-12-31 | AN2: =C_Time!AN$21 -> 2035-12-31 | AO2: =C_Time!AO$21 -> 2036-12-31 | AP2: =C_Time!AP$21 -> 2037-12-31 | AQ2: =C_Time!AQ$21 -> 2038-12-31 | AR2: =C_Time!AR$21 -> 2039-12-31 | AS2: =C_Time!AS$21 -> 2040-12-31 | AT2: =C_Time!AT$21 -> 2041-12-31 | AU2: =C_Time!AU$21 -> 2042-12-31 | AV2: =C_Time!AV$21 -> 2043-12-31 | AW2: =C_Time!AW$21 -> 2044-12-31 | AX2: =C_Time!AX$21 -> 2045-12-31 | AY2: =C_Time!AY$21 -> 2046-12-31 | AZ2: =C_Time!AZ$21 -> 2047-12-31 | BA2: =C_Time!BA$21 -> 2048-12-31 | BB2: =C_Time!BB$21 -> 2049-12-31 | BC2: =C_Time!BC$21 -> 2050-12-31 | BD2: =C_Time!BD$21 -> 2051-12-31 | BE2: =C_Time!BE$21 -> 2052-12-31 | BF2: =C_Time!BF$21 -> 2053-12-31 | BG2: =C_Time!BG$21 -> 2054-12-31 | BH2: =C_Time!BH$21 -> 2055-12-31 | BI2: =C_Time!BI$21 -> 2056-12-31 | BJ2: =C_Time!BJ$21 -> 2057-12-31
E3: Timeline label | F3: ='Model Checks and Alerts'!F168 -> 9 | G3: Alerts | AA3: =C_Time!AA$26 -> H7 | AB3: =C_Time!AB$26 -> H7 | AC3: =C_Time!AC$26 -> H7 | AD3: =C_Time!AD$26 -> H7 | AE3: =C_Time!AE$26 -> H7 | AF3: =C_Time!AF$26 -> H8 | AG3: =C_Time!AG$26 -> H8 | AH3: =C_Time!AH$26 -> H8 | AI3: =C_Time!AI$26 -> H8 | AJ3: =C_Time!AJ$26 -> H8 | AK3: =C_Time!AK$26 -> H9 | AL3: =C_Time!AL$26 -> H9 | AM3: =C_Time!AM$26 -> H9 | AN3: =C_Time!AN$26 -> H9 | AO3: =C_Time!AO$26 -> H9 | AP3: =C_Time!AP$26 -> H10 | AQ3: =C_Time!AQ$26 -> H10 | AR3: =C_Time!AR$26 -> H10 | AS3: =C_Time!AS$26 -> H10 | AT3: =C_Time!AT$26 -> H10 | AU3: =C_Time!AU$26 -> H11 | AV3: =C_Time!AV$26 -> H11 | AW3: =C_Time!AW$26 -> H11 | AX3: =C_Time!AX$26 -> H11 | AY3: =C_Time!AY$26 -> H11 | AZ3: =C_Time!AZ$26 -> H12 | BA3: =C_Time!BA$26 -> H12 | BB3: =C_Time!BB$26 -> H12 | BC3: =C_Time!BC$26 -> H12 | BD3: =C_Time!BD$26 -> H12 | BE3: =C_Time!BE$26 -> H12 | BF3: =C_Time!BF$26 -> H12 | BG3: =C_Time!BG$26 -> H12 | BH3: =C_Time!BH$26 -> H12 | BI3: =C_Time!BI$26 -> H12 | BJ3: =C_Time!BJ$26 -> H12
E4: Financial year ending | AA4: =C_Time!AA$30 -> 1 | AB4: =C_Time!AB$30 -> 2 | AC4: =C_Time!AC$30 -> 3 | AD4: =C_Time!AD$30 -> 4 | AE4: =C_Time!AE$30 -> 5 | AF4: =C_Time!AF$30 -> 6 | AG4: =C_Time!AG$30 -> 7 | AH4: =C_Time!AH$30 -> 8 | AI4: =C_Time!AI$30 -> 9 | AJ4: =C_Time!AJ$30 -> 10 | AK4: =C_Time!AK$30 -> 11 | AL4: =C_Time!AL$30 -> 12 | AM4: =C_Time!AM$30 -> 13 | AN4: =C_Time!AN$30 -> 14 | AO4: =C_Time!AO$30 -> 15 | AP4: =C_Time!AP$30 -> 16 | AQ4: =C_Time!AQ$30 -> 17 | AR4: =C_Time!AR$30 -> 18 | AS4: =C_Time!AS$30 -> 19 | AT4: =C_Time!AT$30 -> 20 | AU4: =C_Time!AU$30 -> 21 | AV4: =C_Time!AV$30 -> 22 | AW4: =C_Time!AW$30 -> 23 | AX4: =C_Time!AX$30 -> 24 | AY4: =C_Time!AY$30 -> 25 | AZ4: =C_Time!AZ$30 -> 26 | BA4: =C_Time!BA$30 -> 27 | BB4: =C_Time!BB$30 -> 28 | BC4: =C_Time!BC$30 -> 29 | BD4: =C_Time!BD$30 -> 30 | BE4: =C_Time!BE$30 -> 31 | BF4: =C_Time!BF$30 -> 32 | BG4: =C_Time!BG$30 -> 33 | BH4: =C_Time!BH$30 -> 34 | BI4: =C_Time!BI$30 -> 35 | BJ4: =C_Time!BJ$30 -> 36
E5: Period number | F5: Constant | G5: Unit | H5: Notes | I5: Data Source | K5: Confidential Status | M5: Total
B8: CPI annual growth rate factor
E9: =C_Time!E$30 -> Period number | F9: =C_Time!F$30 -> 0 | G9: =C_Time!G$30 -> Counter | H9: =C_Time!H$30 -> 0 | I9: =C_Time!I$30 -> 0 | J9: =C_Time!J$30 -> 0 | K9: =C_Time!K$30 -> 0 | L9: =C_Time!L$30 -> 0 | M9: =C_Time!M$30 -> 0 | N9: =C_Time!N$30 -> 0 | O9: =C_Time!O$30 -> 0 | P9: =C_Time!P$30 -> 0 | Q9: =C_Time!Q$30 -> 0 | R9: =C_Time!R$30 -> 0 | S9: =C_Time!S$30 -> 0 | T9: =C_Time!T$30 -> 0 | U9: =C_Time!U$30 -> 0 | V9: =C_Time!V$30 -> 0 | W9: =C_Time!W$30 -> 0 | X9: =C_Time!X$30 -> 0 | Y9: =C_Time!Y$30 -> 0 | Z9: =C_Time!Z$30 -> 0 | AA9: =C_Time!AA$30 -> 1 | AB9: =C_Time!AB$30 -> 2 | AC9: =C_Time!AC$30 -> 3 | AD9: =C_Time!AD$30 -> 4 | AE9: =C_Time!AE$30 -> 5 | AF9: =C_Time!AF$30 -> 6 | AG9: =C_Time!AG$30 -> 7 | AH9: =C_Time!AH$30 -> 8 | AI9: =C_Time!AI$30 -> 9 | AJ9: =C_Time!AJ$30 -> 10 | AK9: =C_Time!AK$30 -> 11 | AL9: =C_Time!AL$30 -> 12 | AM9: =C_Time!AM$30 -> 13 | AN9: =C_Time!AN$30 -> 14 | AO9: =C_Time!AO$30 -> 15 | AP9: =C_Time!AP$30 -> 16 | AQ9: =C_Time!AQ$30 -> 17 | AR9: =C_Time!AR$30 -> 18 | AS9: =C_Time!AS$30 -> 19 | AT9: =C_Time!AT$30 -> 20 | AU9: =C_Time!AU$30 -> 21 | AV9: =C_Time!AV$30 -> 22 | AW9: =C_Time!AW$30 -> 23 | AX9: =C_Time!AX$30 -> 24 | AY9: =C_Time!AY$30 -> 25 | AZ9: =C_Time!AZ$30 -> 26 | BA9: =C_Time!BA$30 -> 27 | BB9: =C_Time!BB$30 -> 28 | BC9: =C_Time!BC$30 -> 29 | BD9: =C_Time!BD$30 -> 30 | BE9: =C_Time!BE$30 -> 31 | BF9: =C_Time!BF$30 -> 32 | BG9: =C_Time!BG$30 -> 33 | BH9: =C_Time!BH$30 -> 34 | BI9: =C_Time!BI$30 -> 35 | BJ9: =C_Time!BJ$30 -> 36
E10: =InpS!E$394 -> CPI annual growth rate | F10: =InpS!F$394 -> 0 | G10: =InpS!G$394 -> % | H10: =InpS!H$394 -> CHAW ONS, OBR Nov 2025 | I10: =InpS!I$394 -> Indexation tracker MASTER.xlsx | J10: =InpS!J$394 -> 0 | K10: =InpS!K$394 -> Already Published | L10: =InpS!L$394 -> 0 | M10: =InpS!M$394 -> 0 | N10: =InpS!N$394 -> 0 | O10: =InpS!O$394 -> 0 | P10: =InpS!P$394 -> 0 | Q10: =InpS!Q$394 -> 0 | R10: =InpS!R$394 -> 0 | S10: =InpS!S$394 -> 0 | T10: =InpS!T$394 -> 0 | U10: =InpS!U$394 -> 0 | V10: =InpS!V$394 -> 0 | W10: =InpS!W$394 -> 0 | X10: =InpS!X$394 -> 0 | Y10: =InpS!Y$394 -> 0 | Z10: =InpS!Z$394 -> 0 | AA10: =InpS!AA$394 -> 0.0905 | AB10: =InpS!AB$394 -> 0.073 | AC10: =InpS!AC$394 -> 0.0254 | AD10: =InpS!AD$394 -> 0.0337 | AE10: =InpS!AE$394 -> 0.0248 | AF10: =InpS!AF$394 -> 0.0202 | AG10: =InpS!AG$394 -> 0.0204 | AH10: =InpS!AH$394 -> 0.0204 | AI10: =InpS!AI$394 -> 0.02 | AJ10: =InpS!AJ$394 -> 0.02 | AK10: =InpS!AK$394 -> 0.02 | AL10: =InpS!AL$394 -> 0.02 | AM10: =InpS!AM$394 -> 0.02 | AN10: =InpS!AN$394 -> 0.02 | AO10: =InpS!AO$394 -> 0.02 | AP10: =InpS!AP$394 -> 0.02 | AQ10: =InpS!AQ$394 -> 0.02 | AR10: =InpS!AR$394 -> 0.02 | AS10: =InpS!AS$394 -> 0.02 | AT10: =InpS!AT$394 -> 0.02 | AU10: =InpS!AU$394 -> 0.02 | AV10: =InpS!AV$394 -> 0.02 | AW10: =InpS!AW$394 -> 0.02 | AX10: =InpS!AX$394 -> 0.02 | AY10: =InpS!AY$394 -> 0.02 | AZ10: =InpS!AZ$394 -> 0.02 | BA10: =InpS!BA$394 -> 0.02 | BB10: =InpS!BB$394 -> 0.02 | BC10: =InpS!BC$394 -> 0.02 | BD10: =InpS!BD$394 -> 0.02 | BE10: =InpS!BE$394 -> 0.02 | BF10: =InpS!BF$394 -> 0.02 | BG10: =InpS!BG$394 -> 0.02 | BH10: =InpS!BH$394 -> 0.02 | BI10: =InpS!BI$394 -> 0.02 | BJ10: =InpS!BJ$394 -> 0.02
E11: CPI annual growth rate factor | G11: factor | AA11: =IF( AA9 = 1, 1, Z11 * ( 1 + AA10 ) ) -> 1 | AB11: =IF( AB9 = 1, 1, AA11 * ( 1 + AB10 ) ) -> 1.073 | AC11: 1.1002542 | AD11: 1.137332767 | AE11: 1.165538619 | AF11: 1.189082499 | AG11: 1.213339782 | AH11: 1.238091914 | AI11: 1.262853752 | AJ11: 1.288110827 | AK11: 1.313873044 | AL11: 1.340150505 | AM11: 1.366953515 | AN11: 1.394292585 | AO11: 1.422178437 | AP11: 1.450622005 | AQ11: 1.479634445 | AR11: 1.509227134 | AS11: 1.539411677 | AT11: 1.570199911 | AU11: 1.601603909 | AV11: 1.633635987 | AW11: 1.666308707 | AX11: 1.699634881 | AY11: 1.733627578 | AZ11: 1.76830013 | BA11: 1.803666133 | BB11: 1.839739455 | BC11: 1.876534244 | BD11: 1.914064929 | BE11: 1.952346228 | BF11: 1.991393152 | BG11: 2.031221015 | BH11: 2.071845436 | BI11: 2.113282345 | BJ11: 2.155547991
B14: CPIH April growth rate factor
E15: =C_Time!E$30 -> Period number | F15: =C_Time!F$30 -> 0 | G15: =C_Time!G$30 -> Counter | H15: =C_Time!H$30 -> 0 | I15: =C_Time!I$30 -> 0 | J15: =C_Time!J$30 -> 0 | K15: =C_Time!K$30 -> 0 | L15: =C_Time!L$30 -> 0 | M15: =C_Time!M$30 -> 0 | N15: =C_Time!N$30 -> 0 | O15: =C_Time!O$30 -> 0 | P15: =C_Time!P$30 -> 0 | Q15: =C_Time!Q$30 -> 0 | R15: =C_Time!R$30 -> 0 | S15: =C_Time!S$30 -> 0 | T15: =C_Time!T$30 -> 0 | U15: =C_Time!U$30 -> 0 | V15: =C_Time!V$30 -> 0 | W15: =C_Time!W$30 -> 0 | X15: =C_Time!X$30 -> 0 | Y15: =C_Time!Y$30 -> 0 | Z15: =C_Time!Z$30 -> 0 | AA15: =C_Time!AA$30 -> 1 | AB15: =C_Time!AB$30 -> 2 | AC15: =C_Time!AC$30 -> 3 | AD15: =C_Time!AD$30 -> 4 | AE15: =C_Time!AE$30 -> 5 | AF15: =C_Time!AF$30 -> 6 | AG15: =C_Time!AG$30 -> 7 | AH15: =C_Time!AH$30 -> 8 | AI15: =C_Time!AI$30 -> 9 | AJ15: =C_Time!AJ$30 -> 10 | AK15: =C_Time!AK$30 -> 11 | AL15: =C_Time!AL$30 -> 12 | AM15: =C_Time!AM$30 -> 13 | AN15: =C_Time!AN$30 -> 14 | AO15: =C_Time!AO$30 -> 15 | AP15: =C_Time!AP$30 -> 16 | AQ15: =C_Time!AQ$30 -> 17 | AR15: =C_Time!AR$30 -> 18 | AS15: =C_Time!AS$30 -> 19 | AT15: =C_Time!AT$30 -> 20 | AU15: =C_Time!AU$30 -> 21 | AV15: =C_Time!AV$30 -> 22 | AW15: =C_Time!AW$30 -> 23 | AX15: =C_Time!AX$30 -> 24 | AY15: =C_Time!AY$30 -> 25 | AZ15: =C_Time!AZ$30 -> 26 | BA15: =C_Time!BA$30 -> 27 | BB15: =C_Time!BB$30 -> 28 | BC15: =C_Time!BC$30 -> 29 | BD15: =C_Time!BD$30 -> 30 | BE15: =C_Time!BE$30 -> 31 | BF15: =C_Time!BF$30 -> 32 | BG15: =C_Time!BG$30 -> 33 | BH15: =C_Time!BH$30 -> 34 | BI15: =C_Time!BI$30 -> 35 | BJ15: =C_Time!BJ$30 -> 36
E16: =InpS!E$395 -> CPIH annual growth rate | F16: =InpS!F$395 -> 0 | G16: =InpS!G$395 -> % | H16: =InpS!H$395 -> CHAW ONS, OBR Nov 2025 | I16: =InpS!I$395 -> Indexation tracker MASTER.xlsx | J16: =InpS!J$395 -> 0 | K16: =InpS!K$395 -> Already Published | L16: =InpS!L$395 -> 0 | M16: =InpS!M$395 -> 0 | N16: =InpS!N$395 -> 0 | O16: =InpS!O$395 -> 0 | P16: =InpS!P$395 -> 0 | Q16: =InpS!Q$395 -> 0 | R16: =InpS!R$395 -> 0 | S16: =InpS!S$395 -> 0 | T16: =InpS!T$395 -> 0 | U16: =InpS!U$395 -> 0 | V16: =InpS!V$395 -> 0 | W16: =InpS!W$395 -> 0 | X16: =InpS!X$395 -> 0 | Y16: =InpS!Y$395 -> 0 | Z16: =InpS!Z$395 -> 0 | AA16: =InpS!AA$395 -> 0.0792 | AB16: =InpS!AB$395 -> 0.0679 | AC16: =InpS!AC$395 -> 0.0327 | AD16: =InpS!AD$395 -> 0.0388 | AE16: =InpS!AE$395 -> 0.0267 | AF16: =InpS!AF$395 -> 0.0215 | AG16: =InpS!AG$395 -> 0.0208 | AH16: =InpS!AH$395 -> 0.0211 | AI16: =InpS!AI$395 -> 0.0213 | AJ16: =InpS!AJ$395 -> 0.0213 | AK16: =InpS!AK$395 -> 0.0213 | AL16: =InpS!AL$395 -> 0.02 | AM16: =InpS!AM$395 -> 0.02 | AN16: =InpS!AN$395 -> 0.02 | AO16: =InpS!AO$395 -> 0.02 | AP16: =InpS!AP$395 -> 0.02 | AQ16: =InpS!AQ$395 -> 0.02 | AR16: =InpS!AR$395 -> 0.02 | AS16: =InpS!AS$395 -> 0.02 | AT16: =InpS!AT$395 -> 0.02 | AU16: =InpS!AU$395 -> 0.02 | AV16: =InpS!AV$395 -> 0.02 | AW16: =InpS!AW$395 -> 0.02 | AX16: =InpS!AX$395 -> 0.02 | AY16: =InpS!AY$395 -> 0.02 | AZ16: =InpS!AZ$395 -> 0.02 | BA16: =InpS!BA$395 -> 0.02 | BB16: =InpS!BB$395 -> 0.02 | BC16: =InpS!BC$395 -> 0.02 | BD16: =InpS!BD$395 -> 0.02 | BE16: =InpS!BE$395 -> 0.02 | BF16: =InpS!BF$395 -> 0.02 | BG16: =InpS!BG$395 -> 0.02 | BH16: =InpS!BH$395 -> 0.02 | BI16: =InpS!BI$395 -> 0.02 | BJ16: =InpS!BJ$395 -> 0.02
E17: CPI April growth rate factor | G17: factor | AA17: =IF( AA15 = 1, 1, Z17 * ( 1 + AA16 ) ) -> 1 | AB17: 1.0679 | AC17: 1.10282033 | AD17: 1.145609759 | AE17: 1.176197539 | AF17: 1.201485786 | AG17: 1.226476691 | AH17: 1.252355349 | AI17: 1.279030518 | AJ17: 1.306273868 | AK17: 1.334097501 | AL17: 1.360779451 | AM17: 1.38799504 | AN17: 1.415754941 | AO17: 1.44407004 | AP17: 1.472951441 | AQ17: 1.50241047 | AR17: 1.532458679 | AS17: 1.563107853 | AT17: 1.59437001 | AU17: 1.62625741 | AV17: 1.658782558 | AW17: 1.691958209 | AX17: 1.725797373 | AY17: 1.760313321 | AZ17: 1.795519587 | BA17: 1.831429979 | BB17: 1.868058579 | BC17: 1.90541975 | BD17: 1.943528145 | BE17: 1.982398708 | BF17: 2.022046682 | BG17: 2.062487616 | BH17: 2.103737368 | BI17: 2.145812116 | BJ17: 2.188728358
B20: CPIH Dec growth rate factor
E21: =C_Time!E$30 -> Period number | F21: =C_Time!F$30 -> 0 | G21: =C_Time!G$30 -> Counter | H21: =C_Time!H$30 -> 0 | I21: =C_Time!I$30 -> 0 | J21: =C_Time!J$30 -> 0 | K21: =C_Time!K$30 -> 0 | L21: =C_Time!L$30 -> 0 | M21: =C_Time!M$30 -> 0 | N21: =C_Time!N$30 -> 0 | O21: =C_Time!O$30 -> 0 | P21: =C_Time!P$30 -> 0 | Q21: =C_Time!Q$30 -> 0 | R21: =C_Time!R$30 -> 0 | S21: =C_Time!S$30 -> 0 | T21: =C_Time!T$30 -> 0 | U21: =C_Time!U$30 -> 0 | V21: =C_Time!V$30 -> 0 | W21: =C_Time!W$30 -> 0 | X21: =C_Time!X$30 -> 0 | Y21: =C_Time!Y$30 -> 0 | Z21: =C_Time!Z$30 -> 0 | AA21: =C_Time!AA$30 -> 1 | AB21: =C_Time!AB$30 -> 2 | AC21: =C_Time!AC$30 -> 3 | AD21: =C_Time!AD$30 -> 4 | AE21: =C_Time!AE$30 -> 5 | AF21: =C_Time!AF$30 -> 6 | AG21: =C_Time!AG$30 -> 7 | AH21: =C_Time!AH$30 -> 8 | AI21: =C_Time!AI$30 -> 9 | AJ21: =C_Time!AJ$30 -> 10 | AK21: =C_Time!AK$30 -> 11 | AL21: =C_Time!AL$30 -> 12 | AM21: =C_Time!AM$30 -> 13 | AN21: =C_Time!AN$30 -> 14 | AO21: =C_Time!AO$30 -> 15 | AP21: =C_Time!AP$30 -> 16 | AQ21: =C_Time!AQ$30 -> 17 | AR21: =C_Time!AR$30 -> 18 | AS21: =C_Time!AS$30 -> 19 | AT21: =C_Time!AT$30 -> 20 | AU21: =C_Time!AU$30 -> 21 | AV21: =C_Time!AV$30 -> 22 | AW21: =C_Time!AW$30 -> 23 | AX21: =C_Time!AX$30 -> 24 | AY21: =C_Time!AY$30 -> 25 | AZ21: =C_Time!AZ$30 -> 26 | BA21: =C_Time!BA$30 -> 27 | BB21: =C_Time!BB$30 -> 28 | BC21: =C_Time!BC$30 -> 29 | BD21: =C_Time!BD$30 -> 30 | BE21: =C_Time!BE$30 -> 31 | BF21: =C_Time!BF$30 -> 32 | BG21: =C_Time!BG$30 -> 33 | BH21: =C_Time!BH$30 -> 34 | BI21: =C_Time!BI$30 -> 35 | BJ21: =C_Time!BJ$30 -> 36
E22: =InpS!E$396 -> CPIH Dec annual growth rate | F22: =InpS!F$396 -> 0 | G22: =InpS!G$396 -> % | H22: =InpS!H$396 -> CHAW ONS, OBR Nov 2025 | I22: =InpS!I$396 -> Indexation tracker MASTER.xlsx | J22: =InpS!J$396 -> 0 | K22: =InpS!K$396 -> Already Published | L22: =InpS!L$396 -> 0 | M22: =InpS!M$396 -> 0 | N22: =InpS!N$396 -> 0 | O22: =InpS!O$396 -> 0 | P22: =InpS!P$396 -> 0 | Q22: =InpS!Q$396 -> 0 | R22: =InpS!R$396 -> 0 | S22: =InpS!S$396 -> 0 | T22: =InpS!T$396 -> 0 | U22: =InpS!U$396 -> 0 | V22: =InpS!V$396 -> 0 | W22: =InpS!W$396 -> 0 | X22: =InpS!X$396 -> 0 | Y22: =InpS!Y$396 -> 0 | Z22: =InpS!Z$396 -> 0 | AA22: =InpS!AA$396 -> 0.0924 | AB22: =InpS!AB$396 -> 0.0415 | AC22: =InpS!AC$396 -> 0.0352 | AD22: =InpS!AD$396 -> 0.0355 | AE22: =InpS!AE$396 -> 0.0226 | AF22: =InpS!AF$396 -> 0.0208 | AG22: =InpS!AG$396 -> 0.0212 | AH22: =InpS!AH$396 -> 0.0211 | AI22: =InpS!AI$396 -> 0.0214 | AJ22: =InpS!AJ$396 -> 0.0214 | AK22: =InpS!AK$396 -> 0.0214 | AL22: =InpS!AL$396 -> 0.02 | AM22: =InpS!AM$396 -> 0.02 | AN22: =InpS!AN$396 -> 0.02 | AO22: =InpS!AO$396 -> 0.02 | AP22: =InpS!AP$396 -> 0.02 | AQ22: =InpS!AQ$396 -> 0.02 | AR22: =InpS!AR$396 -> 0.02 | AS22: =InpS!AS$396 -> 0.02 | AT22: =InpS!AT$396 -> 0.02 | AU22: =InpS!AU$396 -> 0.02 | AV22: =InpS!AV$396 -> 0.02 | AW22: =InpS!AW$396 -> 0.02 | AX22: =InpS!AX$396 -> 0.02 | AY22: =InpS!AY$396 -> 0.02 | AZ22: =InpS!AZ$396 -> 0.02 | BA22: =InpS!BA$396 -> 0.02 | BB22: =InpS!BB$396 -> 0.02 | BC22: =InpS!BC$396 -> 0.02 | BD22: =InpS!BD$396 -> 0.02 | BE22: =InpS!BE$396 -> 0.02 | BF22: =InpS!BF$396 -> 0.02 | BG22: =InpS!BG$396 -> 0.02 | BH22: =InpS!BH$396 -> 0.02 | BI22: =InpS!BI$396 -> 0.02 | BJ22: =InpS!BJ$396 -> 0.02
E23: CPI Dec growth rate factor | G23: factor | AA23: =IF( AA21 = 1, 1, Z23 * ( 1 + AA22 ) ) -> 1 | AB23: 1.0415 | AC23: 1.0781608 | AD23: 1.116435508 | AE23: 1.141666951 | AF23: 1.165413623 | AG23: 1.190120392 | AH23: 1.215231933 | AI23: 1.241237896 | AJ23: 1.267800387 | AK23: 1.294931315 | AL23: 1.320829941 | AM23: 1.34724654 | AN23: 1.374191471 | AO23: 1.401675301 | AP23: 1.429708807 | AQ23: 1.458302983 | AR23: 1.487469042 | AS23: 1.517218423 | AT23: 1.547562792 | AU23: 1.578514047 | AV23: 1.610084328 | AW23: 1.642286015 | AX23: 1.675131735 | AY23: 1.70863437 | AZ23: 1.742807057 | BA23: 1.777663199 | BB23: 1.813216463 | BC23: 1.849480792 | BD23: 1.886470408 | BE23: 1.924199816 | BF23: 1.962683812 | BG23: 2.001937488 | BH23: 2.041976238 | BI23: 2.082815763 | BJ23: 2.124472078
B26: CPI Dec/CPI average factor
E27: =C_Time!E$30 -> Period number | F27: =C_Time!F$30 -> 0 | G27: =C_Time!G$30 -> Counter | H27: =C_Time!H$30 -> 0 | I27: =C_Time!I$30 -> 0 | J27: =C_Time!J$30 -> 0 | K27: =C_Time!K$30 -> 0 | L27: =C_Time!L$30 -> 0 | M27: =C_Time!M$30 -> 0 | N27: =C_Time!N$30 -> 0 | O27: =C_Time!O$30 -> 0 | P27: =C_Time!P$30 -> 0 | Q27: =C_Time!Q$30 -> 0 | R27: =C_Time!R$30 -> 0 | S27: =C_Time!S$30 -> 0 | T27: =C_Time!T$30 -> 0 | U27: =C_Time!U$30 -> 0 | V27: =C_Time!V$30 -> 0 | W27: =C_Time!W$30 -> 0 | X27: =C_Time!X$30 -> 0 | Y27: =C_Time!Y$30 -> 0 | Z27: =C_Time!Z$30 -> 0 | AA27: =C_Time!AA$30 -> 1 | AB27: =C_Time!AB$30 -> 2 | AC27: =C_Time!AC$30 -> 3 | AD27: =C_Time!AD$30 -> 4 | AE27: =C_Time!AE$30 -> 5 | AF27: =C_Time!AF$30 -> 6 | AG27: =C_Time!AG$30 -> 7 | AH27: =C_Time!AH$30 -> 8 | AI27: =C_Time!AI$30 -> 9 | AJ27: =C_Time!AJ$30 -> 10 | AK27: =C_Time!AK$30 -> 11 | AL27: =C_Time!AL$30 -> 12 | AM27: =C_Time!AM$30 -> 13 | AN27: =C_Time!AN$30 -> 14 | AO27: =C_Time!AO$30 -> 15 | AP27: =C_Time!AP$30 -> 16 | AQ27: =C_Time!AQ$30 -> 17 | AR27: =C_Time!AR$30 -> 18 | AS27: =C_Time!AS$30 -> 19 | AT27: =C_Time!AT$30 -> 20 | AU27: =C_Time!AU$30 -> 21 | AV27: =C_Time!AV$30 -> 22 | AW27: =C_Time!AW$30 -> 23 | AX27: =C_Time!AX$30 -> 24 | AY27: =C_Time!AY$30 -> 25 | AZ27: =C_Time!AZ$30 -> 26 | BA27: =C_Time!BA$30 -> 27 | BB27: =C_Time!BB$30 -> 28 | BC27: =C_Time!BC$30 -> 29 | BD27: =C_Time!BD$30 -> 30 | BE27: =C_Time!BE$30 -> 31 | BF27: =C_Time!BF$30 -> 32 | BG27: =C_Time!BG$30 -> 33 | BH27: =C_Time!BH$30 -> 34 | BI27: =C_Time!BI$30 -> 35 | BJ27: =C_Time!BJ$30 -> 36
E28: =InpS!E$397 -> CPIH Dec/CPIH average | F28: =InpS!F$397 -> 0 | G28: =InpS!G$397 -> % | H28: =InpS!H$397 -> CHAW ONS, OBR Nov 2025 | I28: =InpS!I$397 -> Indexation tracker MASTER.xlsx | J28: =InpS!J$397 -> 0 | K28: =InpS!K$397 -> Already Published | L28: =InpS!L$397 -> 0 | M28: =InpS!M$397 -> 0 | N28: =InpS!N$397 -> 0 | O28: =InpS!O$397 -> 0 | P28: =InpS!P$397 -> 0 | Q28: =InpS!Q$397 -> 0 | R28: =InpS!R$397 -> 0 | S28: =InpS!S$397 -> 0 | T28: =InpS!T$397 -> 0 | U28: =InpS!U$397 -> 0 | V28: =InpS!V$397 -> 0 | W28: =InpS!W$397 -> 0 | X28: =InpS!X$397 -> 0 | Y28: =InpS!Y$397 -> 0 | Z28: =InpS!Z$397 -> 0 | AA28: =InpS!AA$397 -> 0.0403 | AB28: =InpS!AB$397 -> 0.0145 | AC28: =InpS!AC$397 -> 0.017 | AD28: =InpS!AD$397 -> 0.0138 | AE28: =InpS!AE$397 -> 0.0097 | AF28: =InpS!AF$397 -> 0.0091 | AG28: =InpS!AG$397 -> 0.0095 | AH28: =InpS!AH$397 -> 0.0094 | AI28: =InpS!AI$397 -> 0.0096 | AJ28: =InpS!AJ$397 -> 0.0097 | AK28: =InpS!AK$397 -> 0.0099 | AL28: =InpS!AL$397 -> 0 | AM28: =InpS!AM$397 -> 0.03 | AN28: =InpS!AN$397 -> 0.03 | AO28: =InpS!AO$397 -> 0.03 | AP28: =InpS!AP$397 -> 0.03 | AQ28: =InpS!AQ$397 -> 0.03 | AR28: =InpS!AR$397 -> 0.03 | AS28: =InpS!AS$397 -> 0.03 | AT28: =InpS!AT$397 -> 0.03 | AU28: =InpS!AU$397 -> 0.03 | AV28: =InpS!AV$397 -> 0.03 | AW28: =InpS!AW$397 -> 0.03 | AX28: =InpS!AX$397 -> 0.03 | AY28: =InpS!AY$397 -> 0.03 | AZ28: =InpS!AZ$397 -> 0.03 | BA28: =InpS!BA$397 -> 0.03 | BB28: =InpS!BB$397 -> 0.03 | BC28: =InpS!BC$397 -> 0.03 | BD28: =InpS!BD$397 -> 0 | BE28: =InpS!BE$397 -> 0 | BF28: =InpS!BF$397 -> 0 | BG28: =InpS!BG$397 -> 0 | BH28: =InpS!BH$397 -> 0 | BI28: =InpS!BI$397 -> 0 | BJ28: =InpS!BJ$397 -> 0
E29: CPI Dec/CPI average factor | G29: factor | AA29: =IF( AA27 = 1, 1, Z29 * ( 1 + AA28 ) ) -> 1 | AB29: 1.0145 | AC29: 1.0317465 | AD29: 1.045984602 | AE29: 1.056130652 | AF29: 1.065741441 | AG29: 1.075865985 | AH29: 1.085979125 | AI29: 1.096404525 | AJ29: 1.107039649 | AK29: 1.117999341 | AL29: 1.117999341 | AM29: 1.151539321 | AN29: 1.186085501 | AO29: 1.221668066 | AP29: 1.258318108 | AQ29: 1.296067651 | AR29: 1.334949681 | AS29: 1.374998171 | AT29: 1.416248116 | AU29: 1.45873556 | AV29: 1.502497627 | AW29: 1.547572556 | AX29: 1.593999732 | AY29: 1.641819724 | AZ29: 1.691074316 | BA29: 1.741806545 | BB29: 1.794060742 | BC29: 1.847882564 | BD29: 1.847882564 | BE29: 1.847882564 | BF29: 1.847882564 | BG29: 1.847882564 | BH29: 1.847882564 | BI29: 1.847882564 | BJ29: 1.847882564
B32: 2024 flag
E33: =InpS!E$20 -> Flag 2024 period date | F33: =InpS!F$20 -> 2024-01-01 | G33: =InpS!G$20 -> date
E34: =C_Time!E$12 -> Model period start | F34: =C_Time!F$12 -> 00:00:00 | G34: =C_Time!G$12 -> date | H34: =C_Time!H$12 -> 00:00:00 | I34: =C_Time!I$12 -> 00:00:00 | J34: =C_Time!J$12 -> 00:00:00 | K34: =C_Time!K$12 -> 00:00:00 | L34: =C_Time!L$12 -> 00:00:00 | M34: =C_Time!M$12 -> 00:00:00 | N34: =C_Time!N$12 -> 00:00:00 | O34: =C_Time!O$12 -> 00:00:00 | P34: =C_Time!P$12 -> 00:00:00 | Q34: =C_Time!Q$12 -> 00:00:00 | R34: =C_Time!R$12 -> 00:00:00 | S34: =C_Time!S$12 -> 00:00:00 | T34: =C_Time!T$12 -> 00:00:00 | U34: =C_Time!U$12 -> 00:00:00 | V34: =C_Time!V$12 -> 00:00:00 | W34: =C_Time!W$12 -> 00:00:00 | X34: =C_Time!X$12 -> 00:00:00 | Y34: =C_Time!Y$12 -> 00:00:00 | Z34: =C_Time!Z$12 -> 00:00:00 | AA34: =C_Time!AA$12 -> 2022-01-01 | AB34: =C_Time!AB$12 -> 2023-01-01 | AC34: =C_Time!AC$12 -> 2024-01-01 | AD34: =C_Time!AD$12 -> 2025-01-01 | AE34: =C_Time!AE$12 -> 2026-01-01 | AF34: =C_Time!AF$12 -> 2027-01-01 | AG34: =C_Time!AG$12 -> 2028-01-01 | AH34: =C_Time!AH$12 -> 2029-01-01 | AI34: =C_Time!AI$12 -> 2030-01-01 | AJ34: =C_Time!AJ$12 -> 2031-01-01 | AK34: =C_Time!AK$12 -> 2032-01-01 | AL34: =C_Time!AL$12 -> 2033-01-01 | AM34: =C_Time!AM$12 -> 2034-01-01 | AN34: =C_Time!AN$12 -> 2035-01-01 | AO34: =C_Time!AO$12 -> 2036-01-01 | AP34: =C_Time!AP$12 -> 2037-01-01 | AQ34: =C_Time!AQ$12 -> 2038-01-01 | AR34: =C_Time!AR$12 -> 2039-01-01 | AS34: =C_Time!AS$12 -> 2040-01-01 | AT34: =C_Time!AT$12 -> 2041-01-01 | AU34: =C_Time!AU$12 -> 2042-01-01 | AV34: =C_Time!AV$12 -> 2043-01-01 | AW34: =C_Time!AW$12 -> 2044-01-01 | AX34: =C_Time!AX$12 -> 2045-01-01 | AY34: =C_Time!AY$12 -> 2046-01-01 | AZ34: =C_Time!AZ$12 -> 2047-01-01 | BA34: =C_Time!BA$12 -> 2048-01-01 | BB34: =C_Time!BB$12 -> 2049-01-01 | BC34: =C_Time!BC$12 -> 2050-01-01 | BD34: =C_Time!BD$12 -> 2051-01-01 | BE34: =C_Time!BE$12 -> 2052-01-01 | BF34: =C_Time!BF$12 -> 2053-01-01 | BG34: =C_Time!BG$12 -> 2054-01-01 | BH34: =C_Time!BH$12 -> 2055-01-01 | BI34: =C_Time!BI$12 -> 2056-01-01 | BJ34: =C_Time!BJ$12 -> 2057-01-01
E35: =C_Time!E$21 -> Model period end | F35: =C_Time!F$21 -> 00:00:00 | G35: =C_Time!G$21 -> date | H35: =C_Time!H$21 -> 00:00:00 | I35: =C_Time!I$21 -> 00:00:00 | J35: =C_Time!J$21 -> 00:00:00 | K35: =C_Time!K$21 -> 00:00:00 | L35: =C_Time!L$21 -> 00:00:00 | M35: =C_Time!M$21 -> 00:00:00 | N35: =C_Time!N$21 -> 00:00:00 | O35: =C_Time!O$21 -> 00:00:00 | P35: =C_Time!P$21 -> 00:00:00 | Q35: =C_Time!Q$21 -> 00:00:00 | R35: =C_Time!R$21 -> 00:00:00 | S35: =C_Time!S$21 -> 00:00:00 | T35: =C_Time!T$21 -> 00:00:00 | U35: =C_Time!U$21 -> 00:00:00 | V35: =C_Time!V$21 -> 00:00:00 | W35: =C_Time!W$21 -> 00:00:00 | X35: =C_Time!X$21 -> 00:00:00 | Y35: =C_Time!Y$21 -> 00:00:00 | Z35: =C_Time!Z$21 -> 00:00:00 | AA35: =C_Time!AA$21 -> 2022-12-31 | AB35: =C_Time!AB$21 -> 2023-12-31 | AC35: =C_Time!AC$21 -> 2024-12-31 | AD35: =C_Time!AD$21 -> 2025-12-31 | AE35: =C_Time!AE$21 -> 2026-12-31 | AF35: =C_Time!AF$21 -> 2027-12-31 | AG35: =C_Time!AG$21 -> 2028-12-31 | AH35: =C_Time!AH$21 -> 2029-12-31 | AI35: =C_Time!AI$21 -> 2030-12-31 | AJ35: =C_Time!AJ$21 -> 2031-12-31 | AK35: =C_Time!AK$21 -> 2032-12-31 | AL35: =C_Time!AL$21 -> 2033-12-31 | AM35: =C_Time!AM$21 -> 2034-12-31 | AN35: =C_Time!AN$21 -> 2035-12-31 | AO35: =C_Time!AO$21 -> 2036-12-31 | AP35: =C_Time!AP$21 -> 2037-12-31 | AQ35: =C_Time!AQ$21 -> 2038-12-31 | AR35: =C_Time!AR$21 -> 2039-12-31 | AS35: =C_Time!AS$21 -> 2040-12-31 | AT35: =C_Time!AT$21 -> 2041-12-31 | AU35: =C_Time!AU$21 -> 2042-12-31 | AV35: =C_Time!AV$21 -> 2043-12-31 | AW35: =C_Time!AW$21 -> 2044-12-31 | AX35: =C_Time!AX$21 -> 2045-12-31 | AY35: =C_Time!AY$21 -> 2046-12-31 | AZ35: =C_Time!AZ$21 -> 2047-12-31 | BA35: =C_Time!BA$21 -> 2048-12-31 | BB35: =C_Time!BB$21 -> 2049-12-31 | BC35: =C_Time!BC$21 -> 2050-12-31 | BD35: =C_Time!BD$21 -> 2051-12-31 | BE35: =C_Time!BE$21 -> 2052-12-31 | BF35: =C_Time!BF$21 -> 2053-12-31 | BG35: =C_Time!BG$21 -> 2054-12-31 | BH35: =C_Time!BH$21 -> 2055-12-31 | BI35: =C_Time!BI$21 -> 2056-12-31 | BJ35: =C_Time!BJ$21 -> 2057-12-31
E36: 2024 flag | G36: flag | M36: =SUM( AA36:BJ36 ) -> 1 | AA36: =IF( AND( AA34 <= $F33, AA35 >= $F33 ), 1, 0 ) -> 0 | AB36: 0 | AC36: 1 | AD36: 0 | AE36: 0 | AF36: 0 | AG36: 0 | AH36: 0 | AI36: 0 | AJ36: 0 | AK36: 0 | AL36: 0 | AM36: 0 | AN36: 0 | AO36: 0 | AP36: 0 | AQ36: 0 | AR36: 0 | AS36: 0 | AT36: 0 | AU36: 0 | AV36: 0 | AW36: 0 | AX36: 0 | AY36: 0 | AZ36: 0 | BA36: 0 | BB36: 0 | BC36: 0 | BD36: 0 | BE36: 0 | BF36: 0 | BG36: 0 | BH36: 0 | BI36: 0 | BJ36: 0
B39: RPI annual growth factor 2024-2022
E40: =C_WACC!E$96 -> RPI annual growth rate factor | F40: =C_WACC!F$96 -> 0 | G40: =C_WACC!G$96 -> factor | H40: =C_WACC!H$96 -> 0 | I40: =C_WACC!I$96 -> 0 | J40: =C_WACC!J$96 -> 0 | K40: =C_WACC!K$96 -> 0 | L40: =C_WACC!L$96 -> 0 | M40: =C_WACC!M$96 -> 0 | N40: =C_WACC!N$96 -> 0 | O40: =C_WACC!O$96 -> 0 | P40: =C_WACC!P$96 -> 0 | Q40: =C_WACC!Q$96 -> 0 | R40: =C_WACC!R$96 -> 0 | S40: =C_WACC!S$96 -> 0 | T40: =C_WACC!T$96 -> 0 | U40: =C_WACC!U$96 -> 0 | V40: =C_WACC!V$96 -> 0 | W40: =C_WACC!W$96 -> 0 | X40: =C_WACC!X$96 -> 0 | Y40: =C_WACC!Y$96 -> 0 | Z40: =C_WACC!Z$96 -> 0 | AA40: =C_WACC!AA$96 -> 1 | AB40: =C_WACC!AB$96 -> 1.0969 | AC40: =C_WACC!AC$96 -> 1.13616902 | AD40: =C_WACC!AD$96 -> 1.183092801 | AE40: =C_WACC!AE$96 -> 1.226985543 | AF40: =C_WACC!AF$96 -> 1.265390191 | AG40: =C_WACC!AG$96 -> 1.301706889 | AH40: =C_WACC!AH$96 -> 1.339456389 | AI40: =C_WACC!AI$96 -> 1.370397832 | AJ40: =C_WACC!AJ$96 -> 1.402054022 | AK40: =C_WACC!AK$96 -> 1.43444147 | AL40: =C_WACC!AL$96 -> 1.463130299 | AM40: =C_WACC!AM$96 -> 1.492392905 | AN40: =C_WACC!AN$96 -> 1.522240763 | AO40: =C_WACC!AO$96 -> 1.552685578 | AP40: =C_WACC!AP$96 -> 1.58373929 | AQ40: =C_WACC!AQ$96 -> 1.615414076 | AR40: =C_WACC!AR$96 -> 1.647722357 | AS40: =C_WACC!AS$96 -> 1.680676804 | AT40: =C_WACC!AT$96 -> 1.71429034 | AU40: =C_WACC!AU$96 -> 1.748576147 | AV40: =C_WACC!AV$96 -> 1.78354767 | AW40: =C_WACC!AW$96 -> 1.819218624 | AX40: =C_WACC!AX$96 -> 1.855602996 | AY40: =C_WACC!AY$96 -> 1.892715056 | AZ40: =C_WACC!AZ$96 -> 1.930569357 | BA40: =C_WACC!BA$96 -> 1.969180744 | BB40: =C_WACC!BB$96 -> 2.008564359 | BC40: =C_WACC!BC$96 -> 2.048735646 | BD40: =C_WACC!BD$96 -> 2.089710359 | BE40: =C_WACC!BE$96 -> 2.131504566 | BF40: =C_WACC!BF$96 -> 2.174134658 | BG40: =C_WACC!BG$96 -> 2.217617351 | BH40: =C_WACC!BH$96 -> 2.261969698 | BI40: =C_WACC!BI$96 -> 2.307209092 | BJ40: =C_WACC!BJ$96 -> 2.353353274
E41: =E$36 -> 2024 flag | F41: 0 | G41: flag | H41: 0 | I41: 0 | J41: 0 | K41: 0 | L41: 0 | M41: 1 | N41: 0 | O41: 0 | P41: 0 | Q41: 0 | R41: 0 | S41: 0 | T41: 0 | U41: 0 | V41: 0 | W41: 0 | X41: 0 | Y41: 0 | Z41: 0 | AA41: 0 | AB41: 0 | AC41: 1 | AD41: 0 | AE41: 0 | AF41: 0 | AG41: 0 | AH41: 0 | AI41: 0 | AJ41: 0 | AK41: 0 | AL41: 0 | AM41: 0 | AN41: 0 | AO41: 0 | AP41: 0 | AQ41: 0 | AR41: 0 | AS41: 0 | AT41: 0 | AU41: 0 | AV41: 0 | AW41: 0 | AX41: 0 | AY41: 0 | AZ41: 0 | BA41: 0 | BB41: 0 | BC41: 0 | BD41: 0 | BE41: 0 | BF41: 0 | BG41: 0 | BH41: 0 | BI41: 0 | BJ41: 0
E42: RPI annual growth factor 2024-2022 | F42: =SUMPRODUCT( $AA40:$BJ40, $AA41:$BJ41 ) -> 1.13616902 | G42: factor
B45: RPI annual growth factor 2024 base
E46: =E$42 -> RPI annual growth factor 2024-2022 | F46: 1.13616902 | G46: factor
E47: =C_WACC!E$96 -> RPI annual growth rate factor | F47: =C_WACC!F$96 -> 0 | G47: =C_WACC!G$96 -> factor | H47: =C_WACC!H$96 -> 0 | I47: =C_WACC!I$96 -> 0 | J47: =C_WACC!J$96 -> 0 | K47: =C_WACC!K$96 -> 0 | L47: =C_WACC!L$96 -> 0 | M47: =C_WACC!M$96 -> 0 | N47: =C_WACC!N$96 -> 0 | O47: =C_WACC!O$96 -> 0 | P47: =C_WACC!P$96 -> 0 | Q47: =C_WACC!Q$96 -> 0 | R47: =C_WACC!R$96 -> 0 | S47: =C_WACC!S$96 -> 0 | T47: =C_WACC!T$96 -> 0 | U47: =C_WACC!U$96 -> 0 | V47: =C_WACC!V$96 -> 0 | W47: =C_WACC!W$96 -> 0 | X47: =C_WACC!X$96 -> 0 | Y47: =C_WACC!Y$96 -> 0 | Z47: =C_WACC!Z$96 -> 0 | AA47: =C_WACC!AA$96 -> 1 | AB47: =C_WACC!AB$96 -> 1.0969 | AC47: =C_WACC!AC$96 -> 1.13616902 | AD47: =C_WACC!AD$96 -> 1.183092801 | AE47: =C_WACC!AE$96 -> 1.226985543 | AF47: =C_WACC!AF$96 -> 1.265390191 | AG47: =C_WACC!AG$96 -> 1.301706889 | AH47: =C_WACC!AH$96 -> 1.339456389 | AI47: =C_WACC!AI$96 -> 1.370397832 | AJ47: =C_WACC!AJ$96 -> 1.402054022 | AK47: =C_WACC!AK$96 -> 1.43444147 | AL47: =C_WACC!AL$96 -> 1.463130299 | AM47: =C_WACC!AM$96 -> 1.492392905 | AN47: =C_WACC!AN$96 -> 1.522240763 | AO47: =C_WACC!AO$96 -> 1.552685578 | AP47: =C_WACC!AP$96 -> 1.58373929 | AQ47: =C_WACC!AQ$96 -> 1.615414076 | AR47: =C_WACC!AR$96 -> 1.647722357 | AS47: =C_WACC!AS$96 -> 1.680676804 | AT47: =C_WACC!AT$96 -> 1.71429034 | AU47: =C_WACC!AU$96 -> 1.748576147 | AV47: =C_WACC!AV$96 -> 1.78354767 | AW47: =C_WACC!AW$96 -> 1.819218624 | AX47: =C_WACC!AX$96 -> 1.855602996 | AY47: =C_WACC!AY$96 -> 1.892715056 | AZ47: =C_WACC!AZ$96 -> 1.930569357 | BA47: =C_WACC!BA$96 -> 1.969180744 | BB47: =C_WACC!BB$96 -> 2.008564359 | BC47: =C_WACC!BC$96 -> 2.048735646 | BD47: =C_WACC!BD$96 -> 2.089710359 | BE47: =C_WACC!BE$96 -> 2.131504566 | BF47: =C_WACC!BF$96 -> 2.174134658 | BG47: =C_WACC!BG$96 -> 2.217617351 | BH47: =C_WACC!BH$96 -> 2.261969698 | BI47: =C_WACC!BI$96 -> 2.307209092 | BJ47: =C_WACC!BJ$96 -> 2.353353274
E48: RPI annual growth factor 2024 base | G48: factor | AA48: =AA47 / $F46 -> 0.8801507367 | AB48: 0.9654373431 | AC48: 1 | AD48: 1.0413 | AE48: 1.07993223 | AF48: 1.113734109 | AG48: 1.145698278 | AH48: 1.178923528 | AI48: 1.206156661 | AJ48: 1.23401888 | AK48: 1.262524716 | AL48: 1.287775211 | AM48: 1.313530715 | AN48: 1.339801329 | AO48: 1.366597356 | AP48: 1.393929303 | AQ48: 1.421807889 | AR48: 1.450244047 | AS48: 1.479248928 | AT48: 1.508833906 | AU48: 1.539010584 | AV48: 1.569790796 | AW48: 1.601186612 | AX48: 1.633210344 | AY48: 1.665874551 | AZ48: 1.699192042 | BA48: 1.733175883 | BB48: 1.7678394 | BC48: 1.803196188 | BD48: 1.839260112 | BE48: 1.876045315 | BF48: 1.913566221 | BG48: 1.951837545 | BH48: 1.990874296 | BI48: 2.030691782 | BJ48: 2.071305618
B51: CPI annual growth factor 2024-2022
E52: =E$11 -> CPI annual growth rate factor | F52: 0 | G52: factor | H52: 0 | I52: 0 | J52: 0 | K52: 0 | L52: 0 | M52: 0 | N52: 0 | O52: 0 | P52: 0 | Q52: 0 | R52: 0 | S52: 0 | T52: 0 | U52: 0 | V52: 0 | W52: 0 | X52: 0 | Y52: 0 | Z52: 0 | AA52: 1 | AB52: 1.073 | AC52: 1.1002542 | AD52: 1.137332767 | AE52: 1.165538619 | AF52: 1.189082499 | AG52: 1.213339782 | AH52: 1.238091914 | AI52: 1.262853752 | AJ52: 1.288110827 | AK52: 1.313873044 | AL52: 1.340150505 | AM52: 1.366953515 | AN52: 1.394292585 | AO52: 1.422178437 | AP52: 1.450622005 | AQ52: 1.479634445 | AR52: 1.509227134 | AS52: 1.539411677 | AT52: 1.570199911 | AU52: 1.601603909 | AV52: 1.633635987 | AW52: 1.666308707 | AX52: 1.699634881 | AY52: 1.733627578 | AZ52: 1.76830013 | BA52: 1.803666133 | BB52: 1.839739455 | BC52: 1.876534244 | BD52: 1.914064929 | BE52: 1.952346228 | BF52: 1.991393152 | BG52: 2.031221015 | BH52: 2.071845436 | BI52: 2.113282345 | BJ52: 2.155547991
E53: =E$36 -> 2024 flag | F53: 0 | G53: flag | H53: 0 | I53: 0 | J53: 0 | K53: 0 | L53: 0 | M53: 1 | N53: 0 | O53: 0 | P53: 0 | Q53: 0 | R53: 0 | S53: 0 | T53: 0 | U53: 0 | V53: 0 | W53: 0 | X53: 0 | Y53: 0 | Z53: 0 | AA53: 0 | AB53: 0 | AC53: 1 | AD53: 0 | AE53: 0 | AF53: 0 | AG53: 0 | AH53: 0 | AI53: 0 | AJ53: 0 | AK53: 0 | AL53: 0 | AM53: 0 | AN53: 0 | AO53: 0 | AP53: 0 | AQ53: 0 | AR53: 0 | AS53: 0 | AT53: 0 | AU53: 0 | AV53: 0 | AW53: 0 | AX53: 0 | AY53: 0 | AZ53: 0 | BA53: 0 | BB53: 0 | BC53: 0 | BD53: 0 | BE53: 0 | BF53: 0 | BG53: 0 | BH53: 0 | BI53: 0 | BJ53: 0
E54: CPI annual growth factor 2024-2022 | F54: =SUMPRODUCT( $AA52:$BJ52, $AA53:$BJ53 ) -> 1.1002542 | G54: factor
B57: CPI annual growth factor 2024 base
E58: =E$54 -> CPI annual growth factor 2024-2022 | F58: 1.1002542 | G58: factor
E59: =E$11 -> CPI annual growth rate factor | F59: 0 | G59: factor | H59: 0 | I59: 0 | J59: 0 | K59: 0 | L59: 0 | M59: 0 | N59: 0 | O59: 0 | P59: 0 | Q59: 0 | R59: 0 | S59: 0 | T59: 0 | U59: 0 | V59: 0 | W59: 0 | X59: 0 | Y59: 0 | Z59: 0 | AA59: 1 | AB59: 1.073 | AC59: 1.1002542 | AD59: 1.137332767 | AE59: 1.165538619 | AF59: 1.189082499 | AG59: 1.213339782 | AH59: 1.238091914 | AI59: 1.262853752 | AJ59: 1.288110827 | AK59: 1.313873044 | AL59: 1.340150505 | AM59: 1.366953515 | AN59: 1.394292585 | AO59: 1.422178437 | AP59: 1.450622005 | AQ59: 1.479634445 | AR59: 1.509227134 | AS59: 1.539411677 | AT59: 1.570199911 | AU59: 1.601603909 | AV59: 1.633635987 | AW59: 1.666308707 | AX59: 1.699634881 | AY59: 1.733627578 | AZ59: 1.76830013 | BA59: 1.803666133 | BB59: 1.839739455 | BC59: 1.876534244 | BD59: 1.914064929 | BE59: 1.952346228 | BF59: 1.991393152 | BG59: 2.031221015 | BH59: 2.071845436 | BI59: 2.113282345 | BJ59: 2.155547991
E60: CPI annual growth factor 2024 base | G60: factor | AA60: =AA59 / $F58 -> 0.908880875 | AB60: 0.9752291789 | AC60: 1 | AD60: 1.0337 | AE60: 1.05933576 | AF60: 1.080734342 | AG60: 1.102781323 | AH60: 1.125278062 | AI60: 1.147783623 | AJ60: 1.170739296 | AK60: 1.194154082 | AL60: 1.218037163 | AM60: 1.242397906 | AN60: 1.267245865 | AO60: 1.292590782 | AP60: 1.318442597 | AQ60: 1.344811449 | AR60: 1.371707678 | AS60: 1.399141832 | AT60: 1.427124669 | AU60: 1.455667162 | AV60: 1.484780505 | AW60: 1.514476115 | AX60: 1.544765638 | AY60: 1.57566095 | AZ60: 1.607174169 | BA60: 1.639317653 | BB60: 1.672104006 | BC60: 1.705546086 | BD60: 1.739657008 | BE60: 1.774450148 | BF60: 1.809939151 | BG60: 1.846137934 | BH60: 1.883060693 | BI60: 1.920721906 | BJ60: 1.959136344
B63: CPI April Growth factor 2024-2022
E64: =E$17 -> CPI April growth rate factor | F64: 0 | G64: factor | H64: 0 | I64: 0 | J64: 0 | K64: 0 | L64: 0 | M64: 0 | N64: 0 | O64: 0 | P64: 0 | Q64: 0 | R64: 0 | S64: 0 | T64: 0 | U64: 0 | V64: 0 | W64: 0 | X64: 0 | Y64: 0 | Z64: 0 | AA64: 1 | AB64: 1.0679 | AC64: 1.10282033 | AD64: 1.145609759 | AE64: 1.176197539 | AF64: 1.201485786 | AG64: 1.226476691 | AH64: 1.252355349 | AI64: 1.279030518 | AJ64: 1.306273868 | AK64: 1.334097501 | AL64: 1.360779451 | AM64: 1.38799504 | AN64: 1.415754941 | AO64: 1.44407004 | AP64: 1.472951441 | AQ64: 1.50241047 | AR64: 1.532458679 | AS64: 1.563107853 | AT64: 1.59437001 | AU64: 1.62625741 | AV64: 1.658782558 | AW64: 1.691958209 | AX64: 1.725797373 | AY64: 1.760313321 | AZ64: 1.795519587 | BA64: 1.831429979 | BB64: 1.868058579 | BC64: 1.90541975 | BD64: 1.943528145 | BE64: 1.982398708 | BF64: 2.022046682 | BG64: 2.062487616 | BH64: 2.103737368 | BI64: 2.145812116 | BJ64: 2.188728358
E65: =E$36 -> 2024 flag | F65: 0 | G65: flag | H65: 0 | I65: 0 | J65: 0 | K65: 0 | L65: 0 | M65: 1 | N65: 0 | O65: 0 | P65: 0 | Q65: 0 | R65: 0 | S65: 0 | T65: 0 | U65: 0 | V65: 0 | W65: 0 | X65: 0 | Y65: 0 | Z65: 0 | AA65: 0 | AB65: 0 | AC65: 1 | AD65: 0 | AE65: 0 | AF65: 0 | AG65: 0 | AH65: 0 | AI65: 0 | AJ65: 0 | AK65: 0 | AL65: 0 | AM65: 0 | AN65: 0 | AO65: 0 | AP65: 0 | AQ65: 0 | AR65: 0 | AS65: 0 | AT65: 0 | AU65: 0 | AV65: 0 | AW65: 0 | AX65: 0 | AY65: 0 | AZ65: 0 | BA65: 0 | BB65: 0 | BC65: 0 | BD65: 0 | BE65: 0 | BF65: 0 | BG65: 0 | BH65: 0 | BI65: 0 | BJ65: 0
E66: CPI April Growth factor 2024-2022 | F66: =SUMPRODUCT( $AA64:$BJ64, $AA65:$BJ65 ) -> 1.10282033 | G66: factor
B69: CPI April growth factor 2024 base
E70: =E$66 -> CPI April Growth factor 2024-2022 | F70: 1.10282033 | G70: factor
E71: =E$17 -> CPI April growth rate factor | F71: 0 | G71: factor | H71: 0 | I71: 0 | J71: 0 | K71: 0 | L71: 0 | M71: 0 | N71: 0 | O71: 0 | P71: 0 | Q71: 0 | R71: 0 | S71: 0 | T71: 0 | U71: 0 | V71: 0 | W71: 0 | X71: 0 | Y71: 0 | Z71: 0 | AA71: 1 | AB71: 1.0679 | AC71: 1.10282033 | AD71: 1.145609759 | AE71: 1.176197539 | AF71: 1.201485786 | AG71: 1.226476691 | AH71: 1.252355349 | AI71: 1.279030518 | AJ71: 1.306273868 | AK71: 1.334097501 | AL71: 1.360779451 | AM71: 1.38799504 | AN71: 1.415754941 | AO71: 1.44407004 | AP71: 1.472951441 | AQ71: 1.50241047 | AR71: 1.532458679 | AS71: 1.563107853 | AT71: 1.59437001 | AU71: 1.62625741 | AV71: 1.658782558 | AW71: 1.691958209 | AX71: 1.725797373 | AY71: 1.760313321 | AZ71: 1.795519587 | BA71: 1.831429979 | BB71: 1.868058579 | BC71: 1.90541975 | BD71: 1.943528145 | BE71: 1.982398708 | BF71: 2.022046682 | BG71: 2.062487616 | BH71: 2.103737368 | BI71: 2.145812116 | BJ71: 2.188728358
E72: CPI April growth factor 2024 base | G72: factor | AA72: =AA71 / $F70 -> 0.9067660187 | AB72: 0.9683354314 | AC72: 1 | AD72: 1.0388 | AE72: 1.06653596 | AF72: 1.089466483 | AG72: 1.112127386 | AH72: 1.135593274 | AI72: 1.159781411 | AJ72: 1.184484755 | AK72: 1.20971428 | AL72: 1.233908565 | AM72: 1.258586737 | AN72: 1.283758472 | AO72: 1.309433641 | AP72: 1.335622314 | AQ72: 1.36233476 | AR72: 1.389581455 | AS72: 1.417373084 | AT72: 1.445720546 | AU72: 1.474634957 | AV72: 1.504127656 | AW72: 1.534210209 | AX72: 1.564894413 | AY72: 1.596192302 | AZ72: 1.628116148 | BA72: 1.660678471 | BB72: 1.69389204 | BC72: 1.727769881 | BD72: 1.762325279 | BE72: 1.797571784 | BF72: 1.83352322 | BG72: 1.870193684 | BH72: 1.907597558 | BI72: 1.945749509 | BJ72: 1.984664499
B75: CPI Dec Growth factor 2024-2022
E76: =E$23 -> CPI Dec growth rate factor | F76: 0 | G76: factor | H76: 0 | I76: 0 | J76: 0 | K76: 0 | L76: 0 | M76: 0 | N76: 0 | O76: 0 | P76: 0 | Q76: 0 | R76: 0 | S76: 0 | T76: 0 | U76: 0 | V76: 0 | W76: 0 | X76: 0 | Y76: 0 | Z76: 0 | AA76: 1 | AB76: 1.0415 | AC76: 1.0781608 | AD76: 1.116435508 | AE76: 1.141666951 | AF76: 1.165413623 | AG76: 1.190120392 | AH76: 1.215231933 | AI76: 1.241237896 | AJ76: 1.267800387 | AK76: 1.294931315 | AL76: 1.320829941 | AM76: 1.34724654 | AN76: 1.374191471 | AO76: 1.401675301 | AP76: 1.429708807 | AQ76: 1.458302983 | AR76: 1.487469042 | AS76: 1.517218423 | AT76: 1.547562792 | AU76: 1.578514047 | AV76: 1.610084328 | AW76: 1.642286015 | AX76: 1.675131735 | AY76: 1.70863437 | AZ76: 1.742807057 | BA76: 1.777663199 | BB76: 1.813216463 | BC76: 1.849480792 | BD76: 1.886470408 | BE76: 1.924199816 | BF76: 1.962683812 | BG76: 2.001937488 | BH76: 2.041976238 | BI76: 2.082815763 | BJ76: 2.124472078
E77: =E$36 -> 2024 flag | F77: 0 | G77: flag | H77: 0 | I77: 0 | J77: 0 | K77: 0 | L77: 0 | M77: 1 | N77: 0 | O77: 0 | P77: 0 | Q77: 0 | R77: 0 | S77: 0 | T77: 0 | U77: 0 | V77: 0 | W77: 0 | X77: 0 | Y77: 0 | Z77: 0 | AA77: 0 | AB77: 0 | AC77: 1 | AD77: 0 | AE77: 0 | AF77: 0 | AG77: 0 | AH77: 0 | AI77: 0 | AJ77: 0 | AK77: 0 | AL77: 0 | AM77: 0 | AN77: 0 | AO77: 0 | AP77: 0 | AQ77: 0 | AR77: 0 | AS77: 0 | AT77: 0 | AU77: 0 | AV77: 0 | AW77: 0 | AX77: 0 | AY77: 0 | AZ77: 0 | BA77: 0 | BB77: 0 | BC77: 0 | BD77: 0 | BE77: 0 | BF77: 0 | BG77: 0 | BH77: 0 | BI77: 0 | BJ77: 0
E78: CPI Dec Growth factor 2024-2022 | F78: =SUMPRODUCT( $AA76:$BJ76, $AA77:$BJ77 ) -> 1.0781608 | G78: factor
B81: CPI Dec growth factor 2024 base
E82: =E$78 -> CPI Dec Growth factor 2024-2022 | F82: 1.0781608 | G82: factor
E83: =E$23 -> CPI Dec growth rate factor | F83: 0 | G83: factor | H83: 0 | I83: 0 | J83: 0 | K83: 0 | L83: 0 | M83: 0 | N83: 0 | O83: 0 | P83: 0 | Q83: 0 | R83: 0 | S83: 0 | T83: 0 | U83: 0 | V83: 0 | W83: 0 | X83: 0 | Y83: 0 | Z83: 0 | AA83: 1 | AB83: 1.0415 | AC83: 1.0781608 | AD83: 1.116435508 | AE83: 1.141666951 | AF83: 1.165413623 | AG83: 1.190120392 | AH83: 1.215231933 | AI83: 1.241237896 | AJ83: 1.267800387 | AK83: 1.294931315 | AL83: 1.320829941 | AM83: 1.34724654 | AN83: 1.374191471 | AO83: 1.401675301 | AP83: 1.429708807 | AQ83: 1.458302983 | AR83: 1.487469042 | AS83: 1.517218423 | AT83: 1.547562792 | AU83: 1.578514047 | AV83: 1.610084328 | AW83: 1.642286015 | AX83: 1.675131735 | AY83: 1.70863437 | AZ83: 1.742807057 | BA83: 1.777663199 | BB83: 1.813216463 | BC83: 1.849480792 | BD83: 1.886470408 | BE83: 1.924199816 | BF83: 1.962683812 | BG83: 2.001937488 | BH83: 2.041976238 | BI83: 2.082815763 | BJ83: 2.124472078
E84: CPI Dec growth factor 2024 base | G84: factor | AA84: =AA83 / $F82 -> 0.9275054333 | AB84: 0.9659969088 | AC84: 1 | AD84: 1.0355 | AE84: 1.0589023 | AF84: 1.080927468 | AG84: 1.10384313 | AH84: 1.12713422 | AI84: 1.151254893 | AJ84: 1.175891747 | AK84: 1.201055831 | AL84: 1.225076947 | AM84: 1.249578486 | AN84: 1.274570056 | AO84: 1.300061457 | AP84: 1.326062686 | AQ84: 1.35258394 | AR84: 1.379635619 | AS84: 1.407228331 | AT84: 1.435372898 | AU84: 1.464080356 | AV84: 1.493361963 | AW84: 1.523229202 | AX84: 1.553693786 | AY84: 1.584767662 | AZ84: 1.616463015 | BA84: 1.648792275 | BB84: 1.681768121 | BC84: 1.715403483 | BD84: 1.749711553 | BE84: 1.784705784 | BF84: 1.8203999 | BG84: 1.856807898 | BH84: 1.893944056 | BI84: 1.931822937 | BJ84: 1.970459395
B87: CPI Dec/RPI average factor 2024-2022
E88: =E$29 -> CPI Dec/CPI average factor | F88: 0 | G88: factor | H88: 0 | I88: 0 | J88: 0 | K88: 0 | L88: 0 | M88: 0 | N88: 0 | O88: 0 | P88: 0 | Q88: 0 | R88: 0 | S88: 0 | T88: 0 | U88: 0 | V88: 0 | W88: 0 | X88: 0 | Y88: 0 | Z88: 0 | AA88: 1 | AB88: 1.0145 | AC88: 1.0317465 | AD88: 1.045984602 | AE88: 1.056130652 | AF88: 1.065741441 | AG88: 1.075865985 | AH88: 1.085979125 | AI88: 1.096404525 | AJ88: 1.107039649 | AK88: 1.117999341 | AL88: 1.117999341 | AM88: 1.151539321 | AN88: 1.186085501 | AO88: 1.221668066 | AP88: 1.258318108 | AQ88: 1.296067651 | AR88: 1.334949681 | AS88: 1.374998171 | AT88: 1.416248116 | AU88: 1.45873556 | AV88: 1.502497627 | AW88: 1.547572556 | AX88: 1.593999732 | AY88: 1.641819724 | AZ88: 1.691074316 | BA88: 1.741806545 | BB88: 1.794060742 | BC88: 1.847882564 | BD88: 1.847882564 | BE88: 1.847882564 | BF88: 1.847882564 | BG88: 1.847882564 | BH88: 1.847882564 | BI88: 1.847882564 | BJ88: 1.847882564
E89: =E$36 -> 2024 flag | F89: 0 | G89: flag | H89: 0 | I89: 0 | J89: 0 | K89: 0 | L89: 0 | M89: 1 | N89: 0 | O89: 0 | P89: 0 | Q89: 0 | R89: 0 | S89: 0 | T89: 0 | U89: 0 | V89: 0 | W89: 0 | X89: 0 | Y89: 0 | Z89: 0 | AA89: 0 | AB89: 0 | AC89: 1 | AD89: 0 | AE89: 0 | AF89: 0 | AG89: 0 | AH89: 0 | AI89: 0 | AJ89: 0 | AK89: 0 | AL89: 0 | AM89: 0 | AN89: 0 | AO89: 0 | AP89: 0 | AQ89: 0 | AR89: 0 | AS89: 0 | AT89: 0 | AU89: 0 | AV89: 0 | AW89: 0 | AX89: 0 | AY89: 0 | AZ89: 0 | BA89: 0 | BB89: 0 | BC89: 0 | BD89: 0 | BE89: 0 | BF89: 0 | BG89: 0 | BH89: 0 | BI89: 0 | BJ89: 0
E90: CPI Dec/RPI average factor 2024-2022 | F90: =SUMPRODUCT( $AA88:$BJ88, $AA89:$BJ89 ) -> 1.0317465 | G90: factor
B93: CPI Dec/RPI average growth factor 2024 base
E94: =E$90 -> CPI Dec/RPI average factor 2024-2022 | F94: 1.0317465 | G94: factor
E95: =E$29 -> CPI Dec/CPI average factor | F95: 0 | G95: factor | H95: 0 | I95: 0 | J95: 0 | K95: 0 | L95: 0 | M95: 0 | N95: 0 | O95: 0 | P95: 0 | Q95: 0 | R95: 0 | S95: 0 | T95: 0 | U95: 0 | V95: 0 | W95: 0 | X95: 0 | Y95: 0 | Z95: 0 | AA95: 1 | AB95: 1.0145 | AC95: 1.0317465 | AD95: 1.045984602 | AE95: 1.056130652 | AF95: 1.065741441 | AG95: 1.075865985 | AH95: 1.085979125 | AI95: 1.096404525 | AJ95: 1.107039649 | AK95: 1.117999341 | AL95: 1.117999341 | AM95: 1.151539321 | AN95: 1.186085501 | AO95: 1.221668066 | AP95: 1.258318108 | AQ95: 1.296067651 | AR95: 1.334949681 | AS95: 1.374998171 | AT95: 1.416248116 | AU95: 1.45873556 | AV95: 1.502497627 | AW95: 1.547572556 | AX95: 1.593999732 | AY95: 1.641819724 | AZ95: 1.691074316 | BA95: 1.741806545 | BB95: 1.794060742 | BC95: 1.847882564 | BD95: 1.847882564 | BE95: 1.847882564 | BF95: 1.847882564 | BG95: 1.847882564 | BH95: 1.847882564 | BI95: 1.847882564 | BJ95: 1.847882564
E96: CPI Dec/RPI average growth factor 2024 base | G96: factor | AA96: =AA95 / $F94 -> 0.9692303293 | AB96: 0.9832841691 | AC96: 1 | AD96: 1.0138 | AE96: 1.02363386 | AF96: 1.032948928 | AG96: 1.042761943 | AH96: 1.052563905 | AI96: 1.062668519 | AJ96: 1.072976403 | AK96: 1.08359887 | AL96: 1.08359887 | AM96: 1.116106836 | AN96: 1.149590041 | AO96: 1.184077742 | AP96: 1.219600074 | AQ96: 1.256188077 | AR96: 1.293873719 | AS96: 1.33268993 | AT96: 1.372670628 | AU96: 1.413850747 | AV96: 1.45626627 | AW96: 1.499954258 | AX96: 1.544952885 | AY96: 1.591301472 | AZ96: 1.639040516 | BA96: 1.688211732 | BB96: 1.738858084 | BC96: 1.791023826 | BD96: 1.791023826 | BE96: 1.791023826 | BF96: 1.791023826 | BG96: 1.791023826 | BH96: 1.791023826 | BI96: 1.791023826 | BJ96: 1.791023826
B99: Indexation for calculating the discount rate factor
E100: =InpS!E$133 -> Indexation for calculating the discount factor | F100: =InpS!F$133 -> CPIH | G100: =InpS!G$133 -> 0
E101: =InpS!E$398 -> Annual growth rate scenarios (RPI) | F101: =InpS!F$398 -> 0 | G101: =InpS!G$398 -> % | H101: =InpS!H$398 -> CHAW ONS, OBR Nov 2025 | I101: =InpS!I$398 -> Indexation tracker MASTER.xlsx | J101: =InpS!J$398 -> 0 | K101: =InpS!K$398 -> Already Published | L101: =InpS!L$398 -> 0 | M101: =InpS!M$398 -> 0 | N101: =InpS!N$398 -> 0 | O101: =InpS!O$398 -> 0 | P101: =InpS!P$398 -> 0 | Q101: =InpS!Q$398 -> 0 | R101: =InpS!R$398 -> 0 | S101: =InpS!S$398 -> 0 | T101: =InpS!T$398 -> 0 | U101: =InpS!U$398 -> 0 | V101: =InpS!V$398 -> 0 | W101: =InpS!W$398 -> 0 | X101: =InpS!X$398 -> 0 | Y101: =InpS!Y$398 -> 0 | Z101: =InpS!Z$398 -> 0 | AA101: =InpS!AA$398 -> 0.1158 | AB101: =InpS!AB$398 -> 0.0969 | AC101: =InpS!AC$398 -> 0.0358 | AD101: =InpS!AD$398 -> 0.0413 | AE101: =InpS!AE$398 -> 0.0371 | AF101: =InpS!AF$398 -> 0.0313 | AG101: =InpS!AG$398 -> 0.0287 | AH101: =InpS!AH$398 -> 0.029 | AI101: =InpS!AI$398 -> 0.0231 | AJ101: =InpS!AJ$398 -> 0.0231 | AK101: =InpS!AK$398 -> 0.0231 | AL101: =InpS!AL$398 -> 0.02 | AM101: =InpS!AM$398 -> 0.02 | AN101: =InpS!AN$398 -> 0.02 | AO101: =InpS!AO$398 -> 0.02 | AP101: =InpS!AP$398 -> 0.02 | AQ101: =InpS!AQ$398 -> 0.02 | AR101: =InpS!AR$398 -> 0.02 | AS101: =InpS!AS$398 -> 0.02 | AT101: =InpS!AT$398 -> 0.02 | AU101: =InpS!AU$398 -> 0.02 | AV101: =InpS!AV$398 -> 0.02 | AW101: =InpS!AW$398 -> 0.02 | AX101: =InpS!AX$398 -> 0.02 | AY101: =InpS!AY$398 -> 0.02 | AZ101: =InpS!AZ$398 -> 0.02 | BA101: =InpS!BA$398 -> 0.02 | BB101: =InpS!BB$398 -> 0.02 | BC101: =InpS!BC$398 -> 0.02 | BD101: =InpS!BD$398 -> 0.02 | BE101: =InpS!BE$398 -> 0.02 | BF101: =InpS!BF$398 -> 0.02 | BG101: =InpS!BG$398 -> 0.02 | BH101: =InpS!BH$398 -> 0.02 | BI101: =InpS!BI$398 -> 0.02 | BJ101: =InpS!BJ$398 -> 0.02
E102: =InpS!E$399 -> Annual growth rate scenarios (CPI) | F102: =InpS!F$399 -> 0 | G102: =InpS!G$399 -> % | H102: =InpS!H$399 -> CHAW ONS, OBR Nov 2025 | I102: =InpS!I$399 -> Indexation tracker MASTER.xlsx | J102: =InpS!J$399 -> 0 | K102: =InpS!K$399 -> Already Published | L102: =InpS!L$399 -> 0 | M102: =InpS!M$399 -> 0 | N102: =InpS!N$399 -> 0 | O102: =InpS!O$399 -> 0 | P102: =InpS!P$399 -> 0 | Q102: =InpS!Q$399 -> 0 | R102: =InpS!R$399 -> 0 | S102: =InpS!S$399 -> 0 | T102: =InpS!T$399 -> 0 | U102: =InpS!U$399 -> 0 | V102: =InpS!V$399 -> 0 | W102: =InpS!W$399 -> 0 | X102: =InpS!X$399 -> 0 | Y102: =InpS!Y$399 -> 0 | Z102: =InpS!Z$399 -> 0 | AA102: =InpS!AA$399 -> 0.0905 | AB102: =InpS!AB$399 -> 0.073 | AC102: =InpS!AC$399 -> 0.0254 | AD102: =InpS!AD$399 -> 0.0337 | AE102: =InpS!AE$399 -> 0.0248 | AF102: =InpS!AF$399 -> 0.0202 | AG102: =InpS!AG$399 -> 0.0204 | AH102: =InpS!AH$399 -> 0.0204 | AI102: =InpS!AI$399 -> 0.02 | AJ102: =InpS!AJ$399 -> 0.02 | AK102: =InpS!AK$399 -> 0.02 | AL102: =InpS!AL$399 -> 0.02 | AM102: =InpS!AM$399 -> 0.02 | AN102: =InpS!AN$399 -> 0.02 | AO102: =InpS!AO$399 -> 0.02 | AP102: =InpS!AP$399 -> 0.02 | AQ102: =InpS!AQ$399 -> 0.02 | AR102: =InpS!AR$399 -> 0.02 | AS102: =InpS!AS$399 -> 0.02 | AT102: =InpS!AT$399 -> 0.02 | AU102: =InpS!AU$399 -> 0.02 | AV102: =InpS!AV$399 -> 0.02 | AW102: =InpS!AW$399 -> 0.02 | AX102: =InpS!AX$399 -> 0.02 | AY102: =InpS!AY$399 -> 0.02 | AZ102: =InpS!AZ$399 -> 0.02 | BA102: =InpS!BA$399 -> 0.02 | BB102: =InpS!BB$399 -> 0.02 | BC102: =InpS!BC$399 -> 0.02 | BD102: =InpS!BD$399 -> 0.02 | BE102: =InpS!BE$399 -> 0.02 | BF102: =InpS!BF$399 -> 0.02 | BG102: =InpS!BG$399 -> 0.02 | BH102: =InpS!BH$399 -> 0.02 | BI102: =InpS!BI$399 -> 0.02 | BJ102: =InpS!BJ$399 -> 0.02
E103: =InpS!E$400 -> Annual growth rate scenarios (CPIH) | F103: =InpS!F$400 -> 0 | G103: =InpS!G$400 -> % | H103: =InpS!H$400 -> CHAW ONS, OBR Nov 2025 | I103: =InpS!I$400 -> Indexation tracker MASTER.xlsx | J103: =InpS!J$400 -> 0 | K103: =InpS!K$400 -> Already Published | L103: =InpS!L$400 -> 0 | M103: =InpS!M$400 -> 0 | N103: =InpS!N$400 -> 0 | O103: =InpS!O$400 -> 0 | P103: =InpS!P$400 -> 0 | Q103: =InpS!Q$400 -> 0 | R103: =InpS!R$400 -> 0 | S103: =InpS!S$400 -> 0 | T103: =InpS!T$400 -> 0 | U103: =InpS!U$400 -> 0 | V103: =InpS!V$400 -> 0 | W103: =InpS!W$400 -> 0 | X103: =InpS!X$400 -> 0 | Y103: =InpS!Y$400 -> 0 | Z103: =InpS!Z$400 -> 0 | AA103: =InpS!AA$400 -> 0.0792 | AB103: =InpS!AB$400 -> 0.0679 | AC103: =InpS!AC$400 -> 0.0327 | AD103: =InpS!AD$400 -> 0.0388 | AE103: =InpS!AE$400 -> 0.0267 | AF103: =InpS!AF$400 -> 0.0215 | AG103: =InpS!AG$400 -> 0.0208 | AH103: =InpS!AH$400 -> 0.0211 | AI103: =InpS!AI$400 -> 0.0213 | AJ103: =InpS!AJ$400 -> 0.0213 | AK103: =InpS!AK$400 -> 0.0213 | AL103: =InpS!AL$400 -> 0.02 | AM103: =InpS!AM$400 -> 0.02 | AN103: =InpS!AN$400 -> 0.02 | AO103: =InpS!AO$400 -> 0.02 | AP103: =InpS!AP$400 -> 0.02 | AQ103: =InpS!AQ$400 -> 0.02 | AR103: =InpS!AR$400 -> 0.02 | AS103: =InpS!AS$400 -> 0.02 | AT103: =InpS!AT$400 -> 0.02 | AU103: =InpS!AU$400 -> 0.02 | AV103: =InpS!AV$400 -> 0.02 | AW103: =InpS!AW$400 -> 0.02 | AX103: =InpS!AX$400 -> 0.02 | AY103: =InpS!AY$400 -> 0.02 | AZ103: =InpS!AZ$400 -> 0.02 | BA103: =InpS!BA$400 -> 0.02 | BB103: =InpS!BB$400 -> 0.02 | BC103: =InpS!BC$400 -> 0.02 | BD103: =InpS!BD$400 -> 0.02 | BE103: =InpS!BE$400 -> 0.02 | BF103: =InpS!BF$400 -> 0.02 | BG103: =InpS!BG$400 -> 0.02 | BH103: =InpS!BH$400 -> 0.02 | BI103: =InpS!BI$400 -> 0.02 | BJ103: =InpS!BJ$400 -> 0.02
E104: =InpS!E$401 -> Annual growth rate scenarios (CPIH Dec) | F104: =InpS!F$401 -> 0 | G104: =InpS!G$401 -> % | H104: =InpS!H$401 -> 0 | I104: =InpS!I$401 -> 0 | J104: =InpS!J$401 -> 0 | K104: =InpS!K$401 -> 0 | L104: =InpS!L$401 -> 0 | M104: =InpS!M$401 -> 0 | N104: =InpS!N$401 -> 0 | O104: =InpS!O$401 -> 0 | P104: =InpS!P$401 -> 0 | Q104: =InpS!Q$401 -> 0 | R104: =InpS!R$401 -> 0 | S104: =InpS!S$401 -> 0 | T104: =InpS!T$401 -> 0 | U104: =InpS!U$401 -> 0 | V104: =InpS!V$401 -> 0 | W104: =InpS!W$401 -> 0 | X104: =InpS!X$401 -> 0 | Y104: =InpS!Y$401 -> 0 | Z104: =InpS!Z$401 -> 0 | AA104: =InpS!AA$401 -> 0.0924 | AB104: =InpS!AB$401 -> 0.0415 | AC104: =InpS!AC$401 -> 0.0352 | AD104: =InpS!AD$401 -> 0.0355 | AE104: =InpS!AE$401 -> 0.0226 | AF104: =InpS!AF$401 -> 0.0208 | AG104: =InpS!AG$401 -> 0.0212 | AH104: =InpS!AH$401 -> 0.0211 | AI104: =InpS!AI$401 -> 0.0214 | AJ104: =InpS!AJ$401 -> 0.0214 | AK104: =InpS!AK$401 -> 0.0214 | AL104: =InpS!AL$401 -> 0.02 | AM104: =InpS!AM$401 -> 0.02 | AN104: =InpS!AN$401 -> 0.02 | AO104: =InpS!AO$401 -> 0.02 | AP104: =InpS!AP$401 -> 0.02 | AQ104: =InpS!AQ$401 -> 0.02 | AR104: =InpS!AR$401 -> 0.02 | AS104: =InpS!AS$401 -> 0.02 | AT104: =InpS!AT$401 -> 0.02 | AU104: =InpS!AU$401 -> 0.02 | AV104: =InpS!AV$401 -> 0.02 | AW104: =InpS!AW$401 -> 0.02 | AX104: =InpS!AX$401 -> 0.02 | AY104: =InpS!AY$401 -> 0.02 | AZ104: =InpS!AZ$401 -> 0.02 | BA104: =InpS!BA$401 -> 0.02 | BB104: =InpS!BB$401 -> 0.02 | BC104: =InpS!BC$401 -> 0.02 | BD104: =InpS!BD$401 -> 0.02 | BE104: =InpS!BE$401 -> 0.02 | BF104: =InpS!BF$401 -> 0.02 | BG104: =InpS!BG$401 -> 0.02 | BH104: =InpS!BH$401 -> 0.02 | BI104: =InpS!BI$401 -> 0.02 | BJ104: =InpS!BJ$401 -> 0.02
E105: =InpS!E$402 -> Annual growth rate scenarios (CPI Dec/CPI average) | F105: =InpS!F$402 -> 0 | G105: =InpS!G$402 -> % | H105: =InpS!H$402 -> 0 | I105: =InpS!I$402 -> 0 | J105: =InpS!J$402 -> 0 | K105: =InpS!K$402 -> 0 | L105: =InpS!L$402 -> 0 | M105: =InpS!M$402 -> 0 | N105: =InpS!N$402 -> 0 | O105: =InpS!O$402 -> 0 | P105: =InpS!P$402 -> 0 | Q105: =InpS!Q$402 -> 0 | R105: =InpS!R$402 -> 0 | S105: =InpS!S$402 -> 0 | T105: =InpS!T$402 -> 0 | U105: =InpS!U$402 -> 0 | V105: =InpS!V$402 -> 0 | W105: =InpS!W$402 -> 0 | X105: =InpS!X$402 -> 0 | Y105: =InpS!Y$402 -> 0 | Z105: =InpS!Z$402 -> 0 | AA105: =InpS!AA$402 -> 0.0403 | AB105: =InpS!AB$402 -> 0.0145 | AC105: =InpS!AC$402 -> 0.017 | AD105: =InpS!AD$402 -> 0.0138 | AE105: =InpS!AE$402 -> 0.0097 | AF105: =InpS!AF$402 -> 0.0091 | AG105: =InpS!AG$402 -> 0.0095 | AH105: =InpS!AH$402 -> 0.0094 | AI105: =InpS!AI$402 -> 0.0096 | AJ105: =InpS!AJ$402 -> 0.0097 | AK105: =InpS!AK$402 -> 0.0099 | AL105: =InpS!AL$402 -> 0.005701043844 | AM105: =InpS!AM$402 -> 0.005701043844 | AN105: =InpS!AN$402 -> 0.005701043844 | AO105: =InpS!AO$402 -> 0.005701043844 | AP105: =InpS!AP$402 -> 0.005701043844 | AQ105: =InpS!AQ$402 -> 0.005701043844 | AR105: =InpS!AR$402 -> 0.005701043844 | AS105: =InpS!AS$402 -> 0.005701043844 | AT105: =InpS!AT$402 -> 0.005701043844 | AU105: =InpS!AU$402 -> 0.005701043844 | AV105: =InpS!AV$402 -> 0.005701043844 | AW105: =InpS!AW$402 -> 0.005701043844 | AX105: =InpS!AX$402 -> 0.005701043844 | AY105: =InpS!AY$402 -> 0.005701043844 | AZ105: =InpS!AZ$402 -> 0.005701043844 | BA105: =InpS!BA$402 -> 0.005701043844 | BB105: =InpS!BB$402 -> 0.005701043844 | BC105: =InpS!BC$402 -> 0.005701043844 | BD105: =InpS!BD$402 -> 0.005701043844 | BE105: =InpS!BE$402 -> 0.005701043844 | BF105: =InpS!BF$402 -> 0.005701043844 | BG105: =InpS!BG$402 -> 0.005701043844 | BH105: =InpS!BH$402 -> 0.005701043844 | BI105: =InpS!BI$402 -> 0.005701043844 | BJ105: =InpS!BJ$402 -> 0.005701043844
E106: Indexation for calculating the discount rate factor | G106: % | AA106: =INDEX( AA$101:AA$105,MATCH("*(" & $F100 & ")*", $E$101:$E$105,0 )) -> 0.0792 | AB106: 0.0679 | AC106: 0.0327 | AD106: 0.0388 | AE106: 0.0267 | AF106: 0.0215 | AG106: 0.0208 | AH106: 0.0211 | AI106: 0.0213 | AJ106: 0.0213 | AK106: 0.0213 | AL106: 0.02 | AM106: 0.02 | AN106: 0.02 | AO106: 0.02 | AP106: 0.02 | AQ106: 0.02 | AR106: 0.02 | AS106: 0.02 | AT106: 0.02 | AU106: 0.02 | AV106: 0.02 | AW106: 0.02 | AX106: 0.02 | AY106: 0.02 | AZ106: 0.02 | BA106: 0.02 | BB106: 0.02 | BC106: 0.02 | BD106: 0.02 | BE106: 0.02 | BF106: 0.02 | BG106: 0.02 | BH106: 0.02 | BI106: 0.02 | BJ106: 0.02
B109: Existing RAB indexation%
E110: =InpS!E$132 -> Existing RAB indexation type | F110: =InpS!F$132 -> CPIH Dec | G110: =InpS!G$132 -> 0
E111: =InpS!E$398 -> Annual growth rate scenarios (RPI) | F111: =InpS!F$398 -> 0 | G111: =InpS!G$398 -> % | H111: =InpS!H$398 -> CHAW ONS, OBR Nov 2025 | I111: =InpS!I$398 -> Indexation tracker MASTER.xlsx | J111: =InpS!J$398 -> 0 | K111: =InpS!K$398 -> Already Published | L111: =InpS!L$398 -> 0 | M111: =InpS!M$398 -> 0 | N111: =InpS!N$398 -> 0 | O111: =InpS!O$398 -> 0 | P111: =InpS!P$398 -> 0 | Q111: =InpS!Q$398 -> 0 | R111: =InpS!R$398 -> 0 | S111: =InpS!S$398 -> 0 | T111: =InpS!T$398 -> 0 | U111: =InpS!U$398 -> 0 | V111: =InpS!V$398 -> 0 | W111: =InpS!W$398 -> 0 | X111: =InpS!X$398 -> 0 | Y111: =InpS!Y$398 -> 0 | Z111: =InpS!Z$398 -> 0 | AA111: =InpS!AA$398 -> 0.1158 | AB111: =InpS!AB$398 -> 0.0969 | AC111: =InpS!AC$398 -> 0.0358 | AD111: =InpS!AD$398 -> 0.0413 | AE111: =InpS!AE$398 -> 0.0371 | AF111: =InpS!AF$398 -> 0.0313 | AG111: =InpS!AG$398 -> 0.0287 | AH111: =InpS!AH$398 -> 0.029 | AI111: =InpS!AI$398 -> 0.0231 | AJ111: =InpS!AJ$398 -> 0.0231 | AK111: =InpS!AK$398 -> 0.0231 | AL111: =InpS!AL$398 -> 0.02 | AM111: =InpS!AM$398 -> 0.02 | AN111: =InpS!AN$398 -> 0.02 | AO111: =InpS!AO$398 -> 0.02 | AP111: =InpS!AP$398 -> 0.02 | AQ111: =InpS!AQ$398 -> 0.02 | AR111: =InpS!AR$398 -> 0.02 | AS111: =InpS!AS$398 -> 0.02 | AT111: =InpS!AT$398 -> 0.02 | AU111: =InpS!AU$398 -> 0.02 | AV111: =InpS!AV$398 -> 0.02 | AW111: =InpS!AW$398 -> 0.02 | AX111: =InpS!AX$398 -> 0.02 | AY111: =InpS!AY$398 -> 0.02 | AZ111: =InpS!AZ$398 -> 0.02 | BA111: =InpS!BA$398 -> 0.02 | BB111: =InpS!BB$398 -> 0.02 | BC111: =InpS!BC$398 -> 0.02 | BD111: =InpS!BD$398 -> 0.02 | BE111: =InpS!BE$398 -> 0.02 | BF111: =InpS!BF$398 -> 0.02 | BG111: =InpS!BG$398 -> 0.02 | BH111: =InpS!BH$398 -> 0.02 | BI111: =InpS!BI$398 -> 0.02 | BJ111: =InpS!BJ$398 -> 0.02
E112: =InpS!E$399 -> Annual growth rate scenarios (CPI) | F112: =InpS!F$399 -> 0 | G112: =InpS!G$399 -> % | H112: =InpS!H$399 -> CHAW ONS, OBR Nov 2025 | I112: =InpS!I$399 -> Indexation tracker MASTER.xlsx | J112: =InpS!J$399 -> 0 | K112: =InpS!K$399 -> Already Published | L112: =InpS!L$399 -> 0 | M112: =InpS!M$399 -> 0 | N112: =InpS!N$399 -> 0 | O112: =InpS!O$399 -> 0 | P112: =InpS!P$399 -> 0 | Q112: =InpS!Q$399 -> 0 | R112: =InpS!R$399 -> 0 | S112: =InpS!S$399 -> 0 | T112: =InpS!T$399 -> 0 | U112: =InpS!U$399 -> 0 | V112: =InpS!V$399 -> 0 | W112: =InpS!W$399 -> 0 | X112: =InpS!X$399 -> 0 | Y112: =InpS!Y$399 -> 0 | Z112: =InpS!Z$399 -> 0 | AA112: =InpS!AA$399 -> 0.0905 | AB112: =InpS!AB$399 -> 0.073 | AC112: =InpS!AC$399 -> 0.0254 | AD112: =InpS!AD$399 -> 0.0337 | AE112: =InpS!AE$399 -> 0.0248 | AF112: =InpS!AF$399 -> 0.0202 | AG112: =InpS!AG$399 -> 0.0204 | AH112: =InpS!AH$399 -> 0.0204 | AI112: =InpS!AI$399 -> 0.02 | AJ112: =InpS!AJ$399 -> 0.02 | AK112: =InpS!AK$399 -> 0.02 | AL112: =InpS!AL$399 -> 0.02 | AM112: =InpS!AM$399 -> 0.02 | AN112: =InpS!AN$399 -> 0.02 | AO112: =InpS!AO$399 -> 0.02 | AP112: =InpS!AP$399 -> 0.02 | AQ112: =InpS!AQ$399 -> 0.02 | AR112: =InpS!AR$399 -> 0.02 | AS112: =InpS!AS$399 -> 0.02 | AT112: =InpS!AT$399 -> 0.02 | AU112: =InpS!AU$399 -> 0.02 | AV112: =InpS!AV$399 -> 0.02 | AW112: =InpS!AW$399 -> 0.02 | AX112: =InpS!AX$399 -> 0.02 | AY112: =InpS!AY$399 -> 0.02 | AZ112: =InpS!AZ$399 -> 0.02 | BA112: =InpS!BA$399 -> 0.02 | BB112: =InpS!BB$399 -> 0.02 | BC112: =InpS!BC$399 -> 0.02 | BD112: =InpS!BD$399 -> 0.02 | BE112: =InpS!BE$399 -> 0.02 | BF112: =InpS!BF$399 -> 0.02 | BG112: =InpS!BG$399 -> 0.02 | BH112: =InpS!BH$399 -> 0.02 | BI112: =InpS!BI$399 -> 0.02 | BJ112: =InpS!BJ$399 -> 0.02
E113: =InpS!E$400 -> Annual growth rate scenarios (CPIH) | F113: =InpS!F$400 -> 0 | G113: =InpS!G$400 -> % | H113: =InpS!H$400 -> CHAW ONS, OBR Nov 2025 | I113: =InpS!I$400 -> Indexation tracker MASTER.xlsx | J113: =InpS!J$400 -> 0 | K113: =InpS!K$400 -> Already Published | L113: =InpS!L$400 -> 0 | M113: =InpS!M$400 -> 0 | N113: =InpS!N$400 -> 0 | O113: =InpS!O$400 -> 0 | P113: =InpS!P$400 -> 0 | Q113: =InpS!Q$400 -> 0 | R113: =InpS!R$400 -> 0 | S113: =InpS!S$400 -> 0 | T113: =InpS!T$400 -> 0 | U113: =InpS!U$400 -> 0 | V113: =InpS!V$400 -> 0 | W113: =InpS!W$400 -> 0 | X113: =InpS!X$400 -> 0 | Y113: =InpS!Y$400 -> 0 | Z113: =InpS!Z$400 -> 0 | AA113: =InpS!AA$400 -> 0.0792 | AB113: =InpS!AB$400 -> 0.0679 | AC113: =InpS!AC$400 -> 0.0327 | AD113: =InpS!AD$400 -> 0.0388 | AE113: =InpS!AE$400 -> 0.0267 | AF113: =InpS!AF$400 -> 0.0215 | AG113: =InpS!AG$400 -> 0.0208 | AH113: =InpS!AH$400 -> 0.0211 | AI113: =InpS!AI$400 -> 0.0213 | AJ113: =InpS!AJ$400 -> 0.0213 | AK113: =InpS!AK$400 -> 0.0213 | AL113: =InpS!AL$400 -> 0.02 | AM113: =InpS!AM$400 -> 0.02 | AN113: =InpS!AN$400 -> 0.02 | AO113: =InpS!AO$400 -> 0.02 | AP113: =InpS!AP$400 -> 0.02 | AQ113: =InpS!AQ$400 -> 0.02 | AR113: =InpS!AR$400 -> 0.02 | AS113: =InpS!AS$400 -> 0.02 | AT113: =InpS!AT$400 -> 0.02 | AU113: =InpS!AU$400 -> 0.02 | AV113: =InpS!AV$400 -> 0.02 | AW113: =InpS!AW$400 -> 0.02 | AX113: =InpS!AX$400 -> 0.02 | AY113: =InpS!AY$400 -> 0.02 | AZ113: =InpS!AZ$400 -> 0.02 | BA113: =InpS!BA$400 -> 0.02 | BB113: =InpS!BB$400 -> 0.02 | BC113: =InpS!BC$400 -> 0.02 | BD113: =InpS!BD$400 -> 0.02 | BE113: =InpS!BE$400 -> 0.02 | BF113: =InpS!BF$400 -> 0.02 | BG113: =InpS!BG$400 -> 0.02 | BH113: =InpS!BH$400 -> 0.02 | BI113: =InpS!BI$400 -> 0.02 | BJ113: =InpS!BJ$400 -> 0.02
E114: =InpS!E$401 -> Annual growth rate scenarios (CPIH Dec) | F114: =InpS!F$401 -> 0 | G114: =InpS!G$401 -> % | H114: =InpS!H$401 -> 0 | I114: =InpS!I$401 -> 0 | J114: =InpS!J$401 -> 0 | K114: =InpS!K$401 -> 0 | L114: =InpS!L$401 -> 0 | M114: =InpS!M$401 -> 0 | N114: =InpS!N$401 -> 0 | O114: =InpS!O$401 -> 0 | P114: =InpS!P$401 -> 0 | Q114: =InpS!Q$401 -> 0 | R114: =InpS!R$401 -> 0 | S114: =InpS!S$401 -> 0 | T114: =InpS!T$401 -> 0 | U114: =InpS!U$401 -> 0 | V114: =InpS!V$401 -> 0 | W114: =InpS!W$401 -> 0 | X114: =InpS!X$401 -> 0 | Y114: =InpS!Y$401 -> 0 | Z114: =InpS!Z$401 -> 0 | AA114: =InpS!AA$401 -> 0.0924 | AB114: =InpS!AB$401 -> 0.0415 | AC114: =InpS!AC$401 -> 0.0352 | AD114: =InpS!AD$401 -> 0.0355 | AE114: =InpS!AE$401 -> 0.0226 | AF114: =InpS!AF$401 -> 0.0208 | AG114: =InpS!AG$401 -> 0.0212 | AH114: =InpS!AH$401 -> 0.0211 | AI114: =InpS!AI$401 -> 0.0214 | AJ114: =InpS!AJ$401 -> 0.0214 | AK114: =InpS!AK$401 -> 0.0214 | AL114: =InpS!AL$401 -> 0.02 | AM114: =InpS!AM$401 -> 0.02 | AN114: =InpS!AN$401 -> 0.02 | AO114: =InpS!AO$401 -> 0.02 | AP114: =InpS!AP$401 -> 0.02 | AQ114: =InpS!AQ$401 -> 0.02 | AR114: =InpS!AR$401 -> 0.02 | AS114: =InpS!AS$401 -> 0.02 | AT114: =InpS!AT$401 -> 0.02 | AU114: =InpS!AU$401 -> 0.02 | AV114: =InpS!AV$401 -> 0.02 | AW114: =InpS!AW$401 -> 0.02 | AX114: =InpS!AX$401 -> 0.02 | AY114: =InpS!AY$401 -> 0.02 | AZ114: =InpS!AZ$401 -> 0.02 | BA114: =InpS!BA$401 -> 0.02 | BB114: =InpS!BB$401 -> 0.02 | BC114: =InpS!BC$401 -> 0.02 | BD114: =InpS!BD$401 -> 0.02 | BE114: =InpS!BE$401 -> 0.02 | BF114: =InpS!BF$401 -> 0.02 | BG114: =InpS!BG$401 -> 0.02 | BH114: =InpS!BH$401 -> 0.02 | BI114: =InpS!BI$401 -> 0.02 | BJ114: =InpS!BJ$401 -> 0.02
E115: =InpS!E$402 -> Annual growth rate scenarios (CPI Dec/CPI average) | F115: =InpS!F$402 -> 0 | G115: =InpS!G$402 -> % | H115: =InpS!H$402 -> 0 | I115: =InpS!I$402 -> 0 | J115: =InpS!J$402 -> 0 | K115: =InpS!K$402 -> 0 | L115: =InpS!L$402 -> 0 | M115: =InpS!M$402 -> 0 | N115: =InpS!N$402 -> 0 | O115: =InpS!O$402 -> 0 | P115: =InpS!P$402 -> 0 | Q115: =InpS!Q$402 -> 0 | R115: =InpS!R$402 -> 0 | S115: =InpS!S$402 -> 0 | T115: =InpS!T$402 -> 0 | U115: =InpS!U$402 -> 0 | V115: =InpS!V$402 -> 0 | W115: =InpS!W$402 -> 0 | X115: =InpS!X$402 -> 0 | Y115: =InpS!Y$402 -> 0 | Z115: =InpS!Z$402 -> 0 | AA115: =InpS!AA$402 -> 0.0403 | AB115: =InpS!AB$402 -> 0.0145 | AC115: =InpS!AC$402 -> 0.017 | AD115: =InpS!AD$402 -> 0.0138 | AE115: =InpS!AE$402 -> 0.0097 | AF115: =InpS!AF$402 -> 0.0091 | AG115: =InpS!AG$402 -> 0.0095 | AH115: =InpS!AH$402 -> 0.0094 | AI115: =InpS!AI$402 -> 0.0096 | AJ115: =InpS!AJ$402 -> 0.0097 | AK115: =InpS!AK$402 -> 0.0099 | AL115: =InpS!AL$402 -> 0.005701043844 | AM115: =InpS!AM$402 -> 0.005701043844 | AN115: =InpS!AN$402 -> 0.005701043844 | AO115: =InpS!AO$402 -> 0.005701043844 | AP115: =InpS!AP$402 -> 0.005701043844 | AQ115: =InpS!AQ$402 -> 0.005701043844 | AR115: =InpS!AR$402 -> 0.005701043844 | AS115: =InpS!AS$402 -> 0.005701043844 | AT115: =InpS!AT$402 -> 0.005701043844 | AU115: =InpS!AU$402 -> 0.005701043844 | AV115: =InpS!AV$402 -> 0.005701043844 | AW115: =InpS!AW$402 -> 0.005701043844 | AX115: =InpS!AX$402 -> 0.005701043844 | AY115: =InpS!AY$402 -> 0.005701043844 | AZ115: =InpS!AZ$402 -> 0.005701043844 | BA115: =InpS!BA$402 -> 0.005701043844 | BB115: =InpS!BB$402 -> 0.005701043844 | BC115: =InpS!BC$402 -> 0.005701043844 | BD115: =InpS!BD$402 -> 0.005701043844 | BE115: =InpS!BE$402 -> 0.005701043844 | BF115: =InpS!BF$402 -> 0.005701043844 | BG115: =InpS!BG$402 -> 0.005701043844 | BH115: =InpS!BH$402 -> 0.005701043844 | BI115: =InpS!BI$402 -> 0.005701043844 | BJ115: =InpS!BJ$402 -> 0.005701043844
E116: Existing RAB indexation% | G116: % | AA116: =INDEX( AA$111:AA$115,MATCH("*(" & $F110 & ")*", $E$111:$E$115,0 )) -> 0.0924 | AB116: 0.0415 | AC116: 0.0352 | AD116: 0.0355 | AE116: 0.0226 | AF116: 0.0208 | AG116: 0.0212 | AH116: 0.0211 | AI116: 0.0214 | AJ116: 0.0214 | AK116: 0.0214 | AL116: 0.02 | AM116: 0.02 | AN116: 0.02 | AO116: 0.02 | AP116: 0.02 | AQ116: 0.02 | AR116: 0.02 | AS116: 0.02 | AT116: 0.02 | AU116: 0.02 | AV116: 0.02 | AW116: 0.02 | AX116: 0.02 | AY116: 0.02 | AZ116: 0.02 | BA116: 0.02 | BB116: 0.02 | BC116: 0.02 | BD116: 0.02 | BE116: 0.02 | BF116: 0.02 | BG116: 0.02 | BH116: 0.02 | BI116: 0.02 | BJ116: 0.02
B119: Capex and Depreciation (in year) indexation for RAB
E120: =InpS!E$131 -> Capex and Depreciation (in year) indexation for RAB type | F120: =InpS!F$131 -> CPI Dec/CPI average | G120: =InpS!G$131 -> 0
E121: =InpS!E$398 -> Annual growth rate scenarios (RPI) | F121: =InpS!F$398 -> 0 | G121: =InpS!G$398 -> % | H121: =InpS!H$398 -> CHAW ONS, OBR Nov 2025 | I121: =InpS!I$398 -> Indexation tracker MASTER.xlsx | J121: =InpS!J$398 -> 0 | K121: =InpS!K$398 -> Already Published | L121: =InpS!L$398 -> 0 | M121: =InpS!M$398 -> 0 | N121: =InpS!N$398 -> 0 | O121: =InpS!O$398 -> 0 | P121: =InpS!P$398 -> 0 | Q121: =InpS!Q$398 -> 0 | R121: =InpS!R$398 -> 0 | S121: =InpS!S$398 -> 0 | T121: =InpS!T$398 -> 0 | U121: =InpS!U$398 -> 0 | V121: =InpS!V$398 -> 0 | W121: =InpS!W$398 -> 0 | X121: =InpS!X$398 -> 0 | Y121: =InpS!Y$398 -> 0 | Z121: =InpS!Z$398 -> 0 | AA121: =InpS!AA$398 -> 0.1158 | AB121: =InpS!AB$398 -> 0.0969 | AC121: =InpS!AC$398 -> 0.0358 | AD121: =InpS!AD$398 -> 0.0413 | AE121: =InpS!AE$398 -> 0.0371 | AF121: =InpS!AF$398 -> 0.0313 | AG121: =InpS!AG$398 -> 0.0287 | AH121: =InpS!AH$398 -> 0.029 | AI121: =InpS!AI$398 -> 0.0231 | AJ121: =InpS!AJ$398 -> 0.0231 | AK121: =InpS!AK$398 -> 0.0231 | AL121: =InpS!AL$398 -> 0.02 | AM121: =InpS!AM$398 -> 0.02 | AN121: =InpS!AN$398 -> 0.02 | AO121: =InpS!AO$398 -> 0.02 | AP121: =InpS!AP$398 -> 0.02 | AQ121: =InpS!AQ$398 -> 0.02 | AR121: =InpS!AR$398 -> 0.02 | AS121: =InpS!AS$398 -> 0.02 | AT121: =InpS!AT$398 -> 0.02 | AU121: =InpS!AU$398 -> 0.02 | AV121: =InpS!AV$398 -> 0.02 | AW121: =InpS!AW$398 -> 0.02 | AX121: =InpS!AX$398 -> 0.02 | AY121: =InpS!AY$398 -> 0.02 | AZ121: =InpS!AZ$398 -> 0.02 | BA121: =InpS!BA$398 -> 0.02 | BB121: =InpS!BB$398 -> 0.02 | BC121: =InpS!BC$398 -> 0.02 | BD121: =InpS!BD$398 -> 0.02 | BE121: =InpS!BE$398 -> 0.02 | BF121: =InpS!BF$398 -> 0.02 | BG121: =InpS!BG$398 -> 0.02 | BH121: =InpS!BH$398 -> 0.02 | BI121: =InpS!BI$398 -> 0.02 | BJ121: =InpS!BJ$398 -> 0.02
E122: =InpS!E$399 -> Annual growth rate scenarios (CPI) | F122: =InpS!F$399 -> 0 | G122: =InpS!G$399 -> % | H122: =InpS!H$399 -> CHAW ONS, OBR Nov 2025 | I122: =InpS!I$399 -> Indexation tracker MASTER.xlsx | J122: =InpS!J$399 -> 0 | K122: =InpS!K$399 -> Already Published | L122: =InpS!L$399 -> 0 | M122: =InpS!M$399 -> 0 | N122: =InpS!N$399 -> 0 | O122: =InpS!O$399 -> 0 | P122: =InpS!P$399 -> 0 | Q122: =InpS!Q$399 -> 0 | R122: =InpS!R$399 -> 0 | S122: =InpS!S$399 -> 0 | T122: =InpS!T$399 -> 0 | U122: =InpS!U$399 -> 0 | V122: =InpS!V$399 -> 0 | W122: =InpS!W$399 -> 0 | X122: =InpS!X$399 -> 0 | Y122: =InpS!Y$399 -> 0 | Z122: =InpS!Z$399 -> 0 | AA122: =InpS!AA$399 -> 0.0905 | AB122: =InpS!AB$399 -> 0.073 | AC122: =InpS!AC$399 -> 0.0254 | AD122: =InpS!AD$399 -> 0.0337 | AE122: =InpS!AE$399 -> 0.0248 | AF122: =InpS!AF$399 -> 0.0202 | AG122: =InpS!AG$399 -> 0.0204 | AH122: =InpS!AH$399 -> 0.0204 | AI122: =InpS!AI$399 -> 0.02 | AJ122: =InpS!AJ$399 -> 0.02 | AK122: =InpS!AK$399 -> 0.02 | AL122: =InpS!AL$399 -> 0.02 | AM122: =InpS!AM$399 -> 0.02 | AN122: =InpS!AN$399 -> 0.02 | AO122: =InpS!AO$399 -> 0.02 | AP122: =InpS!AP$399 -> 0.02 | AQ122: =InpS!AQ$399 -> 0.02 | AR122: =InpS!AR$399 -> 0.02 | AS122: =InpS!AS$399 -> 0.02 | AT122: =InpS!AT$399 -> 0.02 | AU122: =InpS!AU$399 -> 0.02 | AV122: =InpS!AV$399 -> 0.02 | AW122: =InpS!AW$399 -> 0.02 | AX122: =InpS!AX$399 -> 0.02 | AY122: =InpS!AY$399 -> 0.02 | AZ122: =InpS!AZ$399 -> 0.02 | BA122: =InpS!BA$399 -> 0.02 | BB122: =InpS!BB$399 -> 0.02 | BC122: =InpS!BC$399 -> 0.02 | BD122: =InpS!BD$399 -> 0.02 | BE122: =InpS!BE$399 -> 0.02 | BF122: =InpS!BF$399 -> 0.02 | BG122: =InpS!BG$399 -> 0.02 | BH122: =InpS!BH$399 -> 0.02 | BI122: =InpS!BI$399 -> 0.02 | BJ122: =InpS!BJ$399 -> 0.02
E123: =InpS!E$400 -> Annual growth rate scenarios (CPIH) | F123: =InpS!F$400 -> 0 | G123: =InpS!G$400 -> % | H123: =InpS!H$400 -> CHAW ONS, OBR Nov 2025 | I123: =InpS!I$400 -> Indexation tracker MASTER.xlsx | J123: =InpS!J$400 -> 0 | K123: =InpS!K$400 -> Already Published | L123: =InpS!L$400 -> 0 | M123: =InpS!M$400 -> 0 | N123: =InpS!N$400 -> 0 | O123: =InpS!O$400 -> 0 | P123: =InpS!P$400 -> 0 | Q123: =InpS!Q$400 -> 0 | R123: =InpS!R$400 -> 0 | S123: =InpS!S$400 -> 0 | T123: =InpS!T$400 -> 0 | U123: =InpS!U$400 -> 0 | V123: =InpS!V$400 -> 0 | W123: =InpS!W$400 -> 0 | X123: =InpS!X$400 -> 0 | Y123: =InpS!Y$400 -> 0 | Z123: =InpS!Z$400 -> 0 | AA123: =InpS!AA$400 -> 0.0792 | AB123: =InpS!AB$400 -> 0.0679 | AC123: =InpS!AC$400 -> 0.0327 | AD123: =InpS!AD$400 -> 0.0388 | AE123: =InpS!AE$400 -> 0.0267 | AF123: =InpS!AF$400 -> 0.0215 | AG123: =InpS!AG$400 -> 0.0208 | AH123: =InpS!AH$400 -> 0.0211 | AI123: =InpS!AI$400 -> 0.0213 | AJ123: =InpS!AJ$400 -> 0.0213 | AK123: =InpS!AK$400 -> 0.0213 | AL123: =InpS!AL$400 -> 0.02 | AM123: =InpS!AM$400 -> 0.02 | AN123: =InpS!AN$400 -> 0.02 | AO123: =InpS!AO$400 -> 0.02 | AP123: =InpS!AP$400 -> 0.02 | AQ123: =InpS!AQ$400 -> 0.02 | AR123: =InpS!AR$400 -> 0.02 | AS123: =InpS!AS$400 -> 0.02 | AT123: =InpS!AT$400 -> 0.02 | AU123: =InpS!AU$400 -> 0.02 | AV123: =InpS!AV$400 -> 0.02 | AW123: =InpS!AW$400 -> 0.02 | AX123: =InpS!AX$400 -> 0.02 | AY123: =InpS!AY$400 -> 0.02 | AZ123: =InpS!AZ$400 -> 0.02 | BA123: =InpS!BA$400 -> 0.02 | BB123: =InpS!BB$400 -> 0.02 | BC123: =InpS!BC$400 -> 0.02 | BD123: =InpS!BD$400 -> 0.02 | BE123: =InpS!BE$400 -> 0.02 | BF123: =InpS!BF$400 -> 0.02 | BG123: =InpS!BG$400 -> 0.02 | BH123: =InpS!BH$400 -> 0.02 | BI123: =InpS!BI$400 -> 0.02 | BJ123: =InpS!BJ$400 -> 0.02
E124: =InpS!E$401 -> Annual growth rate scenarios (CPIH Dec) | F124: =InpS!F$401 -> 0 | G124: =InpS!G$401 -> % | H124: =InpS!H$401 -> 0 | I124: =InpS!I$401 -> 0 | J124: =InpS!J$401 -> 0 | K124: =InpS!K$401 -> 0 | L124: =InpS!L$401 -> 0 | M124: =InpS!M$401 -> 0 | N124: =InpS!N$401 -> 0 | O124: =InpS!O$401 -> 0 | P124: =InpS!P$401 -> 0 | Q124: =InpS!Q$401 -> 0 | R124: =InpS!R$401 -> 0 | S124: =InpS!S$401 -> 0 | T124: =InpS!T$401 -> 0 | U124: =InpS!U$401 -> 0 | V124: =InpS!V$401 -> 0 | W124: =InpS!W$401 -> 0 | X124: =InpS!X$401 -> 0 | Y124: =InpS!Y$401 -> 0 | Z124: =InpS!Z$401 -> 0 | AA124: =InpS!AA$401 -> 0.0924 | AB124: =InpS!AB$401 -> 0.0415 | AC124: =InpS!AC$401 -> 0.0352 | AD124: =InpS!AD$401 -> 0.0355 | AE124: =InpS!AE$401 -> 0.0226 | AF124: =InpS!AF$401 -> 0.0208 | AG124: =InpS!AG$401 -> 0.0212 | AH124: =InpS!AH$401 -> 0.0211 | AI124: =InpS!AI$401 -> 0.0214 | AJ124: =InpS!AJ$401 -> 0.0214 | AK124: =InpS!AK$401 -> 0.0214 | AL124: =InpS!AL$401 -> 0.02 | AM124: =InpS!AM$401 -> 0.02 | AN124: =InpS!AN$401 -> 0.02 | AO124: =InpS!AO$401 -> 0.02 | AP124: =InpS!AP$401 -> 0.02 | AQ124: =InpS!AQ$401 -> 0.02 | AR124: =InpS!AR$401 -> 0.02 | AS124: =InpS!AS$401 -> 0.02 | AT124: =InpS!AT$401 -> 0.02 | AU124: =InpS!AU$401 -> 0.02 | AV124: =InpS!AV$401 -> 0.02 | AW124: =InpS!AW$401 -> 0.02 | AX124: =InpS!AX$401 -> 0.02 | AY124: =InpS!AY$401 -> 0.02 | AZ124: =InpS!AZ$401 -> 0.02 | BA124: =InpS!BA$401 -> 0.02 | BB124: =InpS!BB$401 -> 0.02 | BC124: =InpS!BC$401 -> 0.02 | BD124: =InpS!BD$401 -> 0.02 | BE124: =InpS!BE$401 -> 0.02 | BF124: =InpS!BF$401 -> 0.02 | BG124: =InpS!BG$401 -> 0.02 | BH124: =InpS!BH$401 -> 0.02 | BI124: =InpS!BI$401 -> 0.02 | BJ124: =InpS!BJ$401 -> 0.02
E125: =InpS!E$402 -> Annual growth rate scenarios (CPI Dec/CPI average) | F125: =InpS!F$402 -> 0 | G125: =InpS!G$402 -> % | H125: =InpS!H$402 -> 0 | I125: =InpS!I$402 -> 0 | J125: =InpS!J$402 -> 0 | K125: =InpS!K$402 -> 0 | L125: =InpS!L$402 -> 0 | M125: =InpS!M$402 -> 0 | N125: =InpS!N$402 -> 0 | O125: =InpS!O$402 -> 0 | P125: =InpS!P$402 -> 0 | Q125: =InpS!Q$402 -> 0 | R125: =InpS!R$402 -> 0 | S125: =InpS!S$402 -> 0 | T125: =InpS!T$402 -> 0 | U125: =InpS!U$402 -> 0 | V125: =InpS!V$402 -> 0 | W125: =InpS!W$402 -> 0 | X125: =InpS!X$402 -> 0 | Y125: =InpS!Y$402 -> 0 | Z125: =InpS!Z$402 -> 0 | AA125: =InpS!AA$402 -> 0.0403 | AB125: =InpS!AB$402 -> 0.0145 | AC125: =InpS!AC$402 -> 0.017 | AD125: =InpS!AD$402 -> 0.0138 | AE125: =InpS!AE$402 -> 0.0097 | AF125: =InpS!AF$402 -> 0.0091 | AG125: =InpS!AG$402 -> 0.0095 | AH125: =InpS!AH$402 -> 0.0094 | AI125: =InpS!AI$402 -> 0.0096 | AJ125: =InpS!AJ$402 -> 0.0097 | AK125: =InpS!AK$402 -> 0.0099 | AL125: =InpS!AL$402 -> 0.005701043844 | AM125: =InpS!AM$402 -> 0.005701043844 | AN125: =InpS!AN$402 -> 0.005701043844 | AO125: =InpS!AO$402 -> 0.005701043844 | AP125: =InpS!AP$402 -> 0.005701043844 | AQ125: =InpS!AQ$402 -> 0.005701043844 | AR125: =InpS!AR$402 -> 0.005701043844 | AS125: =InpS!AS$402 -> 0.005701043844 | AT125: =InpS!AT$402 -> 0.005701043844 | AU125: =InpS!AU$402 -> 0.005701043844 | AV125: =InpS!AV$402 -> 0.005701043844 | AW125: =InpS!AW$402 -> 0.005701043844 | AX125: =InpS!AX$402 -> 0.005701043844 | AY125: =InpS!AY$402 -> 0.005701043844 | AZ125: =InpS!AZ$402 -> 0.005701043844 | BA125: =InpS!BA$402 -> 0.005701043844 | BB125: =InpS!BB$402 -> 0.005701043844 | BC125: =InpS!BC$402 -> 0.005701043844 | BD125: =InpS!BD$402 -> 0.005701043844 | BE125: =InpS!BE$402 -> 0.005701043844 | BF125: =InpS!BF$402 -> 0.005701043844 | BG125: =InpS!BG$402 -> 0.005701043844 | BH125: =InpS!BH$402 -> 0.005701043844 | BI125: =InpS!BI$402 -> 0.005701043844 | BJ125: =InpS!BJ$402 -> 0.005701043844
E126: Capex and Depreciation (in year) indexation for RAB | G126: % | AA126: =INDEX( AA$121:AA$125,MATCH("*(" & $F120 & ")*", $E$121:$E$125,0 )) -> 0.0403 | AB126: 0.0145 | AC126: 0.017 | AD126: 0.0138 | AE126: 0.0097 | AF126: 0.0091 | AG126: 0.0095 | AH126: 0.0094 | AI126: 0.0096 | AJ126: 0.0097 | AK126: 0.0099 | AL126: 0.005701043844 | AM126: 0.005701043844 | AN126: 0.005701043844 | AO126: 0.005701043844 | AP126: 0.005701043844 | AQ126: 0.005701043844 | AR126: 0.005701043844 | AS126: 0.005701043844 | AT126: 0.005701043844 | AU126: 0.005701043844 | AV126: 0.005701043844 | AW126: 0.005701043844 | AX126: 0.005701043844 | AY126: 0.005701043844 | AZ126: 0.005701043844 | BA126: 0.005701043844 | BB126: 0.005701043844 | BC126: 0.005701043844 | BD126: 0.005701043844 | BE126: 0.005701043844 | BF126: 0.005701043844 | BG126: 0.005701043844 | BH126: 0.005701043844 | BI126: 0.005701043844 | BJ126: 0.005701043844
B129: RAB Indexation factor
E130: =InpS!E$130 -> RAB Indexation type | F130: =InpS!F$130 -> CPIH | G130: =InpS!G$130 -> 0
E131: =InpS!E$387 -> Annual Growth rate factor indexation scenarios (RPI) | F131: =InpS!F$387 -> 0 | G131: =InpS!G$387 -> factor | H131: =InpS!H$387 -> CHAW ONS, OBR Nov 2025 | I131: =InpS!I$387 -> Indexation tracker MASTER.xlsx | J131: =InpS!J$387 -> 0 | K131: =InpS!K$387 -> Already Published | L131: =InpS!L$387 -> 0 | M131: =InpS!M$387 -> 0 | N131: =InpS!N$387 -> 0 | O131: =InpS!O$387 -> 0 | P131: =InpS!P$387 -> 0 | Q131: =InpS!Q$387 -> 0 | R131: =InpS!R$387 -> 0 | S131: =InpS!S$387 -> 0 | T131: =InpS!T$387 -> 0 | U131: =InpS!U$387 -> 0 | V131: =InpS!V$387 -> 0 | W131: =InpS!W$387 -> 0 | X131: =InpS!X$387 -> 0 | Y131: =InpS!Y$387 -> 0 | Z131: =InpS!Z$387 -> 0 | AA131: =InpS!AA$387 -> 0.88 | AB131: =InpS!AB$387 -> 0.97 | AC131: =InpS!AC$387 -> 1 | AD131: =InpS!AD$387 -> 1.04 | AE131: =InpS!AE$387 -> 1.08 | AF131: =InpS!AF$387 -> 1.11 | AG131: =InpS!AG$387 -> 1.15 | AH131: =InpS!AH$387 -> 1.18 | AI131: =InpS!AI$387 -> 1.21 | AJ131: =InpS!AJ$387 -> 1.23 | AK131: =InpS!AK$387 -> 1.26 | AL131: =InpS!AL$387 -> 0 | AM131: =InpS!AM$387 -> 1.292938224 | AN131: =InpS!AN$387 -> 1.318796988 | AO131: =InpS!AO$387 -> 1.345172928 | AP131: =InpS!AP$387 -> 1.372076386 | AQ131: =InpS!AQ$387 -> 1.399517914 | AR131: =InpS!AR$387 -> 1.427508272 | AS131: =InpS!AS$387 -> 1.456058438 | AT131: =InpS!AT$387 -> 1.485179607 | AU131: =InpS!AU$387 -> 1.514883199 | AV131: =InpS!AV$387 -> 1.545180863 | AW131: =InpS!AW$387 -> 1.57608448 | AX131: =InpS!AX$387 -> 1.60760617 | AY131: =InpS!AY$387 -> 1.639758293 | AZ131: =InpS!AZ$387 -> 1.672553459 | BA131: =InpS!BA$387 -> 1.706004528 | BB131: =InpS!BB$387 -> 1.740124619 | BC131: =InpS!BC$387 -> 1.774927111 | BD131: =InpS!BD$387 -> 1.810425653 | BE131: =InpS!BE$387 -> 1.846634166 | BF131: =InpS!BF$387 -> 1.88356685 | BG131: =InpS!BG$387 -> 1.921238187 | BH131: =InpS!BH$387 -> 1.95966295 | BI131: =InpS!BI$387 -> 1.998856209 | BJ131: =InpS!BJ$387 -> 2.038833333
E132: =InpS!E$388 -> Annual Growth rate factor indexation scenarios (CPI) | F132: =InpS!F$388 -> 0 | G132: =InpS!G$388 -> factor | H132: =InpS!H$388 -> CHAW ONS, OBR Nov 2025 | I132: =InpS!I$388 -> Indexation tracker MASTER.xlsx | J132: =InpS!J$388 -> 0 | K132: =InpS!K$388 -> Already Published | L132: =InpS!L$388 -> 0 | M132: =InpS!M$388 -> 0 | N132: =InpS!N$388 -> 0 | O132: =InpS!O$388 -> 0 | P132: =InpS!P$388 -> 0 | Q132: =InpS!Q$388 -> 0 | R132: =InpS!R$388 -> 0 | S132: =InpS!S$388 -> 0 | T132: =InpS!T$388 -> 0 | U132: =InpS!U$388 -> 0 | V132: =InpS!V$388 -> 0 | W132: =InpS!W$388 -> 0 | X132: =InpS!X$388 -> 0 | Y132: =InpS!Y$388 -> 0 | Z132: =InpS!Z$388 -> 0 | AA132: =InpS!AA$388 -> 0.91 | AB132: =InpS!AB$388 -> 0.98 | AC132: =InpS!AC$388 -> 1 | AD132: =InpS!AD$388 -> 1.03 | AE132: =InpS!AE$388 -> 1.06 | AF132: =InpS!AF$388 -> 1.08 | AG132: =InpS!AG$388 -> 1.1 | AH132: =InpS!AH$388 -> 1.13 | AI132: =InpS!AI$388 -> 1.15 | AJ132: =InpS!AJ$388 -> 1.171 | AK132: =InpS!AK$388 -> 1.19 | AL132: =InpS!AL$388 -> 1.21018352 | AM132: =InpS!AM$388 -> 1.234387191 | AN132: =InpS!AN$388 -> 1.259074935 | AO132: =InpS!AO$388 -> 1.284256433 | AP132: =InpS!AP$388 -> 1.309941562 | AQ132: =InpS!AQ$388 -> 1.336140393 | AR132: =InpS!AR$388 -> 1.362863201 | AS132: =InpS!AS$388 -> 1.390120465 | AT132: =InpS!AT$388 -> 1.417922874 | AU132: =InpS!AU$388 -> 1.446281332 | AV132: =InpS!AV$388 -> 1.475206959 | AW132: =InpS!AW$388 -> 1.504711098 | AX132: =InpS!AX$388 -> 1.53480532 | AY132: =InpS!AY$388 -> 1.565501426 | AZ132: =InpS!AZ$388 -> 1.596811455 | BA132: =InpS!BA$388 -> 1.628747684 | BB132: =InpS!BB$388 -> 1.661322637 | BC132: =InpS!BC$388 -> 1.69454909 | BD132: =InpS!BD$388 -> 1.728440072 | BE132: =InpS!BE$388 -> 1.763008873 | BF132: =InpS!BF$388 -> 1.798269051 | BG132: =InpS!BG$388 -> 1.834234432 | BH132: =InpS!BH$388 -> 1.87091912 | BI132: =InpS!BI$388 -> 1.908337503 | BJ132: =InpS!BJ$388 -> 1.946504253
E133: =InpS!E$389 -> Annual Growth rate factor indexation scenarios (CPIH) | F133: =InpS!F$389 -> 0 | G133: =InpS!G$389 -> factor | H133: =InpS!H$389 -> CHAW ONS, OBR Nov 2025 | I133: =InpS!I$389 -> Indexation tracker MASTER.xlsx | J133: =InpS!J$389 -> 0 | K133: =InpS!K$389 -> Already Published | L133: =InpS!L$389 -> 0 | M133: =InpS!M$389 -> 0 | N133: =InpS!N$389 -> 0 | O133: =InpS!O$389 -> 0 | P133: =InpS!P$389 -> 0 | Q133: =InpS!Q$389 -> 0 | R133: =InpS!R$389 -> 0 | S133: =InpS!S$389 -> 0 | T133: =InpS!T$389 -> 0 | U133: =InpS!U$389 -> 0 | V133: =InpS!V$389 -> 0 | W133: =InpS!W$389 -> 0 | X133: =InpS!X$389 -> 0 | Y133: =InpS!Y$389 -> 0 | Z133: =InpS!Z$389 -> 0 | AA133: =InpS!AA$389 -> 0.91 | AB133: =InpS!AB$389 -> 0.97 | AC133: =InpS!AC$389 -> 1 | AD133: =InpS!AD$389 -> 1.04 | AE133: =InpS!AE$389 -> 1.07 | AF133: =InpS!AF$389 -> 1.09 | AG133: =InpS!AG$389 -> 1.11 | AH133: =InpS!AH$389 -> 1.14 | AI133: =InpS!AI$389 -> 1.16 | AJ133: =InpS!AJ$389 -> 1.18 | AK133: =InpS!AK$389 -> 1.21 | AL133: =InpS!AL$389 -> 1.237168878 | AM133: =InpS!AM$389 -> 1.261912256 | AN133: =InpS!AN$389 -> 1.287150501 | AO133: =InpS!AO$389 -> 1.312893511 | AP133: =InpS!AP$389 -> 1.339151381 | AQ133: =InpS!AQ$389 -> 1.365934409 | AR133: =InpS!AR$389 -> 1.393253097 | AS133: =InpS!AS$389 -> 1.421118159 | AT133: =InpS!AT$389 -> 1.449540522 | AU133: =InpS!AU$389 -> 1.478531333 | AV133: =InpS!AV$389 -> 1.508101959 | AW133: =InpS!AW$389 -> 1.538263999 | AX133: =InpS!AX$389 -> 1.569029278 | AY133: =InpS!AY$389 -> 1.600409864 | AZ133: =InpS!AZ$389 -> 1.632418061 | BA133: =InpS!BA$389 -> 1.665066423 | BB133: =InpS!BB$389 -> 1.698367751 | BC133: =InpS!BC$389 -> 1.732335106 | BD133: =InpS!BD$389 -> 1.766981808 | BE133: =InpS!BE$389 -> 1.802321444 | BF133: =InpS!BF$389 -> 1.838367873 | BG133: =InpS!BG$389 -> 1.875135231 | BH133: =InpS!BH$389 -> 1.912637935 | BI133: =InpS!BI$389 -> 1.950890694 | BJ133: =InpS!BJ$389 -> 1.989908508
E134: =InpS!E$390 -> Annual Growth rate factor indexation scenarios (CPIH Dec) | F134: =InpS!F$390 -> 0 | G134: =InpS!G$390 -> factor | H134: =InpS!H$390 -> CHAW ONS, OBR Nov 2025 | I134: =InpS!I$390 -> Indexation tracker MASTER.xlsx | J134: =InpS!J$390 -> 0 | K134: =InpS!K$390 -> Already Published | L134: =InpS!L$390 -> 0 | M134: =InpS!M$390 -> 0 | N134: =InpS!N$390 -> 0 | O134: =InpS!O$390 -> 0 | P134: =InpS!P$390 -> 0 | Q134: =InpS!Q$390 -> 0 | R134: =InpS!R$390 -> 0 | S134: =InpS!S$390 -> 0 | T134: =InpS!T$390 -> 0 | U134: =InpS!U$390 -> 0 | V134: =InpS!V$390 -> 0 | W134: =InpS!W$390 -> 0 | X134: =InpS!X$390 -> 0 | Y134: =InpS!Y$390 -> 0 | Z134: =InpS!Z$390 -> 0 | AA134: =InpS!AA$390 -> 0.93 | AB134: =InpS!AB$390 -> 0.97 | AC134: =InpS!AC$390 -> 1 | AD134: =InpS!AD$390 -> 1.04 | AE134: =InpS!AE$390 -> 1.06 | AF134: =InpS!AF$390 -> 1.08 | AG134: =InpS!AG$390 -> 1.1 | AH134: =InpS!AH$390 -> 1.13 | AI134: =InpS!AI$390 -> 1.15 | AJ134: =InpS!AJ$390 -> 1.18 | AK134: =InpS!AK$390 -> 1.2 | AL134: =InpS!AL$390 -> 1.240549805 | AM134: =InpS!AM$390 -> 1.265360801 | AN134: =InpS!AN$390 -> 1.290668017 | AO134: =InpS!AO$390 -> 1.316481377 | AP134: =InpS!AP$390 -> 1.342811005 | AQ134: =InpS!AQ$390 -> 1.369667225 | AR134: =InpS!AR$390 -> 1.397060569 | AS134: =InpS!AS$390 -> 1.425001781 | AT134: =InpS!AT$390 -> 1.453501816 | AU134: =InpS!AU$390 -> 1.482571853 | AV134: =InpS!AV$390 -> 1.51222329 | AW134: =InpS!AW$390 -> 1.542467756 | AX134: =InpS!AX$390 -> 1.573317111 | AY134: =InpS!AY$390 -> 1.604783453 | AZ134: =InpS!AZ$390 -> 1.636879122 | BA134: =InpS!BA$390 -> 1.669616704 | BB134: =InpS!BB$390 -> 1.703009039 | BC134: =InpS!BC$390 -> 1.737069219 | BD134: =InpS!BD$390 -> 1.771810604 | BE134: =InpS!BE$390 -> 1.807246816 | BF134: =InpS!BF$390 -> 1.843391752 | BG134: =InpS!BG$390 -> 1.880259587 | BH134: =InpS!BH$390 -> 1.917864779 | BI134: =InpS!BI$390 -> 1.956222074 | BJ134: =InpS!BJ$390 -> 1.995346516
E135: =InpS!E$391 -> Annual Growth rate factor indexation scenarios (CPIH Dec/CPIH Average) | F135: =InpS!F$391 -> 0 | G135: =InpS!G$391 -> factor | H135: =InpS!H$391 -> 0 | I135: =InpS!I$391 -> 0 | J135: =InpS!J$391 -> 0 | K135: =InpS!K$391 -> 0 | L135: =InpS!L$391 -> 0 | M135: =InpS!M$391 -> 0 | N135: =InpS!N$391 -> 0 | O135: =InpS!O$391 -> 0 | P135: =InpS!P$391 -> 0 | Q135: =InpS!Q$391 -> 0 | R135: =InpS!R$391 -> 0 | S135: =InpS!S$391 -> 0 | T135: =InpS!T$391 -> 0 | U135: =InpS!U$391 -> 0 | V135: =InpS!V$391 -> 0 | W135: =InpS!W$391 -> 0 | X135: =InpS!X$391 -> 0 | Y135: =InpS!Y$391 -> 0 | Z135: =InpS!Z$391 -> 0 | AA135: =InpS!AA$391 -> 1.04 | AB135: =InpS!AB$391 -> 1.01 | AC135: =InpS!AC$391 -> 1.02 | AD135: =InpS!AD$391 -> 1.01 | AE135: =InpS!AE$391 -> 1.01 | AF135: =InpS!AF$391 -> 1.01 | AG135: =InpS!AG$391 -> 1.01 | AH135: =InpS!AH$391 -> 1.01 | AI135: =InpS!AI$391 -> 1.01 | AJ135: =InpS!AJ$391 -> 1.01 | AK135: =InpS!AK$391 -> 1.01 | AL135: =InpS!AL$391 -> 0 | AM135: =InpS!AM$391 -> 0 | AN135: =InpS!AN$391 -> 0 | AO135: =InpS!AO$391 -> 0 | AP135: =InpS!AP$391 -> 0 | AQ135: =InpS!AQ$391 -> 0 | AR135: =InpS!AR$391 -> 0 | AS135: =InpS!AS$391 -> 0 | AT135: =InpS!AT$391 -> 0 | AU135: =InpS!AU$391 -> 0 | AV135: =InpS!AV$391 -> 0 | AW135: =InpS!AW$391 -> 0 | AX135: =InpS!AX$391 -> 0 | AY135: =InpS!AY$391 -> 0 | AZ135: =InpS!AZ$391 -> 0 | BA135: =InpS!BA$391 -> 0 | BB135: =InpS!BB$391 -> 0 | BC135: =InpS!BC$391 -> 0 | BD135: =InpS!BD$391 -> 0 | BE135: =InpS!BE$391 -> 0 | BF135: =InpS!BF$391 -> 0 | BG135: =InpS!BG$391 -> 0 | BH135: =InpS!BH$391 -> 0 | BI135: =InpS!BI$391 -> 0 | BJ135: =InpS!BJ$391 -> 0
E136: RAB Indexation factor | G136: factor | AA136: =INDEX( AA$131:AA$135,MATCH("*(" & $F130 & ")*", $E$131:$E$135,0 )) -> 0.91 | AB136: 0.97 | AC136: 1 | AD136: 1.04 | AE136: 1.07 | AF136: 1.09 | AG136: 1.11 | AH136: 1.14 | AI136: 1.16 | AJ136: 1.18 | AK136: 1.21 | AL136: 1.237168878 | AM136: 1.261912256 | AN136: 1.287150501 | AO136: 1.312893511 | AP136: 1.339151381 | AQ136: 1.365934409 | AR136: 1.393253097 | AS136: 1.421118159 | AT136: 1.449540522 | AU136: 1.478531333 | AV136: 1.508101959 | AW136: 1.538263999 | AX136: 1.569029278 | AY136: 1.600409864 | AZ136: 1.632418061 | BA136: 1.665066423 | BB136: 1.698367751 | BC136: 1.732335106 | BD136: 1.766981808 | BE136: 1.802321444 | BF136: 1.838367873 | BG136: 1.875135231 | BH136: 1.912637935 | BI136: 1.950890694 | BJ136: 1.989908508
B139: Index-linked debt indexation factor
E140: =InpS!E$129 -> Index-linked Indexation type | F140: =InpS!F$129 -> CPIH | G140: =InpS!G$129 -> 0
E141: =InpS!E$387 -> Annual Growth rate factor indexation scenarios (RPI) | F141: =InpS!F$387 -> 0 | G141: =InpS!G$387 -> factor | H141: =InpS!H$387 -> CHAW ONS, OBR Nov 2025 | I141: =InpS!I$387 -> Indexation tracker MASTER.xlsx | J141: =InpS!J$387 -> 0 | K141: =InpS!K$387 -> Already Published | L141: =InpS!L$387 -> 0 | M141: =InpS!M$387 -> 0 | N141: =InpS!N$387 -> 0 | O141: =InpS!O$387 -> 0 | P141: =InpS!P$387 -> 0 | Q141: =InpS!Q$387 -> 0 | R141: =InpS!R$387 -> 0 | S141: =InpS!S$387 -> 0 | T141: =InpS!T$387 -> 0 | U141: =InpS!U$387 -> 0 | V141: =InpS!V$387 -> 0 | W141: =InpS!W$387 -> 0 | X141: =InpS!X$387 -> 0 | Y141: =InpS!Y$387 -> 0 | Z141: =InpS!Z$387 -> 0 | AA141: =InpS!AA$387 -> 0.88 | AB141: =InpS!AB$387 -> 0.97 | AC141: =InpS!AC$387 -> 1 | AD141: =InpS!AD$387 -> 1.04 | AE141: =InpS!AE$387 -> 1.08 | AF141: =InpS!AF$387 -> 1.11 | AG141: =InpS!AG$387 -> 1.15 | AH141: =InpS!AH$387 -> 1.18 | AI141: =InpS!AI$387 -> 1.21 | AJ141: =InpS!AJ$387 -> 1.23 | AK141: =InpS!AK$387 -> 1.26 | AL141: =InpS!AL$387 -> 0 | AM141: =InpS!AM$387 -> 1.292938224 | AN141: =InpS!AN$387 -> 1.318796988 | AO141: =InpS!AO$387 -> 1.345172928 | AP141: =InpS!AP$387 -> 1.372076386 | AQ141: =InpS!AQ$387 -> 1.399517914 | AR141: =InpS!AR$387 -> 1.427508272 | AS141: =InpS!AS$387 -> 1.456058438 | AT141: =InpS!AT$387 -> 1.485179607 | AU141: =InpS!AU$387 -> 1.514883199 | AV141: =InpS!AV$387 -> 1.545180863 | AW141: =InpS!AW$387 -> 1.57608448 | AX141: =InpS!AX$387 -> 1.60760617 | AY141: =InpS!AY$387 -> 1.639758293 | AZ141: =InpS!AZ$387 -> 1.672553459 | BA141: =InpS!BA$387 -> 1.706004528 | BB141: =InpS!BB$387 -> 1.740124619 | BC141: =InpS!BC$387 -> 1.774927111 | BD141: =InpS!BD$387 -> 1.810425653 | BE141: =InpS!BE$387 -> 1.846634166 | BF141: =InpS!BF$387 -> 1.88356685 | BG141: =InpS!BG$387 -> 1.921238187 | BH141: =InpS!BH$387 -> 1.95966295 | BI141: =InpS!BI$387 -> 1.998856209 | BJ141: =InpS!BJ$387 -> 2.038833333
E142: =InpS!E$388 -> Annual Growth rate factor indexation scenarios (CPI) | F142: =InpS!F$388 -> 0 | G142: =InpS!G$388 -> factor | H142: =InpS!H$388 -> CHAW ONS, OBR Nov 2025 | I142: =InpS!I$388 -> Indexation tracker MASTER.xlsx | J142: =InpS!J$388 -> 0 | K142: =InpS!K$388 -> Already Published | L142: =InpS!L$388 -> 0 | M142: =InpS!M$388 -> 0 | N142: =InpS!N$388 -> 0 | O142: =InpS!O$388 -> 0 | P142: =InpS!P$388 -> 0 | Q142: =InpS!Q$388 -> 0 | R142: =InpS!R$388 -> 0 | S142: =InpS!S$388 -> 0 | T142: =InpS!T$388 -> 0 | U142: =InpS!U$388 -> 0 | V142: =InpS!V$388 -> 0 | W142: =InpS!W$388 -> 0 | X142: =InpS!X$388 -> 0 | Y142: =InpS!Y$388 -> 0 | Z142: =InpS!Z$388 -> 0 | AA142: =InpS!AA$388 -> 0.91 | AB142: =InpS!AB$388 -> 0.98 | AC142: =InpS!AC$388 -> 1 | AD142: =InpS!AD$388 -> 1.03 | AE142: =InpS!AE$388 -> 1.06 | AF142: =InpS!AF$388 -> 1.08 | AG142: =InpS!AG$388 -> 1.1 | AH142: =InpS!AH$388 -> 1.13 | AI142: =InpS!AI$388 -> 1.15 | AJ142: =InpS!AJ$388 -> 1.171 | AK142: =InpS!AK$388 -> 1.19 | AL142: =InpS!AL$388 -> 1.21018352 | AM142: =InpS!AM$388 -> 1.234387191 | AN142: =InpS!AN$388 -> 1.259074935 | AO142: =InpS!AO$388 -> 1.284256433 | AP142: =InpS!AP$388 -> 1.309941562 | AQ142: =InpS!AQ$388 -> 1.336140393 | AR142: =InpS!AR$388 -> 1.362863201 | AS142: =InpS!AS$388 -> 1.390120465 | AT142: =InpS!AT$388 -> 1.417922874 | AU142: =InpS!AU$388 -> 1.446281332 | AV142: =InpS!AV$388 -> 1.475206959 | AW142: =InpS!AW$388 -> 1.504711098 | AX142: =InpS!AX$388 -> 1.53480532 | AY142: =InpS!AY$388 -> 1.565501426 | AZ142: =InpS!AZ$388 -> 1.596811455 | BA142: =InpS!BA$388 -> 1.628747684 | BB142: =InpS!BB$388 -> 1.661322637 | BC142: =InpS!BC$388 -> 1.69454909 | BD142: =InpS!BD$388 -> 1.728440072 | BE142: =InpS!BE$388 -> 1.763008873 | BF142: =InpS!BF$388 -> 1.798269051 | BG142: =InpS!BG$388 -> 1.834234432 | BH142: =InpS!BH$388 -> 1.87091912 | BI142: =InpS!BI$388 -> 1.908337503 | BJ142: =InpS!BJ$388 -> 1.946504253
E143: =InpS!E$389 -> Annual Growth rate factor indexation scenarios (CPIH) | F143: =InpS!F$389 -> 0 | G143: =InpS!G$389 -> factor | H143: =InpS!H$389 -> CHAW ONS, OBR Nov 2025 | I143: =InpS!I$389 -> Indexation tracker MASTER.xlsx | J143: =InpS!J$389 -> 0 | K143: =InpS!K$389 -> Already Published | L143: =InpS!L$389 -> 0 | M143: =InpS!M$389 -> 0 | N143: =InpS!N$389 -> 0 | O143: =InpS!O$389 -> 0 | P143: =InpS!P$389 -> 0 | Q143: =InpS!Q$389 -> 0 | R143: =InpS!R$389 -> 0 | S143: =InpS!S$389 -> 0 | T143: =InpS!T$389 -> 0 | U143: =InpS!U$389 -> 0 | V143: =InpS!V$389 -> 0 | W143: =InpS!W$389 -> 0 | X143: =InpS!X$389 -> 0 | Y143: =InpS!Y$389 -> 0 | Z143: =InpS!Z$389 -> 0 | AA143: =InpS!AA$389 -> 0.91 | AB143: =InpS!AB$389 -> 0.97 | AC143: =InpS!AC$389 -> 1 | AD143: =InpS!AD$389 -> 1.04 | AE143: =InpS!AE$389 -> 1.07 | AF143: =InpS!AF$389 -> 1.09 | AG143: =InpS!AG$389 -> 1.11 | AH143: =InpS!AH$389 -> 1.14 | AI143: =InpS!AI$389 -> 1.16 | AJ143: =InpS!AJ$389 -> 1.18 | AK143: =InpS!AK$389 -> 1.21 | AL143: =InpS!AL$389 -> 1.237168878 | AM143: =InpS!AM$389 -> 1.261912256 | AN143: =InpS!AN$389 -> 1.287150501 | AO143: =InpS!AO$389 -> 1.312893511 | AP143: =InpS!AP$389 -> 1.339151381 | AQ143: =InpS!AQ$389 -> 1.365934409 | AR143: =InpS!AR$389 -> 1.393253097 | AS143: =InpS!AS$389 -> 1.421118159 | AT143: =InpS!AT$389 -> 1.449540522 | AU143: =InpS!AU$389 -> 1.478531333 | AV143: =InpS!AV$389 -> 1.508101959 | AW143: =InpS!AW$389 -> 1.538263999 | AX143: =InpS!AX$389 -> 1.569029278 | AY143: =InpS!AY$389 -> 1.600409864 | AZ143: =InpS!AZ$389 -> 1.632418061 | BA143: =InpS!BA$389 -> 1.665066423 | BB143: =InpS!BB$389 -> 1.698367751 | BC143: =InpS!BC$389 -> 1.732335106 | BD143: =InpS!BD$389 -> 1.766981808 | BE143: =InpS!BE$389 -> 1.802321444 | BF143: =InpS!BF$389 -> 1.838367873 | BG143: =InpS!BG$389 -> 1.875135231 | BH143: =InpS!BH$389 -> 1.912637935 | BI143: =InpS!BI$389 -> 1.950890694 | BJ143: =InpS!BJ$389 -> 1.989908508
E144: =InpS!E$390 -> Annual Growth rate factor indexation scenarios (CPIH Dec) | F144: =InpS!F$390 -> 0 | G144: =InpS!G$390 -> factor | H144: =InpS!H$390 -> CHAW ONS, OBR Nov 2025 | I144: =InpS!I$390 -> Indexation tracker MASTER.xlsx | J144: =InpS!J$390 -> 0 | K144: =InpS!K$390 -> Already Published | L144: =InpS!L$390 -> 0 | M144: =InpS!M$390 -> 0 | N144: =InpS!N$390 -> 0 | O144: =InpS!O$390 -> 0 | P144: =InpS!P$390 -> 0 | Q144: =InpS!Q$390 -> 0 | R144: =InpS!R$390 -> 0 | S144: =InpS!S$390 -> 0 | T144: =InpS!T$390 -> 0 | U144: =InpS!U$390 -> 0 | V144: =InpS!V$390 -> 0 | W144: =InpS!W$390 -> 0 | X144: =InpS!X$390 -> 0 | Y144: =InpS!Y$390 -> 0 | Z144: =InpS!Z$390 -> 0 | AA144: =InpS!AA$390 -> 0.93 | AB144: =InpS!AB$390 -> 0.97 | AC144: =InpS!AC$390 -> 1 | AD144: =InpS!AD$390 -> 1.04 | AE144: =InpS!AE$390 -> 1.06 | AF144: =InpS!AF$390 -> 1.08 | AG144: =InpS!AG$390 -> 1.1 | AH144: =InpS!AH$390 -> 1.13 | AI144: =InpS!AI$390 -> 1.15 | AJ144: =InpS!AJ$390 -> 1.18 | AK144: =InpS!AK$390 -> 1.2 | AL144: =InpS!AL$390 -> 1.240549805 | AM144: =InpS!AM$390 -> 1.265360801 | AN144: =InpS!AN$390 -> 1.290668017 | AO144: =InpS!AO$390 -> 1.316481377 | AP144: =InpS!AP$390 -> 1.342811005 | AQ144: =InpS!AQ$390 -> 1.369667225 | AR144: =InpS!AR$390 -> 1.397060569 | AS144: =InpS!AS$390 -> 1.425001781 | AT144: =InpS!AT$390 -> 1.453501816 | AU144: =InpS!AU$390 -> 1.482571853 | AV144: =InpS!AV$390 -> 1.51222329 | AW144: =InpS!AW$390 -> 1.542467756 | AX144: =InpS!AX$390 -> 1.573317111 | AY144: =InpS!AY$390 -> 1.604783453 | AZ144: =InpS!AZ$390 -> 1.636879122 | BA144: =InpS!BA$390 -> 1.669616704 | BB144: =InpS!BB$390 -> 1.703009039 | BC144: =InpS!BC$390 -> 1.737069219 | BD144: =InpS!BD$390 -> 1.771810604 | BE144: =InpS!BE$390 -> 1.807246816 | BF144: =InpS!BF$390 -> 1.843391752 | BG144: =InpS!BG$390 -> 1.880259587 | BH144: =InpS!BH$390 -> 1.917864779 | BI144: =InpS!BI$390 -> 1.956222074 | BJ144: =InpS!BJ$390 -> 1.995346516
E145: =InpS!E$391 -> Annual Growth rate factor indexation scenarios (CPIH Dec/CPIH Average) | F145: =InpS!F$391 -> 0 | G145: =InpS!G$391 -> factor | H145: =InpS!H$391 -> 0 | I145: =InpS!I$391 -> 0 | J145: =InpS!J$391 -> 0 | K145: =InpS!K$391 -> 0 | L145: =InpS!L$391 -> 0 | M145: =InpS!M$391 -> 0 | N145: =InpS!N$391 -> 0 | O145: =InpS!O$391 -> 0 | P145: =InpS!P$391 -> 0 | Q145: =InpS!Q$391 -> 0 | R145: =InpS!R$391 -> 0 | S145: =InpS!S$391 -> 0 | T145: =InpS!T$391 -> 0 | U145: =InpS!U$391 -> 0 | V145: =InpS!V$391 -> 0 | W145: =InpS!W$391 -> 0 | X145: =InpS!X$391 -> 0 | Y145: =InpS!Y$391 -> 0 | Z145: =InpS!Z$391 -> 0 | AA145: =InpS!AA$391 -> 1.04 | AB145: =InpS!AB$391 -> 1.01 | AC145: =InpS!AC$391 -> 1.02 | AD145: =InpS!AD$391 -> 1.01 | AE145: =InpS!AE$391 -> 1.01 | AF145: =InpS!AF$391 -> 1.01 | AG145: =InpS!AG$391 -> 1.01 | AH145: =InpS!AH$391 -> 1.01 | AI145: =InpS!AI$391 -> 1.01 | AJ145: =InpS!AJ$391 -> 1.01 | AK145: =InpS!AK$391 -> 1.01 | AL145: =InpS!AL$391 -> 0 | AM145: =InpS!AM$391 -> 0 | AN145: =InpS!AN$391 -> 0 | AO145: =InpS!AO$391 -> 0 | AP145: =InpS!AP$391 -> 0 | AQ145: =InpS!AQ$391 -> 0 | AR145: =InpS!AR$391 -> 0 | AS145: =InpS!AS$391 -> 0 | AT145: =InpS!AT$391 -> 0 | AU145: =InpS!AU$391 -> 0 | AV145: =InpS!AV$391 -> 0 | AW145: =InpS!AW$391 -> 0 | AX145: =InpS!AX$391 -> 0 | AY145: =InpS!AY$391 -> 0 | AZ145: =InpS!AZ$391 -> 0 | BA145: =InpS!BA$391 -> 0 | BB145: =InpS!BB$391 -> 0 | BC145: =InpS!BC$391 -> 0 | BD145: =InpS!BD$391 -> 0 | BE145: =InpS!BE$391 -> 0 | BF145: =InpS!BF$391 -> 0 | BG145: =InpS!BG$391 -> 0 | BH145: =InpS!BH$391 -> 0 | BI145: =InpS!BI$391 -> 0 | BJ145: =InpS!BJ$391 -> 0
E146: Index-linked debt indexation factor | G146: factor | AA146: =INDEX( AA$141:AA$145,MATCH("*(" & $F140 & ")*", $E$141:$E$145,0 )) -> 0.91 | AB146: 0.97 | AC146: 1 | AD146: 1.04 | AE146: 1.07 | AF146: 1.09 | AG146: 1.11 | AH146: 1.14 | AI146: 1.16 | AJ146: 1.18 | AK146: 1.21 | AL146: 1.237168878 | AM146: 1.261912256 | AN146: 1.287150501 | AO146: 1.312893511 | AP146: 1.339151381 | AQ146: 1.365934409 | AR146: 1.393253097 | AS146: 1.421118159 | AT146: 1.449540522 | AU146: 1.478531333 | AV146: 1.508101959 | AW146: 1.538263999 | AX146: 1.569029278 | AY146: 1.600409864 | AZ146: 1.632418061 | BA146: 1.665066423 | BB146: 1.698367751 | BC146: 1.732335106 | BD146: 1.766981808 | BE146: 1.802321444 | BF146: 1.838367873 | BG146: 1.875135231 | BH146: 1.912637935 | BI146: 1.950890694 | BJ146: 1.989908508
B149: Existing RAB indexation factor
E150: =InpS!E$132 -> Existing RAB indexation type | F150: =InpS!F$132 -> CPIH Dec | G150: =InpS!G$132 -> 0
E151: =InpS!E$387 -> Annual Growth rate factor indexation scenarios (RPI) | F151: =InpS!F$387 -> 0 | G151: =InpS!G$387 -> factor | H151: =InpS!H$387 -> CHAW ONS, OBR Nov 2025 | I151: =InpS!I$387 -> Indexation tracker MASTER.xlsx | J151: =InpS!J$387 -> 0 | K151: =InpS!K$387 -> Already Published | L151: =InpS!L$387 -> 0 | M151: =InpS!M$387 -> 0 | N151: =InpS!N$387 -> 0 | O151: =InpS!O$387 -> 0 | P151: =InpS!P$387 -> 0 | Q151: =InpS!Q$387 -> 0 | R151: =InpS!R$387 -> 0 | S151: =InpS!S$387 -> 0 | T151: =InpS!T$387 -> 0 | U151: =InpS!U$387 -> 0 | V151: =InpS!V$387 -> 0 | W151: =InpS!W$387 -> 0 | X151: =InpS!X$387 -> 0 | Y151: =InpS!Y$387 -> 0 | Z151: =InpS!Z$387 -> 0 | AA151: =InpS!AA$387 -> 0.88 | AB151: =InpS!AB$387 -> 0.97 | AC151: =InpS!AC$387 -> 1 | AD151: =InpS!AD$387 -> 1.04 | AE151: =InpS!AE$387 -> 1.08 | AF151: =InpS!AF$387 -> 1.11 | AG151: =InpS!AG$387 -> 1.15 | AH151: =InpS!AH$387 -> 1.18 | AI151: =InpS!AI$387 -> 1.21 | AJ151: =InpS!AJ$387 -> 1.23 | AK151: =InpS!AK$387 -> 1.26 | AL151: =InpS!AL$387 -> 0 | AM151: =InpS!AM$387 -> 1.292938224 | AN151: =InpS!AN$387 -> 1.318796988 | AO151: =InpS!AO$387 -> 1.345172928 | AP151: =InpS!AP$387 -> 1.372076386 | AQ151: =InpS!AQ$387 -> 1.399517914 | AR151: =InpS!AR$387 -> 1.427508272 | AS151: =InpS!AS$387 -> 1.456058438 | AT151: =InpS!AT$387 -> 1.485179607 | AU151: =InpS!AU$387 -> 1.514883199 | AV151: =InpS!AV$387 -> 1.545180863 | AW151: =InpS!AW$387 -> 1.57608448 | AX151: =InpS!AX$387 -> 1.60760617 | AY151: =InpS!AY$387 -> 1.639758293 | AZ151: =InpS!AZ$387 -> 1.672553459 | BA151: =InpS!BA$387 -> 1.706004528 | BB151: =InpS!BB$387 -> 1.740124619 | BC151: =InpS!BC$387 -> 1.774927111 | BD151: =InpS!BD$387 -> 1.810425653 | BE151: =InpS!BE$387 -> 1.846634166 | BF151: =InpS!BF$387 -> 1.88356685 | BG151: =InpS!BG$387 -> 1.921238187 | BH151: =InpS!BH$387 -> 1.95966295 | BI151: =InpS!BI$387 -> 1.998856209 | BJ151: =InpS!BJ$387 -> 2.038833333
E152: =InpS!E$388 -> Annual Growth rate factor indexation scenarios (CPI) | F152: =InpS!F$388 -> 0 | G152: =InpS!G$388 -> factor | H152: =InpS!H$388 -> CHAW ONS, OBR Nov 2025 | I152: =InpS!I$388 -> Indexation tracker MASTER.xlsx | J152: =InpS!J$388 -> 0 | K152: =InpS!K$388 -> Already Published | L152: =InpS!L$388 -> 0 | M152: =InpS!M$388 -> 0 | N152: =InpS!N$388 -> 0 | O152: =InpS!O$388 -> 0 | P152: =InpS!P$388 -> 0 | Q152: =InpS!Q$388 -> 0 | R152: =InpS!R$388 -> 0 | S152: =InpS!S$388 -> 0 | T152: =InpS!T$388 -> 0 | U152: =InpS!U$388 -> 0 | V152: =InpS!V$388 -> 0 | W152: =InpS!W$388 -> 0 | X152: =InpS!X$388 -> 0 | Y152: =InpS!Y$388 -> 0 | Z152: =InpS!Z$388 -> 0 | AA152: =InpS!AA$388 -> 0.91 | AB152: =InpS!AB$388 -> 0.98 | AC152: =InpS!AC$388 -> 1 | AD152: =InpS!AD$388 -> 1.03 | AE152: =InpS!AE$388 -> 1.06 | AF152: =InpS!AF$388 -> 1.08 | AG152: =InpS!AG$388 -> 1.1 | AH152: =InpS!AH$388 -> 1.13 | AI152: =InpS!AI$388 -> 1.15 | AJ152: =InpS!AJ$388 -> 1.171 | AK152: =InpS!AK$388 -> 1.19 | AL152: =InpS!AL$388 -> 1.21018352 | AM152: =InpS!AM$388 -> 1.234387191 | AN152: =InpS!AN$388 -> 1.259074935 | AO152: =InpS!AO$388 -> 1.284256433 | AP152: =InpS!AP$388 -> 1.309941562 | AQ152: =InpS!AQ$388 -> 1.336140393 | AR152: =InpS!AR$388 -> 1.362863201 | AS152: =InpS!AS$388 -> 1.390120465 | AT152: =InpS!AT$388 -> 1.417922874 | AU152: =InpS!AU$388 -> 1.446281332 | AV152: =InpS!AV$388 -> 1.475206959 | AW152: =InpS!AW$388 -> 1.504711098 | AX152: =InpS!AX$388 -> 1.53480532 | AY152: =InpS!AY$388 -> 1.565501426 | AZ152: =InpS!AZ$388 -> 1.596811455 | BA152: =InpS!BA$388 -> 1.628747684 | BB152: =InpS!BB$388 -> 1.661322637 | BC152: =InpS!BC$388 -> 1.69454909 | BD152: =InpS!BD$388 -> 1.728440072 | BE152: =InpS!BE$388 -> 1.763008873 | BF152: =InpS!BF$388 -> 1.798269051 | BG152: =InpS!BG$388 -> 1.834234432 | BH152: =InpS!BH$388 -> 1.87091912 | BI152: =InpS!BI$388 -> 1.908337503 | BJ152: =InpS!BJ$388 -> 1.946504253
E153: =InpS!E$389 -> Annual Growth rate factor indexation scenarios (CPIH) | F153: =InpS!F$389 -> 0 | G153: =InpS!G$389 -> factor | H153: =InpS!H$389 -> CHAW ONS, OBR Nov 2025 | I153: =InpS!I$389 -> Indexation tracker MASTER.xlsx | J153: =InpS!J$389 -> 0 | K153: =InpS!K$389 -> Already Published | L153: =InpS!L$389 -> 0 | M153: =InpS!M$389 -> 0 | N153: =InpS!N$389 -> 0 | O153: =InpS!O$389 -> 0 | P153: =InpS!P$389 -> 0 | Q153: =InpS!Q$389 -> 0 | R153: =InpS!R$389 -> 0 | S153: =InpS!S$389 -> 0 | T153: =InpS!T$389 -> 0 | U153: =InpS!U$389 -> 0 | V153: =InpS!V$389 -> 0 | W153: =InpS!W$389 -> 0 | X153: =InpS!X$389 -> 0 | Y153: =InpS!Y$389 -> 0 | Z153: =InpS!Z$389 -> 0 | AA153: =InpS!AA$389 -> 0.91 | AB153: =InpS!AB$389 -> 0.97 | AC153: =InpS!AC$389 -> 1 | AD153: =InpS!AD$389 -> 1.04 | AE153: =InpS!AE$389 -> 1.07 | AF153: =InpS!AF$389 -> 1.09 | AG153: =InpS!AG$389 -> 1.11 | AH153: =InpS!AH$389 -> 1.14 | AI153: =InpS!AI$389 -> 1.16 | AJ153: =InpS!AJ$389 -> 1.18 | AK153: =InpS!AK$389 -> 1.21 | AL153: =InpS!AL$389 -> 1.237168878 | AM153: =InpS!AM$389 -> 1.261912256 | AN153: =InpS!AN$389 -> 1.287150501 | AO153: =InpS!AO$389 -> 1.312893511 | AP153: =InpS!AP$389 -> 1.339151381 | AQ153: =InpS!AQ$389 -> 1.365934409 | AR153: =InpS!AR$389 -> 1.393253097 | AS153: =InpS!AS$389 -> 1.421118159 | AT153: =InpS!AT$389 -> 1.449540522 | AU153: =InpS!AU$389 -> 1.478531333 | AV153: =InpS!AV$389 -> 1.508101959 | AW153: =InpS!AW$389 -> 1.538263999 | AX153: =InpS!AX$389 -> 1.569029278 | AY153: =InpS!AY$389 -> 1.600409864 | AZ153: =InpS!AZ$389 -> 1.632418061 | BA153: =InpS!BA$389 -> 1.665066423 | BB153: =InpS!BB$389 -> 1.698367751 | BC153: =InpS!BC$389 -> 1.732335106 | BD153: =InpS!BD$389 -> 1.766981808 | BE153: =InpS!BE$389 -> 1.802321444 | BF153: =InpS!BF$389 -> 1.838367873 | BG153: =InpS!BG$389 -> 1.875135231 | BH153: =InpS!BH$389 -> 1.912637935 | BI153: =InpS!BI$389 -> 1.950890694 | BJ153: =InpS!BJ$389 -> 1.989908508
E154: =InpS!E$390 -> Annual Growth rate factor indexation scenarios (CPIH Dec) | F154: =InpS!F$390 -> 0 | G154: =InpS!G$390 -> factor | H154: =InpS!H$390 -> CHAW ONS, OBR Nov 2025 | I154: =InpS!I$390 -> Indexation tracker MASTER.xlsx | J154: =InpS!J$390 -> 0 | K154: =InpS!K$390 -> Already Published | L154: =InpS!L$390 -> 0 | M154: =InpS!M$390 -> 0 | N154: =InpS!N$390 -> 0 | O154: =InpS!O$390 -> 0 | P154: =InpS!P$390 -> 0 | Q154: =InpS!Q$390 -> 0 | R154: =InpS!R$390 -> 0 | S154: =InpS!S$390 -> 0 | T154: =InpS!T$390 -> 0 | U154: =InpS!U$390 -> 0 | V154: =InpS!V$390 -> 0 | W154: =InpS!W$390 -> 0 | X154: =InpS!X$390 -> 0 | Y154: =InpS!Y$390 -> 0 | Z154: =InpS!Z$390 -> 0 | AA154: =InpS!AA$390 -> 0.93 | AB154: =InpS!AB$390 -> 0.97 | AC154: =InpS!AC$390 -> 1 | AD154: =InpS!AD$390 -> 1.04 | AE154: =InpS!AE$390 -> 1.06 | AF154: =InpS!AF$390 -> 1.08 | AG154: =InpS!AG$390 -> 1.1 | AH154: =InpS!AH$390 -> 1.13 | AI154: =InpS!AI$390 -> 1.15 | AJ154: =InpS!AJ$390 -> 1.18 | AK154: =InpS!AK$390 -> 1.2 | AL154: =InpS!AL$390 -> 1.240549805 | AM154: =InpS!AM$390 -> 1.265360801 | AN154: =InpS!AN$390 -> 1.290668017 | AO154: =InpS!AO$390 -> 1.316481377 | AP154: =InpS!AP$390 -> 1.342811005 | AQ154: =InpS!AQ$390 -> 1.369667225 | AR154: =InpS!AR$390 -> 1.397060569 | AS154: =InpS!AS$390 -> 1.425001781 | AT154: =InpS!AT$390 -> 1.453501816 | AU154: =InpS!AU$390 -> 1.482571853 | AV154: =InpS!AV$390 -> 1.51222329 | AW154: =InpS!AW$390 -> 1.542467756 | AX154: =InpS!AX$390 -> 1.573317111 | AY154: =InpS!AY$390 -> 1.604783453 | AZ154: =InpS!AZ$390 -> 1.636879122 | BA154: =InpS!BA$390 -> 1.669616704 | BB154: =InpS!BB$390 -> 1.703009039 | BC154: =InpS!BC$390 -> 1.737069219 | BD154: =InpS!BD$390 -> 1.771810604 | BE154: =InpS!BE$390 -> 1.807246816 | BF154: =InpS!BF$390 -> 1.843391752 | BG154: =InpS!BG$390 -> 1.880259587 | BH154: =InpS!BH$390 -> 1.917864779 | BI154: =InpS!BI$390 -> 1.956222074 | BJ154: =InpS!BJ$390 -> 1.995346516
E155: =InpS!E$391 -> Annual Growth rate factor indexation scenarios (CPIH Dec/CPIH Average) | F155: =InpS!F$391 -> 0 | G155: =InpS!G$391 -> factor | H155: =InpS!H$391 -> 0 | I155: =InpS!I$391 -> 0 | J155: =InpS!J$391 -> 0 | K155: =InpS!K$391 -> 0 | L155: =InpS!L$391 -> 0 | M155: =InpS!M$391 -> 0 | N155: =InpS!N$391 -> 0 | O155: =InpS!O$391 -> 0 | P155: =InpS!P$391 -> 0 | Q155: =InpS!Q$391 -> 0 | R155: =InpS!R$391 -> 0 | S155: =InpS!S$391 -> 0 | T155: =InpS!T$391 -> 0 | U155: =InpS!U$391 -> 0 | V155: =InpS!V$391 -> 0 | W155: =InpS!W$391 -> 0 | X155: =InpS!X$391 -> 0 | Y155: =InpS!Y$391 -> 0 | Z155: =InpS!Z$391 -> 0 | AA155: =InpS!AA$391 -> 1.04 | AB155: =InpS!AB$391 -> 1.01 | AC155: =InpS!AC$391 -> 1.02 | AD155: =InpS!AD$391 -> 1.01 | AE155: =InpS!AE$391 -> 1.01 | AF155: =InpS!AF$391 -> 1.01 | AG155: =InpS!AG$391 -> 1.01 | AH155: =InpS!AH$391 -> 1.01 | AI155: =InpS!AI$391 -> 1.01 | AJ155: =InpS!AJ$391 -> 1.01 | AK155: =InpS!AK$391 -> 1.01 | AL155: =InpS!AL$391 -> 0 | AM155: =InpS!AM$391 -> 0 | AN155: =InpS!AN$391 -> 0 | AO155: =InpS!AO$391 -> 0 | AP155: =InpS!AP$391 -> 0 | AQ155: =InpS!AQ$391 -> 0 | AR155: =InpS!AR$391 -> 0 | AS155: =InpS!AS$391 -> 0 | AT155: =InpS!AT$391 -> 0 | AU155: =InpS!AU$391 -> 0 | AV155: =InpS!AV$391 -> 0 | AW155: =InpS!AW$391 -> 0 | AX155: =InpS!AX$391 -> 0 | AY155: =InpS!AY$391 -> 0 | AZ155: =InpS!AZ$391 -> 0 | BA155: =InpS!BA$391 -> 0 | BB155: =InpS!BB$391 -> 0 | BC155: =InpS!BC$391 -> 0 | BD155: =InpS!BD$391 -> 0 | BE155: =InpS!BE$391 -> 0 | BF155: =InpS!BF$391 -> 0 | BG155: =InpS!BG$391 -> 0 | BH155: =InpS!BH$391 -> 0 | BI155: =InpS!BI$391 -> 0 | BJ155: =InpS!BJ$391 -> 0
E156: Existing RAB indexation factor | G156: factor | AA156: =INDEX( AA$151:AA$155,MATCH("*(" & $F150 & ")*", $E$151:$E$155,0 )) -> 0.93 | AB156: 0.97 | AC156: 1 | AD156: 1.04 | AE156: 1.06 | AF156: 1.08 | AG156: 1.1 | AH156: 1.13 | AI156: 1.15 | AJ156: 1.18 | AK156: 1.2 | AL156: 1.240549805 | AM156: 1.265360801 | AN156: 1.290668017 | AO156: 1.316481377 | AP156: 1.342811005 | AQ156: 1.369667225 | AR156: 1.397060569 | AS156: 1.425001781 | AT156: 1.453501816 | AU156: 1.482571853 | AV156: 1.51222329 | AW156: 1.542467756 | AX156: 1.573317111 | AY156: 1.604783453 | AZ156: 1.636879122 | BA156: 1.669616704 | BB156: 1.703009039 | BC156: 1.737069219 | BD156: 1.771810604 | BE156: 1.807246816 | BF156: 1.843391752 | BG156: 1.880259587 | BH156: 1.917864779 | BI156: 1.956222074 | BJ156: 1.995346516
B159: Capex Indexation factor
E160: =InpS!E$127 -> Capex indexation type | F160: =InpS!F$127 -> CPIH | G160: =InpS!G$127 -> 0
E161: =InpS!E$387 -> Annual Growth rate factor indexation scenarios (RPI) | F161: =InpS!F$387 -> 0 | G161: =InpS!G$387 -> factor | H161: =InpS!H$387 -> CHAW ONS, OBR Nov 2025 | I161: =InpS!I$387 -> Indexation tracker MASTER.xlsx | J161: =InpS!J$387 -> 0 | K161: =InpS!K$387 -> Already Published | L161: =InpS!L$387 -> 0 | M161: =InpS!M$387 -> 0 | N161: =InpS!N$387 -> 0 | O161: =InpS!O$387 -> 0 | P161: =InpS!P$387 -> 0 | Q161: =InpS!Q$387 -> 0 | R161: =InpS!R$387 -> 0 | S161: =InpS!S$387 -> 0 | T161: =InpS!T$387 -> 0 | U161: =InpS!U$387 -> 0 | V161: =InpS!V$387 -> 0 | W161: =InpS!W$387 -> 0 | X161: =InpS!X$387 -> 0 | Y161: =InpS!Y$387 -> 0 | Z161: =InpS!Z$387 -> 0 | AA161: =InpS!AA$387 -> 0.88 | AB161: =InpS!AB$387 -> 0.97 | AC161: =InpS!AC$387 -> 1 | AD161: =InpS!AD$387 -> 1.04 | AE161: =InpS!AE$387 -> 1.08 | AF161: =InpS!AF$387 -> 1.11 | AG161: =InpS!AG$387 -> 1.15 | AH161: =InpS!AH$387 -> 1.18 | AI161: =InpS!AI$387 -> 1.21 | AJ161: =InpS!AJ$387 -> 1.23 | AK161: =InpS!AK$387 -> 1.26 | AL161: =InpS!AL$387 -> 0 | AM161: =InpS!AM$387 -> 1.292938224 | AN161: =InpS!AN$387 -> 1.318796988 | AO161: =InpS!AO$387 -> 1.345172928 | AP161: =InpS!AP$387 -> 1.372076386 | AQ161: =InpS!AQ$387 -> 1.399517914 | AR161: =InpS!AR$387 -> 1.427508272 | AS161: =InpS!AS$387 -> 1.456058438 | AT161: =InpS!AT$387 -> 1.485179607 | AU161: =InpS!AU$387 -> 1.514883199 | AV161: =InpS!AV$387 -> 1.545180863 | AW161: =InpS!AW$387 -> 1.57608448 | AX161: =InpS!AX$387 -> 1.60760617 | AY161: =InpS!AY$387 -> 1.639758293 | AZ161: =InpS!AZ$387 -> 1.672553459 | BA161: =InpS!BA$387 -> 1.706004528 | BB161: =InpS!BB$387 -> 1.740124619 | BC161: =InpS!BC$387 -> 1.774927111 | BD161: =InpS!BD$387 -> 1.810425653 | BE161: =InpS!BE$387 -> 1.846634166 | BF161: =InpS!BF$387 -> 1.88356685 | BG161: =InpS!BG$387 -> 1.921238187 | BH161: =InpS!BH$387 -> 1.95966295 | BI161: =InpS!BI$387 -> 1.998856209 | BJ161: =InpS!BJ$387 -> 2.038833333
E162: =InpS!E$388 -> Annual Growth rate factor indexation scenarios (CPI) | F162: =InpS!F$388 -> 0 | G162: =InpS!G$388 -> factor | H162: =InpS!H$388 -> CHAW ONS, OBR Nov 2025 | I162: =InpS!I$388 -> Indexation tracker MASTER.xlsx | J162: =InpS!J$388 -> 0 | K162: =InpS!K$388 -> Already Published | L162: =InpS!L$388 -> 0 | M162: =InpS!M$388 -> 0 | N162: =InpS!N$388 -> 0 | O162: =InpS!O$388 -> 0 | P162: =InpS!P$388 -> 0 | Q162: =InpS!Q$388 -> 0 | R162: =InpS!R$388 -> 0 | S162: =InpS!S$388 -> 0 | T162: =InpS!T$388 -> 0 | U162: =InpS!U$388 -> 0 | V162: =InpS!V$388 -> 0 | W162: =InpS!W$388 -> 0 | X162: =InpS!X$388 -> 0 | Y162: =InpS!Y$388 -> 0 | Z162: =InpS!Z$388 -> 0 | AA162: =InpS!AA$388 -> 0.91 | AB162: =InpS!AB$388 -> 0.98 | AC162: =InpS!AC$388 -> 1 | AD162: =InpS!AD$388 -> 1.03 | AE162: =InpS!AE$388 -> 1.06 | AF162: =InpS!AF$388 -> 1.08 | AG162: =InpS!AG$388 -> 1.1 | AH162: =InpS!AH$388 -> 1.13 | AI162: =InpS!AI$388 -> 1.15 | AJ162: =InpS!AJ$388 -> 1.171 | AK162: =InpS!AK$388 -> 1.19 | AL162: =InpS!AL$388 -> 1.21018352 | AM162: =InpS!AM$388 -> 1.234387191 | AN162: =InpS!AN$388 -> 1.259074935 | AO162: =InpS!AO$388 -> 1.284256433 | AP162: =InpS!AP$388 -> 1.309941562 | AQ162: =InpS!AQ$388 -> 1.336140393 | AR162: =InpS!AR$388 -> 1.362863201 | AS162: =InpS!AS$388 -> 1.390120465 | AT162: =InpS!AT$388 -> 1.417922874 | AU162: =InpS!AU$388 -> 1.446281332 | AV162: =InpS!AV$388 -> 1.475206959 | AW162: =InpS!AW$388 -> 1.504711098 | AX162: =InpS!AX$388 -> 1.53480532 | AY162: =InpS!AY$388 -> 1.565501426 | AZ162: =InpS!AZ$388 -> 1.596811455 | BA162: =InpS!BA$388 -> 1.628747684 | BB162: =InpS!BB$388 -> 1.661322637 | BC162: =InpS!BC$388 -> 1.69454909 | BD162: =InpS!BD$388 -> 1.728440072 | BE162: =InpS!BE$388 -> 1.763008873 | BF162: =InpS!BF$388 -> 1.798269051 | BG162: =InpS!BG$388 -> 1.834234432 | BH162: =InpS!BH$388 -> 1.87091912 | BI162: =InpS!BI$388 -> 1.908337503 | BJ162: =InpS!BJ$388 -> 1.946504253
E163: =InpS!E$389 -> Annual Growth rate factor indexation scenarios (CPIH) | F163: =InpS!F$389 -> 0 | G163: =InpS!G$389 -> factor | H163: =InpS!H$389 -> CHAW ONS, OBR Nov 2025 | I163: =InpS!I$389 -> Indexation tracker MASTER.xlsx | J163: =InpS!J$389 -> 0 | K163: =InpS!K$389 -> Already Published | L163: =InpS!L$389 -> 0 | M163: =InpS!M$389 -> 0 | N163: =InpS!N$389 -> 0 | O163: =InpS!O$389 -> 0 | P163: =InpS!P$389 -> 0 | Q163: =InpS!Q$389 -> 0 | R163: =InpS!R$389 -> 0 | S163: =InpS!S$389 -> 0 | T163: =InpS!T$389 -> 0 | U163: =InpS!U$389 -> 0 | V163: =InpS!V$389 -> 0 | W163: =InpS!W$389 -> 0 | X163: =InpS!X$389 -> 0 | Y163: =InpS!Y$389 -> 0 | Z163: =InpS!Z$389 -> 0 | AA163: =InpS!AA$389 -> 0.91 | AB163: =InpS!AB$389 -> 0.97 | AC163: =InpS!AC$389 -> 1 | AD163: =InpS!AD$389 -> 1.04 | AE163: =InpS!AE$389 -> 1.07 | AF163: =InpS!AF$389 -> 1.09 | AG163: =InpS!AG$389 -> 1.11 | AH163: =InpS!AH$389 -> 1.14 | AI163: =InpS!AI$389 -> 1.16 | AJ163: =InpS!AJ$389 -> 1.18 | AK163: =InpS!AK$389 -> 1.21 | AL163: =InpS!AL$389 -> 1.237168878 | AM163: =InpS!AM$389 -> 1.261912256 | AN163: =InpS!AN$389 -> 1.287150501 | AO163: =InpS!AO$389 -> 1.312893511 | AP163: =InpS!AP$389 -> 1.339151381 | AQ163: =InpS!AQ$389 -> 1.365934409 | AR163: =InpS!AR$389 -> 1.393253097 | AS163: =InpS!AS$389 -> 1.421118159 | AT163: =InpS!AT$389 -> 1.449540522 | AU163: =InpS!AU$389 -> 1.478531333 | AV163: =InpS!AV$389 -> 1.508101959 | AW163: =InpS!AW$389 -> 1.538263999 | AX163: =InpS!AX$389 -> 1.569029278 | AY163: =InpS!AY$389 -> 1.600409864 | AZ163: =InpS!AZ$389 -> 1.632418061 | BA163: =InpS!BA$389 -> 1.665066423 | BB163: =InpS!BB$389 -> 1.698367751 | BC163: =InpS!BC$389 -> 1.732335106 | BD163: =InpS!BD$389 -> 1.766981808 | BE163: =InpS!BE$389 -> 1.802321444 | BF163: =InpS!BF$389 -> 1.838367873 | BG163: =InpS!BG$389 -> 1.875135231 | BH163: =InpS!BH$389 -> 1.912637935 | BI163: =InpS!BI$389 -> 1.950890694 | BJ163: =InpS!BJ$389 -> 1.989908508
E164: =InpS!E$390 -> Annual Growth rate factor indexation scenarios (CPIH Dec) | F164: =InpS!F$390 -> 0 | G164: =InpS!G$390 -> factor | H164: =InpS!H$390 -> CHAW ONS, OBR Nov 2025 | I164: =InpS!I$390 -> Indexation tracker MASTER.xlsx | J164: =InpS!J$390 -> 0 | K164: =InpS!K$390 -> Already Published | L164: =InpS!L$390 -> 0 | M164: =InpS!M$390 -> 0 | N164: =InpS!N$390 -> 0 | O164: =InpS!O$390 -> 0 | P164: =InpS!P$390 -> 0 | Q164: =InpS!Q$390 -> 0 | R164: =InpS!R$390 -> 0 | S164: =InpS!S$390 -> 0 | T164: =InpS!T$390 -> 0 | U164: =InpS!U$390 -> 0 | V164: =InpS!V$390 -> 0 | W164: =InpS!W$390 -> 0 | X164: =InpS!X$390 -> 0 | Y164: =InpS!Y$390 -> 0 | Z164: =InpS!Z$390 -> 0 | AA164: =InpS!AA$390 -> 0.93 | AB164: =InpS!AB$390 -> 0.97 | AC164: =InpS!AC$390 -> 1 | AD164: =InpS!AD$390 -> 1.04 | AE164: =InpS!AE$390 -> 1.06 | AF164: =InpS!AF$390 -> 1.08 | AG164: =InpS!AG$390 -> 1.1 | AH164: =InpS!AH$390 -> 1.13 | AI164: =InpS!AI$390 -> 1.15 | AJ164: =InpS!AJ$390 -> 1.18 | AK164: =InpS!AK$390 -> 1.2 | AL164: =InpS!AL$390 -> 1.240549805 | AM164: =InpS!AM$390 -> 1.265360801 | AN164: =InpS!AN$390 -> 1.290668017 | AO164: =InpS!AO$390 -> 1.316481377 | AP164: =InpS!AP$390 -> 1.342811005 | AQ164: =InpS!AQ$390 -> 1.369667225 | AR164: =InpS!AR$390 -> 1.397060569 | AS164: =InpS!AS$390 -> 1.425001781 | AT164: =InpS!AT$390 -> 1.453501816 | AU164: =InpS!AU$390 -> 1.482571853 | AV164: =InpS!AV$390 -> 1.51222329 | AW164: =InpS!AW$390 -> 1.542467756 | AX164: =InpS!AX$390 -> 1.573317111 | AY164: =InpS!AY$390 -> 1.604783453 | AZ164: =InpS!AZ$390 -> 1.636879122 | BA164: =InpS!BA$390 -> 1.669616704 | BB164: =InpS!BB$390 -> 1.703009039 | BC164: =InpS!BC$390 -> 1.737069219 | BD164: =InpS!BD$390 -> 1.771810604 | BE164: =InpS!BE$390 -> 1.807246816 | BF164: =InpS!BF$390 -> 1.843391752 | BG164: =InpS!BG$390 -> 1.880259587 | BH164: =InpS!BH$390 -> 1.917864779 | BI164: =InpS!BI$390 -> 1.956222074 | BJ164: =InpS!BJ$390 -> 1.995346516
E165: =InpS!E$391 -> Annual Growth rate factor indexation scenarios (CPIH Dec/CPIH Average) | F165: =InpS!F$391 -> 0 | G165: =InpS!G$391 -> factor | H165: =InpS!H$391 -> 0 | I165: =InpS!I$391 -> 0 | J165: =InpS!J$391 -> 0 | K165: =InpS!K$391 -> 0 | L165: =InpS!L$391 -> 0 | M165: =InpS!M$391 -> 0 | N165: =InpS!N$391 -> 0 | O165: =InpS!O$391 -> 0 | P165: =InpS!P$391 -> 0 | Q165: =InpS!Q$391 -> 0 | R165: =InpS!R$391 -> 0 | S165: =InpS!S$391 -> 0 | T165: =InpS!T$391 -> 0 | U165: =InpS!U$391 -> 0 | V165: =InpS!V$391 -> 0 | W165: =InpS!W$391 -> 0 | X165: =InpS!X$391 -> 0 | Y165: =InpS!Y$391 -> 0 | Z165: =InpS!Z$391 -> 0 | AA165: =InpS!AA$391 -> 1.04 | AB165: =InpS!AB$391 -> 1.01 | AC165: =InpS!AC$391 -> 1.02 | AD165: =InpS!AD$391 -> 1.01 | AE165: =InpS!AE$391 -> 1.01 | AF165: =InpS!AF$391 -> 1.01 | AG165: =InpS!AG$391 -> 1.01 | AH165: =InpS!AH$391 -> 1.01 | AI165: =InpS!AI$391 -> 1.01 | AJ165: =InpS!AJ$391 -> 1.01 | AK165: =InpS!AK$391 -> 1.01 | AL165: =InpS!AL$391 -> 0 | AM165: =InpS!AM$391 -> 0 | AN165: =InpS!AN$391 -> 0 | AO165: =InpS!AO$391 -> 0 | AP165: =InpS!AP$391 -> 0 | AQ165: =InpS!AQ$391 -> 0 | AR165: =InpS!AR$391 -> 0 | AS165: =InpS!AS$391 -> 0 | AT165: =InpS!AT$391 -> 0 | AU165: =InpS!AU$391 -> 0 | AV165: =InpS!AV$391 -> 0 | AW165: =InpS!AW$391 -> 0 | AX165: =InpS!AX$391 -> 0 | AY165: =InpS!AY$391 -> 0 | AZ165: =InpS!AZ$391 -> 0 | BA165: =InpS!BA$391 -> 0 | BB165: =InpS!BB$391 -> 0 | BC165: =InpS!BC$391 -> 0 | BD165: =InpS!BD$391 -> 0 | BE165: =InpS!BE$391 -> 0 | BF165: =InpS!BF$391 -> 0 | BG165: =InpS!BG$391 -> 0 | BH165: =InpS!BH$391 -> 0 | BI165: =InpS!BI$391 -> 0 | BJ165: =InpS!BJ$391 -> 0
E166: Capex Indexation factor | G166: factor | AA166: =INDEX( AA$161:AA$165,MATCH("*(" & $F160 & ")*", $E$161:$E$165,0 )) -> 0.91 | AB166: 0.97 | AC166: 1 | AD166: 1.04 | AE166: 1.07 | AF166: 1.09 | AG166: 1.11 | AH166: 1.14 | AI166: 1.16 | AJ166: 1.18 | AK166: 1.21 | AL166: 1.237168878 | AM166: 1.261912256 | AN166: 1.287150501 | AO166: 1.312893511 | AP166: 1.339151381 | AQ166: 1.365934409 | AR166: 1.393253097 | AS166: 1.421118159 | AT166: 1.449540522 | AU166: 1.478531333 | AV166: 1.508101959 | AW166: 1.538263999 | AX166: 1.569029278 | AY166: 1.600409864 | AZ166: 1.632418061 | BA166: 1.665066423 | BB166: 1.698367751 | BC166: 1.732335106 | BD166: 1.766981808 | BE166: 1.802321444 | BF166: 1.838367873 | BG166: 1.875135231 | BH166: 1.912637935 | BI166: 1.950890694 | BJ166: 1.989908508
B169: Cargo revenue indexation factor
E170: =InpS!E$128 -> Cargo revenue indexation type | F170: =InpS!F$128 -> CPIH | G170: =InpS!G$128 -> 0
E171: =InpS!E$387 -> Annual Growth rate factor indexation scenarios (RPI) | F171: =InpS!F$387 -> 0 | G171: =InpS!G$387 -> factor | H171: =InpS!H$387 -> CHAW ONS, OBR Nov 2025 | I171: =InpS!I$387 -> Indexation tracker MASTER.xlsx | J171: =InpS!J$387 -> 0 | K171: =InpS!K$387 -> Already Published | L171: =InpS!L$387 -> 0 | M171: =InpS!M$387 -> 0 | N171: =InpS!N$387 -> 0 | O171: =InpS!O$387 -> 0 | P171: =InpS!P$387 -> 0 | Q171: =InpS!Q$387 -> 0 | R171: =InpS!R$387 -> 0 | S171: =InpS!S$387 -> 0 | T171: =InpS!T$387 -> 0 | U171: =InpS!U$387 -> 0 | V171: =InpS!V$387 -> 0 | W171: =InpS!W$387 -> 0 | X171: =InpS!X$387 -> 0 | Y171: =InpS!Y$387 -> 0 | Z171: =InpS!Z$387 -> 0 | AA171: =InpS!AA$387 -> 0.88 | AB171: =InpS!AB$387 -> 0.97 | AC171: =InpS!AC$387 -> 1 | AD171: =InpS!AD$387 -> 1.04 | AE171: =InpS!AE$387 -> 1.08 | AF171: =InpS!AF$387 -> 1.11 | AG171: =InpS!AG$387 -> 1.15 | AH171: =InpS!AH$387 -> 1.18 | AI171: =InpS!AI$387 -> 1.21 | AJ171: =InpS!AJ$387 -> 1.23 | AK171: =InpS!AK$387 -> 1.26 | AL171: =InpS!AL$387 -> 0 | AM171: =InpS!AM$387 -> 1.292938224 | AN171: =InpS!AN$387 -> 1.318796988 | AO171: =InpS!AO$387 -> 1.345172928 | AP171: =InpS!AP$387 -> 1.372076386 | AQ171: =InpS!AQ$387 -> 1.399517914 | AR171: =InpS!AR$387 -> 1.427508272 | AS171: =InpS!AS$387 -> 1.456058438 | AT171: =InpS!AT$387 -> 1.485179607 | AU171: =InpS!AU$387 -> 1.514883199 | AV171: =InpS!AV$387 -> 1.545180863 | AW171: =InpS!AW$387 -> 1.57608448 | AX171: =InpS!AX$387 -> 1.60760617 | AY171: =InpS!AY$387 -> 1.639758293 | AZ171: =InpS!AZ$387 -> 1.672553459 | BA171: =InpS!BA$387 -> 1.706004528 | BB171: =InpS!BB$387 -> 1.740124619 | BC171: =InpS!BC$387 -> 1.774927111 | BD171: =InpS!BD$387 -> 1.810425653 | BE171: =InpS!BE$387 -> 1.846634166 | BF171: =InpS!BF$387 -> 1.88356685 | BG171: =InpS!BG$387 -> 1.921238187 | BH171: =InpS!BH$387 -> 1.95966295 | BI171: =InpS!BI$387 -> 1.998856209 | BJ171: =InpS!BJ$387 -> 2.038833333
E172: =InpS!E$388 -> Annual Growth rate factor indexation scenarios (CPI) | F172: =InpS!F$388 -> 0 | G172: =InpS!G$388 -> factor | H172: =InpS!H$388 -> CHAW ONS, OBR Nov 2025 | I172: =InpS!I$388 -> Indexation tracker MASTER.xlsx | J172: =InpS!J$388 -> 0 | K172: =InpS!K$388 -> Already Published | L172: =InpS!L$388 -> 0 | M172: =InpS!M$388 -> 0 | N172: =InpS!N$388 -> 0 | O172: =InpS!O$388 -> 0 | P172: =InpS!P$388 -> 0 | Q172: =InpS!Q$388 -> 0 | R172: =InpS!R$388 -> 0 | S172: =InpS!S$388 -> 0 | T172: =InpS!T$388 -> 0 | U172: =InpS!U$388 -> 0 | V172: =InpS!V$388 -> 0 | W172: =InpS!W$388 -> 0 | X172: =InpS!X$388 -> 0 | Y172: =InpS!Y$388 -> 0 | Z172: =InpS!Z$388 -> 0 | AA172: =InpS!AA$388 -> 0.91 | AB172: =InpS!AB$388 -> 0.98 | AC172: =InpS!AC$388 -> 1 | AD172: =InpS!AD$388 -> 1.03 | AE172: =InpS!AE$388 -> 1.06 | AF172: =InpS!AF$388 -> 1.08 | AG172: =InpS!AG$388 -> 1.1 | AH172: =InpS!AH$388 -> 1.13 | AI172: =InpS!AI$388 -> 1.15 | AJ172: =InpS!AJ$388 -> 1.171 | AK172: =InpS!AK$388 -> 1.19 | AL172: =InpS!AL$388 -> 1.21018352 | AM172: =InpS!AM$388 -> 1.234387191 | AN172: =InpS!AN$388 -> 1.259074935 | AO172: =InpS!AO$388 -> 1.284256433 | AP172: =InpS!AP$388 -> 1.309941562 | AQ172: =InpS!AQ$388 -> 1.336140393 | AR172: =InpS!AR$388 -> 1.362863201 | AS172: =InpS!AS$388 -> 1.390120465 | AT172: =InpS!AT$388 -> 1.417922874 | AU172: =InpS!AU$388 -> 1.446281332 | AV172: =InpS!AV$388 -> 1.475206959 | AW172: =InpS!AW$388 -> 1.504711098 | AX172: =InpS!AX$388 -> 1.53480532 | AY172: =InpS!AY$388 -> 1.565501426 | AZ172: =InpS!AZ$388 -> 1.596811455 | BA172: =InpS!BA$388 -> 1.628747684 | BB172: =InpS!BB$388 -> 1.661322637 | BC172: =InpS!BC$388 -> 1.69454909 | BD172: =InpS!BD$388 -> 1.728440072 | BE172: =InpS!BE$388 -> 1.763008873 | BF172: =InpS!BF$388 -> 1.798269051 | BG172: =InpS!BG$388 -> 1.834234432 | BH172: =InpS!BH$388 -> 1.87091912 | BI172: =InpS!BI$388 -> 1.908337503 | BJ172: =InpS!BJ$388 -> 1.946504253
E173: =InpS!E$389 -> Annual Growth rate factor indexation scenarios (CPIH) | F173: =InpS!F$389 -> 0 | G173: =InpS!G$389 -> factor | H173: =InpS!H$389 -> CHAW ONS, OBR Nov 2025 | I173: =InpS!I$389 -> Indexation tracker MASTER.xlsx | J173: =InpS!J$389 -> 0 | K173: =InpS!K$389 -> Already Published | L173: =InpS!L$389 -> 0 | M173: =InpS!M$389 -> 0 | N173: =InpS!N$389 -> 0 | O173: =InpS!O$389 -> 0 | P173: =InpS!P$389 -> 0 | Q173: =InpS!Q$389 -> 0 | R173: =InpS!R$389 -> 0 | S173: =InpS!S$389 -> 0 | T173: =InpS!T$389 -> 0 | U173: =InpS!U$389 -> 0 | V173: =InpS!V$389 -> 0 | W173: =InpS!W$389 -> 0 | X173: =InpS!X$389 -> 0 | Y173: =InpS!Y$389 -> 0 | Z173: =InpS!Z$389 -> 0 | AA173: =InpS!AA$389 -> 0.91 | AB173: =InpS!AB$389 -> 0.97 | AC173: =InpS!AC$389 -> 1 | AD173: =InpS!AD$389 -> 1.04 | AE173: =InpS!AE$389 -> 1.07 | AF173: =InpS!AF$389 -> 1.09 | AG173: =InpS!AG$389 -> 1.11 | AH173: =InpS!AH$389 -> 1.14 | AI173: =InpS!AI$389 -> 1.16 | AJ173: =InpS!AJ$389 -> 1.18 | AK173: =InpS!AK$389 -> 1.21 | AL173: =InpS!AL$389 -> 1.237168878 | AM173: =InpS!AM$389 -> 1.261912256 | AN173: =InpS!AN$389 -> 1.287150501 | AO173: =InpS!AO$389 -> 1.312893511 | AP173: =InpS!AP$389 -> 1.339151381 | AQ173: =InpS!AQ$389 -> 1.365934409 | AR173: =InpS!AR$389 -> 1.393253097 | AS173: =InpS!AS$389 -> 1.421118159 | AT173: =InpS!AT$389 -> 1.449540522 | AU173: =InpS!AU$389 -> 1.478531333 | AV173: =InpS!AV$389 -> 1.508101959 | AW173: =InpS!AW$389 -> 1.538263999 | AX173: =InpS!AX$389 -> 1.569029278 | AY173: =InpS!AY$389 -> 1.600409864 | AZ173: =InpS!AZ$389 -> 1.632418061 | BA173: =InpS!BA$389 -> 1.665066423 | BB173: =InpS!BB$389 -> 1.698367751 | BC173: =InpS!BC$389 -> 1.732335106 | BD173: =InpS!BD$389 -> 1.766981808 | BE173: =InpS!BE$389 -> 1.802321444 | BF173: =InpS!BF$389 -> 1.838367873 | BG173: =InpS!BG$389 -> 1.875135231 | BH173: =InpS!BH$389 -> 1.912637935 | BI173: =InpS!BI$389 -> 1.950890694 | BJ173: =InpS!BJ$389 -> 1.989908508
E174: =InpS!E$390 -> Annual Growth rate factor indexation scenarios (CPIH Dec) | F174: =InpS!F$390 -> 0 | G174: =InpS!G$390 -> factor | H174: =InpS!H$390 -> CHAW ONS, OBR Nov 2025 | I174: =InpS!I$390 -> Indexation tracker MASTER.xlsx | J174: =InpS!J$390 -> 0 | K174: =InpS!K$390 -> Already Published | L174: =InpS!L$390 -> 0 | M174: =InpS!M$390 -> 0 | N174: =InpS!N$390 -> 0 | O174: =InpS!O$390 -> 0 | P174: =InpS!P$390 -> 0 | Q174: =InpS!Q$390 -> 0 | R174: =InpS!R$390 -> 0 | S174: =InpS!S$390 -> 0 | T174: =InpS!T$390 -> 0 | U174: =InpS!U$390 -> 0 | V174: =InpS!V$390 -> 0 | W174: =InpS!W$390 -> 0 | X174: =InpS!X$390 -> 0 | Y174: =InpS!Y$390 -> 0 | Z174: =InpS!Z$390 -> 0 | AA174: =InpS!AA$390 -> 0.93 | AB174: =InpS!AB$390 -> 0.97 | AC174: =InpS!AC$390 -> 1 | AD174: =InpS!AD$390 -> 1.04 | AE174: =InpS!AE$390 -> 1.06 | AF174: =InpS!AF$390 -> 1.08 | AG174: =InpS!AG$390 -> 1.1 | AH174: =InpS!AH$390 -> 1.13 | AI174: =InpS!AI$390 -> 1.15 | AJ174: =InpS!AJ$390 -> 1.18 | AK174: =InpS!AK$390 -> 1.2 | AL174: =InpS!AL$390 -> 1.240549805 | AM174: =InpS!AM$390 -> 1.265360801 | AN174: =InpS!AN$390 -> 1.290668017 | AO174: =InpS!AO$390 -> 1.316481377 | AP174: =InpS!AP$390 -> 1.342811005 | AQ174: =InpS!AQ$390 -> 1.369667225 | AR174: =InpS!AR$390 -> 1.397060569 | AS174: =InpS!AS$390 -> 1.425001781 | AT174: =InpS!AT$390 -> 1.453501816 | AU174: =InpS!AU$390 -> 1.482571853 | AV174: =InpS!AV$390 -> 1.51222329 | AW174: =InpS!AW$390 -> 1.542467756 | AX174: =InpS!AX$390 -> 1.573317111 | AY174: =InpS!AY$390 -> 1.604783453 | AZ174: =InpS!AZ$390 -> 1.636879122 | BA174: =InpS!BA$390 -> 1.669616704 | BB174: =InpS!BB$390 -> 1.703009039 | BC174: =InpS!BC$390 -> 1.737069219 | BD174: =InpS!BD$390 -> 1.771810604 | BE174: =InpS!BE$390 -> 1.807246816 | BF174: =InpS!BF$390 -> 1.843391752 | BG174: =InpS!BG$390 -> 1.880259587 | BH174: =InpS!BH$390 -> 1.917864779 | BI174: =InpS!BI$390 -> 1.956222074 | BJ174: =InpS!BJ$390 -> 1.995346516
E175: =InpS!E$391 -> Annual Growth rate factor indexation scenarios (CPIH Dec/CPIH Average) | F175: =InpS!F$391 -> 0 | G175: =InpS!G$391 -> factor | H175: =InpS!H$391 -> 0 | I175: =InpS!I$391 -> 0 | J175: =InpS!J$391 -> 0 | K175: =InpS!K$391 -> 0 | L175: =InpS!L$391 -> 0 | M175: =InpS!M$391 -> 0 | N175: =InpS!N$391 -> 0 | O175: =InpS!O$391 -> 0 | P175: =InpS!P$391 -> 0 | Q175: =InpS!Q$391 -> 0 | R175: =InpS!R$391 -> 0 | S175: =InpS!S$391 -> 0 | T175: =InpS!T$391 -> 0 | U175: =InpS!U$391 -> 0 | V175: =InpS!V$391 -> 0 | W175: =InpS!W$391 -> 0 | X175: =InpS!X$391 -> 0 | Y175: =InpS!Y$391 -> 0 | Z175: =InpS!Z$391 -> 0 | AA175: =InpS!AA$391 -> 1.04 | AB175: =InpS!AB$391 -> 1.01 | AC175: =InpS!AC$391 -> 1.02 | AD175: =InpS!AD$391 -> 1.01 | AE175: =InpS!AE$391 -> 1.01 | AF175: =InpS!AF$391 -> 1.01 | AG175: =InpS!AG$391 -> 1.01 | AH175: =InpS!AH$391 -> 1.01 | AI175: =InpS!AI$391 -> 1.01 | AJ175: =InpS!AJ$391 -> 1.01 | AK175: =InpS!AK$391 -> 1.01 | AL175: =InpS!AL$391 -> 0 | AM175: =InpS!AM$391 -> 0 | AN175: =InpS!AN$391 -> 0 | AO175: =InpS!AO$391 -> 0 | AP175: =InpS!AP$391 -> 0 | AQ175: =InpS!AQ$391 -> 0 | AR175: =InpS!AR$391 -> 0 | AS175: =InpS!AS$391 -> 0 | AT175: =InpS!AT$391 -> 0 | AU175: =InpS!AU$391 -> 0 | AV175: =InpS!AV$391 -> 0 | AW175: =InpS!AW$391 -> 0 | AX175: =InpS!AX$391 -> 0 | AY175: =InpS!AY$391 -> 0 | AZ175: =InpS!AZ$391 -> 0 | BA175: =InpS!BA$391 -> 0 | BB175: =InpS!BB$391 -> 0 | BC175: =InpS!BC$391 -> 0 | BD175: =InpS!BD$391 -> 0 | BE175: =InpS!BE$391 -> 0 | BF175: =InpS!BF$391 -> 0 | BG175: =InpS!BG$391 -> 0 | BH175: =InpS!BH$391 -> 0 | BI175: =InpS!BI$391 -> 0 | BJ175: =InpS!BJ$391 -> 0
E176: Cargo revenue indexation factor | G176: factor | AA176: =INDEX( AA$171:AA$175,MATCH("*(" & $F170 & ")*", $E$171:$E$175,0 )) -> 0.91 | AB176: 0.97 | AC176: 1 | AD176: 1.04 | AE176: 1.07 | AF176: 1.09 | AG176: 1.11 | AH176: 1.14 | AI176: 1.16 | AJ176: 1.18 | AK176: 1.21 | AL176: 1.237168878 | AM176: 1.261912256 | AN176: 1.287150501 | AO176: 1.312893511 | AP176: 1.339151381 | AQ176: 1.365934409 | AR176: 1.393253097 | AS176: 1.421118159 | AT176: 1.449540522 | AU176: 1.478531333 | AV176: 1.508101959 | AW176: 1.538263999 | AX176: 1.569029278 | AY176: 1.600409864 | AZ176: 1.632418061 | BA176: 1.665066423 | BB176: 1.698367751 | BC176: 1.732335106 | BD176: 1.766981808 | BE176: 1.802321444 | BF176: 1.838367873 | BG176: 1.875135231 | BH176: 1.912637935 | BI176: 1.950890694 | BJ176: 1.989908508
B179: Airport Charges Revenue Indexation factor
E180: =InpS!E$126 -> Airport Charges Revenue Indexation type | F180: =InpS!F$126 -> CPIH | G180: =InpS!G$126 -> 0
E181: =InpS!E$387 -> Annual Growth rate factor indexation scenarios (RPI) | F181: =InpS!F$387 -> 0 | G181: =InpS!G$387 -> factor | H181: =InpS!H$387 -> CHAW ONS, OBR Nov 2025 | I181: =InpS!I$387 -> Indexation tracker MASTER.xlsx | J181: =InpS!J$387 -> 0 | K181: =InpS!K$387 -> Already Published | L181: =InpS!L$387 -> 0 | M181: =InpS!M$387 -> 0 | N181: =InpS!N$387 -> 0 | O181: =InpS!O$387 -> 0 | P181: =InpS!P$387 -> 0 | Q181: =InpS!Q$387 -> 0 | R181: =InpS!R$387 -> 0 | S181: =InpS!S$387 -> 0 | T181: =InpS!T$387 -> 0 | U181: =InpS!U$387 -> 0 | V181: =InpS!V$387 -> 0 | W181: =InpS!W$387 -> 0 | X181: =InpS!X$387 -> 0 | Y181: =InpS!Y$387 -> 0 | Z181: =InpS!Z$387 -> 0 | AA181: =InpS!AA$387 -> 0.88 | AB181: =InpS!AB$387 -> 0.97 | AC181: =InpS!AC$387 -> 1 | AD181: =InpS!AD$387 -> 1.04 | AE181: =InpS!AE$387 -> 1.08 | AF181: =InpS!AF$387 -> 1.11 | AG181: =InpS!AG$387 -> 1.15 | AH181: =InpS!AH$387 -> 1.18 | AI181: =InpS!AI$387 -> 1.21 | AJ181: =InpS!AJ$387 -> 1.23 | AK181: =InpS!AK$387 -> 1.26 | AL181: =InpS!AL$387 -> 0 | AM181: =InpS!AM$387 -> 1.292938224 | AN181: =InpS!AN$387 -> 1.318796988 | AO181: =InpS!AO$387 -> 1.345172928 | AP181: =InpS!AP$387 -> 1.372076386 | AQ181: =InpS!AQ$387 -> 1.399517914 | AR181: =InpS!AR$387 -> 1.427508272 | AS181: =InpS!AS$387 -> 1.456058438 | AT181: =InpS!AT$387 -> 1.485179607 | AU181: =InpS!AU$387 -> 1.514883199 | AV181: =InpS!AV$387 -> 1.545180863 | AW181: =InpS!AW$387 -> 1.57608448 | AX181: =InpS!AX$387 -> 1.60760617 | AY181: =InpS!AY$387 -> 1.639758293 | AZ181: =InpS!AZ$387 -> 1.672553459 | BA181: =InpS!BA$387 -> 1.706004528 | BB181: =InpS!BB$387 -> 1.740124619 | BC181: =InpS!BC$387 -> 1.774927111 | BD181: =InpS!BD$387 -> 1.810425653 | BE181: =InpS!BE$387 -> 1.846634166 | BF181: =InpS!BF$387 -> 1.88356685 | BG181: =InpS!BG$387 -> 1.921238187 | BH181: =InpS!BH$387 -> 1.95966295 | BI181: =InpS!BI$387 -> 1.998856209 | BJ181: =InpS!BJ$387 -> 2.038833333
E182: =InpS!E$388 -> Annual Growth rate factor indexation scenarios (CPI) | F182: =InpS!F$388 -> 0 | G182: =InpS!G$388 -> factor | H182: =InpS!H$388 -> CHAW ONS, OBR Nov 2025 | I182: =InpS!I$388 -> Indexation tracker MASTER.xlsx | J182: =InpS!J$388 -> 0 | K182: =InpS!K$388 -> Already Published | L182: =InpS!L$388 -> 0 | M182: =InpS!M$388 -> 0 | N182: =InpS!N$388 -> 0 | O182: =InpS!O$388 -> 0 | P182: =InpS!P$388 -> 0 | Q182: =InpS!Q$388 -> 0 | R182: =InpS!R$388 -> 0 | S182: =InpS!S$388 -> 0 | T182: =InpS!T$388 -> 0 | U182: =InpS!U$388 -> 0 | V182: =InpS!V$388 -> 0 | W182: =InpS!W$388 -> 0 | X182: =InpS!X$388 -> 0 | Y182: =InpS!Y$388 -> 0 | Z182: =InpS!Z$388 -> 0 | AA182: =InpS!AA$388 -> 0.91 | AB182: =InpS!AB$388 -> 0.98 | AC182: =InpS!AC$388 -> 1 | AD182: =InpS!AD$388 -> 1.03 | AE182: =InpS!AE$388 -> 1.06 | AF182: =InpS!AF$388 -> 1.08 | AG182: =InpS!AG$388 -> 1.1 | AH182: =InpS!AH$388 -> 1.13 | AI182: =InpS!AI$388 -> 1.15 | AJ182: =InpS!AJ$388 -> 1.171 | AK182: =InpS!AK$388 -> 1.19 | AL182: =InpS!AL$388 -> 1.21018352 | AM182: =InpS!AM$388 -> 1.234387191 | AN182: =InpS!AN$388 -> 1.259074935 | AO182: =InpS!AO$388 -> 1.284256433 | AP182: =InpS!AP$388 -> 1.309941562 | AQ182: =InpS!AQ$388 -> 1.336140393 | AR182: =InpS!AR$388 -> 1.362863201 | AS182: =InpS!AS$388 -> 1.390120465 | AT182: =InpS!AT$388 -> 1.417922874 | AU182: =InpS!AU$388 -> 1.446281332 | AV182: =InpS!AV$388 -> 1.475206959 | AW182: =InpS!AW$388 -> 1.504711098 | AX182: =InpS!AX$388 -> 1.53480532 | AY182: =InpS!AY$388 -> 1.565501426 | AZ182: =InpS!AZ$388 -> 1.596811455 | BA182: =InpS!BA$388 -> 1.628747684 | BB182: =InpS!BB$388 -> 1.661322637 | BC182: =InpS!BC$388 -> 1.69454909 | BD182: =InpS!BD$388 -> 1.728440072 | BE182: =InpS!BE$388 -> 1.763008873 | BF182: =InpS!BF$388 -> 1.798269051 | BG182: =InpS!BG$388 -> 1.834234432 | BH182: =InpS!BH$388 -> 1.87091912 | BI182: =InpS!BI$388 -> 1.908337503 | BJ182: =InpS!BJ$388 -> 1.946504253
E183: =InpS!E$389 -> Annual Growth rate factor indexation scenarios (CPIH) | F183: =InpS!F$389 -> 0 | G183: =InpS!G$389 -> factor | H183: =InpS!H$389 -> CHAW ONS, OBR Nov 2025 | I183: =InpS!I$389 -> Indexation tracker MASTER.xlsx | J183: =InpS!J$389 -> 0 | K183: =InpS!K$389 -> Already Published | L183: =InpS!L$389 -> 0 | M183: =InpS!M$389 -> 0 | N183: =InpS!N$389 -> 0 | O183: =InpS!O$389 -> 0 | P183: =InpS!P$389 -> 0 | Q183: =InpS!Q$389 -> 0 | R183: =InpS!R$389 -> 0 | S183: =InpS!S$389 -> 0 | T183: =InpS!T$389 -> 0 | U183: =InpS!U$389 -> 0 | V183: =InpS!V$389 -> 0 | W183: =InpS!W$389 -> 0 | X183: =InpS!X$389 -> 0 | Y183: =InpS!Y$389 -> 0 | Z183: =InpS!Z$389 -> 0 | AA183: =InpS!AA$389 -> 0.91 | AB183: =InpS!AB$389 -> 0.97 | AC183: =InpS!AC$389 -> 1 | AD183: =InpS!AD$389 -> 1.04 | AE183: =InpS!AE$389 -> 1.07 | AF183: =InpS!AF$389 -> 1.09 | AG183: =InpS!AG$389 -> 1.11 | AH183: =InpS!AH$389 -> 1.14 | AI183: =InpS!AI$389 -> 1.16 | AJ183: =InpS!AJ$389 -> 1.18 | AK183: =InpS!AK$389 -> 1.21 | AL183: =InpS!AL$389 -> 1.237168878 | AM183: =InpS!AM$389 -> 1.261912256 | AN183: =InpS!AN$389 -> 1.287150501 | AO183: =InpS!AO$389 -> 1.312893511 | AP183: =InpS!AP$389 -> 1.339151381 | AQ183: =InpS!AQ$389 -> 1.365934409 | AR183: =InpS!AR$389 -> 1.393253097 | AS183: =InpS!AS$389 -> 1.421118159 | AT183: =InpS!AT$389 -> 1.449540522 | AU183: =InpS!AU$389 -> 1.478531333 | AV183: =InpS!AV$389 -> 1.508101959 | AW183: =InpS!AW$389 -> 1.538263999 | AX183: =InpS!AX$389 -> 1.569029278 | AY183: =InpS!AY$389 -> 1.600409864 | AZ183: =InpS!AZ$389 -> 1.632418061 | BA183: =InpS!BA$389 -> 1.665066423 | BB183: =InpS!BB$389 -> 1.698367751 | BC183: =InpS!BC$389 -> 1.732335106 | BD183: =InpS!BD$389 -> 1.766981808 | BE183: =InpS!BE$389 -> 1.802321444 | BF183: =InpS!BF$389 -> 1.838367873 | BG183: =InpS!BG$389 -> 1.875135231 | BH183: =InpS!BH$389 -> 1.912637935 | BI183: =InpS!BI$389 -> 1.950890694 | BJ183: =InpS!BJ$389 -> 1.989908508
E184: =InpS!E$390 -> Annual Growth rate factor indexation scenarios (CPIH Dec) | F184: =InpS!F$390 -> 0 | G184: =InpS!G$390 -> factor | H184: =InpS!H$390 -> CHAW ONS, OBR Nov 2025 | I184: =InpS!I$390 -> Indexation tracker MASTER.xlsx | J184: =InpS!J$390 -> 0 | K184: =InpS!K$390 -> Already Published | L184: =InpS!L$390 -> 0 | M184: =InpS!M$390 -> 0 | N184: =InpS!N$390 -> 0 | O184: =InpS!O$390 -> 0 | P184: =InpS!P$390 -> 0 | Q184: =InpS!Q$390 -> 0 | R184: =InpS!R$390 -> 0 | S184: =InpS!S$390 -> 0 | T184: =InpS!T$390 -> 0 | U184: =InpS!U$390 -> 0 | V184: =InpS!V$390 -> 0 | W184: =InpS!W$390 -> 0 | X184: =InpS!X$390 -> 0 | Y184: =InpS!Y$390 -> 0 | Z184: =InpS!Z$390 -> 0 | AA184: =InpS!AA$390 -> 0.93 | AB184: =InpS!AB$390 -> 0.97 | AC184: =InpS!AC$390 -> 1 | AD184: =InpS!AD$390 -> 1.04 | AE184: =InpS!AE$390 -> 1.06 | AF184: =InpS!AF$390 -> 1.08 | AG184: =InpS!AG$390 -> 1.1 | AH184: =InpS!AH$390 -> 1.13 | AI184: =InpS!AI$390 -> 1.15 | AJ184: =InpS!AJ$390 -> 1.18 | AK184: =InpS!AK$390 -> 1.2 | AL184: =InpS!AL$390 -> 1.240549805 | AM184: =InpS!AM$390 -> 1.265360801 | AN184: =InpS!AN$390 -> 1.290668017 | AO184: =InpS!AO$390 -> 1.316481377 | AP184: =InpS!AP$390 -> 1.342811005 | AQ184: =InpS!AQ$390 -> 1.369667225 | AR184: =InpS!AR$390 -> 1.397060569 | AS184: =InpS!AS$390 -> 1.425001781 | AT184: =InpS!AT$390 -> 1.453501816 | AU184: =InpS!AU$390 -> 1.482571853 | AV184: =InpS!AV$390 -> 1.51222329 | AW184: =InpS!AW$390 -> 1.542467756 | AX184: =InpS!AX$390 -> 1.573317111 | AY184: =InpS!AY$390 -> 1.604783453 | AZ184: =InpS!AZ$390 -> 1.636879122 | BA184: =InpS!BA$390 -> 1.669616704 | BB184: =InpS!BB$390 -> 1.703009039 | BC184: =InpS!BC$390 -> 1.737069219 | BD184: =InpS!BD$390 -> 1.771810604 | BE184: =InpS!BE$390 -> 1.807246816 | BF184: =InpS!BF$390 -> 1.843391752 | BG184: =InpS!BG$390 -> 1.880259587 | BH184: =InpS!BH$390 -> 1.917864779 | BI184: =InpS!BI$390 -> 1.956222074 | BJ184: =InpS!BJ$390 -> 1.995346516
E185: =InpS!E$391 -> Annual Growth rate factor indexation scenarios (CPIH Dec/CPIH Average) | F185: =InpS!F$391 -> 0 | G185: =InpS!G$391 -> factor | H185: =InpS!H$391 -> 0 | I185: =InpS!I$391 -> 0 | J185: =InpS!J$391 -> 0 | K185: =InpS!K$391 -> 0 | L185: =InpS!L$391 -> 0 | M185: =InpS!M$391 -> 0 | N185: =InpS!N$391 -> 0 | O185: =InpS!O$391 -> 0 | P185: =InpS!P$391 -> 0 | Q185: =InpS!Q$391 -> 0 | R185: =InpS!R$391 -> 0 | S185: =InpS!S$391 -> 0 | T185: =InpS!T$391 -> 0 | U185: =InpS!U$391 -> 0 | V185: =InpS!V$391 -> 0 | W185: =InpS!W$391 -> 0 | X185: =InpS!X$391 -> 0 | Y185: =InpS!Y$391 -> 0 | Z185: =InpS!Z$391 -> 0 | AA185: =InpS!AA$391 -> 1.04 | AB185: =InpS!AB$391 -> 1.01 | AC185: =InpS!AC$391 -> 1.02 | AD185: =InpS!AD$391 -> 1.01 | AE185: =InpS!AE$391 -> 1.01 | AF185: =InpS!AF$391 -> 1.01 | AG185: =InpS!AG$391 -> 1.01 | AH185: =InpS!AH$391 -> 1.01 | AI185: =InpS!AI$391 -> 1.01 | AJ185: =InpS!AJ$391 -> 1.01 | AK185: =InpS!AK$391 -> 1.01 | AL185: =InpS!AL$391 -> 0 | AM185: =InpS!AM$391 -> 0 | AN185: =InpS!AN$391 -> 0 | AO185: =InpS!AO$391 -> 0 | AP185: =InpS!AP$391 -> 0 | AQ185: =InpS!AQ$391 -> 0 | AR185: =InpS!AR$391 -> 0 | AS185: =InpS!AS$391 -> 0 | AT185: =InpS!AT$391 -> 0 | AU185: =InpS!AU$391 -> 0 | AV185: =InpS!AV$391 -> 0 | AW185: =InpS!AW$391 -> 0 | AX185: =InpS!AX$391 -> 0 | AY185: =InpS!AY$391 -> 0 | AZ185: =InpS!AZ$391 -> 0 | BA185: =InpS!BA$391 -> 0 | BB185: =InpS!BB$391 -> 0 | BC185: =InpS!BC$391 -> 0 | BD185: =InpS!BD$391 -> 0 | BE185: =InpS!BE$391 -> 0 | BF185: =InpS!BF$391 -> 0 | BG185: =InpS!BG$391 -> 0 | BH185: =InpS!BH$391 -> 0 | BI185: =InpS!BI$391 -> 0 | BJ185: =InpS!BJ$391 -> 0
E186: Airport Charges Revenue Indexation factor | G186: factor | AA186: =INDEX( AA$181:AA$185,MATCH("*(" & $F180 & ")*", $E$181:$E$185,0 )) -> 0.91 | AB186: 0.97 | AC186: 1 | AD186: 1.04 | AE186: 1.07 | AF186: 1.09 | AG186: 1.11 | AH186: 1.14 | AI186: 1.16 | AJ186: 1.18 | AK186: 1.21 | AL186: 1.237168878 | AM186: 1.261912256 | AN186: 1.287150501 | AO186: 1.312893511 | AP186: 1.339151381 | AQ186: 1.365934409 | AR186: 1.393253097 | AS186: 1.421118159 | AT186: 1.449540522 | AU186: 1.478531333 | AV186: 1.508101959 | AW186: 1.538263999 | AX186: 1.569029278 | AY186: 1.600409864 | AZ186: 1.632418061 | BA186: 1.665066423 | BB186: 1.698367751 | BC186: 1.732335106 | BD186: 1.766981808 | BE186: 1.802321444 | BF186: 1.838367873 | BG186: 1.875135231 | BH186: 1.912637935 | BI186: 1.950890694 | BJ186: 1.989908508
A189: END

Sheet C_RAB
A1: =RIGHT(CELL("filename", A1), LEN(CELL("filename", A1)) - SEARCH("]", CELL("filename", A1))) -> C_RAB | F1: =HYPERLINK("#Contents!A1","Go to contents") -> Go to contents
E2: Model period end | F2: ='Model Checks and Alerts'!F26 -> 0 | G2: Error chks | AA2: =C_Time!AA$21 -> 2022-12-31 | AB2: =C_Time!AB$21 -> 2023-12-31 | AC2: =C_Time!AC$21 -> 2024-12-31 | AD2: =C_Time!AD$21 -> 2025-12-31 | AE2: =C_Time!AE$21 -> 2026-12-31 | AF2: =C_Time!AF$21 -> 2027-12-31 | AG2: =C_Time!AG$21 -> 2028-12-31 | AH2: =C_Time!AH$21 -> 2029-12-31 | AI2: =C_Time!AI$21 -> 2030-12-31 | AJ2: =C_Time!AJ$21 -> 2031-12-31 | AK2: =C_Time!AK$21 -> 2032-12-31 | AL2: =C_Time!AL$21 -> 2033-12-31 | AM2: =C_Time!AM$21 -> 2034-12-31 | AN2: =C_Time!AN$21 -> 2035-12-31 | AO2: =C_Time!AO$21 -> 2036-12-31 | AP2: =C_Time!AP$21 -> 2037-12-31 | AQ2: =C_Time!AQ$21 -> 2038-12-31 | AR2: =C_Time!AR$21 -> 2039-12-31 | AS2: =C_Time!AS$21 -> 2040-12-31 | AT2: =C_Time!AT$21 -> 2041-12-31 | AU2: =C_Time!AU$21 -> 2042-12-31 | AV2: =C_Time!AV$21 -> 2043-12-31 | AW2: =C_Time!AW$21 -> 2044-12-31 | AX2: =C_Time!AX$21 -> 2045-12-31 | AY2: =C_Time!AY$21 -> 2046-12-31 | AZ2: =C_Time!AZ$21 -> 2047-12-31 | BA2: =C_Time!BA$21 -> 2048-12-31 | BB2: =C_Time!BB$21 -> 2049-12-31 | BC2: =C_Time!BC$21 -> 2050-12-31 | BD2: =C_Time!BD$21 -> 2051-12-31 | BE2: =C_Time!BE$21 -> 2052-12-31 | BF2: =C_Time!BF$21 -> 2053-12-31 | BG2: =C_Time!BG$21 -> 2054-12-31 | BH2: =C_Time!BH$21 -> 2055-12-31 | BI2: =C_Time!BI$21 -> 2056-12-31 | BJ2: =C_Time!BJ$21 -> 2057-12-31
E3: Timeline label | F3: ='Model Checks and Alerts'!F168 -> 9 | G3: Alerts | AA3: =C_Time!AA$26 -> H7 | AB3: =C_Time!AB$26 -> H7 | AC3: =C_Time!AC$26 -> H7 | AD3: =C_Time!AD$26 -> H7 | AE3: =C_Time!AE$26 -> H7 | AF3: =C_Time!AF$26 -> H8 | AG3: =C_Time!AG$26 -> H8 | AH3: =C_Time!AH$26 -> H8 | AI3: =C_Time!AI$26 -> H8 | AJ3: =C_Time!AJ$26 -> H8 | AK3: =C_Time!AK$26 -> H9 | AL3: =C_Time!AL$26 -> H9 | AM3: =C_Time!AM$26 -> H9 | AN3: =C_Time!AN$26 -> H9 | AO3: =C_Time!AO$26 -> H9 | AP3: =C_Time!AP$26 -> H10 | AQ3: =C_Time!AQ$26 -> H10 | AR3: =C_Time!AR$26 -> H10 | AS3: =C_Time!AS$26 -> H10 | AT3: =C_Time!AT$26 -> H10 | AU3: =C_Time!AU$26 -> H11 | AV3: =C_Time!AV$26 -> H11 | AW3: =C_Time!AW$26 -> H11 | AX3: =C_Time!AX$26 -> H11 | AY3: =C_Time!AY$26 -> H11 | AZ3: =C_Time!AZ$26 -> H12 | BA3: =C_Time!BA$26 -> H12 | BB3: =C_Time!BB$26 -> H12 | BC3: =C_Time!BC$26 -> H12 | BD3: =C_Time!BD$26 -> H12 | BE3: =C_Time!BE$26 -> H12 | BF3: =C_Time!BF$26 -> H12 | BG3: =C_Time!BG$26 -> H12 | BH3: =C_Time!BH$26 -> H12 | BI3: =C_Time!BI$26 -> H12 | BJ3: =C_Time!BJ$26 -> H12
E4: Financial year ending | AA4: =C_Time!AA$30 -> 1 | AB4: =C_Time!AB$30 -> 2 | AC4: =C_Time!AC$30 -> 3 | AD4: =C_Time!AD$30 -> 4 | AE4: =C_Time!AE$30 -> 5 | AF4: =C_Time!AF$30 -> 6 | AG4: =C_Time!AG$30 -> 7 | AH4: =C_Time!AH$30 -> 8 | AI4: =C_Time!AI$30 -> 9 | AJ4: =C_Time!AJ$30 -> 10 | AK4: =C_Time!AK$30 -> 11 | AL4: =C_Time!AL$30 -> 12 | AM4: =C_Time!AM$30 -> 13 | AN4: =C_Time!AN$30 -> 14 | AO4: =C_Time!AO$30 -> 15 | AP4: =C_Time!AP$30 -> 16 | AQ4: =C_Time!AQ$30 -> 17 | AR4: =C_Time!AR$30 -> 18 | AS4: =C_Time!AS$30 -> 19 | AT4: =C_Time!AT$30 -> 20 | AU4: =C_Time!AU$30 -> 21 | AV4: =C_Time!AV$30 -> 22 | AW4: =C_Time!AW$30 -> 23 | AX4: =C_Time!AX$30 -> 24 | AY4: =C_Time!AY$30 -> 25 | AZ4: =C_Time!AZ$30 -> 26 | BA4: =C_Time!BA$30 -> 27 | BB4: =C_Time!BB$30 -> 28 | BC4: =C_Time!BC$30 -> 29 | BD4: =C_Time!BD$30 -> 30 | BE4: =C_Time!BE$30 -> 31 | BF4: =C_Time!BF$30 -> 32 | BG4: =C_Time!BG$30 -> 33 | BH4: =C_Time!BH$30 -> 34 | BI4: =C_Time!BI$30 -> 35 | BJ4: =C_Time!BJ$30 -> 36
E5: Period number | F5: Constant | G5: Unit | H5: Notes | I5: Data Source | K5: Confidential Status | M5: Total
A9: Existing RAB
B11: Existing RAB balance BEG
E12: =InpS!E$205 -> Existing RAB BEG | F12: =InpS!F$205 -> 21637 | G12: =InpS!G$205 -> £'m CPIH-real Dec 2026
E13: =C_Time!E$210 -> Opening balances flag | F13: =C_Time!F$210 -> 0 | G13: =C_Time!G$210 -> flag | H13: =C_Time!H$210 -> 0 | I13: =C_Time!I$210 -> 0 | J13: =C_Time!J$210 -> 0 | K13: =C_Time!K$210 -> 0 | L13: =C_Time!L$210 -> 0 | M13: =C_Time!M$210 -> 1 | N13: =C_Time!N$210 -> 0 | O13: =C_Time!O$210 -> 0 | P13: =C_Time!P$210 -> 0 | Q13: =C_Time!Q$210 -> 0 | R13: =C_Time!R$210 -> 0 | S13: =C_Time!S$210 -> 0 | T13: =C_Time!T$210 -> 0 | U13: =C_Time!U$210 -> 0 | V13: =C_Time!V$210 -> 0 | W13: =C_Time!W$210 -> 0 | X13: =C_Time!X$210 -> 0 | Y13: =C_Time!Y$210 -> 0 | Z13: =C_Time!Z$210 -> 0 | AA13: =C_Time!AA$210 -> 0 | AB13: =C_Time!AB$210 -> 0 | AC13: =C_Time!AC$210 -> 0 | AD13: =C_Time!AD$210 -> 0 | AE13: =C_Time!AE$210 -> 1 | AF13: =C_Time!AF$210 -> 0 | AG13: =C_Time!AG$210 -> 0 | AH13: =C_Time!AH$210 -> 0 | AI13: =C_Time!AI$210 -> 0 | AJ13: =C_Time!AJ$210 -> 0 | AK13: =C_Time!AK$210 -> 0 | AL13: =C_Time!AL$210 -> 0 | AM13: =C_Time!AM$210 -> 0 | AN13: =C_Time!AN$210 -> 0 | AO13: =C_Time!AO$210 -> 0 | AP13: =C_Time!AP$210 -> 0 | AQ13: =C_Time!AQ$210 -> 0 | AR13: =C_Time!AR$210 -> 0 | AS13: =C_Time!AS$210 -> 0 | AT13: =C_Time!AT$210 -> 0 | AU13: =C_Time!AU$210 -> 0 | AV13: =C_Time!AV$210 -> 0 | AW13: =C_Time!AW$210 -> 0 | AX13: =C_Time!AX$210 -> 0 | AY13: =C_Time!AY$210 -> 0 | AZ13: =C_Time!AZ$210 -> 0 | BA13: =C_Time!BA$210 -> 0 | BB13: =C_Time!BB$210 -> 0 | BC13: =C_Time!BC$210 -> 0 | BD13: =C_Time!BD$210 -> 0 | BE13: =C_Time!BE$210 -> 0 | BF13: =C_Time!BF$210 -> 0 | BG13: =C_Time!BG$210 -> 0 | BH13: =C_Time!BH$210 -> 0 | BI13: =C_Time!BI$210 -> 0 | BJ13: =C_Time!BJ$210 -> 0
E14: Existing RAB balance BEG | G14: £'m CPIH-real 2024 | M14: =SUM( AA14:BJ14 ) -> 21637 | AA14: =AA13 * $F12 -> 0 | AB14: 0 | AC14: 0 | AD14: 0 | AE14: 21637 | AF14: 0 | AG14: 0 | AH14: 0 | AI14: 0 | AJ14: 0 | AK14: 0 | AL14: 0 | AM14: 0 | AN14: 0 | AO14: 0 | AP14: 0 | AQ14: 0 | AR14: 0 | AS14: 0 | AT14: 0 | AU14: 0 | AV14: 0 | AW14: 0 | AX14: 0 | AY14: 0 | AZ14: 0 | BA14: 0 | BB14: 0 | BC14: 0 | BD14: 0 | BE14: 0 | BF14: 0 | BG14: 0 | BH14: 0 | BI14: 0 | BJ14: 0
B17: Live Existing RAB depreciation (real)
E18: =InpS!E$95 -> Existing RAB depreciation method | F18: =InpS!F$95 -> 3 | G18: =InpS!G$95 -> 1=Straight line, 2=reducing balance, 3=profiled input
E19: =C_RABDep!E$52 -> Existing RAB straight line depreciation (real) | F19: =C_RABDep!F$52 -> 0 | G19: =C_RABDep!G$52 -> £'m CPIH-real 2024 | H19: =C_RABDep!H$52 -> 0 | I19: =C_RABDep!I$52 -> 0 | J19: =C_RABDep!J$52 -> 0 | K19: =C_RABDep!K$52 -> 0 | L19: =C_RABDep!L$52 -> 0 | M19: =C_RABDep!M$52 -> -21638 | N19: =C_RABDep!N$52 -> 0 | O19: =C_RABDep!O$52 -> 0 | P19: =C_RABDep!P$52 -> 0 | Q19: =C_RABDep!Q$52 -> 0 | R19: =C_RABDep!R$52 -> 0 | S19: =C_RABDep!S$52 -> 0 | T19: =C_RABDep!T$52 -> 0 | U19: =C_RABDep!U$52 -> 0 | V19: =C_RABDep!V$52 -> 0 | W19: =C_RABDep!W$52 -> 0 | X19: =C_RABDep!X$52 -> 0 | Y19: =C_RABDep!Y$52 -> 0 | Z19: =C_RABDep!Z$52 -> 0 | AA19: =C_RABDep!AA$52 -> 0 | AB19: =C_RABDep!AB$52 -> 0 | AC19: =C_RABDep!AC$52 -> 0 | AD19: =C_RABDep!AD$52 -> 0 | AE19: =C_RABDep!AE$52 -> 0 | AF19: =C_RABDep!AF$52 -> -4327.6 | AG19: =C_RABDep!AG$52 -> -4327.6 | AH19: =C_RABDep!AH$52 -> -4327.6 | AI19: =C_RABDep!AI$52 -> -4327.6 | AJ19: =C_RABDep!AJ$52 -> -4327.6 | AK19: =C_RABDep!AK$52 -> 0 | AL19: =C_RABDep!AL$52 -> 0 | AM19: =C_RABDep!AM$52 -> 0 | AN19: =C_RABDep!AN$52 -> 0 | AO19: =C_RABDep!AO$52 -> 0 | AP19: =C_RABDep!AP$52 -> 0 | AQ19: =C_RABDep!AQ$52 -> 0 | AR19: =C_RABDep!AR$52 -> 0 | AS19: =C_RABDep!AS$52 -> 0 | AT19: =C_RABDep!AT$52 -> 0 | AU19: =C_RABDep!AU$52 -> 0 | AV19: =C_RABDep!AV$52 -> 0 | AW19: =C_RABDep!AW$52 -> 0 | AX19: =C_RABDep!AX$52 -> 0 | AY19: =C_RABDep!AY$52 -> 0 | AZ19: =C_RABDep!AZ$52 -> 0 | BA19: =C_RABDep!BA$52 -> 0 | BB19: =C_RABDep!BB$52 -> 0 | BC19: =C_RABDep!BC$52 -> 0 | BD19: =C_RABDep!BD$52 -> 0 | BE19: =C_RABDep!BE$52 -> 0 | BF19: =C_RABDep!BF$52 -> 0 | BG19: =C_RABDep!BG$52 -> 0 | BH19: =C_RABDep!BH$52 -> 0 | BI19: =C_RABDep!BI$52 -> 0 | BJ19: =C_RABDep!BJ$52 -> 0
E20: =C_RABDep!E$69 -> Reducing balance depreciation, Existing RAB (real) | F20: =C_RABDep!F$69 -> 0 | G20: =C_RABDep!G$69 -> £'m CPIH-real 2024 | H20: =C_RABDep!H$69 -> 0 | I20: =C_RABDep!I$69 -> 0 | J20: =C_RABDep!J$69 -> 0 | K20: =C_RABDep!K$69 -> 0 | L20: =C_RABDep!L$69 -> 0 | M20: =C_RABDep!M$69 -> -20811.50426 | N20: =C_RABDep!N$69 -> 0 | O20: =C_RABDep!O$69 -> 0 | P20: =C_RABDep!P$69 -> 0 | Q20: =C_RABDep!Q$69 -> 0 | R20: =C_RABDep!R$69 -> 0 | S20: =C_RABDep!S$69 -> 0 | T20: =C_RABDep!T$69 -> 0 | U20: =C_RABDep!U$69 -> 0 | V20: =C_RABDep!V$69 -> 0 | W20: =C_RABDep!W$69 -> 0 | X20: =C_RABDep!X$69 -> 0 | Y20: =C_RABDep!Y$69 -> 0 | Z20: =C_RABDep!Z$69 -> 0 | AA20: =C_RABDep!AA$69 -> 0 | AB20: =C_RABDep!AB$69 -> 0 | AC20: =C_RABDep!AC$69 -> 0 | AD20: =C_RABDep!AD$69 -> 0 | AE20: =C_RABDep!AE$69 -> 0 | AF20: =C_RABDep!AF$69 -> -2163.7 | AG20: =C_RABDep!AG$69 -> -1947.33 | AH20: =C_RABDep!AH$69 -> -1752.597 | AI20: =C_RABDep!AI$69 -> -1577.3373 | AJ20: =C_RABDep!AJ$69 -> -1419.60357 | AK20: =C_RABDep!AK$69 -> -1277.643213 | AL20: =C_RABDep!AL$69 -> -1149.878892 | AM20: =C_RABDep!AM$69 -> -1034.891003 | AN20: =C_RABDep!AN$69 -> -931.4019023 | AO20: =C_RABDep!AO$69 -> -838.261712 | AP20: =C_RABDep!AP$69 -> -754.4355408 | AQ20: =C_RABDep!AQ$69 -> -678.9919868 | AR20: =C_RABDep!AR$69 -> -611.0927881 | AS20: =C_RABDep!AS$69 -> -549.9835093 | AT20: =C_RABDep!AT$69 -> -494.9851583 | AU20: =C_RABDep!AU$69 -> -445.4866425 | AV20: =C_RABDep!AV$69 -> -400.9379783 | AW20: =C_RABDep!AW$69 -> -360.8441804 | AX20: =C_RABDep!AX$69 -> -324.7597624 | AY20: =C_RABDep!AY$69 -> -292.2837862 | AZ20: =C_RABDep!AZ$69 -> -263.0554075 | BA20: =C_RABDep!BA$69 -> -236.7498668 | BB20: =C_RABDep!BB$69 -> -213.0748801 | BC20: =C_RABDep!BC$69 -> -191.7673921 | BD20: =C_RABDep!BD$69 -> -172.5906529 | BE20: =C_RABDep!BE$69 -> -155.3315876 | BF20: =C_RABDep!BF$69 -> -139.7984288 | BG20: =C_RABDep!BG$69 -> -125.818586 | BH20: =C_RABDep!BH$69 -> -113.2367274 | BI20: =C_RABDep!BI$69 -> -101.9130546 | BJ20: =C_RABDep!BJ$69 -> -91.72174916
E21: =InpS!E$378 -> Existing RAB depreciation profile | F21: =InpS!F$378 -> 0 | G21: =InpS!G$378 -> £'m CPIH-real 2024 | H21: =InpS!H$378 -> 0 | I21: =InpS!I$378 -> 0 | J21: =InpS!J$378 -> 0 | K21: =InpS!K$378 -> 0 | L21: =InpS!L$378 -> 0 | M21: =InpS!M$378 -> 0 | N21: =InpS!N$378 -> 0 | O21: =InpS!O$378 -> 0 | P21: =InpS!P$378 -> 0 | Q21: =InpS!Q$378 -> 0 | R21: =InpS!R$378 -> 0 | S21: =InpS!S$378 -> 0 | T21: =InpS!T$378 -> 0 | U21: =InpS!U$378 -> 0 | V21: =InpS!V$378 -> 0 | W21: =InpS!W$378 -> 0 | X21: =InpS!X$378 -> 0 | Y21: =InpS!Y$378 -> 0 | Z21: =InpS!Z$378 -> 0 | AA21: =InpS!AA$378 -> 0 | AB21: =InpS!AB$378 -> 0 | AC21: =InpS!AC$378 -> 0 | AD21: =InpS!AD$378 -> 0 | AE21: =InpS!AE$378 -> 0 | AF21: =InpS!AF$378 -> 0 | AG21: =InpS!AG$378 -> 0 | AH21: =InpS!AH$378 -> 0 | AI21: =InpS!AI$378 -> 0 | AJ21: =InpS!AJ$378 -> 0 | AK21: =InpS!AK$378 -> 0 | AL21: =InpS!AL$378 -> 0 | AM21: =InpS!AM$378 -> 0 | AN21: =InpS!AN$378 -> 0 | AO21: =InpS!AO$378 -> 0 | AP21: =InpS!AP$378 -> 0 | AQ21: =InpS!AQ$378 -> 0 | AR21: =InpS!AR$378 -> 0 | AS21: =InpS!AS$378 -> 0 | AT21: =InpS!AT$378 -> 0 | AU21: =InpS!AU$378 -> 0 | AV21: =InpS!AV$378 -> 0 | AW21: =InpS!AW$378 -> 0 | AX21: =InpS!AX$378 -> 0 | AY21: =InpS!AY$378 -> 0 | AZ21: =InpS!AZ$378 -> 0 | BA21: =InpS!BA$378 -> 0 | BB21: =InpS!BB$378 -> 0 | BC21: =InpS!BC$378 -> 0 | BD21: =InpS!BD$378 -> 0 | BE21: =InpS!BE$378 -> 0 | BF21: =InpS!BF$378 -> 0 | BG21: =InpS!BG$378 -> 0 | BH21: =InpS!BH$378 -> 0 | BI21: =InpS!BI$378 -> 0 | BJ21: =InpS!BJ$378 -> 0
E22: Live Existing RAB depreciation (real) | G22: £'m CPIH-real 2024 | M22: =SUM( AA22:BJ22 ) -> 0 | AA22: =CHOOSE( $F18, AA19, AA20, AA21 ) -> 0 | AB22: 0 | AC22: 0 | AD22: 0 | AE22: 0 | AF22: 0 | AG22: 0 | AH22: 0 | AI22: 0 | AJ22: 0 | AK22: 0 | AL22: 0 | AM22: 0 | AN22: 0 | AO22: 0 | AP22: 0 | AQ22: 0 | AR22: 0 | AS22: 0 | AT22: 0 | AU22: 0 | AV22: 0 | AW22: 0 | AX22: 0 | AY22: 0 | AZ22: 0 | BA22: 0 | BB22: 0 | BC22: 0 | BD22: 0 | BE22: 0 | BF22: 0 | BG22: 0 | BH22: 0 | BI22: 0 | BJ22: 0
B25: Existing RAB indexation adjustment
